Workbook

Sheet to be hidden (hidden)
B1: Master message list
B3: message1 | C3: fill in
B4: message2 | C4: leave empty
B5: message3 | C5: Zeros in this column
B6: message4 | C6: Complete this column
B7: message5 | C7: OUTsites
B8: message6 | C8: Insites
B9: message7 | C9: Outsites & Insites
B10: message8 | C10: Total participating in CMAM that year
B11: message9 | C11: More areas
B12: message10 | C12: èè
B13: message11 | C13: C O S T S
B14: message12 | C14: Q U A N T I T I E S
B15: message13 | C15: Calculations
B16: message13b | C16: (To see calculations click on [+] in column 1).
B17: message13c | C17: (To hide calculations click on [-] in column 1 at the end of the table).
B18: message14 | C18: Annual costs of this activity
B19: message15 | C19: Quantities of inputs needed for this activity
B20: message16 | C20: Basic drivers, raw data
B21: message17 | C21: CALCULATIONS
B22: message18 | C22: Prices
B23: message19 | C23: zeros only below
B24: mess20 | C24: Units
B25: mess21 | C25: Comments | K25: check if "established" should actually refer to "all"
B26: mess22 | C26: Variable
B27: mess23 | C27: Value

Sheet Sommaire
B2: Outil de calcul des coûts PCMA pour déterminer les coûts de la prise en charge à base communautaire de la malnutrition aiguë (PCMA) aux niveaux national, sous-national et de district
B6: Clé des codes de couleurs et symboles | G6: Voir le Guide de l' Utilisateur pour une aide sur l'utilisation de cet Outil.
B7: or | D7: u Données fournies directement par l'utilisateur | H7: Version 1.1, février 2012
B8: jaune | D8: Copiées de données fournies par l'utilisateur | H8: Cet outil a été préparé grâce au soutien généreux du peuple américain par le biais du soutien de l’Office de la santé, des maladies infectieuses et de la nutrition du Bureau de la santé globale et du Bureau pour l’assistance en cas de catastrophes à l’étranger du Bureau pour la démocratie, la gestion des conflits et l’assistance humanitaire (DCHA/OFDA), Agence des Etats-Unis pour le développement international (USAID), aux termes de l’accord coopératif AID-OAA-A-11-00014, par l’intermédiaire du Projet d’assistance technique à l’alimentation et à la nutrition (FANTA), mis en œuvre par FHI 360. Le contenu incombe à FHI 360 et ne reflète pas forcément les vues de l’USAID ou du Gouvernement des Etats-Unis.
B9: vert foncé | D9: n Données fournies directement par l'Outil (peuvent être ajustées par l'Utilisateur)
B10: vert clair | D10: Copiées des données fournies par l'Outil (ou par l'Utilisateur)
B11: violet | D11: Calculs faits par l'Outil
B12: bleu | D12: Hyperlien pour se connecter ailleurs dans la Fiche de travail
B13: rouge | D13: Problèmes à résoudre
B15: TITRES ET DESCRIPTIONS DES FEUILLES DE CALCUL
B17: Numéros et noms des feuilles de calcul | F17: Description des feuilles de calcul
B19: INTRODUCTION
D20: Sommaire
D21: Résultats expliqués
B23: DONNÉES | F23: Les feuilles de calcul D1 à D9 présentent toutes les hypothèses à la base des calculs indiqués dans les feuilles de calcul (R1 à R14) y compris les données entrées par l'utilisateur sur :
C25: D1 | D25: Données générales | F25: Termes et portée spécifiques au pays du service/programme de la PCMA
C26: D2 | D26: Echelle | F26: Taille du service/programme planifié de la PCMA
C27: D3 | D27: Données épidémiologiques, démographiques et de services | F27: Epidémiologie de la malnutrition, démographie de la population, données sur les services de la PCMA
C28: D4 | D28: Prix (non compris les salaires et les "fournitures fixes") | F28: Prix de tous les intrants clés non compris la main-d'œuvre (salaires) et certaines fournitures fixes
C29: D5 | D29: Salaires | F29: Salaires des principales catégories de personnel
C30: D6 | D30: Fournitures fixes (pour sites PEC MAS amb et hosp) | F30: Prix des fournitures livrées en quantités fixes dans les sites de traitement
C31: D7 | D31: Fréquence des livraisons de l'aliment thérapeutique | F31: Nombre de livraisons chaque année d'ATPE et autre aliment thérapeutique aux divers niveaux
C32: D8 | D32: Statistiques au niveau groupe-zones et niveau central | F32: Variables au niveau plus élevé (groupe-zones et central)
C33: D9 | D33: Variables changeantes dans le temps | F33: Année pour laquelle est faite l'analyse
B35: RÉSULTATS (intrants et finances nécessaires pour la PCMA) | F35: Ces feuilles de calcul ne demandent pas de données de la part de l'utilisateur
C36: R1 | D36: Besoins annuels en main-d'œuvre pour la PCMA | F36: Les feuilles de calcul R1 à R4 présentent les résultats indiquant, pour chacun des types clés d'intrant (main-d'œuvre, transport, fournitures et espace), ce que demande le service/programme de la PCMA pour l'année spécifiée dans la feuille de calcul D9. Les résultats sont dérivés des calculs dans les feuilles de calcul R6 à R14.
C37: R2 | D37: Besoins annuels en transports pour la PCMA
C38: R3 | D38: Besoins annuels en fournitures pour la PCMA
C39: R4 | D39: Besoins annuels en espace pour la PCMA
C40: R5 | D40: Récapitulatif financier
B42: RÉSULTATS (intrants et finances nécessaires pour chaque activité de la PCMA) | F42: Ces feuilles de calcul ne demandent pas de données de la part de l'utilisateur
C43: R6 | D43: Activités au niveau central et du groupe-zones | F43: Ces feuilles de calcul R6 à R14 présentent les résultats du point de vue quantités et valeurs des ressources nécessaires (pour l'année spécifiée sur la feuille D9) pour chacune des activités clés - gestion au siège, traitement (prise en charge des cas), logistique de l'approvisionnement (transport et stockage des fournitures), formation, supervision et extension communautaire. Toutes les activités réalisées à un niveau plus élevé (sièges du groupe-zones et du niveau central) - à savoir gestion, formation et logistique de l'approvisionnement - sont regroupées dans une seule feuille de calcul (R6). Les activités se déroulant au siège de la zone ou en dessous sont traitées dans des feuilles de calcul séparées (avec 'Traitement' sous-divisé à toutes fins pratiques en trois feuilles de calcul pour chacun des intrants clés - main-d'œuvre et espace, fournitures médicales et autres fournitures).
C44: R7 | D44: Gestion de la PCMA au siège de la zone
C45: R8 | D45: Traitement (main-d'œuvre et espace)
C46: R9 | D46: Traitement (fournitures médicales)
C47: R10 | D47: Traitement (autres fournitures)
C48: R11 | D48: Logistique de l'approvisionnement
C49: R12 | D49: Formation
C50: R13 | D50: Supervision
C51: R14 | D51: Extension communautaire

Sheet Résultats expliqués
B2: RÉSULTATS EXPLIQUÉS
D4: Quel est le type d'information que l'Outil apportera sur les besoins en ressources pour la PCMA ? En voici des exemples.
F6: Pour l'année | H6: =+'D9 Variables temps'!I6-1+'D9 Variables temps'!I10 -> 2011 | N6: Quantités | O6: Unités
E7: Quelle est la quantité d'ATPE nécessaire ? | N7: =+'R3 Fournitures'!F17 -> 1993.57125 | O7: kg
E8: De combien de temps auront besoin les agents de santé dans les sites PEC MAS ambulatoire ? | N8: =+'R1 Main-d''oeuvres'!F23+'R1 Main-d''oeuvres'!F31 -> 3.671153846 | O8: années équivalents plein temps
E9: Combien d'argent faudra-t-il pour les rafraîchissements ? | N9: =+('R3 Fournitures'!F59+'R3 Fournitures'!F60+'R3 Fournitures'!F61+'R3 Fournitures'!F62+'R3 Fournitures'!F63)*'D4 Prix'!F26 -> 2712 | O9: =+IF('D1 Données générales'!$H$13="","",'D1 Données générales'!$H$13) -> Cedi
E10: Quelle est la distance qui sera couverte pour le transport de l'aliment thérapeutique ? | N10: =+SUM('R2 Transport'!E21+'R2 Transport'!E26+'R2 Transport'!E31) -> 192 | O10: km
E11: Quel est le coût pour fournir des médicaments adéquats aux enfants avec MAS ? | N11: =+'R5 Récapitulatif financier'!P24 -> 1312.35 | O11: =+IF('D1 Données générales'!$H$13="","",'D1 Données générales'!$H$13) -> Cedi
E12: Quel est l'espace nécessaire au siège de la zone pour stocker l'ATPE ? | N12: =+SUM('R4 Espace'!E17:E21) -> 1.218047089 | O12: m3
D14: Pour trouver les réponses à ces questions, vous devez fournir des informations sur votre service/programme planifié de PCMA (entrées dans les cellules couleur ou à partir des feuilles de calcul D1 à D9). Des instructions détaillées sont données au haut de chaque feuille et une aide supplémentaire est donnée dans le Guide de l'Utilisateur.
D16: Et vous pouvez en savoir plus sur . . . | N16: Aller à la feuille de travail ..
F17: Le type de personnel utilisé pour la PCMA ? Ce qu'ils vont faire ? | N17: R1 Main-d'oeuvres
F18: Pourquoi tous ces transports sont-ils nécessaires ? | N18: R2 Transport
F19: Pourquoi et à qui offrir des rafraîchissements ? | N19: R3 Fournitures
F20: Quel est l'espace de stockage dans les sites PEC/MAS ambulatoire et hospitalière ? | N20: R4 Espace
F21: Quelles sont les zones qui ont besoin de plus d'attention de la part d'un niveau de gestion plus élevé? | N21: R6 Central activités
F22: Quelles sont les ressources nécessaires pour apporter une formation adéquate ? | N22: R12 Formation
D24: Les coûts de la PCMA sont organisés de deux manières -intrants et activités. Le tableau ci-après montre comment ils sont reliés et et quel est le type d'intrant pour les diverses activités : les commentaires (qui apparaissent quand le curseur se trouve sur la cellule pertinente) apportent des exemples spécifiques. Le tableau identifie également la feuille de travail dans laquelle sont récapitulés les résultats (avec l'hyperlien pour s'y rendre).
G26: Intrants
F27: Main-d'œuvre | G27: Transport | H27: Fournitures | I27: Espace | J27: TOUS | L27: Activités
F28: R1 | G28: R2 | H28: R3 | I28: R4 | J28: R5 | K28: TOUTES
F29: ***** | G29: ***** | J29: R6 | K29: Gestion PCMA (Groupe-zones et niveau central)
F30: ***** | G30: ***** | J30: R7 | K30: Gestion PCMA (niveau zone)
F31: ***** | I31: ***** | J31: R8 | K31: Traitement (main-d'oeuvre)
H32: ***** | J32: R9 | K32: Traitement (fournitures médicales)
G33: ***** | H33: ***** | J33: R10 | K33: Traitement (autres fournitures)
F34: ***** | G34: ***** | H34: ***** | I34: ***** | J34: R11 | K34: Logistique de l'approvisionnement
F35: ***** | G35: ****** | H35: ***** | I35: ***** | J35: R12 | K35: Formation
F36: ***** | G36: ***** | H36: ***** | J36: R13 | K36: Supervision
F37: ***** | J37: R14 | K37: Extension communautaire

Sheet Rappel sur les feuilles de donn
B2: Rappel sur les feuilles de calcul avec entrées de données [D1 à D9]
B4: Les sept feuilles de calcul suivantes (D1 à D9) présentent les données de base dont
B5: sont tirés les calculs subséquents des ressources nécessaires et des coûts.
B7: L'utilisateur doit remplir les cellules en or (chercher u dans les lignes qui ont des cellules d'entrée).
B9: L'utilisateur peut changer les hypothèses sur les données de l'Outil (chercher les cellules vert foncé et le symbole n).

Sheet D1 Données générales
A2: Retour au sommaire | C2: D1: Données générales
B4: Effacez dans cette Feuille de calcul toute donnée entrée d'une application précédente de cet Outil en pressan ce bouton ………..
B6: REMPLIR cette Feuille de calcul (D1) avant de passer aux feuilles suivantes : les chiffres que vous allez noter ici influenceront la tailler et la forme de certaines autres feuilles de calcul.
B9: NOTEZ dans les cellules couleur or les réponses aux 9 questions suivantes (chercher u):
B11: 1 | C11: Nom du pays dans lequel le service/programme de la PCMA est mis en œuvre. | F11: Pays: | H11: Ghana | I11: u
B13: 2 | C13: Caractéristiques financières de base. | D13: Monnaie locale (par exemple, dollars, cedi, shillings) | H13: Cedi | I13: u
D14: Année de base pour les prix (Utilisez l'année actuelle ou une année récente) | H14: 2010 | I14: u
D15: Taux de change (somme en monnaie locale pour un dollar américain) | H15: 1.43 | I15: u
D16: Type de prix que vous allez utiliser | H16: prix du marché | I16: u
B18: 3 | C18: Termes utilisés pour les differants niveaux du système sanitaire.
C20: Types de niveaux | D20: (Examples de termes possibles) | E20: Le terme utilisé dans cet outil | F20: Termes utilisés dans votre pays pour ces niveaux
C21: Unité administrative de santé au niveau district | D21: (district) | E21: Niveau zone | F21: district | I21: u
C22: Unité administrative de santé au niveau intermédiaire | D22: (état, province, région, etc.) | E22: Groupe-zones | F22: région | I22: u
C23: Third lowest level administrative unit | D23: (state, province, region etc) | E23: Group-Area-Collections | I23: u
C24: Unité administrative de santé au niveau national | D24: (pays, nation) | E24: Niveau central | F24: national | I24: u
B26: 4 | C26: Nombres d'années budgétisées (pour un maximum de 5 ans). | G26: 1 | H26: u
B28: 5 | C28: Première année calendaire du plan/budget de la PCMA. (Point besoin que ce soit la première année de la mise en œuvre de la PCMA dans ce pays). | G28: 2011 | H28: u
H30: =+G26+1 -> 2
B31: 6 | C31: Nombre de zones dans le budget (maximum 10). Comptez toutes les zones pour lesquelles on budgétise, y compris celles où la PCMA est déjà établie ou celles qui commenceront pendant la période budgétisée | G31: 1 | H31: u
B33: 7 | C33: Nombre de groupes-zones actifs, c'est-à-dire ceux comprenant des zones où les programmes/services de la PCMA sont budgétisés (maximum de 8, et pas plus que le nombre de zones (question 6) ou cela va être mis en évidence en rouge). | G33: 1 | H33: u
B35: 8 | C35: Noms de ces groupes-zones actifs. (Point besoin de noter les noms des autres groupes-zones dans le pays.) | G35: =+IF($F$22="","",$F$22) -> région | H35: =+IF($F$22="","",$F$22) -> région
G36: Greater Accra | I36: u
I37: u
I38: u
D39: {Si les noms sont mis en évidence en rouge, vous avez noté les noms d'un plus grand nombre de groupe-zones que ceux que vous avez indiqués qui participeront (voir question 7)}. | I39: u
I40: u
I41: u
I42: u
I43: u
B45: 9 | C45: La PCMA a-t-elle déjà été établie au niveau central (le terrain est déjà préparé pour la PCMA, liaison avec politiques et donateurs, mise en place des systèmes logistiques et d'information, préparation des directives, aides professionnelles, matériel de formation, plans d'étude et listes de vérification pour la supervision) (oui/non). | G45: oui | H45: u
C50: HEALTH SERVICE PROVISION FACILITIES
C51: Community/outreach services | D51: (village) | E51: Community | F51: community
C52: All types of health facilities offering outpatient care for children with SAM. (Include facilities where inpatient care might also be provided). | D52: (health/ primary/ auxiliary/sub/ centre) | E52: Outpatient Care site (OC site) | F52: CHPS, community health centers, community clinics, polyclinics
C53: All types of health facilities offering inpatient care for SAM children. (Include facilities where outpatient care might also be provided). | D53: (health centre, district, provincial, regional hospital) | E53: Inpatient Care site (IC site) | F53: hospitals, certain health centers

Sheet D2 Echelle
A2: Retour au sommaire | C2: D2: Échelle
B4: THESE ROWS ARE COPIED FROM PREVIOUS WORKSHEET because you cannot do conditional formatting using cells from other worksheets
B5: 1 | C5: RECORD here the number of years you wish to budget for (maximum 5). | I5: =+'D1 Données générales'!G26 -> 1
C7: (This was the original reference - keep for convenience to avoid having to rename reference cells. Hide this row | I7: =+I5+1 -> 2
B8: 2 | C8: RECORD here the number of Areas to be included in the budgetary analysis (maximum 10). Include Areas that begin functioning at any time during the period you wish to budget for. | I8: =+'D1 Données générales'!G31 -> 1
A11: Taken from D1 and hidden | B11: 3 | C11: RECORD here the first year of the CMAM plan/budget. | I11: ='D1 Données générales'!G28 -> 2011
B13: Effacez dans cette feuille de calcul toute donnée entrée d'une application précédente de cet Outil en pressant ce bouton ………..
B15: REMPLIR les cellules en or indiquées par u dans le Tableau suivant, qui est automatiquement structuré par l'Outil pour refléter le nombre de zones et les années budgétisées (tel que notées dans la Feuille de calcul D1):
B17: 1 | C17: Le nom de chaque zone budgétisée pour la période entière définie dans la Feuille de calcul (à côté de zone 1, zone 2, etc.). Rangez les zones en termes de leur importance pour le programme, notant en premier les zones où la PCMA est la plus importante. Ainsi, il sera plus facile par la suite d'enlever des zones de la PCMA pour manque de fonds.
B19: 2 | C19: Le nom du groupe-zones auquel appartient chaque zone (voir Feuille de travail D1).
B21: 3 | C21: Le nombre de sites PEC MAS ambulatoire, de sites PEC MAS hospitalière et sites d'extension communautaire participant à la PCMA pour chaque zone. Inclure tous les sites actifs et pas simplement ceux nouvellement établis (à savoir ,(a) ceux qui ont déjà été établis lors d'années précédentes et qui continuent pendant cette anneé et (b) ceux qui seront nouvellement établis et ouverts cette année). Faites cela pour chacune des années budgétisées et pour une année avant cela (notez les sites déjà établis avant la période pour laquelle vous budgétisez). | R21: size of row changed
B23: 4 | C23: Le nombre de cas de MAS prévus dans la PEC MAS de chaque zone active pour les années budgétisées. Voir la discussion en Annexe 2 du Guide l'Utilisateur pour des conseils sur la manière d'estimer cette variable importante.
B25: 5 | C25: Le nombre de sites PEC MAS ambulatoire actifs dans chaque zone pour chacune des années budgétisées.
C28: =+IF('D1 Données générales'!$H$11="","",'D1 Données générales'!$H$11) -> Ghana
F29: 4 | I29: Année pré-budget | J29: Année 1 | K29: Année 2 | L29: Année 3 | M29: Année 4 | N29: Année 5 | R29: changed conditional formatting to reveal "year 2 3 " etc
B30: Zones PCMA | C30: =+IF('D1 Données générales'!$F$21="","",'D1 Données générales'!$F$21) -> district | D30: =+IF('D1 Données générales'!$F$22="","",'D1 Données générales'!$F$22) -> région | E30: =+'D1 Données générales'!F23 -> 0 | F30: Year CMAM to start in this AREA | I30: =+IF($I$11=0,"",$I$11-1) -> 2010 | J30: =+IF(I11=0,"",I11) -> 2011 | K30: =+IF($I$11=0,"",$I$11+1) -> 2012 | L30: =+IF($I$11=0,"",$I$11+2) -> 2013 | M30: =+IF($I$11=0,"",$I$11+3) -> 2014 | N30: =+IF($I$11=0,"",$I$11+4) -> 2015 | R30: changed conditional formatting in coloumn H to reveal appropriately depending on number of Areas
B31: Zone 1 | C31: Ashiedu Keteke | D31: Greater Accra | E31: Central | F31: 1 | G31: Total de sites pour cette année
F32: =+IF(F31<F11,"re-order areas","") ->  | H32: Sites PEC MAS ambulatoire | I32: 2 | J32: 2 | O32: u
H33: Sites PEC MAS hospitalière | I33: 1 | J33: 1 | O33: u
H34: Cas MAS | J34: 150 | O34: u
H35: Sites extension communautaire | J35: 100 | O35: u
B36: Zone 2 | E36: Central | F36: 1 | G36: Total de sites pour cette année
F37: =+IF(F36<F31,"re-order areas","") ->  | H37: Sites PEC MAS ambulatoire | O37: u
H38: Sites PEC MAS hospitalière | O38: u
H39: Cas MAS | O39: u
H40: Sites extension communautaire | O40: u
B41: Zone 3 | E41: Central | F41: 1 | G41: Total de sites pour cette année
F42: =+IF(F41<F36,"re-order areas","") ->  | H42: Sites PEC MAS ambulatoire | O42: u
H43: Sites PEC MAS hospitalière | O43: u
H44: Cas MAS | O44: u
H45: Sites extension communautaire | O45: u
B46: Zone 4 | E46: Oz | F46: 1 | G46: Total de sites pour cette année
F47: =+IF(F46<F41,"re-order areas","") ->  | H47: Sites PEC MAS ambulatoire | O47: u
H48: Sites PEC MAS hospitalière | O48: u
H49: Cas MAS | O49: u
H50: Sites extension communautaire | O50: u
B51: Zone 5 | E51: NZ | F51: 1 | G51: Total de sites pour cette année
F52: =+IF(F51<F46,"re-order areas","") ->  | H52: Sites PEC MAS ambulatoire | O52: u
H53: Sites PEC MAS hospitalière | O53: u
H54: Cas MAS | O54: u
H55: Sites extension communautaire | O55: u
B56: Zone 6 | E56: NZ | F56: 1 | G56: Total de sites pour cette année
F57: =+IF(F56<F51,"re-order areas","") ->  | H57: Sites PEC MAS ambulatoire | O57: u
H58: Sites PEC MAS hospitalière | O58: u
H59: Cas MAS | O59: u
H60: Sites extension communautaire | O60: u
B61: Zone 7 | E61: NZ | F61: 1 | G61: Total de sites pour cette année
F62: =+IF(F61<F56,"re-order areas","") ->  | H62: Sites PEC MAS ambulatoire | O62: u
H63: Sites PEC MAS hospitalière | O63: u
H64: Cas MAS | O64: u
H65: Sites extension communautaire | O65: u
B66: Zone 8 | E66: NZ | F66: 1 | G66: Total de sites pour cette année
F67: =+IF(F66<F61,"re-order areas","") ->  | H67: Sites PEC MAS ambulatoire | O67: u
H68: Sites PEC MAS hospitalière | O68: u
H69: Cas MAS | O69: u
H70: Sites extension communautaire | O70: u
B71: Zone 9 | E71: Ind | F71: 1 | G71: Total de sites pour cette année
F72: =+IF(F71<F66,"re-order areas","") ->  | H72: Sites PEC MAS ambulatoire | O72: u
H73: Sites PEC MAS hospitalière | O73: u
H74: Cas MAS | O74: u
H75: Sites extension communautaire | O75: u
B76: Zone 10 | E76: Ind | F76: 1 | G76: Total de sites pour cette année
F77: =+IF(F76<F71,"re-order areas","") ->  | H77: Sites PEC MAS ambulatoire | O77: u
H78: Sites PEC MAS hospitalière | O78: u
H79: Cas MAS | O79: u
H80: Sites extension communautaire | O80: u
A82: perhaps delete these? | G82: Total participating that year | H82: OCsites
H83: ICsites
F84: =+IF(I46="yes",#REF!,"") ->  | H84: SAM cases

Sheet D3 Données épi. démo
A2: Retour au sommaire | C2: D3: Données épidémiologiques, démographiques et de services/programmes
C5: Effacez dans cette Feuille toute donnée entrée d'une application précédente de cet Outil en pressant sur le bouton ………..
B7: Number of Areas included in study | D7: =+'D2 Echelle'!I8 -> 1 | E7: (taken from Worksheet 2) | J7: 2. Review the default assumptions in the dark green cells and change if necessary. But read Part Four of this Guide first. Change the light green cells if the User is aware of differences among the Areas in specific variables.
B9: 1 | C9: REMPLIR les données demandées dans le tableau ci-après. Remplir les cellules en or uniquement indiquées par u. Si ce sont des articles dont vous savez qu'ils n'apparaîtront pas dans votre programme/service de PCMA, mettez "0" dans la cellule pertinente. (Ne PAS mettre "0" pour indiquer que vous ne payez pas cet l'article, qu'il est gratuit. Pour ces articles, vous pouvez choisir de noter leur PRIX comme "0"; voir Feuille de calcul D4.).
B11: 2 | C11: (Facultatif). REVOIR les valeurs fixées par l'Outil (cellules en vert foncé indiquées par n). Lire la Section 4 du Guide de l'Utilisateur pour une explication de la manière dont sont dérivées ces valeurs. Si elles ne sont pas pertinentes dans votre situation, ôtez la protection de la Feuille de calcul, faites les changements et remettez la protection de la feuille de calcul.
B13: 3 | C13: (Facultatif). Si vous avez plusieurs zones, REVOIR l'hypothèse (pour la plupart des variables) selon laquelle les valeurs pertinentes pour la zone 1 s'appliquent également à d'autre zones. Si l'hypothèse n'est pas valide, ôtez la protection de la feuille de calcul, faites les changements nécessaires aux cellules vert clair ou vert foncé et remettez la protection de la feuille de calcul.
F16: Zone 1 | J16: Zone 2 | K16: Zone 3 | L16: Zone 4 | M16: Zone 5 | N16: Zone 6 | O16: Zone 7 | P16: Zone 8 | Q16: Zone 9 | R16: Zone 10
C17: =+IF('D1 Données générales'!$H$11="","",'D1 Données générales'!$H$11) -> Ghana | E17: ='D2 Echelle'!C30 -> district | F17: =+IF('D2 Echelle'!$C$31="","",'D2 Echelle'!$C$31) -> Ashiedu Keteke | J17: =+IF('D2 Echelle'!$C$36="","",'D2 Echelle'!$C$36) ->  | K17: =+IF('D2 Echelle'!$C$41="","",'D2 Echelle'!$C$41) ->  | L17: =+IF('D2 Echelle'!$C$46="","",'D2 Echelle'!$C$46) ->  | M17: =+IF('D2 Echelle'!$C$51="","",'D2 Echelle'!$C$51) ->  | N17: =+IF('D2 Echelle'!$C$56="","",'D2 Echelle'!$C$56) ->  | O17: =+IF('D2 Echelle'!$C$61="","",'D2 Echelle'!$C$61) ->  | P17: =+IF('D2 Echelle'!$C$66="","",'D2 Echelle'!$C$66) ->  | Q17: =+IF('D2 Echelle'!$C$71="","",'D2 Echelle'!$C$71) ->  | R17: =+IF('D2 Echelle'!$C$76="","",'D2 Echelle'!$C$76) -> 
E18: =+'D2 Echelle'!D30 -> région | F18: =+IF('D2 Echelle'!$D$31="","",'D2 Echelle'!$D$31) -> Greater Accra | J18: =+IF('D2 Echelle'!$D$36="","",'D2 Echelle'!$D$36) ->  | K18: =+IF('D2 Echelle'!$D$41="","",'D2 Echelle'!$D$41) ->  | L18: =+IF('D2 Echelle'!$D$46="","",'D2 Echelle'!$D$46) ->  | M18: =+IF('D2 Echelle'!$D$51="","",'D2 Echelle'!$D$51) ->  | N18: =+IF('D2 Echelle'!$D$56="","",'D2 Echelle'!$D$56) ->  | O18: =+IF('D2 Echelle'!$D$61="","",'D2 Echelle'!$D$61) ->  | P18: =+IF('D2 Echelle'!$D$66="","",'D2 Echelle'!$D$66) ->  | Q18: =+IF('D2 Echelle'!$D$71="","",'D2 Echelle'!$D$71) ->  | R18: =+IF('D2 Echelle'!$D$76="","",'D2 Echelle'!$D$76) -> 
C20: Variables | D20: Unité | E20: Commentaires
C21: Epidémiologie de la MAS
C22: % de tous les cas de MAS 0-59 mois âgés < 6 mois | D22: % | E22: Sources possible de données sur la répartition par âge des enfants avec MAS sont l'EDS (enquêtes démographiques et de santé) et MICS (enquête en grappes à indicateurs multiples). La plupart des pays auront des données de l'une de ces sources. | F22: 10 | G22: u
C23: % de tous les cas de MAS 0-59 mois âgés 6-11 mois | D23: % | F23: 13 | G23: u
C24: % de tous les cas de MAS 0-59 mois âgés de 12-23 mois | D24: % | F24: 25 | G24: u
C25: % de tous les cas de MAS 0-59 mois âgés de 24-59 mois | D25: % | F25: 52 | G25: u
C26: Total | E26: Pourcentage total (devrait être 100) | F26: =+SUM(F22:F25) -> 100 | J26: =+SUM(J22:J25) -> 0 | K26: =+SUM(K22:K25) -> 0 | L26: 0 | M26: 0 | N26: 0 | O26: 0 | P26: 0 | Q26: 0 | R26: 0
C27: Proportion des cas de MAS âgés de 6-59 mois qui ont des complications médicales et doivent être hospitalisés | D27: proportion | E27: Cela va varier par pays : 0, 20 maximum, 0,10 dans un contexte avec une bonne extension communautaire. | F27: 0.15 | G27: n | J27: =+$F$27 -> 0.15 | K27: =+$F$27 -> 0.15 | L27: 0.15 | M27: 0.15 | N27: 0.15 | O27: 0.15 | P27: 0.15 | Q27: 0.15 | R27: 0.15
C28: Proportion de tous les cas de MAS nécessisant PEC MAS hospitalière | E28: (à savoir, moins de 6 mois ou avec complications médicales) | F28: =+F22/100+F27*(1-F22/100) -> 0.235 | J28: =+J22/100+J27*(1-J22/100) -> 0.15 | K28: 0.15 | L28: 0.15 | M28: 0.15 | N28: 0.15 | O28: 0.15 | P28: 0.15 | Q28: 0.15 | R28: 0.15
C29: Nombre moyen de jours d'hospitalisation des cas de MAS 6-59 mois avec complications | D29: jours | E29: Les enfants de plus de 6 mois rentrent généralement en soins ambulatoires après 4-10 jours. | F29: 10 | G29: u | J29: =+$F$29 -> 10 | K29: =+$F$29 -> 10 | L29: 10 | M29: 10 | N29: 10 | O29: 10 | P29: 10 | Q29: 10 | R29: 10
C30: Nombre moyen de jours d'hospitalisation pour les cas de MAS < 6 mois | D30: jours | E30: Les enfants de moins de 6 mois restent jusqu'à ce qu'ils aient entièrement récupérés, c'est-à-dire environ entre 1 et 3 mois (plus ou moins 30-100 jours). | F30: 30 | G30: u | J30: =+$F$30 -> 30 | K30: =+$F$30 -> 30 | L30: 30 | M30: 30 | N30: 30 | O30: 30 | P30: 30 | Q30: 30 | R30: 30
C31: Nombre moyen de jours d'hospitalisation pour tous les cas de MAS | D31: jours | F31: =+(F22/100*F30+F27*(1-F22/100)*F29)/(F22/100+F27*(1-F22/100)) -> 18.5106383 | J31: =+(J22/100*J30+J27*(1-J22/100)*J29)/(J22/100+J27*(1-J22/100)) -> 10 | K31: 10 | L31: 10 | M31: 10 | N31: 10 | O31: 10 | P31: 10 | Q31: 10 | R31: 10
C32: Nombre moyen de semaines de cas MAS en soins ambulatoires | D32: semaines | E32: Cela inclut les enfants avec MAS 6-59 mois avec complications médicales. La PEC MAS hospitalière (stabilisation et transition uniquement) est suivie par la PEC MAS ambulatoire pour continuer le traitement. Dont nous assumons, aux fins de simplicité, qu'elle est de la même durée que pour les autres cas, bien qu'elle soit généralement de deux semaines en moins. | F32: 8 | G32: n | J32: =+$F$32 -> 8 | K32: =+$F$32 -> 8 | L32: 8 | M32: 8 | N32: 8 | O32: 8 | P32: 8 | Q32: 8 | R32: 8
C33: Nombre moyen de visites au site PEC MAS ambulatoire par cas de MAS | D33: visites | F33: 8 | G33: n | J33: =+$F$33 -> 8 | K33: =+$F$33 -> 8 | L33: 8 | M33: 8 | N33: 8 | O33: 8 | P33: 8 | Q33: 8 | R33: 8
C34: Nombre maximum de cas de MAS pris en charge par site | D34: cas | F34: 15 | G34: n | J34: =+$F$34 -> 15 | K34: =+$F$34 -> 15 | L34: 15 | M34: 15 | N34: 15 | O34: 15 | P34: 15 | Q34: 15 | R34: 15
C35: Heures d'une journée de travail | D35: heures | F35: 8 | G35: n | J35: =+$F$35 -> 8 | K35: 8 | L35: 8 | M35: 8 | N35: 8 | O35: 8 | P35: 8 | Q35: 8 | R35: 8
C36: Journées d'une année de travail | D36: jours | F36: 260 | G36: n | J36: =+$F$36 -> 260 | K36: =+$F$36 -> 260 | L36: 260 | M36: 260 | N36: 260 | O36: 260 | P36: 260 | Q36: 260 | R36: 260
C37: Traitement -temps du personnel
C38: PEC MAS ambulatoire
C39: Heures personnel senior par séance PEC MAS ambulatoire par enfant avec MAS | D39: heures | E39: Bilan anthropométrique, bilan médical, diagnostic, plan de traitement | F39: 0.25 | G39: n | J39: =+$F$39 -> 0.25 | K39: =+$F$39 -> 0.25 | L39: 0.25 | M39: 0.25 | N39: 0.25 | O39: 0.25 | P39: 0.25 | Q39: 0.25 | R39: 0.25
C40: Heures personnel senior par séance PEC MAS ambulatoire | D40: heures | E40: Fiche de traitement, registre, fiche de pointage | F40: 2 | G40: n | J40: =+$F$40 -> 2 | K40: =+$F$40 -> 2 | L40: 2 | M40: 2 | N40: 2 | O40: 2 | P40: 2 | Q40: 2 | R40: 2
C41: Heures personnel senior par mois par site PEC MAS ambulatoire | D41: heures | E41: Rapports mensuel | F41: 4 | G41: n | J41: =+$F$41 -> 4 | K41: =+$F$41 -> 4 | L41: 4 | M41: 4 | N41: 4 | O41: 4 | P41: 4 | Q41: 4 | R41: 4
C42: H eures personnel junior par séance PEC MAS ambulatoire par enfant avec MAS | D42: heures | E42: Bilan anthropométrique, bilan médical, diagnostic, plan de traitement | F42: 0.25 | G42: n | J42: =+$F$42 -> 0.25 | K42: =+$F$42 -> 0.25 | L42: 0.25 | M42: 0.25 | N42: 0.25 | O42: 0.25 | P42: 0.25 | Q42: 0.25 | R42: 0.25
C43: Heures personnel junior par séance PEC MAS ambulatoire | D43: heures | E43: Test d'appétit, distribution de l'aliment thérapeutique | F43: 2 | G43: n | J43: =+F43 -> 2 | K43: =+$F$43 -> 2 | L43: 2 | M43: 2 | N43: 2 | O43: 2 | P43: 2 | Q43: 2 | R43: 2
C44: Heures personnel junior par mois par site PEC MAS ambulatoire | D44: heures | E44: Rapports mensuel | F44: 4 | G44: n | J44: =+$F$44 -> 4 | K44: =+$F$44 -> 4 | L44: 4 | M44: 4 | N44: 4 | O44: 4 | P44: 4 | Q44: 4 | R44: 4
C45: PEC MAS hospitalière
C46: Bilan clinique (heures par enfant)
C47: Personnel senior (infirmier, médecin, diététicien) | D47: heures | E47: Une heure le premier jour et encore une fois une heure le jour de la sortie | F47: 2 | G47: n | J47: =+$F$47 -> 2 | K47: =+$F$47 -> 2 | L47: 2 | M47: 2 | N47: 2 | O47: 2 | P47: 2 | Q47: 2 | R47: 2
C48: Personnel junior (infirmier) | D48: heures | E48: Une heure le premier jour et encore une fois une heure le jour de la sortie | F48: 2 | G48: n | J48: =+$F$48 -> 2 | K48: =+$F$48 -> 2 | L48: 2 | M48: 2 | N48: 2 | O48: 2 | P48: 2 | Q48: 2 | R48: 2
C49: Bilan clinique (par journée d'hospitalisation par enfant)
C50: Personnel senior (infirmier, médecin, diététicien) | D50: heures | E50: Une demi-heure chaque jour (sauf le premier et le dernier jour) | F50: 0.5 | G50: n | J50: =+$F$50 -> 0.5 | K50: =+$F$50 -> 0.5 | L50: 0.5 | M50: 0.5 | N50: 0.5 | O50: 0.5 | P50: 0.5 | Q50: 0.5 | R50: 0.5
C51: Personnel junior (infirmier) | D51: heures | E51: Une demi-heure chaque jour (sauf le premier et le dernier jours) | F51: 0.5 | G51: n | J51: =+$F$51 -> 0.5 | K51: =+$F$51 -> 0.5 | L51: 0.5 | M51: 0.5 | N51: 0.5 | O51: 0.5 | P51: 0.5 | Q51: 0.5 | R51: 0.5
C52: Préparation de la nourriture - personnel junior (heures/jour/site PEC MAS hosp.) | D52: heures | E52: 8 prises d'aliments par jour prenant 20 minutes chacune pour la préparation | F52: 3 | G52: n | J52: =+$F$52 -> 3 | K52: =+$F$52 -> 3 | L52: 3 | M52: 3 | N52: 3 | O52: 3 | P52: 3 | Q52: 3 | R52: 3
C53: Supervision de l'alimentation les 3 premiers jours- personnel junior (heures/enfant/jour) | D53: heures | E53: 15 minutes pour chacune des 8 prises d'aliments par jour | F53: 2 | G53: n | J53: =+$F$53 -> 2 | K53: =+$F$53 -> 2 | L53: 2 | M53: 2 | N53: 2 | O53: 2 | P53: 2 | Q53: 2 | R53: 2
C54: Supervision de l'alimentation après les 3 premiers jours- personnel junior (heures/enfant/jour) | D54: heures | E54: 10 minutes pour chacune des 6 prises d'aliments par jour | F54: 1 | G54: n | J54: =+$F$54 -> 1 | K54: =+$F$54 -> 1 | L54: 1 | M54: 1 | N54: 1 | O54: 1 | P54: 1 | Q54: 1 | R54: 1
C55: Tenue de dossiers - personnel senior (heures/semaine/site PEC MAS hospitalière) | D55: heures | F55: 5 | G55: n | J55: =+$F$55 -> 5 | K55: =+$F$55 -> 5 | L55: 5 | M55: 5 | N55: 5 | O55: 5 | P55: 5 | Q55: 5 | R55: 5
C56: Traitement - espace nécessaire
C57: PEC MAS ambulatoire
C58: Espace occupé par accompagnant et enfant à la séance PEC MAS ambulatoire (par enfant MAS) | D58: m2 | E58: Indication approximative de l'espace pour que l'accompagnante et l'enfant puisent s'asseoir à l'aise. | F58: 1 | G58: n | J58: =+$F$58 -> 1 | K58: =+$F$58 -> 1 | L58: 1 | M58: 1 | N58: 1 | O58: 1 | P58: 1 | Q58: 1 | R58: 1
C59: Durée de la séance (durée accompagnant et enfant passent à la séance PEC MAS ambulatoire) | D59: heures | E59: Comprend le temps d'attente, le bilan, l'alimentation et la remise de l'ATPE. | F59: 4 | G59: n | J59: =+$F$59 -> 4 | K59: =+$F$59 -> 4 | L59: 4 | M59: 4 | N59: 4 | O59: 4 | P59: 4 | Q59: 4 | R59: 4
C60: Espace occupé par le personnel soignant les enfants MAS lors de la séance PEC MAS ambulatoire (par membre de personnel actif dans les soins ambulatoires). | D60: m2 | E60: En supposant que chaque membre du personnel a besoin de 2m sur 2 pendant la période pendant laquelle il s'occupe activement d'un enfant avec MAS (peser, évaluer, alimenter). | F60: 4 | G60: n | J60: =+$F$60 -> 4 | K60: =+$F$60 -> 4 | L60: 4 | M60: 4 | N60: 4 | O60: 4 | P60: 4 | Q60: 4 | R60: 4
C61: PEC MAS hospitalière | E61: En supposant que chaque membre du personnel a besoin de 2 m x 2 m pendant la période où il est actif à s'occuper d'un enfant avec MAS (peser, évaluer, nourrir).
C62: Espace occupé par les patients hospitalisés (lit adulte avec suffisamment d'espace pour que l'accompagnant et le personnel puissent se déplacer) par patient. | D62: m2 | E62: En supposant que les lits pour adultes sont 1 sur 2 m et qu'il y a 1 m entre les lits adjacents et 2 m entre les lits opposés. | F62: 7 | G62: n | J62: =+$F$62 -> 7 | K62: =+$F$62 -> 7 | L62: 7 | M62: 7 | N62: 7 | O62: 7 | P62: 7 | Q62: 7 | R62: 7
C63: Espace occupé par le personnel soignant les patients hospitalisés avec MAS | D63: m2 | E63: En supposant que chaque salle compte suffisamment de place pour un grand bureau et des chaises pour les infirmiers et les médecins. | F63: 5 | G63: n | J63: =+$F$63 -> 5 | K63: =+$F$63 -> 5 | L63: 5 | M63: 5 | N63: 5 | O63: 5 | P63: 5 | Q63: 5 | R63: 5
C64: Extension communautaire
C65: Gestionnaire de zone niveau intermédiaire
C66: Temps pour aider le personnel dans un nouveau site PEC MAS ambulatoire, pour concevoir matériel d'extension communautaire, préparer directives sur stratégies, cartographie communautaire et choisir les communautés (par nouveau site PEC MAS ambulatoire) | D66: jours | F66: 1 | G66: n | J66: =+$F$66 -> 1 | K66: =+$F$66 -> 1 | L66: 1 | M66: 1 | N66: 1 | O66: 1 | P66: 1 | Q66: 1 | R66: 1
C67: Nombre de voyage retour de la zone au site PEC MAS ambulatoire (par nouveau site PEC MAS ambulatoire) | D67: voyages | F67: 1 | G67: n | J67: =+$F$67 -> 1 | K67: =+$F$67 -> 1 | L67: 1 | M67: 1 | N67: 1 | O67: 1 | P67: 1 | Q67: 1 | R67: 1
C68: Agent de santé senior de la PEC MAS ambulatoire
C69: Temps dans un nouveau site PEC MAS ambulatoire, pour concevoir matériel d'extension communautaire, préparer directives sur les stratégies, cartographie communautaire et choisir les communautés (par nouveau site PEC MAS ambulatoire). | D69: jours | F69: 5 | G69: n | J69: =+$F$69 -> 5 | K69: =+$F$69 -> 5 | L69: 5 | M69: 5 | N69: =+$F$69 -> 5 | O69: 5 | P69: 5 | Q69: 5 | R69: 5
C70: Temps dans un site d'extension communautaire, pour les réunions de sensibilisation communautaire (et sélection des volontaires le cas échéant) | D70: jours | F70: 2 | G70: n | J70: =+$F$70 -> 2 | K70: =+$F$70 -> 2 | L70: 2 | M70: 2 | N70: 2 | O70: 2 | P70: 2 | Q70: 2 | R70: 2
C71: Nombre de voyage retour aux sites d'extension communautaire (par nouveau site d'extension communautaire) | D71: voyages | F71: 2 | G71: n | J71: =+$F$71 -> 2 | K71: =+$F$71 -> 2 | L71: 2 | M71: 2 | N71: 2 | O71: 2 | P71: 2 | Q71: 2 | R71: 2
C72: Agent de santé junior PEC MAS ambulatoire
C73: Temps dans un nouveau site PEC MAS ambulatoire, pour concevoir matériel d'extension communautaire, préparer directives sur stratégies, cartographie communautaire et choisir les communautés (par nouveau site PEC MAS ambulatoire) | D73: jours | F73: 5 | G73: n | J73: =+$F$73 -> 5 | K73: =+$F$73 -> 5 | L73: 5 | M73: 5 | N73: 5 | O73: 5 | P73: 5 | Q73: 5 | R73: 5
C74: Temps dans un site d'extension communautaire, pour les réunions de sensibilisation communautaire (et sélection des volontaires le cas échéant) | D74: jours | F74: 2 | G74: n | J74: =+$F$74 -> 2 | K74: =+$F$74 -> 2 | L74: 2 | M74: 2 | N74: 2 | O74: 2 | P74: 2 | Q74: 2 | R74: 2
C75: Nombre de voyage retour aux sites d'extension communautaire (par nouveau site d'extension communautaire) | D75: voyages | F75: 2 | G75: n | J75: =+$F$75 -> 2 | K75: =+$F$75 -> 2 | L75: 2 | M75: 2 | N75: 2 | O75: 2 | P75: 2 | Q75: 2 | R75: 2
C76: Agent d'extension communautaire
C77: Est-ce que ceux qui font l'extension communautaire (agent d'extension communautaire [AEC]) font partie du personnel rémunéré (agent de santé communautaire [ASC])ou sont-ils des volontaires ? | F77: Volontaire | G77: u
C78: Temps dans la communauté : (1)Visites à domicile pour les cas problématiques, (2) identification de nouveaux cas et référence vers la PCMA, (3) mobilisation communautaire, (4) liaison avec les dirigeants communautaires, et évaluation communautaire (par an et par site d'extension communautaire) | D78: jours | E78: Un jour par mois pour chacune des activités 1, 2 et 3; et 2 jours par an pour l'activité 4. | F78: 38 | G78: n | J78: =+$F$78 -> 38 | K78: =+$F$78 -> 38 | L78: 38 | M78: 38 | N78: 38 | O78: 38 | P78: 38 | Q78: 38 | R78: 38
C79: Temps dans les PEC MAS ambulatoire pour collecte de données et notification (par an et par site d'extension communautaire) | D79: jours | E79: Un jour par mois. | F79: 12 | G79: n | J79: =+$F$79 -> 12 | K79: =+$F$79 -> 12 | L79: 12 | M79: 12 | N79: 12 | O79: 12 | P79: 12 | Q79: 12 | R79: 12
C80: Nombre minimum de personnel par AEC nécessaire par site d'extension communautaire | D80: personnel | E80: Si volontaires, un par site; si ASC alors le nombre d'heures nécessaires par activité d'extension communautaire divisé par le nombre d'heures d'une année de travail. | F80: =+IF(F77="volontaire",1,(F78+F79)/F36) -> 1 | J80: =+IF(J77="volontaire",1,(J78+J79)/J36) -> 0.1923076923 | K80: 0.1923076923 | L80: 0.1923076923 | M80: 0.1923076923 | N80: 0.1923076923 | O80: 0.1923076923 | P80: 0.1923076923 | Q80: 0.1923076923 | R80: 0.1923076923
C81: Nombre de voyages retour entre le site PEC MAS ambulatoire et le site d'extension communautaire (par site d'extension communautaire) | D81: voyages | E81: Pour ASC : 1 pour chaque jour de travail dans la communauté. Pour les volontaires: 1 pour chaque jour dans le site PEC MAS hospitalière. | F81: =+IF(F77="ASC (personnel)",F78,IF(F77="volontaire",F79,0)) -> 12 | G81: n | J81: =+IF(J77="ASC (personnel)",J78,IF(J77="volontaire",J79,0)) -> 0 | K81: 0 | L81: 0 | M81: 0 | N81: 0 | O81: 0 | P81: 0 | Q81: 0 | R81: 0
C82: Traitement - médicaments pour problèmes de santé connexes
C83: Comment le paludisme est-il diagnostiqué ? | F83: traitement présomptif | G83: u | J83: il n'y a pas de paludisme | K83: symptômes | L83: paracheck | M83: test diagnostic autre | N83: traitement présomptif | O83: il n'y a pas de paludisme | P83: test diagnostic autre | R83: test diagnostic autre
C84: (S'il y a des cas de paludisme), quel est le pourcentage d'enfants avec MAS avec des symptômes de paludisme? (moyenne annuelle) | D84: % | E84: Si ces données ne sont pas disponibles, utilisez les chiffres sur la prévalence de tous les enfants de moins de cinq ans qui ont le paludisme. (Le rouge indique une incompatibilité avec la réponse à la question précédente). | G84: u
C85: (Si des test de diagnostic sont utilisés), quel est le pourcentage d'enfants avec MAS qui présentent des symptômes de paludisme et dont le diagnostic est confirmé par le test ? | D85: % | G85: u
C86: Nombre de tests à administrer à chaque cas de MAS pour déterminer s'il souffre de paludisme. | D86: tests | E86: Le test n'est pas sensible chez les enfants avec MAS (à cause de leur faible charge parasitaire). Probablement indiqué de répéter le test après 1-2 semaines de traitement. | F86: 1 | G86: n | J86: =+$F86 -> 1 | K86: 1 | L86: 1 | M86: 1 | N86: 1 | O86: 1 | P86: 1 | Q86: 1 | R86: 1
C87: Proportion de cas de MAS hospitalisés qui sont déshydratés | D87: proportion | E87: Ce chiffre est généralement entre 0,2 et 0,5 (à savoir 20% à 50% des patients hospitalisés avec MAS). | F87: 35 | G87: u | J87: =+$F$87 -> 35 | K87: =+$F$87 -> 35 | L87: 35 | M87: 35 | N87: 35 | O87: 35 | P87: 35 | Q87: 35 | R87: 35
C88: ReSoMal pour la réhydratation par enfant déshydraté avec MAS | D88: sachets de 84 g | F88: 2 | G88: n | J88: =+$F88 -> 2 | K88: 2 | L88: 2 | M88: 2 | N88: 2 | O88: 2 | P88: 2 | Q88: 2 | R88: 2
C89: Est-ce que d'autres tests (sauf pour le paludisme) sont faits régulièrement des cas hospitalisés de MAS ? | D89: oui/non | F89: oui | G89: u | J89: =+$F$89 -> oui | K89: =+$F$89 -> oui | L89: oui | M89: oui | N89: oui | O89: oui | P89: oui | Q89: oui | R89: oui
C90: Indiquer les autres tests faits régulièrement (VIH, TB, glucose sanguin, HB) | E90: VIH, Hémoglobine, Glycémie, TB occasionnellement | G90: u
C91: Pourcentage de cas de MAS hospitalisés exigeant kits IV | D91: % | F91: 10 | G91: n | J91: =+$F$91 -> 10 | K91: =+$F$91 -> 10 | L91: 10 | M91: 10 | N91: 10 | O91: 10 | P91: 10 | Q91: 10 | R91: 10
C92: Pourcentage de cas de MAS hospitalisés exigeant sondes naso-gastriques | D92: % | F92: 25 | G92: n | J92: =+$F$92 -> 25 | K92: =+$F$92 -> 25 | L92: 25 | M92: 25 | N92: 25 | O92: 25 | P92: 25 | Q92: 25 | R92: 25
C93: Eau sucrée pour les PEC MAS ambulatoire pour prévenir la déshydratation (par enfant venant à la séance PEC MAS ambulatoire) | D93: litre | F93: 0.1 | G93: n | J93: =+$F93 -> 0.1 | K93: 0.1 | L93: 0.1 | M93: 0.1 | N93: 0.1 | O93: 0.1 | P93: 0.1 | Q93: 0.1 | R93: 0.1
C94: Gélules vitamine A par cas de MAS de 6-11 mois | D94: gélules 100 000 UI | F94: 1 | G94: n | J94: =+$F94 -> 1 | K94: 1 | L94: 1 | M94: 1 | N94: 1 | O94: 1 | P94: 1 | Q94: 1 | R94: 1
C95: Gélules de vitamine A par cas de MAS 12-59 mois | F95: 2 | G95: n | J95: 2 | K95: 2 | L95: 2 | M95: 2 | N95: 2 | O95: 2 | P95: 2 | Q95: 2 | R95: 2
C96: Amoxicilline par cas de MAS | D96: g | F96: 3 | G96: n | J96: 3 | K96: 3 | L96: 3 | M96: 3 | N96: 3 | O96: 3 | P96: 3 | Q96: 3 | R96: 3
C97: Albendazole par cas de MAS 12-23 mois | D97: comprimés (100 mg) | F97: 2 | G97: n | J97: 2 | K97: 2 | L97: 2 | M97: 2 | N97: 2 | O97: 2 | P97: 2 | Q97: 2 | R97: 2
C98: Albendazole par cas de MAS 24-59 mois | F98: 4 | G98: n | J98: 4 | K98: 4 | L98: 4 | M98: 4 | N98: 4 | O98: 4 | P98: 4 | Q98: 4 | R98: 4
C99: Vaccin contre la rougeole par cas de MAS de plus de 6 mois sans complications | D99: dose | F99: 1 | G99: n | J99: =+$F$99 -> 1 | K99: =+$F$99 -> 1 | L99: 1 | M99: 1 | N99: 1 | O99: 1 | P99: 1 | Q99: 1 | R99: 1
C100: Vaccin contre la rougeole par cas de MAS de plus de 6 mois avec complications | D100: dose | F100: 2 | G100: n | J100: =+$F$100 -> 2 | K100: =+$F$100 -> 2 | L100: 2 | M100: 2 | N100: 2 | O100: 2 | P100: 2 | Q100: 2 | R100: 2
C101: Seringue AD pour vaccin contre la rougeole par cas de MAS de plus de 6 mois sans complications | D101: seringue | F101: 1 | G101: n | J101: =+$F$101 -> 1 | K101: =+$F$101 -> 1 | L101: 1 | M101: 1 | N101: 1 | O101: 1 | P101: 1 | Q101: 1 | R101: 1
C102: Seringue AD pour vaccin contre la rougeole par cas de MAS de plus de 6 mois avec complications | D102: seringue | F102: 2 | G102: n | J102: =+$F$102 -> 2 | K102: =+$F$102 -> 2 | L102: 2 | M102: 2 | N102: 2 | O102: 2 | P102: 2 | Q102: 2 | R102: 2
C103: Seringue mélange rougeole par cas de MAS de plus de 6 mois sans complications | D103: seringue | F103: 0.1 | G103: n | J103: =+$F$103 -> 0.1 | K103: =+$F$103 -> 0.1 | L103: 0.1 | M103: 0.1 | N103: 0.1 | O103: 0.1 | P103: 0.1 | Q103: 0.1 | R103: 0.1
C104: Seringue mélange rougeole par cas MAS de plus de 6 mois avec complications | D104: seringue | F104: 0.2 | G104: n | J104: =+$F$104 -> 0.2 | K104: =+$F$104 -> 0.2 | L104: 0.2 | M104: 0.2 | N104: 0.2 | O104: 0.2 | P104: 0.2 | Q104: 0.2 | R104: 0.2
C105: Traitement - aliment thérapeutique et autre matériel
C106: Quantité ATPE nécessaire par cas de MAS sans complications médicales | D106: kg | F106: 12 | G106: n | J106: =+$F$106 -> 12 | K106: 12 | L106: 12 | M106: 12 | N106: 12 | O106: 12 | P106: 12 | Q106: 12 | R106: 12
C107: Quantité ATPE nécessaire par cas de MAS avec complications médicales | D107: kg | E107: En supposant 95% des cas avec complications reçoivent 12kg. | F107: 11.4 | G107: n | J107: =+$F$107 -> 11.4 | K107: =+$F$107 -> 11.4 | L107: 11.4 | M107: 11.4 | N107: 11.4 | O107: 11.4 | P107: 11.4 | Q107: 11.4 | R107: 11.4
C108: Quantité ATPE fournie en PEC MAS hospitalière par enfant MAS avec complications médicales | D108: kg | E108: En supposant que 95% des cas avec complications qui reçoivent l'ATPE reçoivent 1 kg de leur 12 kg en PEC MAS hospitalière (et les 11 kg restants en PEC MAS ambulatoire). | F108: 0.95 | G108: n | J108: =+$F$108 -> 0.95 | K108: =+$F$108 -> 0.95 | L108: 0.95 | M108: 0.95 | N108: 0.95 | O108: 0.95 | P108: 0.95 | Q108: 0.95 | R108: 0.95
C109: Pertes estimées de l'ATPE et F-100 et F-75 (entre l'achat et la distribution à l'enfant) | D109: % | F109: 10 | G109: n | J109: =+$F$109 -> 10 | K109: 10 | L109: 10 | M109: 10 | N109: 10 | O109: 10 | P109: 10 | Q109: 10 | R109: 10
C110: Quantité de F-75 par cas de MAS avec complications médicales | D110: kg | F110: 2 | G110: n | J110: =+$F$110 -> 2 | K110: 2 | L110: 2 | M110: 2 | N110: 2 | O110: 2 | P110: 2 | Q110: 2 | R110: 2
C111: Quantité de F-100 par cas de MAS avec complications médicales | D111: kg | E111: En supposant que 5% des cas de MAS avec complications reçoivent 12 kgs. | F111: 0.6 | G111: n | J111: =+$F$111 -> 0.6 | K111: 0.6 | L111: 0.6 | M111: 0.6 | N111: 0.6 | O111: 0.6 | P111: 0.6 | Q111: 0.6 | R111: 0.6
C112: Paquet de fiches de traitement PEC MAS ambulatoire | D112: fiche | F112: 1 | G112: n | J112: =+$F112 -> 1 | K112: 1 | L112: 1 | M112: 1 | N112: 1 | O112: 1 | P112: 1 | Q112: 1 | R112: 1
C113: Paquet de fiches de traiement PEC MAS hospitalière | D113: fiche | F113: 1 | G113: n | J113: 1 | K113: 1 | L113: 1 | M113: 1 | N113: 1 | O113: 1 | P113: 1 | Q113: 1 | R113: 1 | S113: =+$F113 -> 1
C114: Fiche de ration ATPE pour nouvelles admissions par cas de MAS | D114: fiche | F114: 1 | G114: n | J114: 1 | K114: 1 | L114: 1 | M114: 1 | N114: 1 | O114: 1 | P114: 1 | Q114: 1 | R114: 1
C115: Bracelets par cas de MAS | D115: bracelet | E115: Pas toujours utilisé | F115: 1 | G115: n | J115: =+$F$115 -> 1 | K115: =+$F$115 -> 1 | L115: 1 | M115: 1 | N115: 1 | O115: 1 | P115: 1 | Q115: 1 | R115: 1
C116: Serviettes pour les mains par séance de PEC MAS ambulatoire | D116: rouleaux | E116: Pas toujours utilisé | F116: 2 | G116: n | J116: =+$F$116 -> 2 | K116: =+$F$116 -> 2 | L116: 2 | M116: 2 | N116: 2 | O116: 2 | P116: 2 | Q116: 2 | R116: 2
C117: Savon par séance de PEC MAS ambulatoire | D117: barre | F117: 1 | G117: n | J117: =+$F$117 -> 1 | K117: =+$F$117 -> 1 | L117: 1 | M117: 1 | N117: 1 | O117: 1 | P117: 1 | Q117: 1 | R117: 1
C118: Nourriture pour l'accompagnant (par jour et par enfant à l'hôpital) | D118: repas | F118: 1 | G118: n | J118: =+$F$118 -> 1 | K118: =+$F$118 -> 1 | L118: 1 | M118: 1 | N118: 1 | O118: 1 | P118: 1 | Q118: 1 | R118: 1
C119: Nombre de lits d'hôpital taille adulte par enfant avec MAS hospitalisé | E119: (Accompagnante partage le lit de l'enfant) | F119: 1 | G119: n | J119: =+$F$119 -> 1 | K119: =+$F$119 -> 1 | L119: 1 | M119: 1 | N119: 1 | O119: 1 | P119: 1 | Q119: 1 | R119: 1
C120: Eau de boisson par séance PEC MAS ambulatoire | D120: litre | F120: 1 | G120: n | J120: =+$F$120 -> 1 | K120: =+$F$120 -> 1 | L120: 1 | M120: 1 | N120: 1 | O120: 1 | P120: 1 | Q120: 1 | R120: 1
C121: Lié aux transports
C122: Quantité de temps mort (à attendre, etc.) par voyage de livraison (aller) de l'aliment thérapeutique pour les chauffeurs des véhicules | D122: heures | F122: 1 | G122: n | J122: =+$F$122 -> 1 | K122: =+$F$122 -> 1 | L122: 1 | M122: 1 | N122: 1 | O122: 1 | P122: 1 | Q122: 1 | R122: 1
C123: Distance moyenne entre le site PEC MAS ambulatoire et le siège de la zone | D123: km | E123: Le journal de bord des chauffeurs est une bonne source d'information des diverses distances demandées ici. Les chauffeurs eux-mêmes pourront donner le temps qu'il faut pour les voyages indiqués ici, pour la zone aux sites PEC MAS ambulatoire/hospitalière et sites PEC MAS ambulatoire aux sites extension communautaire. Faites la moyenne des données pour tous les sites possibles. Remaruez que la distance et le temps à noter ici se rapportent à un aller simple et pas au voyage retour. | F123: 5 | G123: u
C124: Temps moyen pour atteindre le site PEC MAS ambulatoire du siège de la zone | D124: heures | F124: 0.25 | G124: u
C125: Distance moyenne entre le site PEC MAS hospitalière et le siège de la zone | D125: km | F125: 5 | G125: u
C126: Temps moyen pour atteinde le site PEC MAS hospitalière du siège de la zone | D126: heures | F126: 0.25 | G126: u
C127: Distance entre le siège de la zone et le siège du groupe-zones | D127: km | F127: 1 | G127: u
C128: Temps pour atteindre le siège de la zone à partir du siège du groupe-zones | D128: heures | F128: 0.1 | G128: u
C129: Distance moyenne entre le site PEC MAS hospitalière et le site PEC MAS ambulatoire | D129: km | F129: 1.5 | G129: u
C130: Temps moyen pour arriver au site PEC MAS hospitalière du site PEC MAS ambulatoire | D130: heures | F130: 0.1 | G130: u
C131: Distance moyenne entre le site PEC MAS ambulatoire et le site d'extension communautaire | D131: km | F131: 3 | G131: u
C132: Temps moyen pour atteindre le site d'extension communautaire du site PEC MAS ambulatoire | D132: heures | F132: 0.25 | G132: u
C133: Stockage (NOTE: si F-75 & F-100 sont fabriqués sur place, mesurer l'espace occupé par les ingrédients nécessaires pour préparer 1 kg du produit).
C134: Est-ce que vous utilisez l'ATPE commercial ? | E134: Boîte standard : 13,8 kg ATPE dimensions 38,5cm X 29cm X 20,8 cm. | F134: oui | G134: u
C135: Le poids de l'ATPE dans une boîte de stockage standard d'unités d'ATPE | D135: kg | E135: Doit seulement être indiqué si l'ATPE est Nutriset's Plumpy'Nut (13,8 kg dans une boîte de 38,5 cm X 29 cm X 20,8 cm). Le poids à marquer est le poids de l'ATPE lui-même (et pas le poids de l'emballage). | G135: u
C136: La largeur d'une boîte de stockage standard de l'ATPE | D136: cm | G136: u
C137: La longueur d'une boîte de stockage standard de l'ATPE | D137: cm | G137: u
C138: La hauteur d'une boîte de stockage standard de l'ATPE | D138: cm | G138: u
C139: Le volume occupé par une boîte de stockage standard de l'ATPE | D139: m3 | E139: Largeur (cm) * ampleur (cm) * taille (cm) / 1,000,000 | F139: =+IF(F134="oui",0.0232,(F136*F137*F138)/1000000) -> 0.0232
C140: Espace occupé par 1 kg de l'ATPE | D140: m3 | F140: =+IF(F134="oui",0.0017,IF(F139=0,0,F139/F135)) -> 0.0017 | J140: =+F140 -> 0.0017 | K140: =+F140 -> 0.0017 | L140: =+F140 -> 0.0017 | M140: =+F140 -> 0.0017 | N140: =+F140 -> 0.0017 | O140: =+F140 -> 0.0017 | P140: =+F140 -> 0.0017 | Q140: =+F140 -> 0.0017 | R140: =+F140 -> 0.0017
C141: Est-ce que vous utilisez F-75 commercial ? | E141: Si "Oui" le volume est calculé automatiquement et pas besoin de fournir des données sur le poids ou les dimensions. | F141: oui | G141: u
C142: Poids de F-75 dans une boîte de stockage standard | D142: kg | E142: Seul le poids de F-75 (pas de l'emballage). | G142: u
C143: La largeur d'une boîte de stockage standard de F-75 | D143: cm | G143: u
C144: La longueur d'une boîte de stockage standard de F-75 | D144: cm | G144: u
C145: La hauteur d'une boîte de stockage standard de F-75 | D145: cm | G145: u
C146: Volume occupé par une boîte de stockage standard de F-75 | D146: m3 | E146: Largeur (cm) * ampleur (cm) * hauteur (cm)/1,000,000 | F146: =+IF(F141="oui",0.0265,F143*F144*F145/1000000) -> 0.0265
C147: Espace occupé par 1 kg F75 | D147: m3 | F147: =+IF(F141="oui",0.0032,IF(F146=0,0,F146/F142)) -> 0.0032 | J147: =+$F$147 -> 0.0032 | K147: =+$F$147 -> 0.0032 | L147: 0.0032 | M147: 0.0032 | N147: 0.0032 | O147: 0.0032 | P147: 0.0032 | Q147: 0.0032 | R147: 0.0032
C148: Est-ce que vous utilisez F100 commercial? | F148: non | G148: u
C149: Poids de F100 dans une boîte de stockage standard | D149: kg | E149: Seulement le poids de F-100 (pas de l'emballage) | F149: 4.8 | G149: u
C150: La largeur d'une boîte de stockage standard de F-100 | D150: cm | F150: 23.5 | G150: u
C151: La longueur d'une boîte de stockage standard de F-100 | D151: cm | F151: 24.5 | G151: u
C152: La hauteur d'une boîte de stockage standard de F-100 | D152: cm | F152: 28.5 | G152: u
C153: Volume occupé par une boîte de stockage standard de F-100 | D153: m3 | E153: Largeur (cm) * ampleur (cm) * hauteur (cm) / 1,000,000 | F153: =+IF(F148="oui",0.038,F150*F151*F152/1000000) -> 0.016408875
C154: Espace occupé par 1 kg F-100 | D154: m3 | F154: =+IF(F148="oui",0.0028,IF(F149=0,0,F153/F149)) -> 0.003418515625 | J154: =+$F$154 -> 0.003418515625 | K154: =+$F$154 -> 0.003418515625 | L154: 0.003418515625 | M154: 0.003418515625 | N154: 0.003418515625 | O154: 0.003418515625 | P154: 0.003418515625 | Q154: 0.003418515625 | R154: 0.003418515625
C155: Espace disponible dans les véhicules transportant l'aliment thérapeutique vers le siège de la zone | D155: m3 | E155: Mesure le volume - largeur x longueur x hauteur (toutes en mètres) - qui peut être occupé en toute sécurité par l'aliment thérapeutique. | F155: 3 | G155: u
C156: Espace disponible dans le siège de la zone pour l'aliment thérapeutique | D156: m3 | E156: idem | F156: 5 | G156: u
C157: Espace disponible dans les véhicules transportant l'aliment thérapeutique vers les sites PEC MAS ambulatoire | D157: m3 | E157: idem | F157: 3 | G157: u
C158: Espace disponible dans le site PEC MAS ambulaoire pour l'aliment thérapeutique | D158: m3 | E158: idem | F158: 5 | G158: u
C159: Espace disponible dans les véhicules transportant l'aliment thérapeutique vers les sites PEC MAS hospitalière | D159: m3 | E159: idem | F159: 3 | G159: u
C160: Espace disponible dans le site moyen PEC MAS hospitalière pour l'aliment thérapeutique | D160: m3 | E160: idem | F160: 5 | G160: u
C161: Nombre de gardiens du magasin par site de stockage PCMA | D161: gardiens | F161: 1 | J161: =+$F$161 -> 1 | K161: =+$F$161 -> 1 | L161: 1 | M161: 1 | N161: 1 | O161: 1 | P161: 1 | Q161: 1 | R161: 1
C162: Nombre de fiches de contrôle de stock par magasin et par an | D162: fiches | F162: 12 | G162: n | J162: =+$F$162 -> 12 | K162: =+$F$162 -> 12 | L162: 12 | M162: 12 | N162: 12 | O162: 12 | P162: 12 | Q162: 12 | R162: 12
C163: Formation des gestionnaires de santé, des agents de santé et des ASC
C164: Nombre des membres du personnel par nouveau siège de zone à former par an | D164: personnel | F164: 4 | G164: n | J164: =+$F$164 -> 4 | K164: =+$F$164 -> 4 | L164: 4 | M164: 4 | N164: 4 | O164: 4 | P164: 4 | Q164: 4 | R164: 4
C165: Nombre des membres du personnel par siège établi de zone à former par an | D165: personnel | F165: 2 | G165: n | J165: =+$F$165 -> 2 | K165: =+$F$165 -> 2 | L165: 2 | M165: 2 | N165: 2 | O165: 2 | P165: 2 | Q165: 2 | R165: 2
C166: Journées de formation pour le personnel du nouveau siège de la zone, par an | D166: jours | F166: 5 | G166: n | J166: =+$F$166 -> 5 | K166: =+$F$166 -> 5 | L166: 5 | M166: 5 | N166: 5 | O166: 5 | P166: 5 | Q166: 5 | R166: 5
C167: Journées de formation pour le personnel du siège de la zone établie, par an | D167: jours | F167: 1 | G167: n | J167: =+$F$167 -> 1 | K167: =+$F$167 -> 1 | L167: 1 | M167: 1 | N167: 1 | O167: 1 | P167: 1 | Q167: 1 | R167: 1
C168: Taille maximale de la classe de formation pour le personnel du siège de la zone | D168: participants | E168: 15 - 25 est une taille de classe raisonnable | F168: 20 | G168: n | J168: =+$F$168 -> 20 | K168: =+$F$168 -> 20 | L168: 20 | M168: 20 | N168: 20 | O168: 20 | P168: 20 | Q168: 20 | R168: 20
C169: Pour une formation qui dure plus d'une journée, est-ce que les participants de la zone restent pendant la nuit au siège du groupe-zones ou font-ils le voyage tous les jours ? | F169: restent la nuit | G169: u
C170: Nombre d'agents de santé par nouveau site PEC MAS ambulatoire, qui seront formés par an | D170: personnel | F170: 3 | G170: n | J170: =+$F$170 -> 3 | K170: =+$F$170 -> 3 | L170: =+$F$170 -> 3 | M170: 3 | N170: 3 | O170: 3 | P170: 3 | Q170: 3 | R170: 3
C171: Nombre d'agents de santé par site PEC MAS ambulatoire établi, qui seront formés par an | D171: personnel | F171: 3 | J171: =+$F$171 -> 3 | K171: =+$F$171 -> 3 | L171: 3 | M171: 3 | N171: 3 | O171: 3 | P171: 3 | Q171: 3 | R171: 3
C172: Nombre d'agents de santé par nouveau site PEC MAS hospitalière, qui seront formés par an | D172: personnel | F172: 4 | G172: n | J172: =+$F$172 -> 4 | K172: =+$F$172 -> 4 | L172: 4 | M172: 4 | N172: 4 | O172: 4 | P172: 4 | Q172: 4 | R172: 4
C173: Nombre d'agents de santé par site PEC MAS hospitalière, qui seront formés par an | D173: personnel | F173: 2 | G173: n | J173: =+$F$173 -> 2 | K173: =+$F$173 -> 2 | L173: 2 | M173: 2 | N173: 2 | O173: 2 | P173: 2 | Q173: 2 | R173: 2
C174: Journées de formation, par participant et par an, dans un nouveau site PEC MAS ambulatoire | D174: jours | E174: Entre 4 et 6 jours | F174: 5 | G174: n | J174: =+$F$174 -> 5 | K174: =+$F$174 -> 5 | L174: 5 | M174: 5 | N174: 5 | O174: 5 | P174: 5 | Q174: 5 | R174: 5
C175: Journées de formation, par participant et par an, dans un site PEC MAS ambulatoire établi | D175: jours | E175: Entre 1 et 3 jours | F175: 2 | G175: n | J175: =+$F$175 -> 2 | K175: =+$F$175 -> 2 | L175: 2 | M175: 2 | N175: 2 | O175: 2 | P175: 2 | Q175: 2 | R175: 2
C176: Journées de formation, par participant et par an, dans un nouveau site PEC MAS hospitalière | D176: jours | E176: Entre 5 et 10 jours | F176: 7 | J176: =+$F$176 -> 7 | K176: =+$F$176 -> 7 | L176: 7 | M176: 7 | N176: 7 | O176: 7 | P176: 7 | Q176: 7 | R176: 7
C177: Journées de formation, par participant et par an, dans un site PEC MAS hospitalière établi | D177: jours | E177: Entre 5 et 10 jours | F177: 6 | G177: n | J177: =+$F$177 -> 6 | K177: =+$F$177 -> 6 | L177: 6 | M177: 6 | N177: 6 | O177: 6 | P177: 6 | Q177: 6 | R177: 6
C178: Taille maximale de la classe de formation pour les participants des sites PEC MAS ambulatoire et hospitalière | D178: participants | E178: 15 - 25 est une taille de classe raisonnable | F178: 20 | G178: n | J178: =+$F$178 -> 20 | K178: =+$F$178 -> 20 | L178: 20 | M178: 20 | N178: 20 | O178: 20 | P178: 20 | Q178: 20 | R178: 20
C179: Pour une formation qui dure plus d'une journée, est-ce que les participants des sites PEC MAS ambulatoire et hospitalière restent pendant la nuit au siège de la zone ou font-ils le voyage tous les jours? | E179: Cela peut varier au sein d'une zone selon la distance des établissements au siège de la zone mais choisir le plus courant. | F179: restent la nuit | G179: u
C180: Journées de formation pour les nouveaux AEC recrutés par an | D180: jours | F180: 2 | G180: n | J180: =+$F$180 -> 2 | K180: =+$F$180 -> 2 | L180: 2 | M180: 2 | N180: 2 | O180: 2 | P180: 2 | Q180: 2 | R180: 2
C181: Journées de formation pour les AEC établis, par an | D181: jours | F181: 1 | G181: n | J181: =+$F$181 -> 1 | K181: =+$F$181 -> 1 | L181: 1 | M181: 1 | N181: 1 | O181: 1 | P181: 1 | Q181: 1 | R181: 1
C182: Taux d'abandon (% d'AEC qui arrêtent de travailer pour la PCMA chaque année) | D182: % | F182: 25 | G182: n | J182: =+$F$182 -> 25 | K182: =+$F$182 -> 25 | L182: 25 | M182: 25 | N182: 25 | O182: 25 | P182: 25 | Q182: 25 | R182: 25
C183: Taille maximale de la classe de formation pour les AEC | D183: AEC | E183: 15 - 25 est une taille de classe raisonnable. | F183: 20 | G183: n | J183: =+$F$183 -> 20 | K183: =+$F$183 -> 20 | L183: 20 | M183: 20 | N183: 20 | O183: 20 | P183: 20 | Q183: 20 | R183: 20
C184: Pour une formation qui dure plus d'une journée, est-ce que les participants AEC restent pendant la nuit au site PEC MAS ambulatoire ou font-ils le voyage tous les jours? | F184: voyagent chaque jour | G184: u
C185: Supervision du siège de la zone, des sites PEC MAS ambulatoire et hospitalière, et des AEC
C186: Nombre de visites de supervision du siège de la zone par an pour chaque nouveau site PEC MAS ambulatoire et hospitalière | D186: visites | E186: Basé sur une supervision hebdomadaire pendant les deux premiers mois (plus ou moins la période qui permet à un enfant avec MAS de se remettre) suivie d'une supervision tous les 15 jours pendant les 2 mois suivants et une supervision mensuelle par la suite. | F186: 20 | G186: n | J186: =+$F$186 -> 20 | K186: =+$F$186 -> 20 | L186: 20 | M186: 20 | N186: 20 | O186: 20 | P186: 20 | Q186: 20 | R186: 20
C187: Nombre de visites de supervision du siège de la zone par an pour les sites PEC MAS ambulatoire et hospitalière déjà établis | D187: visites | E187: Basé sur 1 par mois. | F187: 12 | G187: n | J187: =+$F$187 -> 12 | K187: =+$F$187 -> 12 | L187: 12 | M187: 12 | N187: 12 | O187: 12 | P187: 12 | Q187: 12 | R187: 12
C188: Temps passé par le superviseur lors de chaque visite de supervision à chaque nouveau site PEC MAS ambulatoire ou hospitalière | D188: heures | F188: 2 | G188: n | J188: =+$F$188 -> 2 | K188: =+$F$188 -> 2 | L188: 2 | M188: 2 | N188: 2 | O188: 2 | P188: 2 | Q188: 2 | R188: 2
C189: Temps passé par le superviseur lors de chaque visite de supervision à chaque site PEC MAS ambulatoire ou hospitalière, déjà établi | D189: heures | F189: 2 | G189: n | J189: =+$F$189 -> 2 | K189: =+$F$189 -> 2 | L189: 2 | M189: 2 | N189: 2 | O189: 2 | P189: 2 | Q189: 2 | R189: 2
C190: Temps passé par l'agent de santé senior pour la supervision interne à chaque nouveau site PEC MAS ambulatoire ou hospitalière, par semaine | D190: heures | F190: 1 | G190: n | J190: =+$F$190 -> 1 | K190: =+$F$190 -> 1 | L190: 1 | M190: 1 | N190: 1 | O190: 1 | P190: 1 | Q190: 1 | R190: 1
C191: Nombre de visites de supervision par an, à chaque nouveau AEC | D191: visites | E191: Basé sur 1 par mois. | F191: 12 | G191: n | J191: =+$F$191 -> 12 | K191: =+$F$191 -> 12 | L191: 12 | M191: 12 | N191: 12 | O191: 12 | P191: 12 | Q191: 12 | R191: 12
C192: Nombre de visites de supervision par an, à chaque AEC établi | D192: visites | E192: Basé sur 1 tous les 3 mois. | F192: 4 | G192: n | J192: =+$F$192 -> 4 | K192: =+$F$192 -> 4 | L192: 4 | M192: 4 | N192: 4 | O192: 4 | P192: 4 | Q192: 4 | R192: 4
C193: Temps passé par le superviseur à chaque visite de supervision pour un nouveau AEC | D193: heures | F193: 2 | G193: n | J193: =+$F$193 -> 2 | K193: =+$F$193 -> 2 | L193: 2 | M193: 2 | N193: 2 | O193: 2 | P193: 2 | Q193: 2 | R193: 2
C194: Temps passé par le superviseur à chaque visite de supervision pour un AEC établi | D194: heures | F194: 2 | G194: n | J194: =+$F$194 -> 2 | K194: =+$F$194 -> 2 | L194: 2 | M194: 2 | N194: 2 | O194: 2 | P194: 2 | Q194: 2 | R194: 2
C195: Nombre de visites de supervision du siège du groupe-zones à chaque nouveau siège de zone par an | D195: visites | F195: 12 | G195: n | J195: =+$F$195 -> 12 | K195: =+$F$195 -> 12 | L195: 12 | M195: 12 | N195: 12 | O195: 12 | P195: 12 | Q195: 12 | R195: 12
C196: Nombre de visites de supervision du siège du groupe-zones à chaque siège de zone établi, par an | D196: visites | F196: 4 | G196: n | J196: =+$F$196 -> 4 | K196: =+$F$196 -> 4 | L196: 4 | M196: 4 | N196: 4 | O196: 4 | P196: 4 | Q196: 4 | R196: 4
C197: Temps passé par le superviseur du groupe-zones lors de chaque visite de supervision à un nouveau siège de zone | D197: heures | F197: 4 | G197: n | J197: =+$F$197 -> 4 | K197: =+$F$197 -> 4 | L197: 4 | M197: 4 | N197: 4 | O197: 4 | P197: 4 | Q197: 4 | R197: 4
C198: Temps passé par le superviseur du groupe-zones lors de chaque visite de supervision pour un siège de zone établi | D198: heures | F198: 2 | G198: n | J198: =+$F$198 -> 2 | K198: =+$F$198 -> 2 | L198: 2 | M198: 2 | N198: 2 | O198: 2 | P198: 2 | Q198: 2 | R198: 2
C199: Gestion du programme/service de la PCMA au niveau siège de la zone
C200: Temps nécessaire pour mettre en place la PCMA dans une nouvelle zone (analyse situationnelle et des capacités; formulation d'un cadre logique et d'un plan d'action; système logisticque, systeme de suivi et de rapport).
C201: Journées du personnel senior du siège de la zone par nouvelle zone | D201: jours | E201: 4 semaines | F201: 20 | G201: n | J201: =+$F$201 -> 20 | K201: =+$F$201 -> 20 | L201: 20 | M201: 20 | N201: 20 | O201: 20 | P201: 20 | Q201: 20 | R201: 20
C202: Journées du personnel intermédiaire du siège de la zone par nouvelle zone | D202: jours | E202: 4 semaines | F202: 20 | G202: n | J202: =+$F$202 -> 20 | K202: =+$F$202 -> 20 | L202: 20 | M202: 20 | N202: 20 | O202: 20 | P202: 20 | Q202: 20 | R202: 20
C203: Temps nécessaire pour mettre en place et faire fonctionner un nouveau site PEC MAS ambulatoire ou hospitalière (non compris la formation)
C204: Journées du personnel senior du siège de la zone par nouveau site PEC MAS ambulatoire ou hospitalière | D204: jours | E204: 1 semaine | F204: 5 | G204: n | J204: =+$F$204 -> 5 | K204: =+$F$204 -> 5 | L204: 5 | M204: 5 | N204: 5 | O204: 5 | P204: 5 | Q204: 5 | R204: 5
C205: Journées du personnel intermédiaire du siège de la zone par nouveau site PEC MAS ambulatoire ou hospitalière | D205: jours | E205: 1 semaine | F205: 5 | G205: n | J205: =+$F$205 -> 5 | K205: =+$F$205 -> 5 | L205: 5 | M205: 5 | N205: 5 | O205: 5 | P205: 5 | Q205: 5 | R205: 5
C206: Voyages de personnes au nouveau PEC MAS hospitalière | D206: voyages | F206: 5 | G206: n | J206: =+$F$206 -> 5 | K206: =+$F$206 -> 5 | L206: 5 | M206: 5 | N206: 5 | O206: 5 | P206: 5 | Q206: 5 | R206: 5
C207: Durée nécessaire pour la gestion continue de la PCMA (système de suivi et de rapport, supervision, contrôle de qualité, gestion financière et du personnel)
C208: Journées du personnel senior du siège de la zone par zone et par an | D208: jours | E208: 1 jour par mois | F208: 12 | G208: n | J208: =+$F$208 -> 12 | K208: =+$F$208 -> 12 | L208: 12 | M208: 12 | N208: 12 | O208: 12 | P208: 12 | Q208: 12 | R208: 12
C209: Journées du personnel intermédiaire du siège de la zone par zone et par an | D209: jours | E209: 2 jours par mois | F209: 24 | G209: n | J209: =+$F$209 -> 24 | K209: =+$F$209 -> 24 | L209: 24 | M209: 24 | N209: 24 | O209: 24 | P209: 24 | Q209: 24 | R209: 24
C210: Journées du personnel junior du siège de la zone par zone et par an | D210: jours | E210: 5 jours par mois | F210: 60 | G210: n | J210: =+$F$210 -> 60 | K210: =+$F$210 -> 60 | L210: 60 | M210: 60 | N210: 60 | O210: 60 | P210: 60 | Q210: 60 | R210: 60
... 3 more rows

Sheet D4 Prix
A2: Retour au sommaire | C2: D4: Prix (non compris les salaires et les "fournitures fixes")
B4: Number of Areas included in study | D4: =+'D1 Données générales'!G31 -> 1 | E4: (taken from Worksheet 2)
B6: Effacez dans cette Feuille toute donnée entrée d'une application précédente de cet Outil en pressant sur ce bouton…..
B9: Remplir cette Feuille après avoir rempli les Feuilles de calcul D3 et D8. Soyez complet et donnez des estimations pour tous les intrants à moins que vous ne soyez certain qu'ils ne seront pas inclus dans votre programme, auquel cas vous pouvez mettre "0" dans la cellule concernée.
B11: 1 | C11: NOTER dans les cellules couleur or indiquées par u le prix (pour l'année de base et la monnaie choisie dans la Feuille D1) de l'article spécifiée. Utilisez les prix qui se rapportent à la Zone 1. (Le tableau automatiquement transfère ces prix à toutes les autres zones.)
B13: 2 | C13: VOIR si les prix dans la Zone 1 sont les mêmes que ceux dans d'autres Zones. S'ils ne le sont, ôtez la protection de la feuille, METTEZ les chiffres corrects dans les colonnes indiquées et remettez la protection de la Feuille.
B15: 3 | C15: La dernière ligne, 81, ("Différences salariales") ne note pas les données sur des prix spécifiques. Elle vous permet d'indiquer les grandes différences salariales entre la Zone 1 (dont la structure salariale détaillée est notée sur la feuille de calcul suivante (D5). Par exemple, si les salaires sont 20% plus élevés dans la Zone 2 comparé à la Zone 1, notez '1,2' dans la dernière ligne sous Zone 2; s'ils sont 20% plus faibles que dans la Zone 1 notez 0,80.
C18: =+IF('D1 Données générales'!$H$11="","",'D1 Données générales'!$H$11) -> Ghana | F18: Zone 1 | J18: Zone 2 | K18: Zone 3 | L18: Zone 4 | M18: Zone 5 | N18: Zone 6 | O18: Zone 7 | P18: Zone 8 | Q18: Zone 9 | R18: Zone 10
E19: ='D2 Echelle'!$C$30 -> district | F19: =+IF('D2 Echelle'!$C$31="","",'D2 Echelle'!$C$31) -> Ashiedu Keteke | J19: =+IF('D2 Echelle'!$C$36="","",'D2 Echelle'!$C$36) ->  | K19: =+IF('D2 Echelle'!$C$41="","",'D2 Echelle'!$C$41) ->  | L19: =+IF('D2 Echelle'!$C$46="","",'D2 Echelle'!$C$46) ->  | M19: =+IF('D2 Echelle'!$C$51="","",'D2 Echelle'!$C$51) ->  | N19: =+IF('D2 Echelle'!$C$56="","",'D2 Echelle'!$C$56) ->  | O19: =+IF('D2 Echelle'!$C$61="","",'D2 Echelle'!$C$61) ->  | P19: =+IF('D2 Echelle'!$C$66="","",'D2 Echelle'!$C$66) ->  | Q19: =+IF('D2 Echelle'!$C$71="","",'D2 Echelle'!$C$71) ->  | R19: =+IF('D2 Echelle'!$C$76="","",'D2 Echelle'!$C$76) -> 
E20: =+'D2 Echelle'!$D$30 -> région | F20: =+IF('D2 Echelle'!$D$31="","",'D2 Echelle'!$D$31) -> Greater Accra | J20: =+IF('D2 Echelle'!$D$36="","",'D2 Echelle'!$D$36) ->  | K20: =+IF('D2 Echelle'!$D$41="","",'D2 Echelle'!$D$41) ->  | L20: =+IF('D2 Echelle'!$D$46="","",'D2 Echelle'!$D$46) ->  | M20: =+IF('D2 Echelle'!$D$51="","",'D2 Echelle'!$D$51) ->  | N20: =+IF('D2 Echelle'!$D$56="","",'D2 Echelle'!$D$56) ->  | O20: =+IF('D2 Echelle'!$D$61="","",'D2 Echelle'!$D$61) ->  | P20: =+IF('D2 Echelle'!$D$66="","",'D2 Echelle'!$D$66) ->  | Q20: =+IF('D2 Echelle'!$D$71="","",'D2 Echelle'!$D$71) ->  | R20: =+IF('D2 Echelle'!$D$76="","",'D2 Echelle'!$D$76) -> 
C21: Variables | D21: Unités | E21: Commentaires | F21: Valeurs
C23: Location salle (par jour) pour la formation, pour contenir jusqu'à 25 participants | D23: =+IF('D1 Données générales'!$H$13="","",'D1 Données générales'!$H$13) -> Cedi | F23: 120 | G23: u | J23: =+$F$23 -> 120 | K23: 120 | L23: 120 | M23: 120 | N23: 120 | O23: 120 | P23: 120 | Q23: 120 | R23: 120
C24: Espace pour PEC MAS ambulatoire (par m2 par an) | D24: =+IF('D1 Données générales'!$H$13="","",'D1 Données générales'!$H$13) -> Cedi | G24: u | J24: =+$F$24 -> 0 | K24: =+$F$24 -> 0 | L24: 0 | M24: 0 | N24: 0 | O24: 0 | P24: 0 | Q24: 0 | R24: 0
C25: Espace pour PEC MAS hospitalière (par m2 par an) | D25: =+IF('D1 Données générales'!$H$13="","",'D1 Données générales'!$H$13) -> Cedi | G25: u | J25: =+$F$25 -> 0 | K25: =+$F$25 -> 0 | L25: 0 | M25: 0 | N25: 0 | O25: 0 | P25: 0 | Q25: 0 | R25: 0
C26: Rafraîchissements (par personne par jour) | D26: =+IF('D1 Données générales'!$H$13="","",'D1 Données générales'!$H$13) -> Cedi | F26: 12 | G26: u | J26: =+$F$26 -> 12 | K26: 12 | L26: 12 | M26: 12 | N26: 12 | O26: 12 | P26: 12 | Q26: 12 | R26: 12
C27: Espace de stockage (par m2 par an) | D27: =+IF('D1 Données générales'!$H$13="","",'D1 Données générales'!$H$13) -> Cedi | G27: u | J27: =+$F27 -> 0 | K27: 0 | L27: 0 | M27: 0 | N27: 0 | O27: 0 | P27: 0 | Q27: 0 | R27: 0
C28: Indemnités journalières (y compris repas et hébergement mais non pas les transports) par personne et par jour | E28: N'entre en compte que si les participants restent pendant la nuit tel que noté dans les Feuilles de calcul D3 et D8.
C29: Pour le personnel du groupe-zones assistant à la formation au siège central | D29: =+IF('D1 Données générales'!$H$13="","",'D1 Données générales'!$H$13) -> Cedi | E29: =+IF('D8 Statistiques'!$F$29="voyagent chaque jour","pas pertinent, laisser en blanc","") ->  | J29: =+IF($E$29="pas pertinent, laisser en blanc",0,$F29) -> 0 | K29: =+IF($E$29="pas pertinent, laisser en blanc",0,$F29) -> 0 | L29: 0 | M29: 0 | N29: 0 | O29: 0 | P29: 0 | Q29: 0 | R29: 0
C30: Pour le personnel de la zone assistant à la formation au siège du groupe-zones | D30: =+IF('D1 Données générales'!$H$13="","",'D1 Données générales'!$H$13) -> Cedi | E30: =+IF('D3 Données épi. démo'!F169="voyagent chaque jour","pas pertinent, laisser en blanc","") ->  | F30: 80 | J30: =+IF($E$30="pas pertinent, laisser en blanc",0,$F30) -> 80 | K30: =+IF($E$30="pas pertinent, laisser en blanc",0,$F30) -> 80 | L30: 80 | M30: 80 | N30: 80 | O30: 80 | P30: 80 | Q30: 80 | R30: 80
C31: Pour les agents de santé de la PEC MAS ambulatoire ou hospitalière assistant à la formation au siège de la zone | D31: =+IF('D1 Données générales'!$H$13="","",'D1 Données générales'!$H$13) -> Cedi | E31: =+IF('D3 Données épi. démo'!F179="voyagent chaque jour","pas pertinent, laisser en blanc","") ->  | F31: 80 | J31: =+IF($E$31="pas pertinent, laisser en blanc",0,$F31) -> 80 | K31: =+IF($E$31="pas pertinent, laisser en blanc",0,$F31) -> 80 | L31: 80 | M31: 80 | N31: 80 | O31: 80 | P31: 80 | Q31: 80 | R31: 80
C32: Po ur les AEC assistant à la formation au site PEC MAS ambulatoire | D32: =+IF('D1 Données générales'!$H$13="","",'D1 Données générales'!$H$13) -> Cedi | E32: =+IF('D3 Données épi. démo'!F184="voyagent chaque jour","pas pertinent, laisser en blanc","") -> pas pertinent, laisser en blanc | J32: =+IF($E$32="pas pertinent, laisser en blanc",0,$F32) -> 0 | K32: =+IF($E$32="pas pertinent, laisser en blanc",0,$F32) -> 0 | L32: 0 | M32: 0 | N32: 0 | O32: 0 | P32: 0 | Q32: 0 | R32: 0
C33: Fiches du rapport mensuel | D33: =+IF('D1 Données générales'!$H$13="","",'D1 Données générales'!$H$13) -> Cedi | F33: 0.3 | G33: u | J33: =+$F33 -> 0.3 | K33: =+$F33 -> 0.3 | L33: 0.3 | M33: 0.3 | N33: 0.3 | O33: 0.3 | P33: 0.3 | Q33: 0.3 | R33: 0.3
C34: Médicaments
C35: Vitamine A (pour 100 000 gélules UI) | D35: =+IF('D1 Données générales'!$H$13="","",'D1 Données générales'!$H$13) -> Cedi | F35: 0.02 | G35: u | J35: =+$F35 -> 0.02 | K35: 0.02 | L35: 0.02 | M35: 0.02 | N35: 0.02 | O35: 0.02 | P35: 0.02 | Q35: 0.02 | R35: 0.02
C36: Eau sucrée (par litre) | D36: =+IF('D1 Données générales'!$H$13="","",'D1 Données générales'!$H$13) -> Cedi | F36: 0.05 | G36: u | J36: 0.05 | K36: 0.05 | L36: 0.05 | M36: 0.05 | N36: 0.05 | O36: 0.05 | P36: 0.05 | Q36: 0.05 | R36: 0.05
C37: Amoxicilline (par gramme [g]) | D37: =+IF('D1 Données générales'!$H$13="","",'D1 Données générales'!$H$13) -> Cedi | F37: 1 | G37: u | J37: 1 | K37: 1 | L37: 1 | M37: 1 | N37: 1 | O37: 1 | P37: 1 | Q37: 1 | R37: 1
C38: Traitement antipaludique (par durée de traitement) | D38: =+IF('D1 Données générales'!$H$13="","",'D1 Données générales'!$H$13) -> Cedi | F38: 3 | G38: u | J38: =+$F38 -> 3 | K38: 3 | L38: 3 | M38: 3 | N38: 3 | O38: 3 | P38: 3 | Q38: 3 | R38: 3
C39: Test diagnostique du paludisme (par test) | D39: =+IF('D1 Données générales'!$H$13="","",'D1 Données générales'!$H$13) -> Cedi | E39: Pour le prix des tests qui sont faits en laboratoire, vérifiez si les hôpitaux ont fait leurs propres calculs ou utilisent les données sur les prix demandés par des services privés de test. | F39: 1 | G39: u | J39: 1 | K39: 1 | L39: 1 | M39: 1 | N39: 1 | O39: 1 | P39: 1 | Q39: 1 | R39: 1
C40: Albendazole (par comprimé de 100 mg) | D40: =+IF('D1 Données générales'!$H$13="","",'D1 Données générales'!$H$13) -> Cedi | F40: 0.03 | G40: u | J40: 0.03 | K40: 0.03 | L40: 0.03 | M40: 0.03 | N40: 0.03 | O40: 0.03 | P40: 0.03 | Q40: 0.03 | R40: 0.03
C41: ReSoMal (par sachet de 84 g) | D41: =+IF('D1 Données générales'!$H$13="","",'D1 Données générales'!$H$13) -> Cedi | F41: 0.5 | G41: u | J41: 0.5 | K41: 0.5 | L41: 0.5 | M41: 0.5 | N41: 0.5 | O41: 0.5 | P41: 0.5 | Q41: 0.5 | R41: 0.5
C42: Ensemble de tests effectués régulièrement chez les enfants hospitalisés avec MAS (autres que pour le paludisme). | D42: =+IF('D1 Données générales'!$H$13="","",'D1 Données générales'!$H$13) -> Cedi | E42: =+IF('D3 Données épi. démo'!E90="","",'D3 Données épi. démo'!E90) -> VIH, Hémoglobine, Glycémie, TB occasionnellement | F42: 5 | G42: u | J42: =+$F$42 -> 5 | K42: =+$F$42 -> 5 | L42: 5 | M42: 5 | N42: 5 | O42: 5 | P42: 5 | Q42: 5 | R42: 5
C43: Kits IV | D43: =+IF('D1 Données générales'!$H$13="","",'D1 Données générales'!$H$13) -> Cedi | F43: 1 | G43: u | J43: =+$F$43 -> 1 | K43: =+$F$43 -> 1 | L43: 1 | M43: 1 | N43: 1 | O43: 1 | P43: 1 | Q43: 1 | R43: 1
C44: Sondes nasogastriques | D44: =+IF('D1 Données générales'!$H$13="","",'D1 Données générales'!$H$13) -> Cedi | F44: 1 | G44: u | J44: =+$F$44 -> 1 | K44: =+$F$44 -> 1 | L44: 1 | M44: 1 | N44: 1 | O44: 1 | P44: 1 | Q44: 1 | R44: 1
C45: Vaccin contre la rougeole (par dose) | D45: =+IF('D1 Données générales'!$H$13="","",'D1 Données générales'!$H$13) -> Cedi | F45: 1 | G45: u | J45: 1 | K45: 1 | L45: 1 | M45: 1 | N45: 1 | O45: 1 | P45: 1 | Q45: 1 | R45: 1
C46: Seringues autodestructibles pour rougeole (par seringue) | D46: =+IF('D1 Données générales'!$H$13="","",'D1 Données générales'!$H$13) -> Cedi | F46: 0.2 | G46: u | J46: 0.2 | K46: 0.2 | L46: 0.2 | M46: 0.2 | N46: 0.2 | O46: 0.2 | P46: 0.2 | Q46: 0.2 | R46: 0.2
C47: Seringues pour mélange (par seringue) | D47: =+IF('D1 Données générales'!$H$13="","",'D1 Données générales'!$H$13) -> Cedi | F47: 0.2 | G47: u | J47: 0.2 | K47: 0.2 | L47: 0.2 | M47: 0.2 | N47: 0.2 | O47: 0.2 | P47: 0.2 | Q47: 0.2 | R47: 0.2
C48: Prise en charge du patient
C49: ATPE (par kg) | D49: =+IF('D1 Données générales'!$H$13="","",'D1 Données générales'!$H$13) -> Cedi | E49: S'ils sont préparés localement ou produits à partir d'ingrédients plutôt que d'être achetés comme produit final, faites simplement la somme des prix des ingrédients nécessaires pour préparer un kilogramme du produit. | F49: 6 | G49: u | J49: =+$F49 -> 6 | K49: 6 | L49: 6 | M49: 6 | N49: 6 | O49: 6 | P49: 6 | Q49: 6 | R49: 6
C50: F-75 (par kg) | D50: =+IF('D1 Données générales'!$H$13="","",'D1 Données générales'!$H$13) -> Cedi | F50: 4.5 | G50: u | J50: 4.5 | K50: 4.5 | L50: 4.5 | M50: 4.5 | N50: 4.5 | O50: 4.5 | P50: 4.5 | Q50: 4.5 | R50: 4.5
C51: F-100 (par kg) | D51: =+IF('D1 Données générales'!$H$13="","",'D1 Données générales'!$H$13) -> Cedi | F51: 5 | G51: u | J51: 5 | K51: 5 | L51: 5 | M51: 5 | N51: 5 | O51: 5 | P51: 5 | Q51: 5 | R51: 5
C52: Fiche de suivi de la PEC MAS ambulatoire | D52: =+IF('D1 Données générales'!$H$13="","",'D1 Données générales'!$H$13) -> Cedi | E52: . | F52: 0.6 | G52: u | J52: 0.6 | K52: 0.6 | L52: 0.6 | M52: 0.6 | N52: 0.6 | O52: 0.6 | P52: 0.6 | Q52: 0.6 | R52: 0.6
C53: Fiche individuelle de suivi de la PEC MAS hospitalière | D53: =+IF('D1 Données générales'!$H$13="","",'D1 Données générales'!$H$13) -> Cedi | F53: 1 | G53: u
C54: Fiche des rations de l'ATPE (par fiche) | D54: =+IF('D1 Données générales'!$H$13="","",'D1 Données générales'!$H$13) -> Cedi | F54: 0.5 | G54: u | J54: 0.5 | K54: 0.5 | L54: 0.5 | M54: 0.5 | N54: 0.5 | O54: 0.5 | P54: 0.5 | Q54: 0.5 | R54: 0.5
C55: Bracelets PB (par bracelet) | D55: =+IF('D1 Données générales'!$H$13="","",'D1 Données générales'!$H$13) -> Cedi | G55: u | J55: 0 | K55: 0 | L55: 0 | M55: 0 | N55: 0 | O55: 0 | P55: 0 | Q55: 0 | R55: 0
C56: Essuie-mains (par rouleaux) | D56: =+IF('D1 Données générales'!$H$13="","",'D1 Données générales'!$H$13) -> Cedi | F56: 1 | G56: u | J56: 1 | K56: 1 | L56: 1 | M56: 1 | N56: 1 | O56: 1 | P56: 1 | Q56: 1 | R56: 1
C57: Savon (pièce) | D57: =+IF('D1 Données générales'!$H$13="","",'D1 Données générales'!$H$13) -> Cedi | F57: 0.8 | G57: u | J57: 0.8 | K57: 0.8 | L57: 0.8 | M57: 0.8 | N57: 0.8 | O57: 0.8 | P57: 0.8 | Q57: 0.8 | R57: 0.8
C58: Eau de boisson (par litre) | D58: =+IF('D1 Données générales'!$H$13="","",'D1 Données générales'!$H$13) -> Cedi | F58: 0.5 | G58: u | J58: 0.5 | K58: 0.5 | L58: 0.5 | M58: 0.5 | N58: 0.5 | O58: 0.5 | P58: 0.5 | Q58: 0.5 | R58: 0.5
C59: Nourriture pour accompagnant dans la PEC MAS hospitalière (par jour) | D59: =+IF('D1 Données générales'!$H$13="","",'D1 Données générales'!$H$13) -> Cedi | G59: u | J59: 0 | K59: 0 | L59: 0 | M59: 0 | N59: 0 | O59: 0 | P59: 0 | Q59: 0 | R59: 0
C60: Fiches de contrôle de stock (par jeu) | D60: =+IF('D1 Données générales'!$H$13="","",'D1 Données générales'!$H$13) -> Cedi | F60: 0.1 | G60: u | J60: 0.1 | K60: 0.1 | L60: 0.1 | M60: 0.1 | N60: 0.1 | O60: 0.1 | P60: 0.1 | Q60: 0.1 | R60: 0.1
C61: Formation et supervision
C62: Matériel pour la supervision du siège de la zone (par visite de supervision) | D62: =+IF('D1 Données générales'!$H$13="","",'D1 Données générales'!$H$13) -> Cedi | E62: Le matériel de supervision peut comprendre des listes de pointage ou d'autres guides. | F62: 0.5 | G62: u | J62: =+$F$62 -> 0.5 | K62: =+$F$62 -> 0.5 | L62: 0.5 | M62: 0.5 | N62: 0.5 | O62: 0.5 | P62: 0.5 | Q62: 0.5 | R62: 0.5
C63: Matériel pour la supervision de la PEC ambulatoire ou hospitalière (par visite de supervision) | D63: =+IF('D1 Données générales'!$H$13="","",'D1 Données générales'!$H$13) -> Cedi | F63: 0.5 | G63: u | J63: =+$F63 -> 0.5 | K63: 0.5 | L63: 0.5 | M63: 0.5 | N63: 0.5 | O63: 0.5 | P63: 0.5 | Q63: 0.5 | R63: 0.5
C64: Matériel pour la supervision des AEC (par visite de supervision) | D64: =+IF('D1 Données générales'!$H$13="","",'D1 Données générales'!$H$13) -> Cedi | F64: 0.2 | G64: u | J64: 0.2 | K64: 0.2 | L64: 0.2 | M64: 0.2 | N64: 0.2 | O64: 0.2 | P64: 0.2 | Q64: 0.2 | R64: 0.2
C65: Matériel de formation par AEC | D65: =+IF('D1 Données générales'!$H$13="","",'D1 Données générales'!$H$13) -> Cedi | F65: 1 | G65: u | J65: =+$F65 -> 1 | K65: 1 | L65: 1 | M65: 1 | N65: 1 | O65: 1 | P65: 1 | Q65: 1 | R65: 1
C66: Matériel de formation par participant PEC MAS ambulatoire | D66: =+IF('D1 Données générales'!$H$13="","",'D1 Données générales'!$H$13) -> Cedi | F66: 20 | G66: u | J66: 20 | K66: 20 | L66: 20 | M66: 20 | N66: 20 | O66: 20 | P66: 20 | Q66: 20 | R66: 20
C67: Matériel de formation par participant PEC MAS hospitalière | D67: =+IF('D1 Données générales'!$H$13="","",'D1 Données générales'!$H$13) -> Cedi | F67: 20 | G67: u | J67: 20 | K67: 20 | L67: 20 | M67: 20 | N67: 20 | O67: 20 | P67: 20 | Q67: 20 | R67: 20
C68: Matériel de formation par participant siège de la zone | D68: =+IF('D1 Données générales'!$H$13="","",'D1 Données générales'!$H$13) -> Cedi | F68: 40 | G68: u | J68: 40 | K68: 40 | L68: 40 | M68: 40 | N68: 40 | O68: 40 | P68: 40 | Q68: 40 | R68: 40
C69: Matériel de formation par participant groupe-zones (formation complète) | D69: =+IF('D1 Données générales'!$H$13="","",'D1 Données générales'!$H$13) -> Cedi | F69: 25 | G69: u | J69: =+$F$69 -> 25 | K69: =+$F$69 -> 25 | L69: 25 | M69: 25 | N69: 25 | O69: 25 | P69: 25 | Q69: 25 | R69: 25
C70: Matériel de formation par participant zone (recyclage) | D70: =+IF('D1 Données générales'!$H$13="","",'D1 Données générales'!$H$13) -> Cedi | F70: 5 | G70: u | J70: =+$F$70 -> 5 | K70: =+$F$70 -> 5 | L70: 5 | M70: 5 | N70: 5 | O70: 5 | P70: 5 | Q70: 5 | R70: 5
C71: Transport (NOTE: Le prix par km-personne devrait tenir compte du partage du véhicule (voir Guide de l'utilisateur)
C72: Transport du personnel entre le niveau central et le groupe-zones | D72: =+IF('D1 Données générales'!$H$13="","",'D1 Données générales'!$H$13) -> Cedi | E72: Par km-pers. | F72: 2 | G72: u | J72: =+$F$72 -> 2 | K72: =+$F$72 -> 2 | L72: 2 | M72: 2 | N72: 2 | O72: 2 | P72: 2 | Q72: 2 | R72: 2
C73: Transport du personnel entre le siège de la zone et le siège du groupe-zones | D73: =+IF('D1 Données générales'!$H$13="","",'D1 Données générales'!$H$13) -> Cedi | E73: Par km-pers. | F73: 2 | G73: u | J73: =+$F$73 -> 2 | K73: 2 | L73: 2 | M73: 2 | N73: 2 | O73: 2 | P73: 2 | Q73: 2 | R73: 2
C74: Transport du personnel entre les sites PEC MAS ambulatoire ou hospitalière et le siège de la zone | D74: =+IF('D1 Données générales'!$H$13="","",'D1 Données générales'!$H$13) -> Cedi | E74: Par km-pers. | F74: 2 | G74: u | J74: =+$F$74 -> 2 | K74: 2 | L74: 2 | M74: 2 | N74: 2 | O74: 2 | P74: 2 | Q74: 2 | R74: 2
C75: Transport du personnel entre le village et le site PEC MAS ambulatoire | D75: =+IF('D1 Données générales'!$H$13="","",'D1 Données générales'!$H$13) -> Cedi | E75: Par km-pers. | F75: 2 | G75: u | J75: =+$F$75 -> 2 | K75: 2 | L75: 2 | M75: 2 | N75: 2 | O75: 2 | P75: 2 | Q75: 2 | R75: 2
C76: Transport pour patients référés du site PEC MAS ambulatoire au site PEC MAS hospitalière | D76: =+IF('D1 Données générales'!$H$13="","",'D1 Données générales'!$H$13) -> Cedi | E76: Par km-pers. | F76: 2 | G76: u | J76: =+$F76 -> 2 | K76: 2 | L76: 2 | M76: 2 | N76: 2 | O76: 2 | P76: 2 | Q76: 2 | R76: 2
C77: Transport des fournitures du niveau central au groupe-zones | D77: =+IF('D1 Données générales'!$H$13="","",'D1 Données générales'!$H$13) -> Cedi | E77: Par km | F77: 2 | G77: u | J77: =+$F$77 -> 2 | K77: 2 | L77: 2 | M77: 2 | N77: 2 | O77: 2 | P77: 2 | Q77: 2 | R77: 2
C78: Transport des fournitures du groupe-zones à la zone | D78: =+IF('D1 Données générales'!$H$13="","",'D1 Données générales'!$H$13) -> Cedi | E78: Par km | F78: 2 | G78: u | J78: =+$F$78 -> 2 | K78: =+$F$78 -> 2 | L78: 2 | M78: 2 | N78: 2 | O78: 2 | P78: 2 | Q78: 2 | R78: 2
C79: Transport des fournitures de la zone aux sites PEC MAS ambulatoire ou hospitalière | D79: =+IF('D1 Données générales'!$H$13="","",'D1 Données générales'!$H$13) -> Cedi | E79: Par km | F79: 2 | G79: u | J79: =+$F$79 -> 2 | K79: =+$F$79 -> 2 | L79: 2 | M79: 2 | N79: 2 | O79: 2 | P79: 2 | Q79: 2 | R79: 2
C80: Transport des fournitures du site PEC ambulatoire aux sites d'extension communautaire | D80: =+IF('D1 Données générales'!$H$13="","",'D1 Données générales'!$H$13) -> Cedi | E80: Par km | F80: 2 | G80: u | J80: =+$F$80 -> 2 | K80: =+$F$80 -> 2 | L80: 2 | M80: 2 | N80: 2 | O80: 2 | P80: 2 | Q80: 2 | R80: 2
C81: Différences salariales | E81: Niveaux salariaux comme proportion de ceux dans la Zone 1 (voir Feuille de calcul D5). | F81: 1

Sheet W6with comments (hidden)
A2: worksheet 3
C3: nighttime supervision
C4: minimum staffing on a ward?
C5: Maximum number of patients per junior staff member | E5: ? | F5: 4
C6: Maximum number of patients per senior staff member | E6: ? | F6: 10
C8: Shelf life of RUTF | D8: months | F8: 24 | J8: =+$F$8 -> 24 | K8: 24 | L8: 24 | M8: 24 | N8: 24 | O8: 24 | P8: 24 | Q8: 24 | R8: 24
C9: Shelf life of F100 and F75 | D9: months | F9: 18
C19: TABLE 1. Outpatient Care Site | H19: =+'D1 Données générales'!$H$14 -> 2010 | L19: =+'D1 Données générales'!$H$13 -> Cedi
H20: Price per unit | I20: Average cost per year | J20: Costs for each year in the life of the Outpatient Care site
A21: ghana comments | C21: Supplies | D21: No. required (at any point in time) | E21: Unit | F21: No. years before need replacing | G21: Average amount per year | J21: Year 1 | K21: Year 2 | L21: Year 3 | M21: Year 4 | N21: Year 5 | O21: Year 6
C22: Strong file to store admission /treatment cards | D22: 4 | E22: file | F22: 1 | G22: =+D22/F22 -> 4 | H22: 1 | I22: =+D22/F22*H22 -> 4 | J22: =+D22*H22 -> 4 | K22: =+IF(F22=1,J22,0) -> 4 | L22: =+IF(OR(F22=1,F22=2),J22,0) -> 4 | M22: =+IF(OR(F22=1,F22=3),J22,0) -> 4 | N22: =+IF(OR(F22=1,F22=2,F22=4),J22,0) -> 4 | O22: =+IF(OR(F22=1,F22=5),J22,0) -> 4
C23: Small clock or watch with second hand | D23: 2 | E23: clock | F23: 3 | G23: 0.6666666667 | H23: 1 | I23: 0.6666666667 | J23: 2 | K23: 0 | L23: 0 | M23: 2 | N23: 0 | O23: 0
C24: Bucket – plastic, graduated, lid, 8.5 litres | D24: 2 | E24: bucket | F24: 5 | G24: 0.4 | H24: 1 | I24: 0.4 | J24: 2 | K24: 0 | L24: 0 | M24: 0 | N24: 0 | O24: 2
A25: not needed | C25: Jug – transparent plastic, graduated, 1litre | D25: 2 | E25: jug | F25: 5 | G25: 0.4 | H25: 1 | I25: 0.4 | J25: 2 | K25: 0 | L25: 0 | M25: 0 | N25: 0 | O25: 2
A26: ? | C26: Marker pens (permanent ink) | D26: 12 | E26: pen | F26: 1 | G26: 12 | H26: 1 | I26: 12 | J26: 12 | K26: 12 | L26: 12 | M26: 12 | N26: 12 | O26: 12
A27: ? | C27: Notebook | D27: 4 | E27: notebook | F27: 1 | G27: 4 | H27: 1 | I27: 4 | J27: 4 | K27: 4 | L27: 4 | M27: 4 | N27: 4 | O27: 4
A28: ? | C28: Metal spoons | D28: 4 | E28: spoons | F28: 5 | G28: 0.8 | H28: 1 | I28: 0.8 | J28: 4 | K28: 0 | L28: 0 | M28: 0 | N28: 0 | O28: 4
C29: Teaspoons | D29: 12 | E29: spoons | F29: 5 | G29: 2.4 | H29: 1 | I29: 2.4 | J29: 12 | K29: 0 | L29: 0 | M29: 0 | N29: 0 | O29: 12
A30: ? | C30: Nail clippers | D30: 4 | E30: clippers | F30: 5 | G30: 0.8 | H30: 1 | I30: 0.8 | J30: 4 | K30: 0 | L30: 0 | M30: 0 | N30: 0 | O30: 4
C31: Water carrier -plastic, collapsable, tap, 20 litres | D31: 4 | E31: carrier | F31: 3 | G31: 1.333333333 | H31: 1 | I31: 1.333333333 | J31: 4 | K31: 0 | L31: 0 | M31: 4 | N31: 0 | O31: 0
A32: for sugar water? | C32: Water jug (with lid) | D32: 4 | E32: jug | F32: 3 | G32: 1.333333333 | H32: 1 | I32: 1.333333333 | J32: 4 | K32: 0 | L32: 0 | M32: 4 | N32: 0 | O32: 0
A33: for swabs? | C33: Small metal bowl | D33: 4 | E33: bowl | F33: 5 | G33: 0.8 | H33: 1 | I33: 0.8 | J33: 4 | K33: 0 | L33: 0 | M33: 0 | N33: 0 | O33: 4
A34: 2 enough | C34: Thermometer - electronic | D34: 4 | E34: thermometer | F34: 5 | G34: 0.8 | H34: 1 | I34: 0.8 | J34: 4 | K34: 0 | L34: 0 | M34: 0 | N34: 0 | O34: 4
A35: at least one (plus rope and pants) | C35: Additional scales | D35: 1 | E35: scales | F35: 2 | G35: 0.5 | H35: 1 | I35: 0.5 | J35: 1 | K35: 0 | L35: 1 | M35: 0 | N35: 1 | O35: 0
A36: what for | C36: Additional height boards | E36: boards | F36: 5 | G36: 0 | H36: 1 | I36: 0 | J36: 0 | K36: 0 | L36: 0 | M36: 0 | N36: 0 | O36: 0
A37: ghana data | C37: Additional MUAC bands | D37: 20 | E37: bands | F37: 0.5 | G37: 40 | H37: 0.2 | I37: 8 | J37: 4 | K37: 0 | L37: 0 | M37: 0 | N37: 0 | O37: 0
C38: additional calculators | D38: 2 | E38: calculator | F38: 5 | G38: 0.4 | H38: 1 | I38: 0.4 | J38: 2 | K38: 0 | L38: 0 | M38: 0 | N38: 0 | O38: 2
A39: out | C39: weight for height chart | D39: 1 | E39: height table | F39: 5 | G39: 0.2 | H39: 1 | I39: 0.2 | J39: 1 | K39: 0 | L39: 0 | M39: 0 | N39: 0 | O39: 1
A40: out | C40: height board | D40: 1 | E40: boards | F40: 5 | G40: 0.2 | H40: 1 | I40: 0.2 | J40: 1 | K40: 0 | L40: 0 | M40: 0 | N40: 0 | O40: 1
C41: scissors | D41: 1 | E41: scissors | F41: 5 | G41: 0.2 | H41: 1 | I41: 0.2 | J41: 1 | K41: 0 | L41: 0 | M41: 0 | N41: 0 | O41: 1
C42: stapler and staples | D42: 1 | E42: stapler | F42: 1 | G42: 1 | H42: 1 | I42: 1 | J42: 1 | K42: 1 | L42: 1 | M42: 1 | N42: 1 | O42: 1
A43: out | C43: beaker – orange plastic( 500 ml) | D43: 2 | E43: beaker | F43: 3 | G43: 0.6666666667 | H43: 1 | I43: 0.6666666667 | J43: 2 | K43: 0 | L43: 0 | M43: 2 | N43: 0 | O43: 0
C44: Set of communication materials for counselling on health and nutrition | D44: 2 | E44: set | F44: 1 | G44: 2 | H44: 11 | I44: 22 | J44: 22 | K44: 22 | L44: 22 | M44: 22 | N44: 22 | O44: 22
C45: copy of CMAM guidelines | D45: 1 | E45: guidelines | F45: 3 | G45: 0.3333333333 | H45: 1 | I45: 0.3333333333 | J45: 1 | K45: 0 | L45: 0 | M45: 1 | N45: 0 | O45: 0
C46: registration book | D46: 1 | E46: book | F46: 1 | G46: 1 | H46: 1 | I46: 1 | J46: 1 | K46: 1 | L46: 1 | M46: 1 | N46: 1 | O46: 1
C47: monthly reporting forms | D47: 12 | E47: forms | F47: 1 | G47: 12 | H47: 1 | I47: 12 | J47: 12 | K47: 12 | L47: 12 | M47: 12 | N47: 12 | O47: 12
C48: tally sheets (weekly) | D48: 52 | E48: sheets | F48: 1 | G48: 52 | H48: 1 | I48: 52 | J48: 52 | K48: 52 | L48: 52 | M48: 52 | N48: 52 | O48: 52
A49: 6 | C49: set of cups and spoons | D49: 6
C50: Annual cost for fixed supplies per OCsite | I50: =+SUM(I22:I48) -> 128.2333333 | J50: =SUM(J22:J48) -> 163 | K50: 108 | L50: 109 | M50: 121 | N50: 109 | O50: 145
C54: TABLE 2. Inpatient Care site | H54: =+'D1 Données générales'!$H$14 -> 2010 | L54: =+'D1 Données générales'!$H$13 -> Cedi
H55: Price per unit | I55: Average cost per year | J55: Costs for each year in the life of the Intpatient Care site
C56: Supplies | D56: Number required (at any point in time) | E56: Unit | F56: No. years before need replacing | G56: Average amount per year | J56: Year 1 | K56: Year 2 | L56: Year 3 | M56: Year 4 | N56: Year 5 | O56: Year 6
C57: Strong OCsite file for admission/treatment cards | D57: 4 | E57: file | F57: 1 | G57: =+D57/F57 -> 4 | H57: =+H22 -> 1 | I57: =+D57/F57*H57 -> 4 | J57: =+D57*H57 -> 4 | K57: =+IF(F57=1,J57,0) -> 4 | L57: =+IF(OR(F57=1,F57=2),J57,0) -> 4 | M57: =+IF(OR(F57=1,F57=3),J57,0) -> 4 | N57: =+IF(OR(F57=1,F57=2,F57=4),J57,0) -> 4 | O57: =+IF(OR(F57=1,F57=5),J57,0) -> 4
C58: Small clock or watch with second hand | D58: 2 | E58: clock | F58: 3 | G58: 0.6666666667 | H58: =+H23 -> 1 | I58: 0.6666666667 | J58: 2 | K58: 0 | L58: 0 | M58: 2 | N58: 0 | O58: 0
C59: Bucket – plastic, graduated, lid, 8.5 litres | D59: 2 | E59: bucket | F59: 5 | G59: 0.4 | H59: 1 | I59: 0.4 | J59: 2 | K59: 0 | L59: 0 | M59: 0 | N59: 0 | O59: 2
A60: for mixing milk | C60: Jug – transparent plastic, graduated, 1litre | D60: 2 | E60: jug | F60: 5 | G60: 0.4 | H60: 1 | I60: 0.4 | J60: 2 | K60: 0 | L60: 0 | M60: 0 | N60: 0 | O60: 2
C61: Marker pens (permanent ink) | D61: 12 | E61: pen | F61: 1 | G61: 12 | H61: 1 | I61: 12 | J61: 12 | K61: 12 | L61: 12 | M61: 12 | N61: 12 | O61: 12
C62: Notebook | D62: 4 | E62: notebook | F62: 1 | G62: 4 | H62: 1 | I62: 4 | J62: 4 | K62: 4 | L62: 4 | M62: 4 | N62: 4 | O62: 4
A63: for measuring | C63: Metal spoons | D63: 4 | E63: spoons | F63: 5 | G63: 0.8 | H63: 1 | I63: 0.8 | J63: 4 | K63: 0 | L63: 0 | M63: 0 | N63: 0 | O63: 4
A64: no | C64: Teaspoons | D64: 12 | E64: spoons | F64: 5 | G64: 2.4 | H64: 1 | I64: 2.4 | J64: 12 | K64: 0 | L64: 0 | M64: 0 | N64: 0 | O64: 12
C65: Nail clippers | D65: 4 | E65: clippers | F65: 5 | G65: 0.8 | H65: 1 | I65: 0.8 | J65: 4 | K65: 0 | L65: 0 | M65: 0 | N65: 0 | O65: 4
C66: Water carrier -plastic, collapsible, tap, 20 litres | D66: 4 | E66: carrier | F66: 3 | G66: 1.333333333 | H66: 1 | I66: 1.333333333 | J66: 4 | K66: 0 | L66: 0 | M66: 4 | N66: 0 | O66: 0
C67: Water jug (with lid) | D67: 4 | E67: jug | F67: 3 | G67: 1.333333333 | H67: 1 | I67: 1.333333333 | J67: 4 | K67: 0 | L67: 0 | M67: 4 | N67: 0 | O67: 0
C68: Small metal bowl | D68: 4 | E68: bowl | F68: 5 | G68: 0.8 | H68: 1 | I68: 0.8 | J68: 4 | K68: 0 | L68: 0 | M68: 0 | N68: 0 | O68: 4
C69: Thermometer - electronic | D69: 4 | E69: thermometer | F69: 5 | G69: 0.8 | H69: 1 | I69: 0.8 | J69: 4 | K69: 0 | L69: 0 | M69: 0 | N69: 0 | O69: 4
C70: Additional scales | D70: 1 | E70: scales | F70: 2 | G70: 0.5 | H70: 1 | I70: 0.5 | J70: 1 | K70: 0 | L70: 1 | M70: 0 | N70: 1 | O70: 0
A71: ??? | C71: Additional height boards | E71: boards | F71: 5 | G71: 0 | H71: 1 | I71: 0 | J71: 0 | K71: 0 | L71: 0 | M71: 0 | N71: 0 | O71: 0
C72: Additional MUAC bands | D72: 500 | E72: bands | F72: 1 | G72: 500 | H72: 0.2 | I72: 100 | J72: 100 | K72: 100 | L72: 100 | M72: 100 | N72: 100 | O72: 100
C73: Additional calculators | E73: calculator | F73: 5 | G73: 0 | H73: 1 | I73: 0 | J73: 0 | K73: 0 | L73: 0 | M73: 0 | N73: 0 | O73: 0
C74: weight for height chart | D74: 1 | E74: height table | F74: 5 | G74: 0.2 | H74: 1 | I74: 0.2 | J74: 1 | K74: 0 | L74: 0 | M74: 0 | N74: 0 | O74: 1
C75: height board | D75: 1 | E75: boards | F75: 5 | G75: 0.2 | H75: 1 | I75: 0.2 | J75: 1 | K75: 0 | L75: 0 | M75: 0 | N75: 0 | O75: 1
C76: scissors | D76: 1 | E76: scissors | F76: 5 | G76: 0.2 | H76: 1 | I76: 0.2 | J76: 1 | K76: 0 | L76: 0 | M76: 0 | N76: 0 | O76: 1
C77: stapler and staples | D77: 1 | E77: stapler | F77: 1 | G77: 1 | H77: 1 | I77: 1 | J77: 1 | K77: 1 | L77: 1 | M77: 1 | N77: 1 | O77: 1
C78: Beaker – orange plastic (500 ml) | D78: 2 | E78: beaker | F78: 3 | G78: 0.6666666667 | H78: 1 | I78: 0.6666666667 | J78: 2 | K78: 0 | L78: 0 | M78: 2 | N78: 0 | O78: 0
C79: Set of communication materials for counselling on health and nutrition | D79: 2 | E79: set | F79: 1 | G79: 2 | H79: 11 | I79: 22 | J79: 22 | K79: 22 | L79: 22 | M79: 22 | N79: 22 | O79: 22
C80: copy of CMAM guidelines | D80: 1 | E80: guidelines | F80: 3 | G80: 0.3333333333 | H80: 1 | I80: 0.3333333333 | J80: 1 | K80: 0 | L80: 0 | M80: 1 | N80: 0 | O80: 0
C81: registration book | D81: 1 | E81: book | F81: 1 | G81: 1 | H81: 1 | I81: 1 | J81: 1 | K81: 1 | L81: 1 | M81: 1 | N81: 1 | O81: 1
C82: monthly reporting forms | D82: 12 | E82: forms | F82: 1 | G82: 12 | H82: 1 | I82: 12 | J82: 12 | K82: 12 | L82: 12 | M82: 12 | N82: 12 | O82: 12
C83: tally sheets | D83: 12 | E83: sheets | F83: 1 | G83: 12 | H83: 1 | I83: 12 | J83: 12 | K83: 12 | L83: 12 | M83: 12 | N83: 12 | O83: 12
A84: beakers and spoons for formula milk
A85: food scale (up to 10 kg) for weighing milks?
C86: Specifically for ICsite | J86: =SUM(J57:J83) -> 217 | K86: 168 | L86: 169 | M86: 181 | N86: 169 | O86: 203
C87: equipment | I87: 200
C88: space | F88: m2
C89: Cots for children | D89: =+'D9 Variables temps'!$F$42*'D3 Données épi. démo'!$F$29/365 -> 0.9657534247 | E89: (no SAM cases with complications * days inIC /365
C90: Beds for carer
C94: Annual cost for fixed supplies per ICsite | I94: =+SUM(I57:I93) -> 379.8333333

Sheet D5 Salaires
A2: Retour au sommaire | C2: D5: Salaires
B5: Effacez dans cette Feuille toute donnée entrée d'une application précédente de cet Outil en pressant sur ce bouton ………..
B8: 1 | C8: Identifiez les types de personnel responsable pour les activités décrites dans la seconde colonne de ce Tableau et NOTEZ leurs titres dans la troisième colonne du Tableau.
B10: 2 | C10: Consultez les ressources humaines et NOTEZ les salaires et avantages annuels (pour l'année de base définie dans la Feuille de calcul D1) pour chaque catégorie de personnel identifié ci-dessous. S'il existe une gamme de valeurs (le salaire peut dépendre de la durée du service ou de l'emplacement), choisissez la valeur typique de cette catégorie d'agent dans la Zone 1 et le siège de son groupe-zones.
B12: 3 | C12: Si les formateurs touchent des honoraires, NOTEZ la valeur de ces honoraires (exprimés comme taux quotidiens) dans la dernière colonne. Sinon, laissez en blanc cette colonne ou notez "0".
B14: 4 | C14: VERIFIEZ que les valeurs que vous avez notées dans la dernière ligne de la Feuille de calcul précédente (D4) reflètent comment les différents salaires dans d'autre zones se comparent aux salaires de la Zone 1 que vous avez notés ici.
C17: =+IF('D1 Données générales'!$H$11="","",'D1 Données générales'!$H$11) -> Ghana
F18: =+J18 -> Cedi | J18: =+IF('D1 Données générales'!$H$13="","",'D1 Données générales'!$H$13) -> Cedi
C19: Agents de santé et autre personnel | D19: Fonctions qu'ils exécutent | E19: Spécifiez type (médecin, infirmier, sage-femme, etc.) | F19: Salaire annuel moyen | G19: Avantages ou indemnités annuels (par exemple, uniforme) | H19: Total revenus annuels | I19: Jours ouvrables dans l'année | J19: Total revenus quotidiens | K19: Taux quotidien des honoraires donnés aux formateurs ou aux volontaires
C20: Au siège national | I20: =+'D3 Données épi. démo'!F36 -> 260
C21: Personnel senior siège national | D21: Gestion de la PCMA, système de suivi et de rapport inclu. | E21: Nutritionniste chef de service | F21: 18000 | H21: =+SUM(F21:G21) -> 18000 | I21: =+'D3 Données épi. démo'!$F$36 -> 260 | J21: =+H21/I21 -> 69.23076923 | L21: u
C22: Personnel intermédiaire siège national | D22: Assistance pour mettre en place la PCMA et la gestion régulière, formation des gestionnaires du groupe-zones, système de suivi et de rapport inclu. | E22: Nutritionniste | F22: 14400 | H22: =+SUM(F22:G22) -> 14400 | I22: =+'D3 Données épi. démo'!$F$36 -> 260 | J22: =+H22/I22 -> 55.38461538 | K22: 50 | L22: u
C23: Au siège du groupe-zones
C24: Personnel senior du siège groupe-zones | D24: Gestion de la PCMA. | E24: Nutritionniste coordinateur régional | F24: 12000 | H24: =+SUM(F24:G24) -> 12000 | I24: =+'D3 Données épi. démo'!$F$36 -> 260 | J24: =+H24/I24 -> 46.15384615 | L24: u
C25: Personnel intermédiaire du siège du groupe-zones | D25: Supervision et formation du personnel du siège de la zone. | E25: Nutritionniste de la zone | F25: 9600 | H25: =+SUM(F25:G25) -> 9600 | I25: =+'D3 Données épi. démo'!$F$36 -> 260 | J25: =+H25/I25 -> 36.92307692 | K25: 50 | L25: u
C26: Personnel junior du siège du groupe-zones | D26: Système de suivi et de rapport: collecte et analyse de données et assistance à d'autres tâches de gestion. | E26: Nutritionniste assistante | F26: 4800 | H26: =+SUM(F26:G26) -> 4800 | I26: =+'D3 Données épi. démo'!$F$36 -> 260 | J26: =+H26/I26 -> 18.46153846 | L26: u
C27: Au siège de la zone
C28: Personnel senior du siège de la zone | D28: Gestion de la PCMA. | E28: Nutritionniste coordinateur du district | F28: 9600 | H28: =+SUM(F28:G28) -> 9600 | I28: =+'D3 Données épi. démo'!$F$36 -> 260 | J28: =+H28/I28 -> 36.92307692 | L28: u
C29: Personnel intermédiaire du siège de la zone | D29: Supervision et formation des sites PEC MAS ambulatoire/hospitalière. | E29: Nutritionniste du district | F29: 4800 | H29: =+SUM(F29:G29) -> 4800 | I29: =+'D3 Données épi. démo'!$F$36 -> 260 | J29: =+H29/I29 -> 18.46153846 | K29: 50 | L29: u
C30: Personnel junior du siège de la zone | D30: Système de suivi et de rapport: collecte et analyse de données et soutien pour le personnel intermédiaire et senior. | E30: Nutritionniste assistante | F30: 4800 | H30: =+SUM(F30:G30) -> 4800 | I30: =+'D3 Données épi. démo'!$F$36 -> 260 | J30: =+H30/I30 -> 18.46153846 | L30: u
C31: Au site ambulatoire- agents de santé
C32: Personnel senior | D32: Prise en charge des cas de MAS, mise en place de l'extension communautaire, formation des agents d'extension communautaire, suivi et rapport. | E32: Assistant médical, infirmier, sage-femme | F32: 10200 | H32: =+SUM(F32:G32) -> 10200 | I32: =+'D3 Données épi. démo'!$F$36 -> 260 | J32: =+H32/I32 -> 39.23076923 | K32: 50 | L32: u
C33: Personnel junior | D33: Assistance pour la prise en charge des cas de MAS, supervision des agents d'extension communautaire, assistance pour mettre en place l'extension communautaire, suivi et rapport. | E33: Nutritionniste assistante | F33: 4800 | H33: =+SUM(F33:G33) -> 4800 | I33: =+'D3 Données épi. démo'!$F$36 -> 260 | J33: =+H33/I33 -> 18.46153846 | L33: u
C34: =+IF('D3 Données épi. démo'!F77="","",'D3 Données épi. démo'!F77) -> Volontaire | D34: Extension communautaire de la PCMA dans la communauté. | H34: =+SUM(F34:G34) -> 0 | I34: =+'D3 Données épi. démo'!$F$36 -> 260 | J34: =+H34/I34 -> 0 | K34: 0 | L34: u
C35: Au site hospitalier- agents de santé
C36: Personnel senior | D36: Supervision interne des agents de santé, prise en charge des enfants avec MAS avec complications, suivi et rapport. | E36: Médecin/Pédiatre | F36: 21600 | H36: =+SUM(F36:G36) -> 21600 | I36: =+'D3 Données épi. démo'!$F$36 -> 260 | J36: =+H36/I36 -> 83.07692308 | K36: 50 | L36: u
C37: Personnel intermédiaire | E37: Infirmier/Diététicien | F37: 9600 | H37: =+SUM(F37:G37) -> 9600 | I37: =+'D3 Données épi. démo'!$F$36 -> 260 | L37: u
C38: Personnel junior | D38: Assistance pour prendre en charge les cas de MAS avec complications, la préparation des aliments thérapeutiques, suivi et rapport. | E38: ASC/Infirmier assistant | F38: 3000 | H38: =+SUM(F38:G38) -> 3000 | I38: =+'D3 Données épi. démo'!$F$36 -> 260 | J38: =+H38/I38 -> 11.53846154 | L38: u
C39: Autres agents (tous les niveaux)
C40: Chauffeur | D40: Conduite des voitures pour le transports des fournitures ou des gens. | E40: Chauffeur | F40: 1800 | H40: =+SUM(F40:G40) -> 1800 | I40: =+'D3 Données épi. démo'!$F$36 -> 260 | J40: =+H40/I40 -> 6.923076923 | L40: u
C41: Gardien | D41: Garde des stocks d'aliment thérapeutique. | E41: Gardien | F41: 1200 | H41: =+SUM(F41:G41) -> 1200 | I41: =+'D3 Données épi. démo'!$F$36 -> 260 | J41: =+H41/I41 -> 4.615384615 | L41: u

Sheet D6 Fournitures fixes
A2: Retour au sommaire | C2: D6: Fournitures fixes (pour les sites PEC MAS ambulatoire et les sites PEC MAS hospitalière)
C5: Effacez dans cette Feuille toute donnée entrée d'une application précédente de cet Outil en pressant sur ce bouton ………..
B8: TABLEAU 1 (Sites PEC MAS ambulatoire)
B10: 1 | C10: NOTER dans les cellules en or (indiquées par u) de la colonne intitulée "Nombre effectif utilisé" le nombre des articles spécifiés que vous avez l'intention de mettre dans chaque site PEC MAS ambulatoire. La colonne précédente des cellules vert foncé (indiquées par n) donne les valeurs recommandées, que vous devriez utiliser à moins que vous n'ayez des raisons de penser que les quantités devraient être différentes.
B12: 2 | C12: NOTER dans les cellules en or de la colonne intitulée "Prix par unité" les prix (pour l'année de base définie dans la Feuille de calcul D1) de l'article spécifié. Vérifiez que les unités appropriées sont attachées au prix et vérifiez que le prix comprend tous les éléments pertinents (empaquetage et transport au site).
B14: 3 | C14: AJOUTER, dans les lignes vides à la fin du Tableau 1,toute fourniture supplémentaire que vous jugez nécessaire ainsi que leurs quantités, durée d'utilisation prévue et prix par unité.
B16: 4 | C16: (Facultatif). REVOIR les hypothèses implicites fixées par l'Outil pour la durée d'utilisation ("Nombre d'années avant d'être remplacées"). Si les hypothèses ne conviennent pas, ôtez la protection de la feuille et ensuite procédez aux changements nécessaires et remettez la protection de la Feuille.
B18: TABLEAU 2 (Sites PEC MAS hospitalière)
B20: 5 | C20: REMPLIR le Tableau 2 (pour les sites PEC MAS hospitalière) comme pour le Tableau 1.
C25: =+IF('D1 Données générales'!$H$11="","",'D1 Données générales'!$H$11) -> Ghana
C28: Nombre d'ensembles de fournitures pour chaque site PEC MAS ambulatoire | F28: 1 | G28: n
I30: =+IF('D1 Données générales'!$H$14="","",'D1 Données générales'!$H$14) -> 2010 | K30: =+IF('D1 Données générales'!$H$14="","",'D1 Données générales'!$H$14) -> 2010 | M30: =+IF('D1 Données générales'!$H$13="","",'D1 Données générales'!$H$13) -> Cedi | N30: =+IF('D1 Données générales'!$H$13="","",'D1 Données générales'!$H$13) -> Cedi | O30: =+IF('D1 Données générales'!$H$13="","",'D1 Données générales'!$H$13) -> Cedi | P30: =+IF('D1 Données générales'!$H$13="","",'D1 Données générales'!$H$13) -> Cedi
C31: TABLEAU 1. Site PEC MAS ambulatoire | I31: Prix par unité | J31: Coût moyen par an | K31: Coûts pour chaque année de la durée du site PEC MAS ambulatoire
C32: Fournitures | D32: Nombre RECOMMANDÉ | E32: Nombre EFFECTIF utilisé | F32: Unité | G32: Nombre d'années avant d'être remplacées | H32: Quantité moyenne par an | K32: 1ere année | L32: 2e année | M32: 3e année | N32: 4e année | O32: 5e année | P32: 6e année
C33: Chemise solide pour mettre les fiches d'admission/traitement | D33: 4 | E33: 4 | F33: chemise | G33: 1 | H33: =+IF(ISERROR(E33/G33),,E33/G33) -> 4 | I33: 4 | J33: =+IF(ISERROR(E33/G33*I33),,E33/G33*I33) -> 16 | K33: =+IF(ISERROR(E33*I33),,E33*I33) -> 16 | L33: =+IF(G33=1,K33,0) -> 16 | M33: =+IF(OR(G33=1,G33=2),K33,0) -> 16 | N33: =+IF(OR(G33=1,G33=3),K33,0) -> 16 | O33: =+IF(OR(G33=1,G33=2,G33=4),K33,0) -> 16 | P33: =+IF(OR(G33=1,G33=5),K33,0) -> 16 | Q33: nu
C34: Petit réveil ou montre avec deux aiguilles | D34: 2 | E34: 1 | F34: réveil | G34: 3 | H34: 0.3333333333 | I34: 15 | J34: 5 | K34: 15 | L34: 0 | M34: 0 | N34: 15 | O34: 0 | P34: 0 | Q34: nu
C35: Seau – plastique, gradué, couvercle, 8,5 litres | D35: 2 | E35: 1 | F35: seau | G35: 5 | H35: 0.2 | I35: 6 | J35: 1.2 | K35: 6 | L35: 0 | M35: 0 | N35: 0 | O35: 0 | P35: 6 | Q35: nu
C36: Cruche – transparente en plastique, graduée, 1 litre | D36: 2 | E36: 2 | F36: cruche | G36: 5 | H36: 0.4 | I36: 3 | J36: 1.2 | K36: 6 | L36: 0 | M36: 0 | N36: 0 | O36: 0 | P36: 6 | Q36: nu
C37: Feutres (encre indélébile) | D37: 12 | E37: 1 | F37: feutre | G37: 1 | H37: 1 | I37: 2 | J37: 2 | K37: 2 | L37: 2 | M37: 2 | N37: 2 | O37: 2 | P37: 2 | Q37: nu
C38: Carnet | D38: 4 | E38: 1 | F38: carnet | G38: 1 | H38: 1 | I38: 4 | J38: 4 | K38: 4 | L38: 4 | M38: 4 | N38: 4 | O38: 4 | P38: 4 | Q38: nu
C39: Cuillères en métal | D39: 4 | E39: 2 | F39: cuillère | G39: 5 | H39: 0.4 | I39: 1 | J39: 0.4 | K39: 2 | L39: 0 | M39: 0 | N39: 0 | O39: 0 | P39: 2 | Q39: nu
C40: Petites cuillères | D40: 12 | E40: 2 | F40: cuillère | G40: 5 | H40: 0.4 | I40: 0.2 | J40: 0.08 | K40: 0.4 | L40: 0 | M40: 0 | N40: 0 | O40: 0 | P40: 0.4 | Q40: nu
C41: Coupe-ongles | D41: 4 | E41: 1 | F41: coupe-ongle | G41: 5 | H41: 0.2 | I41: 10 | J41: 2 | K41: 10 | L41: 0 | M41: 0 | N41: 0 | O41: 0 | P41: 10 | Q41: nu
C42: Seau pour porter l'eau -en plastique, couvercle, 20 litres | D42: 4 | E42: 1 | F42: seau | G42: 3 | H42: 0.3333333333 | I42: 10 | J42: 3.333333333 | K42: 10 | L42: 0 | M42: 0 | N42: 10 | O42: 0 | P42: 0 | Q42: nu
C43: Cruche à eau (avec couvercle) | D43: 4 | E43: 2 | F43: cruche | G43: 3 | H43: 0.6666666667 | I43: 4 | J43: 2.666666667 | K43: 8 | L43: 0 | M43: 0 | N43: 8 | O43: 0 | P43: 0 | Q43: nu
C44: Petit bol en métal | D44: 4 | E44: 2 | F44: bol | G44: 5 | H44: 0.4 | I44: 0.5 | J44: 0.2 | K44: 1 | L44: 0 | M44: 0 | N44: 0 | O44: 0 | P44: 1 | Q44: nu
C45: Thermomètre électronique | D45: 2 | E45: 1 | F45: thermomètre | G45: 5 | H45: 0.2 | I45: 5 | J45: 1 | K45: 5 | L45: 0 | M45: 0 | N45: 0 | O45: 0 | P45: 5 | Q45: nu
C46: Balance enfant avec gradation 100 g | D46: 1 | E46: 1 | F46: balance | G46: 5 | H46: 0.2 | I46: 150 | J46: 30 | K46: 150 | L46: 0 | M46: 0 | N46: 0 | O46: 0 | P46: 150 | Q46: nu
C47: Balance adulte/balance électronique | D47: 1 | E47: 1 | F47: balance | G47: 5 | H47: 0.2 | I47: 175 | J47: 35 | K47: 175 | L47: 0 | M47: 0 | N47: 0 | O47: 0 | P47: 175 | Q47: nu
C48: Bracelets PB | D48: 20 | E48: 10 | F48: bracelet | G48: 0.5 | H48: 20 | I48: 1.5 | J48: 30 | K48: 15 | L48: 0 | M48: 0 | N48: 0 | O48: 0 | P48: 0 | Q48: nu
C49: Calculatrices | D49: 2 | E49: 1 | F49: calculatrice | G49: 5 | H49: 0.2 | I49: 5 | J49: 1 | K49: 5 | L49: 0 | M49: 0 | N49: 0 | O49: 0 | P49: 5 | Q49: nu
C50: Courbe poids pour taille | D50: 1 | E50: 1 | F50: tableau | G50: 5 | H50: 0.2 | I50: 0 | J50: 0 | K50: 0 | L50: 0 | M50: 0 | N50: 0 | O50: 0 | P50: 0 | Q50: nu
C51: Toises | D51: 1 | E51: 0 | F51: toise | G51: 5 | H51: 0 | J51: 0 | K51: 0 | L51: 0 | M51: 0 | N51: 0 | O51: 0 | P51: 0 | Q51: nu
C52: Ciseaux | D52: 1 | E52: 1 | F52: ciseaux | G52: 5 | H52: 0.2 | I52: 1.5 | J52: 0.3 | K52: 1.5 | L52: 0 | M52: 0 | N52: 0 | O52: 0 | P52: 1.5 | Q52: nu
C53: Agrafeuses et agrafes | D53: 1 | E53: 1 | F53: agrafeuses | G53: 1 | H53: 1 | I53: 5 | J53: 5 | K53: 5 | L53: 5 | M53: 5 | N53: 5 | O53: 5 | P53: 5 | Q53: nu
C54: Gobelet – plastique en orange ( 500 ml) | D54: 2 | E54: 2 | F54: gobelet | G54: 3 | H54: 0.6666666667 | I54: 1 | J54: 0.6666666667 | K54: 2 | L54: 0 | M54: 0 | N54: 2 | O54: 0 | P54: 0 | Q54: nu
C55: Jeu de matériel de communication pour les conseils en santé et en nutrition | D55: 2 | E55: 1 | F55: jeu | G55: 1 | H55: 1 | I55: 20 | J55: 20 | K55: 20 | L55: 20 | M55: 20 | N55: 20 | O55: 20 | P55: 20 | Q55: nu
C56: Aides au travail pour le personnel | D56: 1 | E56: 1 | F56: jeu | G56: 1 | H56: 1 | I56: 30 | J56: 30 | K56: 30 | L56: 30 | M56: 30 | N56: 30 | O56: 30 | P56: 30 | Q56: nu
C57: Exemplaire des directives de la PCMA | D57: 1 | E57: 1 | F57: directive | G57: 3 | H57: 0.3333333333 | I57: 50 | J57: 16.66666667 | K57: 50 | L57: 0 | M57: 0 | N57: 50 | O57: 0 | P57: 0 | Q57: nu
C58: Registre | D58: 1 | E58: 1 | F58: registre | G58: 1 | H58: 1 | I58: 2.5 | J58: 2.5 | K58: 2.5 | L58: 2.5 | M58: 2.5 | N58: 2.5 | O58: 2.5 | P58: 2.5 | Q58: nu
C59: Fiches de rapport mensuel | D59: 12 | E59: 12 | F59: fiche | G59: 1 | H59: 12 | I59: 0.2 | J59: 2.4 | K59: 2.4 | L59: 2.4 | M59: 2.4 | N59: 2.4 | O59: 2.4 | P59: 2.4 | Q59: nu
C60: Fiches de pointage (mensuelles) | D60: 12 | E60: 12 | F60: fiche | G60: 1 | H60: 12 | I60: 0.2 | J60: 2.4 | K60: 2.4 | L60: 2.4 | M60: 2.4 | N60: 2.4 | O60: 2.4 | P60: 2.4 | Q60: nu
C61: Ensemble de tasses et cuillères | D61: 6 | E61: 6 | F61: jeu | G61: 1 | H61: 6 | I61: 2 | J61: 12 | K61: 12 | L61: 12 | M61: 12 | N61: 12 | O61: 12 | P61: 12 | Q61: nu
C62: Toises supplémentaires | D62: 1 | E62: 0 | F62: toise | G62: 5 | H62: =+IF(ISERROR(E62/G62),,E62/G62) -> 0 | J62: =+IF(ISERROR(E62/G62*I62),,E62/G62*I62) -> 0 | K62: =+IF(ISERROR(E62*I62),,E62*I62) -> 0 | L62: =+IF(G62=1,K62,0) -> 0 | M62: =+IF(OR(G62=1,G62=2),K62,0) -> 0 | N62: =+IF(OR(G62=1,G62=3),K62,0) -> 0 | O62: =+IF(OR(G62=1,G62=2,G62=4),K62,0) -> 0 | P62: =+IF(OR(G62=1,G62=5),K62,0) -> 0 | Q62: nu
C63: Articles supplémentaires
H64: =+IF(ISERROR(E64/G64),,E64/G64) -> 0 | J64: =+IF(ISERROR(E64/G64*I64),,E64/G64*I64) -> 0 | K64: =+IF(ISERROR(E64*I64),,E64*I64) -> 0 | L64: =+IF(G64=1,K64,0) -> 0 | M64: =+IF(OR(G64=1,G64=2),K64,0) -> 0 | N64: =+IF(OR(G64=1,G64=3),K64,0) -> 0 | O64: =+IF(OR(G64=1,G64=2,G64=4),K64,0) -> 0 | P64: =+IF(OR(G64=1,G64=5),K64,0) -> 0 | Q64: u
H65: 0 | J65: 0 | K65: 0 | L65: 0 | M65: 0 | N65: 0 | O65: 0 | P65: 0 | Q65: u
H66: 0 | J66: 0 | K66: 0 | L66: 0 | M66: 0 | N66: 0 | O66: 0 | P66: 0 | Q66: u
H67: 0 | J67: 0 | K67: 0 | L67: 0 | M67: 0 | N67: 0 | O67: 0 | P67: 0 | Q67: u
H68: 0 | J68: 0 | K68: 0 | L68: 0 | M68: 0 | N68: 0 | O68: 0 | P68: 0 | Q68: u
H69: 0 | J69: 0 | K69: 0 | L69: 0 | M69: 0 | N69: 0 | O69: 0 | P69: 0 | Q69: u
H70: 0 | J70: 0 | K70: 0 | L70: 0 | M70: 0 | N70: 0 | O70: 0 | P70: 0 | Q70: u
C71: Coût annuel pour les fournitures fixes du site PEC MAS ambulatoire | J71: =+SUM(J33:J70) -> 227.0133333 | K71: =SUM(K33:K70) -> 558.2 | L71: 96.3 | M71: 96.3 | N71: 181.3 | O71: 96.3 | P71: 458.2
C74: Nombre d'ensembles de fournitures pour chaque site PEC MAS hospitalière | F74: 1
I75: =+IF('D1 Données générales'!$H$14="","",'D1 Données générales'!$H$14) -> 2010 | K75: =+IF('D1 Données générales'!$H$14="","",'D1 Données générales'!$H$14) -> 2010 | M75: =+IF('D1 Données générales'!$H$13="","",'D1 Données générales'!$H$13) -> Cedi | N75: =+IF('D1 Données générales'!$H$13="","",'D1 Données générales'!$H$13) -> Cedi | O75: =+IF('D1 Données générales'!$H$13="","",'D1 Données générales'!$H$13) -> Cedi | P75: =+IF('D1 Données générales'!$H$13="","",'D1 Données générales'!$H$13) -> Cedi
A76: Retour en haut | C76: TABLEAU 2. Site PEC MAS hospitalière | I76: Prix par unité | J76: Coût moyen par an | K76: Coûts pour chaque année de la durée du site PEC MAS hospitalière
C77: Fournitures | D77: Nombre RECOMMANDÉ | E77: Nombre EFFECTIF utilisé | F77: Unité | G77: Nombre d'années avant d'être remplacées | H77: Quantité moyenne par an | K77: 1ere année | L77: 2 année | M77: 3e année | N77: 4e année | O77: 5e année | P77: 6e année
C78: Chemise solide pour les fiches de traitement | D78: =+D33 -> 4 | E78: 4 | F78: chemise | G78: =+G33 -> 1 | H78: =+IF(ISERROR(E78/G78),,E78/G78) -> 4 | I78: =+I33 -> 4 | J78: =+IF(ISERROR(E78/G78*I78),,E78/G78*I78) -> 16 | K78: =+IF(ISERROR(E78*I78),,E78*I78) -> 16 | L78: =+IF(G78=1,K78,0) -> 16 | M78: =+IF(OR(G78=1,G78=2),K78,0) -> 16 | N78: =+IF(OR(G78=1,G78=3),K78,0) -> 16 | O78: =+IF(OR(G78=1,G78=2,G78=4),K78,0) -> 16 | P78: =+IF(OR(G78=1,G78=5),K78,0) -> 16 | Q78: u
C79: Petit réveil ou montre avec deux aiguilles | D79: =+D34 -> 2 | E79: 1 | F79: réveil | G79: 3 | H79: 0.3333333333 | I79: =+I34 -> 15 | J79: 5 | K79: 15 | L79: 0 | M79: 0 | N79: 15 | O79: 0 | P79: 0 | Q79: u
C80: Seau – plastique, gradué, couvercle, 8,5 litres | D80: 2 | E80: 1 | F80: seau | G80: 5 | H80: 0.2 | I80: 6 | J80: 1.2 | K80: 6 | L80: 0 | M80: 0 | N80: 0 | O80: 0 | P80: 6 | Q80: u
C81: Cruche – transparente en plastique, graduée, 1 litre | D81: 2 | E81: 2 | F81: cruche | G81: 5 | H81: 0.4 | I81: 3 | J81: 1.2 | K81: 6 | L81: 0 | M81: 0 | N81: 0 | O81: 0 | P81: 6 | Q81: u
C82: Feutres (encre inélébile) | D82: 12 | E82: 1 | F82: feutre | G82: 1 | H82: 1 | I82: 2 | J82: 2 | K82: 2 | L82: 2 | M82: 2 | N82: 2 | O82: 2 | P82: 2 | Q82: u
C83: Carnet | D83: 4 | E83: 1 | F83: carnet | G83: 1 | H83: 1 | I83: 4 | J83: 4 | K83: 4 | L83: 4 | M83: 4 | N83: 4 | O83: 4 | P83: 4 | Q83: u
C84: Cuillères en métal | D84: 4 | E84: 2 | F84: cuillère | G84: 5 | H84: 0.4 | I84: 1 | J84: 0.4 | K84: 2 | L84: 0 | M84: 0 | N84: 0 | O84: 0 | P84: 2 | Q84: u
C85: Petites cuillères | D85: 12 | E85: 2 | F85: cuillère | G85: 5 | H85: 0.4 | I85: 0.2 | J85: 0.08 | K85: 0.4 | L85: 0 | M85: 0 | N85: 0 | O85: 0 | P85: 0.4 | Q85: u
C86: Coupe-ongles | D86: 4 | E86: 1 | F86: coupe-ongle | G86: 5 | H86: 0.2 | I86: 10 | J86: 2 | K86: 10 | L86: 0 | M86: 0 | N86: 0 | O86: 0 | P86: 10 | Q86: u
C87: Seau pour porter l'eau -en plastique, couvercle, 20 litres | D87: 4 | E87: 1 | F87: seau | G87: 3 | H87: 0.3333333333 | I87: 10 | J87: 3.333333333 | K87: 10 | L87: 0 | M87: 0 | N87: 10 | O87: 0 | P87: 0 | Q87: u
C88: Cruche à eau (avec couvercle) | D88: 4 | E88: 2 | F88: cruche | G88: 3 | H88: 0.6666666667 | I88: 4 | J88: 2.666666667 | K88: 8 | L88: 0 | M88: 0 | N88: 8 | O88: 0 | P88: 0 | Q88: u
C89: Petit bol en métal | D89: 4 | E89: 2 | F89: bol | G89: 5 | H89: 0.4 | I89: 0.5 | J89: 0.2 | K89: 1 | L89: 0 | M89: 0 | N89: 0 | O89: 0 | P89: 1 | Q89: u
C90: Thermomètre - électronique | D90: 2 | E90: 1 | F90: thermomètre | G90: 5 | H90: 0.2 | I90: 5 | J90: 1 | K90: 5 | L90: 0 | M90: 0 | N90: 0 | O90: 0 | P90: 5 | Q90: u
C91: Balance enfant avec graduation 100 grammes | D91: 1 | E91: 1 | F91: balance | G91: 5 | H91: 0.2 | I91: 150 | J91: 30 | K91: 150 | L91: 0 | M91: 0 | N91: 0 | O91: 0 | P91: 150 | Q91: u
C92: Balance adulte/électronique | D92: 1 | E92: 1 | F92: balance | G92: 5 | H92: 0.2 | I92: 175 | J92: 35 | K92: 175 | L92: 0 | M92: 0 | N92: 0 | O92: 0 | P92: 175 | Q92: u
C93: Bracelets PB | D93: =+D48 -> 20 | E93: 10 | F93: bracelet | G93: =+G48 -> 0.5 | H93: 20 | I93: =+I48 -> 1.5 | J93: 30 | K93: 15 | L93: 0 | M93: 0 | N93: 0 | O93: 0 | P93: 0 | Q93: u
C94: Calculatrices | D94: 2 | E94: 1 | F94: calculatrice | G94: 5 | H94: 0.2 | I94: =+I49 -> 5 | J94: 1 | K94: 5 | L94: 0 | M94: 0 | N94: 0 | O94: 0 | P94: 5 | Q94: u
C95: Courbe poids pour taille | D95: 1 | E95: 1 | F95: tableau | G95: 5 | H95: 0.2 | I95: 0 | J95: 0 | K95: 0 | L95: 0 | M95: 0 | N95: 0 | O95: 0 | P95: 0 | Q95: u
C96: Toises | D96: 1 | E96: 0 | F96: toise | G96: 5 | H96: 0 | I96: 0 | J96: 0 | K96: 0 | L96: 0 | M96: 0 | N96: 0 | O96: 0 | P96: 0 | Q96: u
C97: Ciseaux | D97: 1 | E97: 1 | F97: ciseaux | G97: 5 | H97: 0.2 | I97: 1.5 | J97: 0.3 | K97: 1.5 | L97: 0 | M97: 0 | N97: 0 | O97: 0 | P97: 1.5 | Q97: u
C98: Agrafeuses et agrafes | D98: 1 | E98: 1 | F98: agrafeuse | G98: 1 | H98: 1 | I98: 5 | J98: 5 | K98: 5 | L98: 5 | M98: 5 | N98: 5 | O98: 5 | P98: 5 | Q98: u
C99: Gobelet – orange en plastique (500 ml) | D99: 2 | E99: 2 | F99: gobelet | G99: 3 | H99: 0.6666666667 | I99: 1 | J99: 0.6666666667 | K99: 2 | L99: 0 | M99: 0 | N99: 2 | O99: 0 | P99: 0 | Q99: u
C100: Jeu de matériel de communication pour les conseils en santé et nutrition | D100: 2 | E100: 1 | F100: jeu | G100: 1 | H100: 1 | I100: 20 | J100: 20 | K100: 20 | L100: 20 | M100: 20 | N100: 20 | O100: 20 | P100: 20 | Q100: u
C101: Aides au travail pour le personnel | D101: 1 | E101: 1 | F101: jeu | G101: 1 | H101: 1 | I101: 30 | J101: 30 | K101: 30 | L101: 30 | M101: 30 | N101: 30 | O101: 30 | P101: 30 | Q101: u
C102: Exemplaire des directives de la PCMA | D102: 1 | E102: 1 | F102: directive | G102: 3 | H102: 0.3333333333 | I102: 50 | J102: 16.66666667 | K102: 50 | L102: 0 | M102: 0 | N102: 50 | O102: 0 | P102: 0 | Q102: u
C103: Registres | D103: 1 | E103: 1 | F103: registre | G103: 1 | H103: 1 | I103: 2.5 | J103: 2.5 | K103: 2.5 | L103: 2.5 | M103: 2.5 | N103: 2.5 | O103: 2.5 | P103: 2.5 | Q103: u
C104: Fiches de rapport mensuel | D104: 12 | E104: 12 | F104: fiche | G104: 1 | H104: 12 | I104: 0.2 | J104: 2.4 | K104: 2.4 | L104: 2.4 | M104: 2.4 | N104: 2.4 | O104: 2.4 | P104: 2.4 | Q104: u
C105: Fiches de pointage (mensuelles) | D105: 12 | E105: 12 | F105: fiche | G105: 1 | H105: 12 | I105: 0.2 | J105: 2.4 | K105: 2.4 | L105: 2.4 | M105: 2.4 | N105: 2.4 | O105: 2.4 | P105: 2.4 | Q105: u
C106: Ensemble de tasses et cuillères | D106: 6 | E106: 6 | F106: jeu | G106: 1 | H106: 6 | I106: 2 | J106: 12 | K106: 12 | L106: 12 | M106: 12 | N106: 12 | O106: 12 | P106: 12 | Q106: u
C107: Pèse-bébé avec graduation 10 grammes | D107: 1 | E107: 1 | F107: balance | G107: 3 | H107: 0.3333333333 | I107: 193 | J107: =+IF(ISERROR(E107/G107*I107),,E107/G107*I107) -> 64.33333333 | K107: =+IF(ISERROR(E107*I107),,E107*I107) -> 193 | L107: =+IF(G107=1,K107,0) -> 0 | M107: =+IF(OR(G107=1,G107=2),K107,0) -> 0 | N107: =+IF(OR(G107=1,G107=3),K107,0) -> 193 | O107: =+IF(OR(G107=1,G107=2,G107=4),K107,0) -> 0 | P107: =+IF(OR(G107=1,G107=5),K107,0) -> 0 | Q107: nu
C108: Pèse-aliment (jusqu'à 10 kg) pour peser le lait en poudre | D108: 1 | E108: 1 | F108: balance | G108: 3 | H108: 0.3333333333 | I108: 50 | J108: 16.66666667 | K108: 50 | L108: 0 | M108: 0 | N108: 50 | O108: 0 | P108: 0 | Q108: nu
C109: Articles supplémentaires
H110: =+IF(ISERROR(E110/G110),,E110/G110) -> 0 | J110: =+IF(ISERROR(E110/G110*I110),,E110/G110*I110) -> 0 | K110: =+IF(ISERROR(E110*I110),,E110*I110) -> 0 | L110: =+IF(G110=1,K110,0) -> 0 | M110: =+IF(OR(G110=1,G110=2),K110,0) -> 0 | N110: =+IF(OR(G110=1,G110=3),K110,0) -> 0 | O110: =+IF(OR(G110=1,G110=2,G110=4),K110,0) -> 0 | P110: =+IF(OR(G110=1,G110=5),K110,0) -> 0 | Q110: u
H111: 0 | J111: 0 | K111: 0 | L111: 0 | M111: 0 | N111: 0 | O111: 0 | P111: 0 | Q111: u
H112: 0 | J112: 0 | K112: 0 | L112: 0 | M112: 0 | N112: 0 | O112: 0 | P112: 0 | Q112: u
H113: 0 | J113: 0 | K113: 0 | L113: 0 | M113: 0 | N113: 0 | O113: 0 | P113: 0 | Q113: u
H114: 0 | J114: 0 | K114: 0 | L114: 0 | M114: 0 | N114: 0 | O114: 0 | P114: 0 | Q114: u
H115: 0 | J115: 0 | K115: 0 | L115: 0 | M115: 0 | N115: 0 | O115: 0 | P115: 0 | Q115: u
H116: 0 | J116: 0 | K116: 0 | L116: 0 | M116: 0 | N116: 0 | O116: 0 | P116: 0 | Q116: u
H117: 0 | J117: 0 | K117: 0 | L117: 0 | M117: 0 | N117: 0 | O117: 0 | P117: 0 | Q117: u
H118: 0 | J118: 0 | K118: 0 | L118: 0 | M118: 0 | N118: 0 | O118: 0 | P118: 0 | Q118: u
H119: 0 | J119: 0 | K119: 0 | L119: 0 | M119: 0 | N119: 0 | O119: 0 | P119: 0 | Q119: u
H120: 0 | J120: 0 | K120: 0 | L120: 0 | M120: 0 | N120: 0 | O120: 0 | P120: 0 | Q120: u
C121: Coût annuel pour les fournitures fixes du site PEC MAS hospitalière | J121: =+SUM(J78:J120) -> 308.0133333 | K121: =SUM(K78:K120) -> 801.2 | L121: 96.3 | M121: 96.3 | N121: 424.3 | O121: 96.3 | P121: 458.2

Sheet D7 Fréquence des livraisons
A2: Retour au sommaire | C2: D7: Fréquence des livraisons de l'aliment thérapeutique
B4: Effacez dans cette Feuille toute donnée entrée d'une application précédente de cet Outil en pressant sur ce bouton…
B7: Les données que vous avez indiquées dans la Feuille de calcul D1 (sur le nombre de zones et de groupes-zones ainsi que le nombre d'années budgétisées) vont générér le tableau de taille appropriée dans la présente Feuille de calcul (D7). Il vous faut donc remplir d'abord la Feuille D1 avant d'essayer de remplir la présente Feuille de calcul.
B9: NOTER dans les cellules en or indiquées par u dans ces tableaux le nombre annuel de livraisons de l'ATPE (et autres aliments thérapeutiques) pour chacune des années que vous avez budgétisée :
B11: 1 | C11: Livraisons du niveau central aux groupes-zones participantes.
B13: 2 | C13: Livraisons au siège de zone et du siège de zone aux sites PEC MAS ambulatoire et sites PEC MAS hospitalière.
A15: hide this row | C15: number of years to budget for | D15: =+'D1 Données générales'!G26 -> 1
A16: hide this row | C16: Number of areas | D16: =+'D1 Données générales'!G31 -> 1
A17: hide this row | C17: Years starting | D17: =+'D1 Données générales'!G28 -> 2011
A18: hide this row | C18: Number of Group-Areas | D18: =+'D1 Données générales'!G33 -> 1
C20: =+IF('D1 Données générales'!$H$11="","",'D1 Données générales'!$H$11) -> Ghana
B21: Nombre de livraisons de l'aliment thérapeutique chaque année : | E21: Année du service/programme de la PCMA
E22: =+D17 -> 2011 | F22: =+D17+1 -> 2012 | G22: =+D17+2 -> 2013 | H22: =+D17+3 -> 2014 | I22: =+D17+4 -> 2015
C23: 1) du niveau central aux sièges des groupes-zones suivants :
D25: =+IF('D1 Données générales'!G36="","",'D1 Données générales'!G36) -> Greater Accra | E25: 4 | J25: u
D26: =+IF('D1 Données générales'!G37="","",'D1 Données générales'!G37) ->  | J26: u
D27: =+IF('D1 Données générales'!G38="","",'D1 Données générales'!G38) ->  | J27: u
D28: =+IF('D1 Données générales'!G39="","",'D1 Données générales'!G39) ->  | J28: u
D29: =+IF('D1 Données générales'!G40="","",'D1 Données générales'!G40) ->  | J29: u
D30: =+IF('D1 Données générales'!G41="","",'D1 Données générales'!G41) ->  | J30: u
D31: =+IF('D1 Données générales'!G42="","",'D1 Données générales'!G42) ->  | J31: u
D32: =+IF('D1 Données générales'!G43="","",'D1 Données générales'!G43) ->  | J32: u
C34: 2) à destination et en provenance des zones suivantes :
B36: Zone 1 | C36: =+IF('D2 Echelle'!C31="","",'D2 Echelle'!C31) -> Ashiedu Keteke | D36: =+IF('D2 Echelle'!D31="","",'D2 Echelle'!D31) -> Greater Accra
C37: - Siège groupe-zones au siège de cette zone | E37: 6 | J37: u
C38: - Siège groupe-zones au siège de cette zone | E38: 6 | J38: u
C39: - Siège groupe-zones au siège de cette zone | E39: 6 | J39: u
B40: Zone 2 | C40: =+IF('D2 Echelle'!C36="","",'D2 Echelle'!C36) ->  | D40: =+IF('D2 Echelle'!D36="","",'D2 Echelle'!D36) -> 
C41: - Siège groupe-zones au siège de cette zone | J41: u
C42: - Siège de cette zone à chaque site PEC MAS ambulatoire dans cette zone (moyenne) | J42: u
C43: - Siège de cette zone à chaque site PEC MAS hospitalière dans cette zone (moyenne) | J43: u
B44: Zone 3 | C44: =+IF('D2 Echelle'!C41="","",'D2 Echelle'!C41) ->  | D44: =+IF('D2 Echelle'!D41="","",'D2 Echelle'!D41) -> 
C45: - Siège groupe-zones au siège de cette zone | J45: u
C46: - Siège de cette zone à chaque site PEC MAS ambulatoire dans cette zone (moyenne) | J46: u
C47: - Siège de cette zone à chaque site PEC MAS hospitalière dans cette zone (moyenne) | J47: u
B48: Zone 4 | C48: =+IF('D2 Echelle'!C46="","",'D2 Echelle'!C46) ->  | D48: =+IF('D2 Echelle'!D46="","",'D2 Echelle'!D46) -> 
C49: - Siège groupe-zones au siège de cette zone | J49: u
C50: - Siège de cette zone à chaque site PEC MAS ambulatoire dans cette zone (moyenne) | J50: u
C51: - Siège de cette zone à chaque site PEC MAS hospitalière dans cette zone (moyenne) | J51: u
B52: Zone 5 | C52: =+IF('D2 Echelle'!C51="","",'D2 Echelle'!C51) ->  | D52: =+IF('D2 Echelle'!D51="","",'D2 Echelle'!D51) -> 
C53: - Siège groupe-zones au siège de cette zone | J53: u
C54: - Siège de cette zone à chaque site PEC MAS ambulatoire dans cette zone (moyenne) | J54: u
C55: - Siège de cette zone à chaque site PEC MAS hospitalière dans cette zone (moyenne) | J55: u
B56: Zone 6 | C56: =+IF('D2 Echelle'!C56="","",'D2 Echelle'!C56) ->  | D56: =+IF('D2 Echelle'!D56="","",'D2 Echelle'!D56) -> 
C57: - Siège groupe-zones au siège de cette zone | J57: u
C58: - Siège de cette zone à chaque site PEC MAS ambulatoire dans cette zone (moyenne) | J58: u
C59: - Siège de cette zone à chaque site PEC MAS hospitalière dans cette zone (moyenne) | J59: u
B60: Zone 7 | C60: =+IF('D2 Echelle'!C61="","",'D2 Echelle'!C61) ->  | D60: =+IF('D2 Echelle'!D61="","",'D2 Echelle'!D61) -> 
C61: - Siège groupe-zones au siège de cette zone | J61: u
C62: - Siège de cette zone à chaque site PEC MAS ambulatoire dans cette zone (moyenne) | J62: u
C63: - Siège de cette zone à chaque site PEC MAS hospitalière dans cette zone (moyenne) | J63: u
B64: Zone 8 | C64: =+IF('D2 Echelle'!C66="","",'D2 Echelle'!C66) ->  | D64: =+IF('D2 Echelle'!D66="","",'D2 Echelle'!D66) -> 
C65: - Siège groupe-zones au siège de cette zone | J65: u
C66: - Siège de cette zone à chaque site PEC MAS ambulatoire dans cette zone (moyenne) | J66: u
C67: - Siège de cette zone à chaque site PEC MAS hospitalière dans cette zone (moyenne) | J67: u
B68: Zone 9 | C68: =+IF('D2 Echelle'!C71="","",'D2 Echelle'!C71) ->  | D68: =+IF('D2 Echelle'!D71="","",'D2 Echelle'!D71) -> 
C69: - Siège groupe-zones au siège de cette zone | J69: u
C70: - Siège de cette zone à chaque site PEC MAS ambulatoire dans cette zone (moyenne) | J70: u
C71: - Siège de cette zone à chaque site PEC MAS hospitalière dans cette zone (moyenne) | J71: u
B72: Zone 10 | C72: =+IF('D2 Echelle'!C76="","",'D2 Echelle'!C76) ->  | D72: =+IF('D2 Echelle'!D76="","",'D2 Echelle'!D76) -> 
C73: - Siège groupe-zones au siège de cette zone | J73: u
C74: - Siège de cette zone à chaque site PEC MAS ambulatoire dans cette zone (moyenne) | J74: u
C75: - Siège de cette zone à chaque site PEC MAS hospitalière dans cette zone (moyenne) | J75: u

Sheet D8 Statistiques
A2: Retoure au sommaire | C2: D8: Statistiques au niveau groupe-zones et au niveau central
C5: Effacez dans cette feuille toute donnée entrée d'une application précédente de cet Outil en pressant sur ce bouton ………..
B8: 1 | C8: COMPLÉTER les variables dans le Tableau ci-après qui demandent des données de l'utilisateur (cellules en or indiquées par u).
B10: 2 | C10: (Facultatif). REVOIR les valeurs fixées par l'Outil (cellules en vert foncé indiquées par n). Lire la Section 4 du Guide de l'utilisateur pour une discussion sur ces valeurs. Si elles ne conviennent pas dans votre situation, ôtez la protection de la Feuille de calcul, procédez aux changements adéquats dans les cellules vert foncé et remettez la protection de la Feuille de calcull.
B12: 3 | C12: (Facultatif). REVOIR les hypothèses pour les quelques variables dont les valeurs se rapportant au premier groupe-zones s'appliquent également aux autres groupes-zones. Si les hypothèses ne sont pas valides, ôtez la protection de la Feuille, procédez aux changements adéquats dans les cellules en vert clair ou en jaune et remettez la protection de la Feuille.
A16: hide this row | C16: Number of Group-Areas | D16: =+'D1 Données générales'!G33 -> 1
C17: EPT = Equivalent temps plein
C19: =+IF('D1 Données générales'!$H$11="","",'D1 Données générales'!$H$11) -> Ghana
C21: Variables | D21: Unité | E21: Commentaires | F21: Niveau central | G21: Group-zones …
G22: =+IF('D1 Données générales'!$G$36="","",'D1 Données générales'!$G$36) -> Greater Accra | H22: =+IF('D1 Données générales'!$G$37="","",'D1 Données générales'!$G$37) ->  | I22: =+IF('D1 Données générales'!$G$38="","",'D1 Données générales'!$G$38) ->  | J22: =+IF('D1 Données générales'!$G$39="","",'D1 Données générales'!$G$39) ->  | K22: =+IF('D1 Données générales'!$G$40="","",'D1 Données générales'!$G$40) ->  | L22: =+IF('D1 Données générales'!$G$41="","",'D1 Données générales'!$G$41) ->  | M22: =+IF('D1 Données générales'!$G$42="","",'D1 Données générales'!$G$42) ->  | N22: =+IF('D1 Données générales'!$G$43="","",'D1 Données générales'!$G$43) -> 
C23: Formation du personnel du siège du groupe-zones
C24: Nombre de personnel à former de chaque nouveau groupe-zones. | D24: personnel | E24: Personnel niveau intermédiaire | G24: 2 | H24: =IF('D1 Données générales'!$G$33<2,,+G24) -> 0 | I24: =IF('D1 Données générales'!$G$33<3,,+G24) -> 0 | J24: =IF('D1 Données générales'!$G$33<4,,+G24) -> 0 | K24: =IF('D1 Données générales'!$G$33<5,,+G24) -> 0 | L24: =IF('D1 Données générales'!$G$33<6,,+G24) -> 0 | M24: =IF('D1 Données générales'!$G$33<7,,+G24) -> 0 | N24: =IF('D1 Données générales'!$G$33<8,,+G24) -> 0 | O24: n
C25: Nombre de personnel à recycler de chaque groupe-zones établi. | D25: personnel | E25: Personnel niveau intermédiaire | G25: 2 | H25: =IF('D1 Données générales'!$G$33<2,,+$G$25) -> 0 | I25: =IF('D1 Données générales'!$G$33<3,,+$G$25) -> 0 | J25: =IF('D1 Données générales'!$G$33<4,,+$G$25) -> 0 | K25: =IF('D1 Données générales'!$G$33<5,,+G25) -> 0 | L25: =IF('D1 Données générales'!$G$33<6,,+G25) -> 0 | M25: =IF('D1 Données générales'!$G$33<7,,+G25) -> 0 | N25: =IF('D1 Données générales'!$G$33<8,,+G25) -> 0 | O25: n
C26: Durée de la formation du personnel de chaque nouveau groupe-zones (formation des formateurs). | D26: jours | G26: 10 | H26: =IF('D1 Données générales'!$G$33<2,,+$G$26) -> 0 | I26: =IF('D1 Données générales'!$G$33<3,,+$G$26) -> 0 | J26: =IF('D1 Données générales'!$G$33<4,,+$G$26) -> 0 | K26: =IF('D1 Données générales'!$G$33<5,,+G26) -> 0 | L26: =IF('D1 Données générales'!$G$33<6,,+G26) -> 0 | M26: =IF('D1 Données générales'!$G$33<7,,+G26) -> 0 | N26: =IF('D1 Données générales'!$G$33<8,,+G26) -> 0 | O26: n
C27: Durée de la formation du personnel du groupe-zones établi. | D27: jours | G27: 2 | H27: =IF('D1 Données générales'!$G$33<2,,+$G$27) -> 0 | I27: =IF('D1 Données générales'!$G$33<3,,+$G$27) -> 0 | J27: =IF('D1 Données générales'!$G$33<4,,+$G$27) -> 0 | K27: =IF('D1 Données générales'!$G$33<5,,+G27) -> 0 | L27: =IF('D1 Données générales'!$G$33<6,,+G27) -> 0 | M27: =IF('D1 Données générales'!$G$33<7,,+G27) -> 0 | N27: =IF('D1 Données générales'!$G$33<8,,+G27) -> 0 | O27: n
C28: Taille maximum des classes du personnel du groupe-zones participant à la formation. | D28: participants | E28: 15 - 25 est une taille de classe raisonnable | G28: 20 | H28: =IF('D1 Données générales'!$G$33<2,,+$G$28) -> 0 | I28: =IF('D1 Données générales'!$G$33<3,,+$G$28) -> 0 | J28: =IF('D1 Données générales'!$G$33<4,,+$G$28) -> 0 | K28: =IF('D1 Données générales'!$G$33<5,,+G28) -> 0 | L28: =IF('D1 Données générales'!$G$33<6,,+G28) -> 0 | M28: =IF('D1 Données générales'!$G$33<7,,+G28) -> 0 | N28: =IF('D1 Données générales'!$G$33<8,,+G28) -> 0 | O28: n
C29: Pour la formation de plus d'une journée, est-ce que les participants du groupe-zones restent pendant la nuit au siège central ou s'y déplacent tous les jours ? | F29: restent la nuit | O29: u
C30: Formation des animateurs de la PCMA
C31: Nombre du personnel de la PCMA formé dans chaque nouveau groupe-zones pour devenir des formateurs (à savoir, formateurs d'autres personnels). | D31: personnel | E31: Cette formation est donnée la première année qu'un groupe-zones est fonctionnel. Un minimum de trois agents PEC MAS hospitalière doivent être formés dans chaque groupe-zones. | G31: 8 | H31: =IF('D1 Données générales'!$G$33<2,,+$G$31) -> 0 | I31: =IF('D1 Données générales'!$G$33<3,,+$G$31) -> 0 | J31: =IF('D1 Données générales'!$G$33<4,,+$G$31) -> 0 | K31: =IF('D1 Données générales'!$G$33<5,,+G31) -> 0 | L31: =IF('D1 Données générales'!$G$33<6,,+G31) -> 0 | M31: =IF('D1 Données générales'!$G$33<7,,+G31) -> 0 | N31: =IF('D1 Données générales'!$G$33<8,,+G31) -> 0 | O31: u
C32: Nombre de jours de formation des formateurs de la PCMA . | D32: jours | G32: 4 | H32: =IF('D1 Données générales'!$G$33<2,,+$G$32) -> 0 | I32: =IF('D1 Données générales'!$G$33<3,,+$G$32) -> 0 | J32: =IF('D1 Données générales'!$G$33<4,,+$G$32) -> 0 | K32: =IF('D1 Données générales'!$G$33<5,,+G32) -> 0 | L32: =IF('D1 Données générales'!$G$33<6,,+G32) -> 0 | M32: =IF('D1 Données générales'!$G$33<7,,+G32) -> 0 | N32: =IF('D1 Données générales'!$G$33<8,,+G32) -> 0 | O32: n
C33: Logistique de l'approvisionnement
C34: Distance du siège central au siège du groupe-zones | D34: km | G34: 5 | O34: u
C35: Temps de conduite du siège central au siège du groupe-zones | D35: hours | G35: 0.25 | O35: u
C36: Taille des véhicules transportant l'aliment thérapeutique du siège central aux magasins du groupe-zones. | D36: m3 | G36: 15 | O36: u
C37: Espace pour stocker l'aliment thérapeutique au magasin du groupe-zones. | D37: m3 | G37: 50 | O37: u
C38: Gestion des zones par les groupes-zones.
C39: Temps nécessaire du siège du groupe-zones pour mettre en place la PCMA dans un groupe-zones où la PCMA est nouvelle (plaidoyer, développement de systèmes, budgétisation ) par an. | D39: jours | E39: Personnel senior | G39: 20 | H39: =IF('D1 Données générales'!$G$33<2,,+$G$39) -> 0 | I39: =IF('D1 Données générales'!$G$33<3,,+$G$39) -> 0 | J39: =IF('D1 Données générales'!$G$33<4,,+$G$39) -> 0 | K39: =IF('D1 Données générales'!$G$33<5,,+G39) -> 0 | L39: =IF('D1 Données générales'!$G$33<6,,+G39) -> 0 | M39: =IF('D1 Données générales'!$G$33<7,,+G39) -> 0 | N39: =IF('D1 Données générales'!$G$33<8,,+G39) -> 0 | O39: n
C40: Temps nécessaire du siège du groupe-zones pour mettre en place la PCMA dans un groupe-zones où la PCMA est nouvelle (plaidoyer, développement de systèmes, budgétisation ) par an. | D40: jours | E40: Personnel niveau intermédiaire | G40: 20 | H40: =IF('D1 Données générales'!$G$33<2,,+$G$40) -> 0 | I40: =IF('D1 Données générales'!$G$33<3,,+$G$40) -> 0 | J40: =IF('D1 Données générales'!$G$33<4,,+$G$40) -> 0 | K40: =IF('D1 Données générales'!$G$33<5,,+G40) -> 0 | L40: =IF('D1 Données générales'!$G$33<6,,+G40) -> 0 | M40: =IF('D1 Données générales'!$G$33<7,,+G40) -> 0 | N40: =IF('D1 Données générales'!$G$33<8,,+G40) -> 0 | O40: n
C41: Temps nécessaire du gestionnaire niveau intermédiaire du groupe-zones (système logistique, résolution de problèmes, suivi et de rapport)
C42: Pour chaque nouvelle zone (par an) | D42: jours | E42: Personnel niveau intermédiaire | G42: 20 | H42: =IF('D1 Données générales'!$G$33<2,,+$G$42) -> 0 | I42: =IF('D1 Données générales'!$G$33<3,,+$G$42) -> 0 | J42: =IF('D1 Données générales'!$G$33<4,,+$G$42) -> 0 | K42: =IF('D1 Données générales'!$G$33<5,,+G42) -> 0 | L42: =IF('D1 Données générales'!$G$33<6,,+G42) -> 0 | M42: =IF('D1 Données générales'!$G$33<7,,+G42) -> 0 | N42: =IF('D1 Données générales'!$G$33<8,,+G42) -> 0 | O42: n
C43: Pour chaque zone établie (par an) | D43: jours | E43: Personnel niveau intermédiaire | G43: 5 | H43: =IF('D1 Données générales'!$G$33<2,,+$G$43) -> 0 | I43: =IF('D1 Données générales'!$G$33<3,,+$G$43) -> 0 | J43: =IF('D1 Données générales'!$G$33<4,,+$G$43) -> 0 | K43: =IF('D1 Données générales'!$G$33<5,,+G43) -> 0 | L43: =IF('D1 Données générales'!$G$33<6,,+G43) -> 0 | M43: =IF('D1 Données générales'!$G$33<7,,+G43) -> 0 | N43: =IF('D1 Données générales'!$G$33<8,,+G43) -> 0 | O43: n
C44: Niveau central - Gestion régulière
C45: Temps nécessaire par an pour le plaidoyer, la planification, la gestion financière et l'obtention du financement, activités indépendantes en grande partie selon la taille et ou le caractère nouveau des groupes-zones. | D45: EPT | E45: Personnel niveau intermédiaire | F45: 0.5 | O45: n
C46: Temps nécessaire pour la logistique, la résolution de problèmes, suivi et rapport, la gestion des groupes-zones individuels.
C47: Pour chaque groupe-zones établi pa an | D47: semaines | E47: Personnel niveau intermédiaire | F47: 5 | O47: n
C48: Pour chaque nouveau groupe-zones par an | D48: semaines | E48: Personnel niveau intermédiaire | F48: 20 | O48: n
C49: Déplacement aux zones
C50: Pour chaque groupe-zones établi par an | D50: visites | E50: Personnel niveau intermédiaire | F50: 1 | O50: n
C51: Pour chaque nouveau groupe-zones par an | D51: visites | E51: Personnel niveau intermédiaire | F51: 4 | O51: n
C52: Niveau central - Etablir la PCMA
C53: Pour la première année uniquement de la PCMA dans le pays, le temps nécessaire au niveau central pour mettre au point des directives, aides de travail, matériels et plans de formation, outils de gestion, le système logistique, le système de suivi et de rapport, et les contacts avec les politiques et les bailleurs de fonds. | D53: EPT | E53: Personnel senior | F53: 1 | O53: n
C54: Idem | D54: EPT | E54: Personnel niveau intermédiaire | F54: 1 | O54: n

Sheet D9 Variables temps
A2: Retour au sommaire | C2: D9: Variables changeantes dans le temps
A4: to be hidden | B4: Number of years you wish to budget for | D4: =+'D1 Données générales'!G26 -> 1 | E4: (taken from Feuille de travail D2)
A5: to be hidden | C5: Number of Areas included in the study | D5: =+'D1 Données générales'!G31 -> 1 | E5: (taken from Feuille de travail 2)
A6: to be hidden | C6: Necessary when made adjustment to W" Scope and introduced an extra pre-budget year (to void having to re-write all formulas in this and other tables) | G6: =+I10+1 -> 2 | H6: i.e. | I6: =+C22 -> 2011
B8: Seule une valeur est entrée par l'Utilisateur dans cette Feuille de calcul. Le reste de la Feuille de calcul note les valeurs (pour l'année choisie) des variables clés qui changent dans le temps.
B10: 1 | C10: CHOISIR l'année pour laquelle sera faite l'analyse. (Cela peut être n'importe quel nombre à partir de '1' jusqu'au nombre total d'années budgétisées -voir Feuille de calcul D1). | I10: 1 | J10: u
B12: 2 | C12: VÉRIFIER les lignes 26, 27, 28 et les cellules F50 à F57, elles sont formatées pour mettre en valeur avec un cadre en rouge toute zone ou groupe-zones où l'aliment thérapeutique est livré à une fréquence trop faible étant donné l'espace disponible en stockage et en véhicules. Il faut envisager d'augmenter la fréquence des livraisons dans ces zones (dans feuille de calcul D7) ou changer la taille des véhicules ou l'espace de stockage (feuilles D3 et D8) et relancer l'analyse.
B14: 3 | C14: SAUVEGARDER un exemplaire de l'Outil de calcul des coûts de la PCMA (étiquetée avec l'année utilisée pour exploiter l'outil).
C15: .
B16: 4 | C16: CHOISIR une autre année et refaire l'analyse. Le faire pour chacune des années pour lesquelles le budget est établi.
C21: =+IF('D1 Données générales'!$H$11="","",'D1 Données générales'!$H$11) -> Ghana
C22: =+IF('D2 Echelle'!I11-1+'D9 Variables temps'!I10=0,"",'D2 Echelle'!I11-1+'D9 Variables temps'!I10) -> 2011 | F22: Zone 1 | J22: Zone 2 | K22: Zone 3 | L22: Zone 4 | M22: Zone 5 | N22: Zone 6 | O22: Zone 7 | P22: Zone 8 | Q22: Zone 9 | R22: Zone 10
E23: ='D2 Echelle'!C30 -> district | F23: =+IF('D2 Echelle'!$C$31="","",'D2 Echelle'!$C$31) -> Ashiedu Keteke | J23: =+IF('D2 Echelle'!$C$36="","",'D2 Echelle'!$C$36) ->  | K23: =+IF('D2 Echelle'!$C$41="","",'D2 Echelle'!$C$41) ->  | L23: =+IF('D2 Echelle'!$C$46="","",'D2 Echelle'!$C$46) ->  | M23: =+IF('D2 Echelle'!$C$51="","",'D2 Echelle'!$C$51) ->  | N23: =+IF('D2 Echelle'!$C$56="","",'D2 Echelle'!$C$56) ->  | O23: =+IF('D2 Echelle'!$C$61="","",'D2 Echelle'!$C$61) ->  | P23: =+IF('D2 Echelle'!$C$66="","",'D2 Echelle'!$C$66) ->  | Q23: =+IF('D2 Echelle'!$C$71="","",'D2 Echelle'!$C$71) ->  | R23: =+IF('D2 Echelle'!$C$76="","",'D2 Echelle'!$C$76) -> 
E24: =+'D2 Echelle'!D30 -> région | F24: =+IF('D2 Echelle'!$D$31="","",'D2 Echelle'!$D$31) -> Greater Accra | J24: =+IF('D2 Echelle'!$D$36="","",'D2 Echelle'!$D$36) ->  | K24: =+IF('D2 Echelle'!$D$41="","",'D2 Echelle'!$D$41) ->  | L24: =+IF('D2 Echelle'!$D$46="","",'D2 Echelle'!$D$46) ->  | M24: =+IF('D2 Echelle'!$D$51="","",'D2 Echelle'!$D$51) ->  | N24: =+IF('D2 Echelle'!$D$56="","",'D2 Echelle'!$D$56) ->  | O24: =+IF('D2 Echelle'!$D$61="","",'D2 Echelle'!$D$61) ->  | P24: =+IF('D2 Echelle'!$D$66="","",'D2 Echelle'!$D$66) ->  | Q24: =+IF('D2 Echelle'!$D$71="","",'D2 Echelle'!$D$71) ->  | R24: =+IF('D2 Echelle'!$D$76="","",'D2 Echelle'!$D$76) -> 
C25: Variables | D25: Unités | E25: Commentaires
C26: Nombre de livraisons de l'aliment thérapeutique du siège du groupe-zones au siège de la zone par an. | D26: livraisons | E26: Bord rouge solide -indique le besoin d'augmenter soit la fréquence (Feuille de calcul D7) ou la taille du véhicule transportant l'aliment sur ce site (Feuille de calcul D3). Bord rouge pointillé - indique le besoin d'augmenter soit la fréquence des livraisons (Feuille de calcul D7) soit la taille du stockage sur ce site (Feuille de calcul D3). | F26: =+OFFSET('D7 Fréquence des livraisons'!D37,0,'D9 Variables temps'!I10,1,1) -> 6 | J26: =+OFFSET('D7 Fréquence des livraisons'!D41,0,'D9 Variables temps'!$I$10,1,1) -> 0 | K26: =+OFFSET('D7 Fréquence des livraisons'!D45,0,'D9 Variables temps'!$I$10,1,1) -> 0 | L26: =+OFFSET('D7 Fréquence des livraisons'!D49,0,'D9 Variables temps'!$I$10,1,1) -> 0 | M26: =+OFFSET('D7 Fréquence des livraisons'!D53,0,'D9 Variables temps'!$I$10,1,1) -> 0 | N26: =+OFFSET('D7 Fréquence des livraisons'!D57,0,'D9 Variables temps'!$I$10,1,1) -> 0 | O26: =+OFFSET('D7 Fréquence des livraisons'!D61,0,'D9 Variables temps'!$I$10,1,1) -> 0 | P26: =+OFFSET('D7 Fréquence des livraisons'!D65,0,'D9 Variables temps'!$I$10,1,1) -> 0 | Q26: =+OFFSET('D7 Fréquence des livraisons'!D69,0,'D9 Variables temps'!$I$10,1,1) -> 0 | R26: =+OFFSET('D7 Fréquence des livraisons'!D73,0,'D9 Variables temps'!$I$10,1,1) -> 0
C27: Nombre de livraisons de l'aliment thérapeutique par an à chaque site PEC MAS ambulatoire du siège de la zone. | D27: livraisons | F27: =+OFFSET('D7 Fréquence des livraisons'!D38,0,'D9 Variables temps'!I10,1,1) -> 6 | J27: =+OFFSET('D7 Fréquence des livraisons'!D42,0,'D9 Variables temps'!I10,1,1) -> 0 | K27: =+OFFSET('D7 Fréquence des livraisons'!D46,0,'D9 Variables temps'!$I$10,1,1) -> 0 | L27: =+OFFSET('D7 Fréquence des livraisons'!D50,0,'D9 Variables temps'!$I$10,1,1) -> 0 | M27: =+OFFSET('D7 Fréquence des livraisons'!D54,0,'D9 Variables temps'!$I$10,1,1) -> 0 | N27: =+OFFSET('D7 Fréquence des livraisons'!D58,0,'D9 Variables temps'!$I$10,1,1) -> 0 | O27: =+OFFSET('D7 Fréquence des livraisons'!D62,0,'D9 Variables temps'!$I$10,1,1) -> 0 | P27: =+OFFSET('D7 Fréquence des livraisons'!D66,0,'D9 Variables temps'!$I$10,1,1) -> 0 | Q27: =+OFFSET('D7 Fréquence des livraisons'!D70,0,'D9 Variables temps'!$I$10,1,1) -> 0 | R27: =+OFFSET('D7 Fréquence des livraisons'!D74,0,'D9 Variables temps'!$I$10,1,1) -> 0
C28: Nombre de livraisons de l'aliment thérapeutique par an à chaque site PEC MAS hospitalière du siège de la zone | D28: livraisons | F28: =+OFFSET('D7 Fréquence des livraisons'!D39,0,'D9 Variables temps'!I10,1,1) -> 6 | J28: =+OFFSET('D7 Fréquence des livraisons'!D43,0,'D9 Variables temps'!I10,1,1) -> 0 | K28: =+OFFSET('D7 Fréquence des livraisons'!D47,0,'D9 Variables temps'!$I$10,1,1) -> 0 | L28: =+OFFSET('D7 Fréquence des livraisons'!D51,0,'D9 Variables temps'!$I$10,1,1) -> 0 | M28: =+OFFSET('D7 Fréquence des livraisons'!D55,0,'D9 Variables temps'!$I$10,1,1) -> 0 | N28: =+OFFSET('D7 Fréquence des livraisons'!D59,0,'D9 Variables temps'!$I$10,1,1) -> 0 | O28: =+OFFSET('D7 Fréquence des livraisons'!D63,0,'D9 Variables temps'!$I$10,1,1) -> 0 | P28: =+OFFSET('D7 Fréquence des livraisons'!D67,0,'D9 Variables temps'!$I$10,1,1) -> 0 | Q28: =+OFFSET('D7 Fréquence des livraisons'!D71,0,'D9 Variables temps'!$I$10,1,1) -> 0 | R28: =+OFFSET('D7 Fréquence des livraisons'!D75,0,'D9 Variables temps'!$I$10,1,1) -> 0
C29: Sites PEC MAS ambulatoire (nombre total) | D29: sites | E29: Feuille de calcul D2 | F29: =+OFFSET('D2 Echelle'!$I$32,0,I10,1,1) -> 2 | J29: =+OFFSET('D2 Echelle'!$I$37,0,'D9 Variables temps'!$G$6-1,1,1) -> 0 | K29: =+OFFSET('D2 Echelle'!$I$42,0,'D9 Variables temps'!$G$6-1,1,1) -> 0 | L29: =+OFFSET('D2 Echelle'!$I$47,0,'D9 Variables temps'!$G$6-1,1,1) -> 0 | M29: =+OFFSET('D2 Echelle'!$I$52,0,'D9 Variables temps'!$G$6-1,1,1) -> 0 | N29: =+OFFSET('D2 Echelle'!$I$57,0,'D9 Variables temps'!$G$6-1,1,1) -> 0 | O29: =+OFFSET('D2 Echelle'!$I$62,0,'D9 Variables temps'!$G$6-1,1,1) -> 0 | P29: =+OFFSET('D2 Echelle'!$I$67,0,'D9 Variables temps'!$G$6-1,1,1) -> 0 | Q29: =+OFFSET('D2 Echelle'!$I$72,0,'D9 Variables temps'!$G$6-1,1,1) -> 0 | R29: =+OFFSET('D2 Echelle'!$I$77,0,'D9 Variables temps'!$G$6-1,1,1) -> 0 | T29: =12/'W6with comments'!F8 -> 0.5
C30: * Nouveau | D30: sites | E30: Calculé à partir de la feuille de calculD2 | F30: =+IF('D9 Variables temps'!$G$6=1,'D2 Echelle'!$I$32,IF(OFFSET('D2 Echelle'!$H$32,0,'D9 Variables temps'!$G$6,1,)-OFFSET('D2 Echelle'!$H$32,0,'D9 Variables temps'!$G$6-1,1,1)>0,OFFSET('D2 Echelle'!$H$32,0,'D9 Variables temps'!$G$6,1,1)-OFFSET('D2 Echelle'!$H$32,0,'D9 Variables temps'!$G$6-1,1,1),0)) -> 0 | J30: =+IF('D9 Variables temps'!G6=1,'D2 Echelle'!I37,IF(OFFSET('D2 Echelle'!$H$37,0,'D9 Variables temps'!$G$6,1,)-OFFSET('D2 Echelle'!$H$37,0,'D9 Variables temps'!$G$6-1,1,1)>0,OFFSET('D2 Echelle'!$H$37,0,'D9 Variables temps'!$G$6,1,1)-OFFSET('D2 Echelle'!$H$37,0,'D9 Variables temps'!$G$6-1,1,1),0)) -> 0 | K30: =+IF('D9 Variables temps'!G6=1,'D2 Echelle'!I42,IF(OFFSET('D2 Echelle'!$H$42,0,'D9 Variables temps'!$G$6,1,)-OFFSET('D2 Echelle'!$H$42,0,'D9 Variables temps'!$G$6-1,1,1)>0,OFFSET('D2 Echelle'!$H$42,0,'D9 Variables temps'!$G$6,1,1)-OFFSET('D2 Echelle'!$H$42,0,'D9 Variables temps'!$G$6-1,1,1),0)) -> 0 | L30: =+IF('D9 Variables temps'!G6=1,'D2 Echelle'!I47,IF(OFFSET('D2 Echelle'!$H$47,0,'D9 Variables temps'!$G$6,1,)-OFFSET('D2 Echelle'!$H$47,0,'D9 Variables temps'!$G$6-1,1,1)>0,OFFSET('D2 Echelle'!$H$47,0,'D9 Variables temps'!$G$6,1,1)-OFFSET('D2 Echelle'!$H$47,0,'D9 Variables temps'!$G$6-1,1,1),0)) -> 0 | M30: =+IF('D9 Variables temps'!G6=1,'D2 Echelle'!I52,IF(OFFSET('D2 Echelle'!$H$52,0,'D9 Variables temps'!$G$6,1,)-OFFSET('D2 Echelle'!$H$52,0,'D9 Variables temps'!$G$6-1,1,1)>0,OFFSET('D2 Echelle'!$H$52,0,'D9 Variables temps'!$G$6,1,1)-OFFSET('D2 Echelle'!$H$52,0,'D9 Variables temps'!$G$6-1,1,1),0)) -> 0 | N30: =+IF('D9 Variables temps'!G6=1,'D2 Echelle'!I57,IF(OFFSET('D2 Echelle'!$H$57,0,'D9 Variables temps'!$G$6,1,)-OFFSET('D2 Echelle'!$H$57,0,'D9 Variables temps'!$G$6-1,1,1)>0,OFFSET('D2 Echelle'!$H$57,0,'D9 Variables temps'!$G$6,1,1)-OFFSET('D2 Echelle'!$H$57,0,'D9 Variables temps'!$G$6-1,1,1),0)) -> 0 | O30: =+IF('D9 Variables temps'!G6=1,'D2 Echelle'!I62,IF(OFFSET('D2 Echelle'!$H$62,0,'D9 Variables temps'!$G$6,1,)-OFFSET('D2 Echelle'!$H$62,0,'D9 Variables temps'!$G$6-1,1,1)>0,OFFSET('D2 Echelle'!$H$62,0,'D9 Variables temps'!$G$6,1,1)-OFFSET('D2 Echelle'!$H$62,0,'D9 Variables temps'!$G$6-1,1,1),0)) -> 0 | P30: =+IF('D9 Variables temps'!G6=1,'D2 Echelle'!I67,IF(OFFSET('D2 Echelle'!$H$67,0,'D9 Variables temps'!$G$6,1,)-OFFSET('D2 Echelle'!$H$67,0,'D9 Variables temps'!$G$6-1,1,1)>0,OFFSET('D2 Echelle'!$H$67,0,'D9 Variables temps'!$G$6,1,1)-OFFSET('D2 Echelle'!$H$67,0,'D9 Variables temps'!$G$6-1,1,1),0)) -> 0 | Q30: =+IF('D9 Variables temps'!G6=1,'D2 Echelle'!I72,IF(OFFSET('D2 Echelle'!$H$72,0,'D9 Variables temps'!$G$6,1,)-OFFSET('D2 Echelle'!$H$72,0,'D9 Variables temps'!$G$6-1,1,1)>0,OFFSET('D2 Echelle'!$H$72,0,'D9 Variables temps'!$G$6,1,1)-OFFSET('D2 Echelle'!$H$72,0,'D9 Variables temps'!$G$6-1,1,1),0)) -> 0 | R30: =+IF('D9 Variables temps'!G6=1,'D2 Echelle'!I77,IF(OFFSET('D2 Echelle'!$H$77,0,'D9 Variables temps'!$G$6,1,)-OFFSET('D2 Echelle'!$H$77,0,'D9 Variables temps'!$G$6-1,1,1)>0,OFFSET('D2 Echelle'!$H$77,0,'D9 Variables temps'!$G$6,1,1)-OFFSET('D2 Echelle'!$H$77,0,'D9 Variables temps'!$G$6-1,1,1),0)) -> 0
C31: * Etabli | D31: sites | E31: Calculé à partir de la feuille de calcul D2 | F31: =+F29-F30 -> 2 | J31: =+J29-J30 -> 0 | K31: 0 | L31: 0 | M31: 0 | N31: 0 | O31: 0 | P31: 0 | Q31: 0 | R31: 0
C32: Sites PEC MAS hospitalière (nombre total) | D32: sites | E32: Feuille de calcul D2 | F32: =+OFFSET('D2 Echelle'!$I$33,0,I10,1,1) -> 1 | J32: =+OFFSET('D2 Echelle'!$I$38,0,'D9 Variables temps'!$G$6-1,1,1) -> 0 | K32: =+OFFSET('D2 Echelle'!$I$43,0,'D9 Variables temps'!$G$6-1,1,1) -> 0 | L32: =+OFFSET('D2 Echelle'!$I$48,0,'D9 Variables temps'!$G$6-1,1,1) -> 0 | M32: =+OFFSET('D2 Echelle'!$I$53,0,'D9 Variables temps'!$I$10,1,1) -> 0 | N32: =+OFFSET('D2 Echelle'!$I$58,0,'D9 Variables temps'!$G$6-1,1,1) -> 0 | O32: =+OFFSET('D2 Echelle'!$I$63,0,'D9 Variables temps'!$G$6-1,1,1) -> 0 | P32: =+OFFSET('D2 Echelle'!$I$68,0,'D9 Variables temps'!$G$6-1,1,1) -> 0 | Q32: =+OFFSET('D2 Echelle'!$I$73,0,'D9 Variables temps'!$G$6-1,1,1) -> 0 | R32: =+OFFSET('D2 Echelle'!$I$78,0,'D9 Variables temps'!$G$6-1,1,1) -> 0
C33: * Nouveau | D33: sites | E33: Calculé à partir de la feuille de calcul D2 | F33: =+IF('D9 Variables temps'!$G$6=1,'D2 Echelle'!$I$33,IF(OFFSET('D2 Echelle'!$H$33,0,'D9 Variables temps'!$G$6,1,)-OFFSET('D2 Echelle'!$H$33,0,'D9 Variables temps'!$G$6-1,1,1)>0,OFFSET('D2 Echelle'!$H$33,0,'D9 Variables temps'!$G$6,1,1)-OFFSET('D2 Echelle'!$H$33,0,'D9 Variables temps'!$G$6-1,1,1),0)) -> 0 | J33: =+IF('D9 Variables temps'!$G$6=1,'D2 Echelle'!$I$38,IF(OFFSET('D2 Echelle'!$H$38,0,'D9 Variables temps'!$G$6,1,)-OFFSET('D2 Echelle'!$H$38,0,'D9 Variables temps'!$G$6-1,1,1)>0,OFFSET('D2 Echelle'!$H$38,0,'D9 Variables temps'!$G$6,1,1)-OFFSET('D2 Echelle'!$H$38,0,'D9 Variables temps'!$G$6-1,1,1),0)) -> 0 | K33: =+IF('D9 Variables temps'!$G$6=1,'D2 Echelle'!$I$43,IF(OFFSET('D2 Echelle'!$H$43,0,'D9 Variables temps'!$G$6,1,)-OFFSET('D2 Echelle'!$H$43,0,'D9 Variables temps'!$G$6-1,1,1)>0,OFFSET('D2 Echelle'!$H$43,0,'D9 Variables temps'!$G$6,1,1)-OFFSET('D2 Echelle'!$H$43,0,'D9 Variables temps'!$G$6-1,1,1),0)) -> 0 | L33: =+IF('D9 Variables temps'!$G$6=1,'D2 Echelle'!$I$48,IF(OFFSET('D2 Echelle'!$H$48,0,'D9 Variables temps'!$G$6,1,)-OFFSET('D2 Echelle'!$H$48,0,'D9 Variables temps'!$G$6-1,1,1)>0,OFFSET('D2 Echelle'!$H$48,0,'D9 Variables temps'!$G$6,1,1)-OFFSET('D2 Echelle'!$H$48,0,'D9 Variables temps'!$G$6-1,1,1),0)) -> 0 | M33: =+IF('D9 Variables temps'!$G$6=1,'D2 Echelle'!$I$53,IF(OFFSET('D2 Echelle'!$H$53,0,'D9 Variables temps'!$G$6,1,)-OFFSET('D2 Echelle'!$H$53,0,'D9 Variables temps'!$G$6-1,1,1)>0,OFFSET('D2 Echelle'!$H$53,0,'D9 Variables temps'!$G$6,1,1)-OFFSET('D2 Echelle'!$H$53,0,'D9 Variables temps'!$G$6-1,1,1),0)) -> 0 | N33: =+IF('D9 Variables temps'!$G$6=1,'D2 Echelle'!$I$58,IF(OFFSET('D2 Echelle'!$H$58,0,'D9 Variables temps'!$G$6,1,)-OFFSET('D2 Echelle'!$H$58,0,'D9 Variables temps'!$G$6-1,1,1)>0,OFFSET('D2 Echelle'!$H$58,0,'D9 Variables temps'!$G$6,1,1)-OFFSET('D2 Echelle'!$H$58,0,'D9 Variables temps'!$G$6-1,1,1),0)) -> 0 | O33: =+IF('D9 Variables temps'!$G$6=1,'D2 Echelle'!$I$63,IF(OFFSET('D2 Echelle'!$H$63,0,'D9 Variables temps'!$G$6,1,)-OFFSET('D2 Echelle'!$H$63,0,'D9 Variables temps'!$G$6-1,1,1)>0,OFFSET('D2 Echelle'!$H$63,0,'D9 Variables temps'!$G$6,1,1)-OFFSET('D2 Echelle'!$H$63,0,'D9 Variables temps'!$G$6-1,1,1),0)) -> 0 | P33: =+IF('D9 Variables temps'!$G$6=1,'D2 Echelle'!$I$68,IF(OFFSET('D2 Echelle'!$H$68,0,'D9 Variables temps'!$G$6,1,)-OFFSET('D2 Echelle'!$H$68,0,'D9 Variables temps'!$G$6-1,1,1)>0,OFFSET('D2 Echelle'!$H$68,0,'D9 Variables temps'!$G$6,1,1)-OFFSET('D2 Echelle'!$H$68,0,'D9 Variables temps'!$G$6-1,1,1),0)) -> 0 | Q33: =+IF('D9 Variables temps'!$G$6=1,'D2 Echelle'!$I$73,IF(OFFSET('D2 Echelle'!$H$73,0,'D9 Variables temps'!$G$6,1,)-OFFSET('D2 Echelle'!$H$73,0,'D9 Variables temps'!$G$6-1,1,1)>0,OFFSET('D2 Echelle'!$H$73,0,'D9 Variables temps'!$G$6,1,1)-OFFSET('D2 Echelle'!$H$73,0,'D9 Variables temps'!$G$6-1,1,1),0)) -> 0 | R33: =+IF('D9 Variables temps'!$G$6=1,'D2 Echelle'!$I$78,IF(OFFSET('D2 Echelle'!$H$78,0,'D9 Variables temps'!$G$6,1,)-OFFSET('D2 Echelle'!$H$78,0,'D9 Variables temps'!$G$6-1,1,1)>0,OFFSET('D2 Echelle'!$H$78,0,'D9 Variables temps'!$G$6,1,1)-OFFSET('D2 Echelle'!$H$78,0,'D9 Variables temps'!$G$6-1,1,1),0)) -> 0
C34: * Etabli | D34: sites | E34: Calculé à partir de la feuille de calcul D2 | F34: =+F32-F33 -> 1 | J34: =+J32-J33 -> 0 | K34: 0 | L34: 0 | M34: 0 | N34: 0 | O34: 0 | P34: 0 | Q34: 0 | R34: 0
C35: Site d'activité d'extension communautaire (nombre total) | D35: sites | E35: Feuille de calcul D2 | F35: =+OFFSET('D2 Echelle'!$I$35,0,I10,1,1) -> 100 | J35: =+OFFSET('D2 Echelle'!$I$40,0,'D9 Variables temps'!$G$6-1,1,1) -> 0 | K35: =+OFFSET('D2 Echelle'!$I$45,0,'D9 Variables temps'!$G$6-1,1,1) -> 0 | L35: =+OFFSET('D2 Echelle'!$I$50,0,'D9 Variables temps'!$G$6-1,1,1) -> 0 | M35: =+OFFSET('D2 Echelle'!$I$55,0,'D9 Variables temps'!$I$10,1,1) -> 0 | N35: =+OFFSET('D2 Echelle'!$I$60,0,'D9 Variables temps'!$G$6-1,1,1) -> 0 | O35: =+OFFSET('D2 Echelle'!$I$65,0,'D9 Variables temps'!$G$6-1,1,1) -> 0 | P35: =+OFFSET('D2 Echelle'!$I$70,0,'D9 Variables temps'!$G$6-1,1,1) -> 0 | Q35: =+OFFSET('D2 Echelle'!$I$75,0,'D9 Variables temps'!$G$6-1,1,1) -> 0 | R35: =+OFFSET('D2 Echelle'!$I$80,0,'D9 Variables temps'!$G$6-1,1,1) -> 0
C36: * Nouveau | D36: sites | E36: Calculé à partir de la feuille de calcul D2 | F36: =+IF('D9 Variables temps'!$G$6=1,'D2 Echelle'!$I$35,IF(OFFSET('D2 Echelle'!$H$35,0,'D9 Variables temps'!$G$6,1,)-OFFSET('D2 Echelle'!$H$35,0,'D9 Variables temps'!$G$6-1,1,1)>0,OFFSET('D2 Echelle'!$H$35,0,'D9 Variables temps'!$G$6,1,1)-OFFSET('D2 Echelle'!$H$35,0,'D9 Variables temps'!$G$6-1,1,1),0)) -> 100 | J36: =+IF('D9 Variables temps'!G6=1,'D2 Echelle'!I45,IF(OFFSET('D2 Echelle'!$H$40,0,'D9 Variables temps'!$G$6,1,1)-OFFSET('D2 Echelle'!$H$40,0,'D9 Variables temps'!$G$6-1,1,1)>0,OFFSET('D2 Echelle'!$H$40,0,'D9 Variables temps'!$G$6,1,1)-OFFSET('D2 Echelle'!$H$40,0,'D9 Variables temps'!$G$6-1,1,1),0)) -> 0 | K36: =+IF('D9 Variables temps'!G6=1,'D2 Echelle'!I50,IF(OFFSET('D2 Echelle'!$H$45,0,'D9 Variables temps'!$G$6,1,1)-OFFSET('D2 Echelle'!$H$45,0,'D9 Variables temps'!$G$6-1,1,1)>0,OFFSET('D2 Echelle'!$H$45,0,'D9 Variables temps'!$G$6,1,1)-OFFSET('D2 Echelle'!$H$45,0,'D9 Variables temps'!$G$6-1,1,1),0)) -> 0 | L36: =+IF('D9 Variables temps'!G6=1,'D2 Echelle'!I55,IF(OFFSET('D2 Echelle'!$H$50,0,'D9 Variables temps'!$G$6,1,1)-OFFSET('D2 Echelle'!$H$50,0,'D9 Variables temps'!$G$6-1,1,1)>0,OFFSET('D2 Echelle'!$H$50,0,'D9 Variables temps'!$G$6,1,1)-OFFSET('D2 Echelle'!$H$50,0,'D9 Variables temps'!$G$6-1,1,1),0)) -> 0 | M36: =+IF('D9 Variables temps'!G6=1,'D2 Echelle'!I60,IF(OFFSET('D2 Echelle'!$H$55,0,'D9 Variables temps'!$G$6,1,1)-OFFSET('D2 Echelle'!$H$55,0,'D9 Variables temps'!$G$6-1,1,1)>0,OFFSET('D2 Echelle'!$H$55,0,'D9 Variables temps'!$G$6,1,1)-OFFSET('D2 Echelle'!$H$55,0,'D9 Variables temps'!$G$6-1,1,1),0)) -> 0 | N36: =+IF('D9 Variables temps'!G6=1,'D2 Echelle'!I65,IF(OFFSET('D2 Echelle'!$H$60,0,'D9 Variables temps'!$G$6,1,1)-OFFSET('D2 Echelle'!$H$60,0,'D9 Variables temps'!$G$6-1,1,1)>0,OFFSET('D2 Echelle'!$H$60,0,'D9 Variables temps'!$G$6,1,1)-OFFSET('D2 Echelle'!$H$60,0,'D9 Variables temps'!$G$6-1,1,1),0)) -> 0 | O36: =+IF('D9 Variables temps'!G6=1,'D2 Echelle'!I70,IF(OFFSET('D2 Echelle'!$H$65,0,'D9 Variables temps'!$G$6,1,1)-OFFSET('D2 Echelle'!$H$65,0,'D9 Variables temps'!$G$6-1,1,1)>0,OFFSET('D2 Echelle'!$H$65,0,'D9 Variables temps'!$G$6,1,1)-OFFSET('D2 Echelle'!$H$65,0,'D9 Variables temps'!$G$6-1,1,1),0)) -> 0 | P36: =+IF('D9 Variables temps'!G6=1,'D2 Echelle'!I75,IF(OFFSET('D2 Echelle'!$H$70,0,'D9 Variables temps'!$G$6,1,1)-OFFSET('D2 Echelle'!$H$70,0,'D9 Variables temps'!$G$6-1,1,1)>0,OFFSET('D2 Echelle'!$H$70,0,'D9 Variables temps'!$G$6,1,1)-OFFSET('D2 Echelle'!$H$70,0,'D9 Variables temps'!$G$6-1,1,1),0)) -> 0 | Q36: =+IF('D9 Variables temps'!G6=1,'D2 Echelle'!I80,IF(OFFSET('D2 Echelle'!$H$75,0,'D9 Variables temps'!$G$6,1,1)-OFFSET('D2 Echelle'!$H$75,0,'D9 Variables temps'!$G$6-1,1,1)>0,OFFSET('D2 Echelle'!$H$75,0,'D9 Variables temps'!$G$6,1,1)-OFFSET('D2 Echelle'!$H$75,0,'D9 Variables temps'!$G$6-1,1,1),0)) -> 0 | R36: =+IF('D9 Variables temps'!G6=1,'D2 Echelle'!I85,IF(OFFSET('D2 Echelle'!$H$80,0,'D9 Variables temps'!$G$6,1,1)-OFFSET('D2 Echelle'!$H$80,0,'D9 Variables temps'!$G$6-1,1,1)>0,OFFSET('D2 Echelle'!$H$80,0,'D9 Variables temps'!$G$6,1,1)-OFFSET('D2 Echelle'!$H$80,0,'D9 Variables temps'!$G$6-1,1,1),0)) -> 0
C37: * Etabli | D37: sites | E37: Calculé à partir des la feuille D2 | F37: =+F35-F36 -> 0 | J37: =+J35-J36 -> 0 | K37: 0 | L37: 0 | M37: 0 | N37: 0 | O37: 0 | P37: 0 | Q37: 0 | R37: 0
C38: Nombre minimum d'AEC nécessaires | D38: AEC | E38: Calculé de la Feuille de calcul D3 et du nombre de sites PEC MAS ambulatoire | F38: =+ROUNDUP('D3 Données épi. démo'!F80*'D9 Variables temps'!F35,0) -> 100 | J38: =+ROUNDUP('D3 Données épi. démo'!J80*'D9 Variables temps'!J35,0) -> 0 | K38: =+ROUNDUP('D3 Données épi. démo'!K80*'D9 Variables temps'!K35,0) -> 0 | L38: =+ROUNDUP('D3 Données épi. démo'!L80*'D9 Variables temps'!L35,0) -> 0 | M38: =+ROUNDUP('D3 Données épi. démo'!M80*'D9 Variables temps'!M35,0) -> 0 | N38: =+ROUNDUP('D3 Données épi. démo'!N80*'D9 Variables temps'!N35,0) -> 0 | O38: =+ROUNDUP('D3 Données épi. démo'!O80*'D9 Variables temps'!O35,0) -> 0 | P38: =+ROUNDUP('D3 Données épi. démo'!P80*'D9 Variables temps'!P35,0) -> 0 | Q38: =+ROUNDUP('D3 Données épi. démo'!Q80*'D9 Variables temps'!Q35,0) -> 0 | R38: =+ROUNDUP('D3 Données épi. démo'!R80*'D9 Variables temps'!R35,0) -> 0
C39: Nombre de cas avec MAS par an | D39: cas | E39: Feuille de calcul D2 | F39: =+OFFSET('D2 Echelle'!$I34,0,$G$6-1,1,1) -> 150 | J39: =+OFFSET('D2 Echelle'!$I39,0,$G$6-1,1,1) -> 0 | K39: =+OFFSET('D2 Echelle'!$I44,0,$G$6-1,1,1) -> 0 | L39: =+OFFSET('D2 Echelle'!$I49,0,$G$6-1,1,1) -> 0 | M39: =+OFFSET('D2 Echelle'!$I54,0,$G$6-1,1,1) -> 0 | N39: =+OFFSET('D2 Echelle'!$I59,0,$G$6-1,1,1) -> 0 | O39: =+OFFSET('D2 Echelle'!$I64,0,$G$6-1,1,1) -> 0 | P39: =+OFFSET('D2 Echelle'!$I69,0,$G$6-1,1,1) -> 0 | Q39: =+OFFSET('D2 Echelle'!$I74,0,$G$6-1,1,1) -> 0 | R39: =+OFFSET('D2 Echelle'!$I79,0,$G$6-1,1,1) -> 0
C40: Nombre d'enfants avec MAS par an venant aux séances PEC MAS ambulatoire (tous, sauf les enfants de moins de 6 mois). | D40: cas | E40: Calculé à partir des feuilles D3 et D2 | F40: =+F39*(100-'D3 Données épi. démo'!F22)/100 -> 135 | J40: =+J39*(100-'D3 Données épi. démo'!J22)/100 -> 0 | K40: =+K39*(100-'D3 Données épi. démo'!K22)/100 -> 0 | L40: =+L39*(100-'D3 Données épi. démo'!L22)/100 -> 0 | M40: =+M39*(100-'D3 Données épi. démo'!M22)/100 -> 0 | N40: =+N39*(100-'D3 Données épi. démo'!N22)/100 -> 0 | O40: =+O39*(100-'D3 Données épi. démo'!O22)/100 -> 0 | P40: =+P39*(100-'D3 Données épi. démo'!P22)/100 -> 0 | Q40: =+Q39*(100-'D3 Données épi. démo'!Q22)/100 -> 0 | R40: =+R39*(100-'D3 Données épi. démo'!R22)/100 -> 0
C41: Nombre d'enfants avec MAS dans la PEC MAS ambulatoire à un point donné du temps (prévalence) | D41: cas | E41: Nombre de cas >6 mois * durée (semaines)(Feuille de travail D3)/52 | F41: =+F39*(1-'D3 Données épi. démo'!F22/100)*'D3 Données épi. démo'!F32/52 -> 20.76923077 | J41: =+J39*(1-'D3 Données épi. démo'!J22/100)*'D3 Données épi. démo'!J32/52 -> 0 | K41: =+K39*(1-'D3 Données épi. démo'!K22/100)*'D3 Données épi. démo'!K32/52 -> 0 | L41: =+L39*(1-'D3 Données épi. démo'!L22/100)*'D3 Données épi. démo'!L32/52 -> 0 | M41: =+M39*(1-'D3 Données épi. démo'!M22/100)*'D3 Données épi. démo'!M32/52 -> 0 | N41: =+N39*(1-'D3 Données épi. démo'!N22/100)*'D3 Données épi. démo'!N32/52 -> 0 | O41: =+O39*(1-'D3 Données épi. démo'!O22/100)*'D3 Données épi. démo'!O32/52 -> 0 | P41: =+P39*(1-'D3 Données épi. démo'!P22/100)*'D3 Données épi. démo'!P32/52 -> 0 | Q41: =+Q39*(1-'D3 Données épi. démo'!Q22/100)*'D3 Données épi. démo'!Q32/52 -> 0 | R41: =+R39*(1-'D3 Données épi. démo'!R22/100)*'D3 Données épi. démo'!R32/52 -> 0
C42: Nombre d'enfants avec MAS demandant PEC MAS hospitalière en un an | D42: cas | F42: =+F39*'D3 Données épi. démo'!F28 -> 35.25 | J42: =+J39*'D3 Données épi. démo'!J28 -> 0 | K42: =+K39*'D3 Données épi. démo'!K28 -> 0 | L42: =+L39*'D3 Données épi. démo'!L28 -> 0 | M42: =+M39*'D3 Données épi. démo'!M28 -> 0 | N42: =+N39*'D3 Données épi. démo'!N28 -> 0 | O42: =+O39*'D3 Données épi. démo'!O28 -> 0 | P42: =+P39*'D3 Données épi. démo'!P28 -> 0 | Q42: =+Q39*'D3 Données épi. démo'!Q28 -> 0 | R42: =+R39*'D3 Données épi. démo'!R28 -> 0
C43: Nombre d'enfants avec MAS dans la PEC MAS hospitalière à un point donné du temps (arrondi) | D43: cas | E43: Nombre de cas de MAS exigeant une PEC MAS hospitalière * nombre de jours en PEC MAS hospitalière/365 | F43: =+ROUNDUP(F42*'D3 Données épi. démo'!F31/365,0) -> 2 | J43: =+ROUNDUP(J42*'D3 Données épi. démo'!J31/365,0) -> 0 | K43: =+ROUNDUP(K42*'D3 Données épi. démo'!K31/365,0) -> 0 | L43: =+ROUNDUP(L42*'D3 Données épi. démo'!L31/365,0) -> 0 | M43: =+ROUNDUP(M42*'D3 Données épi. démo'!M31/365,0) -> 0 | N43: =+ROUNDUP(N42*'D3 Données épi. démo'!N31/365,0) -> 0 | O43: =+ROUNDUP(O42*'D3 Données épi. démo'!O31/365,0) -> 0 | P43: =+ROUNDUP(P42*'D3 Données épi. démo'!P31/365,0) -> 0 | Q43: =+ROUNDUP(Q42*'D3 Données épi. démo'!Q31/365,0) -> 0 | R43: =+ROUNDUP(R42*'D3 Données épi. démo'!R31/365,0) -> 0
C44: Pourcentage de jours lorsque les sites PEC MAS hospitalière auront probablement au moins un enfant hospitalisé avec MAS. | D44: % | E44: (Suppose des cas distribués également) (365-nombre de jours par cas * no.de cas en PEC MAS hospitalière) | F44: =+IF(F32=0,0,IF(F42*'D3 Données épi. démo'!F31/F32>365,100,F42*'D3 Données épi. démo'!F31/F32/365*100)) -> 100 | J44: =+IF(J32=0,0,IF(J42*'D3 Données épi. démo'!J31/J32>365,100,J42*'D3 Données épi. démo'!J31/J32/365*100)) -> 0 | K44: =+IF(K32=0,0,IF(K42*'D3 Données épi. démo'!K31/K32>365,100,K42*'D3 Données épi. démo'!K31/K32/365*100)) -> 0 | L44: =+IF(L32=0,0,IF(L42*'D3 Données épi. démo'!L31/L32>365,100,L42*'D3 Données épi. démo'!L31/L32/365*100)) -> 0 | M44: =+IF(M32=0,0,IF(M42*'D3 Données épi. démo'!M31/M32>365,100,M42*'D3 Données épi. démo'!M31/M32/365*100)) -> 0 | N44: =+IF(N32=0,0,IF(N42*'D3 Données épi. démo'!N31/N32>365,100,N42*'D3 Données épi. démo'!N31/N32/365*100)) -> 0 | O44: =+IF(O32=0,0,IF(O42*'D3 Données épi. démo'!O31/O32>365,100,O42*'D3 Données épi. démo'!O31/O32/365*100)) -> 0 | P44: =+IF(P32=0,0,IF(P42*'D3 Données épi. démo'!P31/P32>365,100,P42*'D3 Données épi. démo'!P31/P32/365*100)) -> 0 | Q44: =+IF(Q32=0,0,IF(Q42*'D3 Données épi. démo'!Q31/Q32>365,100,Q42*'D3 Données épi. démo'!Q31/Q32/365*100)) -> 0 | R44: =+IF(R32=0,0,IF(R42*'D3 Données épi. démo'!R31/R32>365,100,R42*'D3 Données épi. démo'!R31/R32/365*100)) -> 0
C45: Cette zone a-t-elle un programme/service actif de la PCMA pour l'année analysée. | D45: "0" ou "1" | E45: Une zone active est identifiée par "1"; une zone inactive par "0" | F45: =+IF(F29+F32>0,1,0) -> 1 | J45: =+IF(J29+J32>0,1,0) -> 0 | K45: 0 | L45: 0 | M45: 0 | N45: 0 | O45: 0 | P45: 0 | Q45: 0 | R45: 0
C46: La PCMA a-t-elle déjà été établie dans cette zone, est-elle une approche nouvelle dans cette zone ou ne fonctionne-t-elle pas encore ? | D46: nouvelle/ établie/ inactive | E46: Une zone est 'établie' s'il existe au moins un site PEC MAS ambulatoire ou hospitalière, sinon 'nouvelle' (s'il existe au moins un nouveau site PEC MAS ambulatoire ou hospitalière) ou "inactive". | F46: =+IF(F31+F34>0,"établie",IF(F30+F33>0,"nouvelle","inactive")) -> établie | J46: =+IF(J31+J34>0,"établie",IF(J30+J33>0,"nouvelle","inactive")) -> inactive | K46: =+IF(K31+K34>0,"établie",IF(K30+K33>0,"nouvelle","inactive")) -> inactive | L46: =+IF(L31+L34>0,"établie",IF(L30+L33>0,"nouvelle","inactive")) -> inactive | M46: =+IF(M31+M34>0,"établie",IF(M30+M33>0,"nouvelle","inactive")) -> inactive | N46: inactive | O46: inactive | P46: inactive | Q46: inactive | R46: inactive
C47: La PCMA est-elle une approche nouvelle dans cette zone. | D47: 0 , 1 | E47: Zone où la PCMA est nouvelle (définie comme une zone avec certains nouveaux sites PEC MAS ambulatoire ou hospitalière et pas de sites établis PEC MAS ambulatoire ou hospitalière) ent Care sites) : elle est identifiée par "1"; sinon par "0". | F47: =+IF(AND((F31+F34)=0,(F30+F33>0)),1,0) -> 0 | J47: =+IF(AND((J31+J34)=0,(J30+J33>0)),1,0) -> 0 | K47: 0 | L47: 0 | M47: 0 | N47: 0 | O47: 0 | P47: 0 | Q47: 0 | R47: 0
D49: Alerts (Can be hidden) | E49: Groupe-Zones | F49: Nombre de livraisons
C50: Ce tableau indique le nombre annuel de livraisons de l'aliment thérapeutique du siège du niveau central au groupe-zones pendant l'année spécifiée (Feuille de calcul D7). Si les livraisons ne sont pas assez fréquentes pour la quantité de l'aliment et la taille des véhicules et capacité de stockage, le tableau met en alerte avec des bords rouges : | D50: =+'R6 Niveau group-zones et centre'!G155 ->  | E50: =+IF('D1 Données générales'!G36="","",'D1 Données générales'!G36) -> Greater Accra | F50: =+OFFSET('D7 Fréquence des livraisons'!D25,0,'D9 Variables temps'!$I$10,1,1) -> 4
D51: =+'R6 Niveau group-zones et centre'!H155 ->  | E51: =+IF('D1 Données générales'!G37="","",'D1 Données générales'!G37) ->  | F51: =+OFFSET('D7 Fréquence des livraisons'!D26,0,'D9 Variables temps'!$I$10,1,1) -> 0
D52: =+'R6 Niveau group-zones et centre'!I155 ->  | E52: =+IF('D1 Données générales'!G38="","",'D1 Données générales'!G38) ->  | F52: =+OFFSET('D7 Fréquence des livraisons'!D27,0,'D9 Variables temps'!$I$10,1,1) -> 0
D53: =+'R6 Niveau group-zones et centre'!J155 ->  | E53: =+IF('D1 Données générales'!G39="","",'D1 Données générales'!G39) ->  | F53: =+OFFSET('D7 Fréquence des livraisons'!D28,0,'D9 Variables temps'!$I$10,1,1) -> 0
C54: Bord rouge solide - indique le besoin d'augmenter soit la fréquence des livraisons (D7) ou la taille du véhicule transportant l'aliment thérapeutique au siège de ce groupe-zones (D8). | D54: =+'R6 Niveau group-zones et centre'!K155 ->  | E54: =+IF('D1 Données générales'!G40="","",'D1 Données générales'!G40) ->  | F54: =+OFFSET('D7 Fréquence des livraisons'!D29,0,'D9 Variables temps'!$I$10,1,1) -> 0
D55: =+'R6 Niveau group-zones et centre'!L155 ->  | E55: =+IF('D1 Données générales'!G41="","",'D1 Données générales'!G41) ->  | F55: =+OFFSET('D7 Fréquence des livraisons'!D30,0,'D9 Variables temps'!$I$10,1,1) -> 0
C56: Bord rouge pointillés -indique le besoin d'augmenter soit la fréquence des livraisons (D7) soit la taille du stockage au siège de ce groupe-zones (D8). | D56: =+'R6 Niveau group-zones et centre'!M155 ->  | E56: =+IF('D1 Données générales'!G42="","",'D1 Données générales'!G42) ->  | F56: =+OFFSET('D7 Fréquence des livraisons'!D31,0,'D9 Variables temps'!$I$10,1,1) -> 0
D57: =+'R6 Niveau group-zones et centre'!N155 ->  | E57: =+IF('D1 Données générales'!G43="","",'D1 Données générales'!G43) ->  | F57: =+OFFSET('D7 Fréquence des livraisons'!D32,0,'D9 Variables temps'!$I$10,1,1) -> 0
C63: =+'R11 Logistique approvisionnemen'!C52:E52 -> !! Indicates a need to increase either frequency of delivery of therapeutic food to Area's HQ or the size of vehicle transporting it there. | F63: =+'R11 Logistique approvisionnemen'!F52:H52 ->  | J63: =+'R11 Logistique approvisionnemen'!J52:L52 ->  | K63: =+'R11 Logistique approvisionnemen'!K52:M52 ->  | L63: =+'R11 Logistique approvisionnemen'!L52:N52 ->  | M63: =+'R11 Logistique approvisionnemen'!M52:O52 ->  | N63: =+'R11 Logistique approvisionnemen'!N52:P52 ->  | O63: =+'R11 Logistique approvisionnemen'!O52:Q52 ->  | P63: =+'R11 Logistique approvisionnemen'!P52:R52 ->  | Q63: =+'R11 Logistique approvisionnemen'!Q52:S52 ->  | R63: =+'R11 Logistique approvisionnemen'!R52:T52 ->  | S63: =+'R11 Logistique approvisionnemen'!S52:U52 -> 
C64: =+'R11 Logistique approvisionnemen'!C53:E53 -> !! indicates a need to increase either frequency of delivery of therapeutic food to Area's HQ or the storage space for it there. | F64: =+'R11 Logistique approvisionnemen'!F53:H53 ->  | J64: =+'R11 Logistique approvisionnemen'!J53:L53 ->  | K64: =+'R11 Logistique approvisionnemen'!K53:M53 ->  | L64: =+'R11 Logistique approvisionnemen'!L53:N53 ->  | M64: =+'R11 Logistique approvisionnemen'!M53:O53 ->  | N64: =+'R11 Logistique approvisionnemen'!N53:P53 ->  | O64: =+'R11 Logistique approvisionnemen'!O53:Q53 ->  | P64: =+'R11 Logistique approvisionnemen'!P53:R53 ->  | Q64: =+'R11 Logistique approvisionnemen'!Q53:S53 ->  | R64: =+'R11 Logistique approvisionnemen'!R53:T53 ->  | S64: =+'R11 Logistique approvisionnemen'!S53:U53 -> 
C65: =+'R11 Logistique approvisionnemen'!C54:E54 -> !! indicates a need to increase either frequency of delivery of therapeutic food to OC sites or the size of vehicle transporting it there. | F65: =+'R11 Logistique approvisionnemen'!F54:H54 ->  | J65: =+'R11 Logistique approvisionnemen'!J54:L54 ->  | K65: =+'R11 Logistique approvisionnemen'!K54:M54 ->  | L65: =+'R11 Logistique approvisionnemen'!L54:N54 ->  | M65: =+'R11 Logistique approvisionnemen'!M54:O54 ->  | N65: =+'R11 Logistique approvisionnemen'!N54:P54 ->  | O65: =+'R11 Logistique approvisionnemen'!O54:Q54 ->  | P65: =+'R11 Logistique approvisionnemen'!P54:R54 ->  | Q65: =+'R11 Logistique approvisionnemen'!Q54:S54 ->  | R65: =+'R11 Logistique approvisionnemen'!R54:T54 ->  | S65: =+'R11 Logistique approvisionnemen'!S54:U54 -> 
C66: =+'R11 Logistique approvisionnemen'!C55:E55 -> !! indicates a need to increase either frequency of delivery of therapeutic food to OC sites or the storage space for it there. | F66: =+'R11 Logistique approvisionnemen'!F55:H55 ->  | J66: =+'R11 Logistique approvisionnemen'!J55:L55 ->  | K66: =+'R11 Logistique approvisionnemen'!K55:M55 ->  | L66: =+'R11 Logistique approvisionnemen'!L55:N55 ->  | M66: =+'R11 Logistique approvisionnemen'!M55:O55 ->  | N66: =+'R11 Logistique approvisionnemen'!N55:P55 ->  | O66: =+'R11 Logistique approvisionnemen'!O55:Q55 ->  | P66: =+'R11 Logistique approvisionnemen'!P55:R55 ->  | Q66: =+'R11 Logistique approvisionnemen'!Q55:S55 ->  | R66: =+'R11 Logistique approvisionnemen'!R55:T55 ->  | S66: =+'R11 Logistique approvisionnemen'!S55:U55 -> 
C67: =+'R11 Logistique approvisionnemen'!C56:E56 -> !! indicates a need to increase either frequency of delivery of therapeutic food to IC sites or the size of vehicle transporting it there. | F67: =+'R11 Logistique approvisionnemen'!F56:H56 ->  | J67: =+'R11 Logistique approvisionnemen'!J56:L56 ->  | K67: =+'R11 Logistique approvisionnemen'!K56:M56 ->  | L67: =+'R11 Logistique approvisionnemen'!L56:N56 ->  | M67: =+'R11 Logistique approvisionnemen'!M56:O56 ->  | N67: =+'R11 Logistique approvisionnemen'!N56:P56 ->  | O67: =+'R11 Logistique approvisionnemen'!O56:Q56 ->  | P67: =+'R11 Logistique approvisionnemen'!P56:R56 ->  | Q67: =+'R11 Logistique approvisionnemen'!Q56:S56 ->  | R67: =+'R11 Logistique approvisionnemen'!R56:T56 ->  | S67: =+'R11 Logistique approvisionnemen'!S56:U56 -> 
C68: =+'R11 Logistique approvisionnemen'!C57:E57 -> !! indicates a need to increase either frequency of delivery of therapeutic food to IC sites or the storage space for it there. | F68: =+'R11 Logistique approvisionnemen'!F57:H57 ->  | J68: =+'R11 Logistique approvisionnemen'!J57:L57 ->  | K68: =+'R11 Logistique approvisionnemen'!K57:M57 ->  | L68: =+'R11 Logistique approvisionnemen'!L57:N57 ->  | M68: =+'R11 Logistique approvisionnemen'!M57:O57 ->  | N68: =+'R11 Logistique approvisionnemen'!N57:P57 ->  | O68: =+'R11 Logistique approvisionnemen'!O57:Q57 ->  | P68: =+'R11 Logistique approvisionnemen'!P57:R57 ->  | Q68: =+'R11 Logistique approvisionnemen'!Q57:S57 ->  | R68: =+'R11 Logistique approvisionnemen'!R57:T57 ->  | S68: =+'R11 Logistique approvisionnemen'!S57:U57 -> 
C69: =+'R11 Logistique approvisionnemen'!C58:E58 -> 0
C70: =+'R11 Logistique approvisionnemen'!C83:E83 -> 0
C71: =+'R11 Logistique approvisionnemen'!C84:E84 -> 0
C72: =+'R11 Logistique approvisionnemen'!C85:E85 -> 0
C73: Number of Group-Areas | D73: =+'D1 Données générales'!G33 -> 1

Sheet Rappel sur les résultats
B2: Rappel sur les feuilles de calcul avec les résultats [R1 à R14]
B3: Les Feuilles de calcul suivantes (R1 à R14) présentent les résultats.
B5: L'Utilisateur ne devrait PAS changer les cellules dans les feuilles de calcul avec les résultats. Si l'utilisateur identifie des variables dont les valeurs doivent être changées, ce changement doit être fait lorsque la variable apparaît pour la première fois (Feuilles de calcul D1 à D9).
B7: Les quatre Feuilles de calcul suivantes récapitulent la quantité des intrants clés, à savoir la gestion (R1), les transports (R2), les fournitures (R3), et l'espace (R4), nécessaires pendant l'année spécifiée dans la Feuille de calcul D9 pour mettre en place un programme de la PCMA de l'échelle définie dans la Feuille de calcul D2.

Sheet R1 Main-d'oeuvres
A2: Retour au sommaire | C2: R1: Besoins annuels en main-d'oeuvre pour la PCMA
C4: Number of Areas included | D4: =+'D1 Données générales'!G31 -> 1 | E4: (taken from Worksheet 2)
C5: Cette Feuille de calcul montre pour l'année choisie le niveau de personnel nécessaire pour mettre en oeuvre la PCMA. Un équivalent plein temps (EPT) est égal à une année de travail (environ 260 jours). | L5: Change hidden references so that appropraite columns revealed
C7: =+IF('D1 Données générales'!$H$11="","",'D1 Données générales'!$H$11) -> Ghana
C8: =+'D9 Variables temps'!$I$6 -> 2011
A9: Hidden row - factors to ensure that areas not identified in scope of budget are not included | G9: =+IF('D1 Données générales'!$G$31<1,0,1) -> 1 | K9: =+IF('D1 Données générales'!$G$31<2,0,1) -> 0 | L9: =+IF('D1 Données générales'!$G$31<3,0,1) -> 0 | M9: =+IF('D1 Données générales'!$G$31<4,0,1) -> 0 | N9: =+IF('D1 Données générales'!$G$31<5,0,1) -> 0 | O9: =+IF('D1 Données générales'!$G$31<6,0,1) -> 0 | P9: =+IF('D1 Données générales'!$G$31<7,0,1) -> 0 | Q9: =+IF('D1 Données générales'!$G$31<8,0,1) -> 0 | R9: =+IF('D1 Données générales'!$G$31<9,0,1) -> 0 | S9: =+IF('D1 Données générales'!$G$31<10,0,1) -> 0
G11: Zone 1 | K11: Zone 2 | L11: Zone 3 | M11: Zone 4 | N11: Zone 5 | O11: Zone 6 | P11: Zone 7 | Q11: Zone 8 | R11: Zone 9 | S11: Zone 10
D12: ='D2 Echelle'!$C$30 -> district | F12: TOTAL toutes zones | G12: =+IF('D2 Echelle'!$C$31="","",'D2 Echelle'!$C$31) -> Ashiedu Keteke | K12: =+IF('D2 Echelle'!$C$36="","",'D2 Echelle'!$C$36) ->  | L12: =+IF('D2 Echelle'!$C$41="","",'D2 Echelle'!$C$41) ->  | M12: =+IF('D2 Echelle'!$C$46="","",'D2 Echelle'!$C$46) ->  | N12: =+IF('D2 Echelle'!$C$51="","",'D2 Echelle'!$C$51) ->  | O12: =+IF('D2 Echelle'!$C$56="","",'D2 Echelle'!$C$56) ->  | P12: =+IF('D2 Echelle'!$C$61="","",'D2 Echelle'!$C$61) ->  | Q12: =+IF('D2 Echelle'!$C$66="","",'D2 Echelle'!$C$66) ->  | R12: =+IF('D2 Echelle'!$C$71="","",'D2 Echelle'!$C$71) ->  | S12: =+IF('D2 Echelle'!$C$76="","",'D2 Echelle'!$C$76) -> 
D13: =+'D2 Echelle'!$D$30 -> région | G13: =+IF('D2 Echelle'!$D$31="","",'D2 Echelle'!$D$31) -> Greater Accra | K13: =+IF('D2 Echelle'!$D$36="","",'D2 Echelle'!$D$36) ->  | L13: =+IF('D2 Echelle'!$D$41="","",'D2 Echelle'!$D$41) ->  | M13: =+IF('D2 Echelle'!$D$46="","",'D2 Echelle'!$D$46) ->  | N13: =+IF('D2 Echelle'!$D$51="","",'D2 Echelle'!$D$51) ->  | O13: =+IF('D2 Echelle'!$D$56="","",'D2 Echelle'!$D$56) ->  | P13: =+IF('D2 Echelle'!$D$61="","",'D2 Echelle'!$D$61) ->  | Q13: =+IF('D2 Echelle'!$D$66="","",'D2 Echelle'!$D$66) ->  | R13: =+IF('D2 Echelle'!$D$71="","",'D2 Echelle'!$D$71) ->  | S13: =+IF('D2 Echelle'!$D$76="","",'D2 Echelle'!$D$76) -> 
B14: Niveau | C14: Type de personnel | D14: Activités | E14: Unités
B15: Extension communautaire
C16: Agents extension communautaire | D16: TOTAL | E16: EPT | F16: =+(G16*$G$9+K16*$K$9+L16*$L$9+M16*$M$9+N16*$N$9+O16*$O$9+P16*$P$9+Q16*$Q$9+R16*$R$9+S16*$S$9) -> 20 | G16: =+G20/'D5 Salaires'!$I$20 -> 20 | K16: =+K20/'D5 Salaires'!$I$20 -> 0 | L16: =+L20/'D5 Salaires'!$I$20 -> 0 | M16: =+M20/'D5 Salaires'!$I$20 -> 0 | N16: =+N20/'D5 Salaires'!$I$20 -> 0 | O16: =+O20/'D5 Salaires'!$I$20 -> 0 | P16: =+P20/'D5 Salaires'!$I$20 -> 0 | Q16: =+Q20/'D5 Salaires'!$I$20 -> 0 | R16: =+R20/'D5 Salaires'!$I$20 -> 0 | S16: =+S20/'D5 Salaires'!$I$20 -> 0
D17: Par site PEC MAS ambulatoire | E17: EPT | G17: =+IF('D9 Variables temps'!F29=0,0,G16/'D9 Variables temps'!F29) -> 10 | K17: =+IF('D9 Variables temps'!J29=0,0,K16/'D9 Variables temps'!J29) -> 0 | L17: =+IF('D9 Variables temps'!K29=0,0,L16/'D9 Variables temps'!K29) -> 0 | M17: =+IF('D9 Variables temps'!L29=0,0,M16/'D9 Variables temps'!L29) -> 0 | N17: =+IF('D9 Variables temps'!M29=0,0,N16/'D9 Variables temps'!M29) -> 0 | O17: =+IF('D9 Variables temps'!N29=0,0,O16/'D9 Variables temps'!N29) -> 0 | P17: =+IF('D9 Variables temps'!O29=0,0,P16/'D9 Variables temps'!O29) -> 0 | Q17: =+IF('D9 Variables temps'!P29=0,0,Q16/'D9 Variables temps'!P29) -> 0 | R17: =+IF('D9 Variables temps'!Q29=0,0,R16/'D9 Variables temps'!Q29) -> 0 | S17: =+IF('D9 Variables temps'!R29=0,0,S16/'D9 Variables temps'!R29) -> 0
D18: Extension communautaire | E18: days | F18: =+(G18*$G$9+K18*$K$9+L18*$L$9+M18*$M$9+N18*$N$9+O18*$O$9+P18*$P$9+Q18*$Q$9+R18*$R$9+S18*$S$9) -> 5000 | G18: =+'R14 Extension communautaire'!F36 -> 5000 | K18: =+'R14 Extension communautaire'!J36 -> 0 | L18: =+'R14 Extension communautaire'!K36 -> 0 | M18: =+'R14 Extension communautaire'!L36 -> 0 | N18: =+'R14 Extension communautaire'!M36 -> 0 | O18: =+'R14 Extension communautaire'!N36 -> 0 | P18: =+'R14 Extension communautaire'!O36 -> 0 | Q18: =+'R14 Extension communautaire'!P36 -> 0 | R18: =+'R14 Extension communautaire'!Q36 -> 0 | S18: =+'R14 Extension communautaire'!R36 -> 0
D19: en formation | E19: days | F19: =+(G19*$G$9+K19*$K$9+L19*$L$9+M19*$M$9+N19*$N$9+O19*$O$9+P19*$P$9+Q19*$Q$9+R19*$R$9+S19*$S$9) -> 200 | G19: =+'R12 Formation'!F63 -> 200 | K19: =+'R12 Formation'!J63 -> 0 | L19: =+'R12 Formation'!K63 -> 0 | M19: =+'R12 Formation'!L63 -> 0 | N19: =+'R12 Formation'!M63 -> 0 | O19: =+'R12 Formation'!N63 -> 0 | P19: =+'R12 Formation'!O63 -> 0 | Q19: =+'R12 Formation'!P63 -> 0 | R19: =+'R12 Formation'!Q63 -> 0 | S19: =+'R12 Formation'!R63 -> 0
D20: Total | E20: days | F20: =+(G20*$G$9+K20*$K$9+L20*$L$9+M20*$M$9+N20*$N$9+O20*$O$9+P20*$P$9+Q20*$Q$9+R20*$R$9+S20*$S$9) -> 5200 | G20: =+SUM(G18:G19) -> 5200 | K20: =+SUM(K18:K19) -> 0 | L20: 0 | M20: 0 | N20: 0 | O20: 0 | P20: 0 | Q20: 0 | R20: 0 | S20: 0
B22: PEC MAS ambulatoire
C23: Personnel senior PEC MAS ambulatoire | D23: TOTAL | E23: EPT | F23: =+(G23*$G$9+K23*$K$9+L23*$L$9+M23*$M$9+N23*$N$9+O23*$O$9+P23*$P$9+Q23*$Q$9+R23*$R$9+S23*$S$9) -> 2.602884615 | G23: =+G30/'D5 Salaires'!$I$20 -> 2.602884615 | K23: =+K30/'D5 Salaires'!$I$20 -> 0 | L23: =+L30/'D5 Salaires'!$I$20 -> 0 | M23: =+M30/'D5 Salaires'!$I$20 -> 0 | N23: =+N30/'D5 Salaires'!$I$20 -> 0 | O23: =+O30/'D5 Salaires'!$I$20 -> 0 | P23: =+P30/'D5 Salaires'!$I$20 -> 0 | Q23: =+Q30/'D5 Salaires'!$I$20 -> 0 | R23: =+R30/'D5 Salaires'!$I$20 -> 0 | S23: =+S30/'D5 Salaires'!$I$20 -> 0
D24: Par site PEC MAS ambulatoire | E24: EPT | G24: =+IF('D9 Variables temps'!F29=0,0,G23/'D9 Variables temps'!F29) -> 1.301442308 | K24: =+IF('D9 Variables temps'!J29=0,0,K23/'D9 Variables temps'!J29) -> 0 | L24: =+IF('D9 Variables temps'!K29=0,0,L23/'D9 Variables temps'!K29) -> 0 | M24: =+IF('D9 Variables temps'!L29=0,0,M23/'D9 Variables temps'!L29) -> 0 | N24: =+IF('D9 Variables temps'!M29=0,0,N23/'D9 Variables temps'!M29) -> 0 | O24: =+IF('D9 Variables temps'!N29=0,0,O23/'D9 Variables temps'!N29) -> 0 | P24: =+IF('D9 Variables temps'!O29=0,0,P23/'D9 Variables temps'!O29) -> 0 | Q24: =+IF('D9 Variables temps'!P29=0,0,Q23/'D9 Variables temps'!P29) -> 0 | R24: =+IF('D9 Variables temps'!Q29=0,0,R23/'D9 Variables temps'!Q29) -> 0 | S24: =+IF('D9 Variables temps'!R29=0,0,S23/'D9 Variables temps'!R29) -> 0
D25: case management | E25: EPT | F25: =+SUM(K25:S25)+G25 -> 71.75 | G25: =+'R8 Traitement (main-d''oeuvres)'!F32 -> 71.75 | K25: =+'R8 Traitement (main-d''oeuvres)'!J32 -> 0 | L25: =+'R8 Traitement (main-d''oeuvres)'!K32 -> 0 | M25: =+'R8 Traitement (main-d''oeuvres)'!L32 -> 0 | N25: =+'R8 Traitement (main-d''oeuvres)'!M32 -> 0 | O25: =+'R8 Traitement (main-d''oeuvres)'!N32 -> 0 | P25: =+'R8 Traitement (main-d''oeuvres)'!O32 -> 0 | Q25: =+'R8 Traitement (main-d''oeuvres)'!P32 -> 0 | R25: =+'R8 Traitement (main-d''oeuvres)'!Q32 -> 0 | S25: =+'R8 Traitement (main-d''oeuvres)'!R32 -> 0
D26: supervising COWs | E26: EPT | F26: 375 | G26: =+'R13 Supervision'!F43 -> 375 | K26: =+'R13 Supervision'!J43 -> 0 | L26: =+'R13 Supervision'!K43 -> 0 | M26: =+'R13 Supervision'!L43 -> 0 | N26: =+'R13 Supervision'!M43 -> 0 | O26: =+'R13 Supervision'!N43 -> 0 | P26: =+'R13 Supervision'!O43 -> 0 | Q26: =+'R13 Supervision'!P43 -> 0 | R26: =+'R13 Supervision'!Q43 -> 0 | S26: =+'R13 Supervision'!R43 -> 0
D27: training COWs | E27: EPT | F27: 24 | G27: =+'R12 Formation'!F58 -> 24 | K27: =+'R12 Formation'!J58 -> 0 | L27: =+'R12 Formation'!K58 -> 0 | M27: =+'R12 Formation'!L58 -> 0 | N27: =+'R12 Formation'!M58 -> 0 | O27: =+'R12 Formation'!N58 -> 0 | P27: =+'R12 Formation'!O58 -> 0 | Q27: =+'R12 Formation'!P58 -> 0 | R27: =+'R12 Formation'!Q58 -> 0 | S27: =+'R12 Formation'!R58 -> 0
D28: being trained | E28: EPT | F28: 6 | G28: =+'R12 Formation'!F64/2 -> 6 | K28: =+'R12 Formation'!J64/2 -> 0 | L28: =+'R12 Formation'!K64/2 -> 0 | M28: =+'R12 Formation'!L64/2 -> 0 | N28: =+'R12 Formation'!M64/2 -> 0 | O28: =+'R12 Formation'!N64/2 -> 0 | P28: =+'R12 Formation'!O64/2 -> 0 | Q28: =+'R12 Formation'!P64/2 -> 0 | R28: =+'R12 Formation'!Q64/2 -> 0 | S28: =+'R12 Formation'!R64/2 -> 0
D29: establishing community outreach | E29: EPT | F29: 200 | G29: =+'R14 Extension communautaire'!F31 -> 200 | K29: =+'R14 Extension communautaire'!J31 -> 0 | L29: =+'R14 Extension communautaire'!K31 -> 0 | M29: =+'R14 Extension communautaire'!L31 -> 0 | N29: =+'R14 Extension communautaire'!M31 -> 0 | O29: =+'R14 Extension communautaire'!N31 -> 0 | P29: =+'R14 Extension communautaire'!O31 -> 0 | Q29: =+'R14 Extension communautaire'!P31 -> 0 | R29: =+'R14 Extension communautaire'!Q31 -> 0 | S29: =+'R14 Extension communautaire'!R31 -> 0
D30: Total | E30: EPT | F30: 676.75 | G30: =+SUM(G25:G29) -> 676.75 | K30: =+SUM(K25:K29) -> 0 | L30: 0 | M30: 0 | N30: 0 | O30: 0 | P30: 0 | Q30: 0 | R30: 0 | S30: 0
C31: Personnel junior PEC MAS ambulatoire | D31: TOTAL | E31: EPT | F31: =+(G31*$G$9+K31*$K$9+L31*$L$9+M31*$M$9+N31*$N$9+O31*$O$9+P31*$P$9+Q31*$Q$9+R31*$R$9+S31*$S$9) -> 1.068269231 | G31: =+G36/'D5 Salaires'!$I$20 -> 1.068269231 | K31: =+K36/'D5 Salaires'!$I$20 -> 0 | L31: =+L36/'D5 Salaires'!$I$20 -> 0 | M31: =+M36/'D5 Salaires'!$I$20 -> 0 | N31: =+N36/'D5 Salaires'!$I$20 -> 0 | O31: =+O36/'D5 Salaires'!$I$20 -> 0 | P31: =+P36/'D5 Salaires'!$I$20 -> 0 | Q31: =+Q36/'D5 Salaires'!$I$20 -> 0 | R31: =+R36/'D5 Salaires'!$I$20 -> 0 | S31: =+S36/'D5 Salaires'!$I$20 -> 0
D32: Par site PEC MAS ambulatoire | E32: EPT | G32: =+IF('D9 Variables temps'!F29=0,0,G31/'D9 Variables temps'!F29) -> 0.5341346154 | K32: =+IF('D9 Variables temps'!J29=0,0,K31/'D9 Variables temps'!J29) -> 0 | L32: =+IF('D9 Variables temps'!K29=0,0,L31/'D9 Variables temps'!K29) -> 0 | M32: =+IF('D9 Variables temps'!L29=0,0,M31/'D9 Variables temps'!L29) -> 0 | N32: =+IF('D9 Variables temps'!M29=0,0,N31/'D9 Variables temps'!M29) -> 0 | O32: =+IF('D9 Variables temps'!N29=0,0,O31/'D9 Variables temps'!N29) -> 0 | P32: =+IF('D9 Variables temps'!O29=0,0,P31/'D9 Variables temps'!O29) -> 0 | Q32: =+IF('D9 Variables temps'!P29=0,0,Q31/'D9 Variables temps'!P29) -> 0 | R32: =+IF('D9 Variables temps'!Q29=0,0,R31/'D9 Variables temps'!Q29) -> 0 | S32: =+IF('D9 Variables temps'!R29=0,0,S31/'D9 Variables temps'!R29) -> 0
D33: case management | E33: EPT | F33: =+SUM(K33:S33)+G33 -> 71.75 | G33: =+'R8 Traitement (main-d''oeuvres)'!F33 -> 71.75 | K33: =+'R8 Traitement (main-d''oeuvres)'!J33 -> 0 | L33: =+'R8 Traitement (main-d''oeuvres)'!K33 -> 0 | M33: =+'R8 Traitement (main-d''oeuvres)'!L33 -> 0 | N33: =+'R8 Traitement (main-d''oeuvres)'!M33 -> 0 | O33: =+'R8 Traitement (main-d''oeuvres)'!N33 -> 0 | P33: =+'R8 Traitement (main-d''oeuvres)'!O33 -> 0 | Q33: =+'R8 Traitement (main-d''oeuvres)'!P33 -> 0 | R33: =+'R8 Traitement (main-d''oeuvres)'!Q33 -> 0 | S33: =+'R8 Traitement (main-d''oeuvres)'!R33 -> 0
D34: being trained | E34: EPT | F34: =+SUM(K34:S34)+G34 -> 6 | G34: =+'R12 Formation'!F64/2 -> 6 | K34: =+'R12 Formation'!J64/2 -> 0 | L34: =+'R12 Formation'!K64/2 -> 0 | M34: =+'R12 Formation'!L64/2 -> 0 | N34: =+'R12 Formation'!M64/2 -> 0 | O34: =+'R12 Formation'!N64/2 -> 0 | P34: =+'R12 Formation'!O64/2 -> 0 | Q34: =+'R12 Formation'!P64/2 -> 0 | R34: =+'R12 Formation'!Q64/2 -> 0 | S34: =+'R12 Formation'!R64/2 -> 0
D35: establishing community outreach | E35: EPT | F35: =+SUM(K35:S35)+G35 -> 200 | G35: =+'R14 Extension communautaire'!F32 -> 200 | K35: =+'R14 Extension communautaire'!J32 -> 0 | L35: =+'R14 Extension communautaire'!K32 -> 0 | M35: =+'R14 Extension communautaire'!L32 -> 0 | N35: =+'R14 Extension communautaire'!M32 -> 0 | O35: =+'R14 Extension communautaire'!N32 -> 0 | P35: =+'R14 Extension communautaire'!O32 -> 0 | Q35: =+'R14 Extension communautaire'!P32 -> 0 | R35: =+'R14 Extension communautaire'!Q32 -> 0 | S35: =+'R14 Extension communautaire'!R32 -> 0
D36: Total | E36: EPT | F36: =+SUM(K36:S36)+G36 -> 277.75 | G36: =+SUM(G33:G35) -> 277.75 | K36: =+SUM(K33:K35) -> 0 | L36: 0 | M36: 0 | N36: 0 | O36: 0 | P36: 0 | Q36: 0 | R36: 0 | S36: 0
C37: Gardiens | D37: TOTAL | E37: EPT | F37: =+(G37*$G$9+K37*$K$9+L37*$L$9+M37*$M$9+N37*$N$9+O37*$O$9+P37*$P$9+Q37*$Q$9+R37*$R$9+S37*$S$9) -> 2 | G37: =+'R11 Logistique approvisionnemen'!F33 -> 2 | K37: =+'R11 Logistique approvisionnemen'!J33 -> 0 | L37: =+'R11 Logistique approvisionnemen'!K33 -> 0 | M37: =+'R11 Logistique approvisionnemen'!L33 -> 0 | N37: =+'R11 Logistique approvisionnemen'!M33 -> 0 | O37: =+'R11 Logistique approvisionnemen'!N33 -> 0 | P37: =+'R11 Logistique approvisionnemen'!O33 -> 0 | Q37: =+'R11 Logistique approvisionnemen'!P33 -> 0 | R37: =+'R11 Logistique approvisionnemen'!Q33 -> 0 | S37: =+'R11 Logistique approvisionnemen'!R33 -> 0
D38: Par site PEC MAS ambulatoire | E38: EPT | G38: =+IF('D9 Variables temps'!F29=0,0,G37/'D9 Variables temps'!F29) -> 1 | K38: =+IF('D9 Variables temps'!J29=0,0,K37/'D9 Variables temps'!J29) -> 0 | L38: =+IF('D9 Variables temps'!K29=0,0,L37/'D9 Variables temps'!K29) -> 0 | M38: =+IF('D9 Variables temps'!L29=0,0,M37/'D9 Variables temps'!L29) -> 0 | N38: =+IF('D9 Variables temps'!M29=0,0,N37/'D9 Variables temps'!M29) -> 0 | O38: =+IF('D9 Variables temps'!N29=0,0,O37/'D9 Variables temps'!N29) -> 0 | P38: =+IF('D9 Variables temps'!O29=0,0,P37/'D9 Variables temps'!O29) -> 0 | Q38: =+IF('D9 Variables temps'!P29=0,0,Q37/'D9 Variables temps'!P29) -> 0 | R38: =+IF('D9 Variables temps'!Q29=0,0,R37/'D9 Variables temps'!Q29) -> 0 | S38: =+IF('D9 Variables temps'!R29=0,0,S37/'D9 Variables temps'!R29) -> 0
B40: PEC MAS hospitalière
C41: Personnel senior PEC MAS hospitalière | D41: TOTAL | E41: EPT | F41: =+(G41*$G$9+K41*$K$9+L41*$L$9+M41*$M$9+N41*$N$9+O41*$O$9+P41*$P$9+Q41*$Q$9+R41*$R$9+S41*$S$9) -> 0.4322115385 | G41: =+G45/'D5 Salaires'!$I$20 -> 0.4322115385 | K41: =+K45/'D5 Salaires'!$I$20 -> 0 | L41: =+L45/'D5 Salaires'!$I$20 -> 0 | M41: =+M45/'D5 Salaires'!$I$20 -> 0 | N41: =+N45/'D5 Salaires'!$I$20 -> 0 | O41: =+O45/'D5 Salaires'!$I$20 -> 0 | P41: =+P45/'D5 Salaires'!$I$20 -> 0 | Q41: =+Q45/'D5 Salaires'!$I$20 -> 0 | R41: =+R45/'D5 Salaires'!$I$20 -> 0 | S41: =+S45/'D5 Salaires'!$I$20 -> 0
D42: Par site PEC MAS hospitalière | E42: EPT | G42: =+IF('D9 Variables temps'!F32=0,0,G41/'D9 Variables temps'!F32) -> 0.4322115385 | K42: =+IF('D9 Variables temps'!J32=0,0,K41/'D9 Variables temps'!J32) -> 0 | L42: =+IF('D9 Variables temps'!K32=0,0,L41/'D9 Variables temps'!K32) -> 0 | M42: =+IF('D9 Variables temps'!L32=0,0,M41/'D9 Variables temps'!L32) -> 0 | N42: =+IF('D9 Variables temps'!M32=0,0,N41/'D9 Variables temps'!M32) -> 0 | O42: =+IF('D9 Variables temps'!N32=0,0,O41/'D9 Variables temps'!N32) -> 0 | P42: =+IF('D9 Variables temps'!O32=0,0,P41/'D9 Variables temps'!O32) -> 0 | Q42: =+IF('D9 Variables temps'!P32=0,0,Q41/'D9 Variables temps'!P32) -> 0 | R42: =+IF('D9 Variables temps'!Q32=0,0,R41/'D9 Variables temps'!Q32) -> 0 | S42: =+IF('D9 Variables temps'!R32=0,0,S41/'D9 Variables temps'!R32) -> 0
D43: case management | E43: EPT | F43: =+SUM(K43:S43)+G43 -> 106.375 | G43: =+'R8 Traitement (main-d''oeuvres)'!F34 -> 106.375 | K43: =+'R8 Traitement (main-d''oeuvres)'!J34 -> 0 | L43: =+'R8 Traitement (main-d''oeuvres)'!K34 -> 0 | M43: =+'R8 Traitement (main-d''oeuvres)'!L34 -> 0 | N43: =+'R8 Traitement (main-d''oeuvres)'!M34 -> 0 | O43: =+'R8 Traitement (main-d''oeuvres)'!N34 -> 0 | P43: =+'R8 Traitement (main-d''oeuvres)'!O34 -> 0 | Q43: =+'R8 Traitement (main-d''oeuvres)'!P34 -> 0 | R43: =+'R8 Traitement (main-d''oeuvres)'!Q34 -> 0 | S43: =+'R8 Traitement (main-d''oeuvres)'!R34 -> 0
D44: being trained | E44: EPT | F44: 6 | G44: =+'R12 Formation'!F65/2 -> 6 | K44: =+'R12 Formation'!J65/2 -> 0 | L44: =+'R12 Formation'!K65/2 -> 0 | M44: =+'R12 Formation'!L65/2 -> 0 | N44: =+'R12 Formation'!M65/2 -> 0 | O44: =+'R12 Formation'!N65/2 -> 0 | P44: =+'R12 Formation'!O65/2 -> 0 | Q44: =+'R12 Formation'!P65/2 -> 0 | R44: =+'R12 Formation'!Q65/2 -> 0 | S44: =+'R12 Formation'!R65/2 -> 0
D45: Total | E45: EPT | F45: 112.375 | G45: =+SUM(G43:G44) -> 112.375 | K45: =+SUM(K43:K44) -> 0 | L45: 0 | M45: 0 | N45: 0 | O45: 0 | P45: 0 | Q45: 0 | R45: 0 | S45: 0
C46: Personnel junior PEC MAS hospitalière | D46: TOTAL | E46: EPT | F46: =+(G46*$G$9+K46*$K$9+L46*$L$9+M46*$M$9+N46*$N$9+O46*$O$9+P46*$P$9+Q46*$Q$9+R46*$R$9+S46*$S$9) -> 4.234615385 | G46: =+G50/'D5 Salaires'!$I$20 -> 4.234615385 | K46: =+K50/'D5 Salaires'!$I$20 -> 0 | L46: =+L50/'D5 Salaires'!$I$20 -> 0 | M46: =+M50/'D5 Salaires'!$I$20 -> 0 | N46: =+N50/'D5 Salaires'!$I$20 -> 0 | O46: =+O50/'D5 Salaires'!$I$20 -> 0 | P46: =+P50/'D5 Salaires'!$I$20 -> 0 | Q46: =+Q50/'D5 Salaires'!$I$20 -> 0 | R46: =+R50/'D5 Salaires'!$I$20 -> 0 | S46: =+S50/'D5 Salaires'!$I$20 -> 0
D47: Par site PEC MAS hospitalière | E47: EPT | G47: =+IF('D9 Variables temps'!F32=0,0,G46/'D9 Variables temps'!F32) -> 4.234615385 | K47: =+IF('D9 Variables temps'!J32=0,0,K46/'D9 Variables temps'!J32) -> 0 | L47: =+IF('D9 Variables temps'!K32=0,0,L46/'D9 Variables temps'!K32) -> 0 | M47: =+IF('D9 Variables temps'!L32=0,0,M46/'D9 Variables temps'!L32) -> 0 | N47: =+IF('D9 Variables temps'!M32=0,0,N46/'D9 Variables temps'!M32) -> 0 | O47: =+IF('D9 Variables temps'!N32=0,0,O46/'D9 Variables temps'!N32) -> 0 | P47: =+IF('D9 Variables temps'!O32=0,0,P46/'D9 Variables temps'!O32) -> 0 | Q47: =+IF('D9 Variables temps'!P32=0,0,Q46/'D9 Variables temps'!P32) -> 0 | R47: =+IF('D9 Variables temps'!Q32=0,0,R46/'D9 Variables temps'!Q32) -> 0 | S47: =+IF('D9 Variables temps'!R32=0,0,S46/'D9 Variables temps'!R32) -> 0
D48: case management | E48: EPT | F48: 1095 | G48: =+'R8 Traitement (main-d''oeuvres)'!F35 -> 1095 | K48: =+'R8 Traitement (main-d''oeuvres)'!J35 -> 0 | L48: =+'R8 Traitement (main-d''oeuvres)'!K35 -> 0 | M48: =+'R8 Traitement (main-d''oeuvres)'!L35 -> 0 | N48: =+'R8 Traitement (main-d''oeuvres)'!M35 -> 0 | O48: =+'R8 Traitement (main-d''oeuvres)'!N35 -> 0 | P48: =+'R8 Traitement (main-d''oeuvres)'!O35 -> 0 | Q48: =+'R8 Traitement (main-d''oeuvres)'!P35 -> 0 | R48: =+'R8 Traitement (main-d''oeuvres)'!Q35 -> 0 | S48: =+'R8 Traitement (main-d''oeuvres)'!R35 -> 0
D49: being trained | E49: EPT | F49: 6 | G49: =+'R12 Formation'!F65/2 -> 6 | K49: =+'R12 Formation'!J65/2 -> 0 | L49: =+'R12 Formation'!K65/2 -> 0 | M49: =+'R12 Formation'!L65/2 -> 0 | N49: =+'R12 Formation'!M65/2 -> 0 | O49: =+'R12 Formation'!N65/2 -> 0 | P49: =+'R12 Formation'!O65/2 -> 0 | Q49: =+'R12 Formation'!P65/2 -> 0 | R49: =+'R12 Formation'!Q65/2 -> 0 | S49: =+'R12 Formation'!R65/2 -> 0
D50: Total | E50: EPT | F50: 1101 | G50: =+SUM(G48:G49) -> 1101 | K50: =+SUM(K48:K49) -> 0 | L50: 0 | M50: 0 | N50: 0 | O50: 0 | P50: 0 | Q50: 0 | R50: 0 | S50: 0
C51: Gardiens | D51: TOTAL | E51: EPT | F51: =+(G51*$G$9+K51*$K$9+L51*$L$9+M51*$M$9+N51*$N$9+O51*$O$9+P51*$P$9+Q51*$Q$9+R51*$R$9+S51*$S$9) -> 1 | G51: =+'R11 Logistique approvisionnemen'!F34 -> 1 | K51: =+'R11 Logistique approvisionnemen'!J34 -> 0 | L51: =+'R11 Logistique approvisionnemen'!K34 -> 0 | M51: =+'R11 Logistique approvisionnemen'!L34 -> 0 | N51: =+'R11 Logistique approvisionnemen'!M34 -> 0 | O51: =+'R11 Logistique approvisionnemen'!N34 -> 0 | P51: =+'R11 Logistique approvisionnemen'!O34 -> 0 | Q51: =+'R11 Logistique approvisionnemen'!P34 -> 0 | R51: =+'R11 Logistique approvisionnemen'!Q34 -> 0 | S51: =+'R11 Logistique approvisionnemen'!R34 -> 0
D52: Par site PEC MAS hospitalière | E52: EPT | G52: =+IF('D9 Variables temps'!F32=0,0,G51/'D9 Variables temps'!F32) -> 1 | K52: =+IF('D9 Variables temps'!J32=0,0,K51/'D9 Variables temps'!J32) -> 0 | L52: =+IF('D9 Variables temps'!K32=0,0,L51/'D9 Variables temps'!K32) -> 0 | M52: =+IF('D9 Variables temps'!L32=0,0,M51/'D9 Variables temps'!L32) -> 0 | N52: =+IF('D9 Variables temps'!M32=0,0,N51/'D9 Variables temps'!M32) -> 0 | O52: =+IF('D9 Variables temps'!N32=0,0,O51/'D9 Variables temps'!N32) -> 0 | P52: =+IF('D9 Variables temps'!O32=0,0,P51/'D9 Variables temps'!O32) -> 0 | Q52: =+IF('D9 Variables temps'!P32=0,0,Q51/'D9 Variables temps'!P32) -> 0 | R52: =+IF('D9 Variables temps'!Q32=0,0,R51/'D9 Variables temps'!Q32) -> 0 | S52: =+IF('D9 Variables temps'!R32=0,0,S51/'D9 Variables temps'!R32) -> 0
B54: Siège zone
C55: Personnel senior | D55: TOTAL | E55: EPT | F55: =+(G55*$G$9+K55*$K$9+L55*$L$9+M55*$M$9+N55*$N$9+O55*$O$9+P55*$P$9+Q55*$Q$9+R55*$R$9+S55*$S$9) -> 0.04615384615 | G55: =+G56/'D5 Salaires'!$I$20 -> 0.04615384615 | K55: =+K56/'D5 Salaires'!$I$20 -> 0 | L55: =+L56/'D5 Salaires'!$I$20 -> 0 | M55: =+M56/'D5 Salaires'!$I$20 -> 0 | N55: =+N56/'D5 Salaires'!$I$20 -> 0 | O55: =+O56/'D5 Salaires'!$I$20 -> 0 | P55: =+P56/'D5 Salaires'!$I$20 -> 0 | Q55: =+Q56/'D5 Salaires'!$I$20 -> 0 | R55: =+R56/'D5 Salaires'!$I$20 -> 0 | S55: =+S56/'D5 Salaires'!$I$20 -> 0
D56: general management (planning, budgeting, MIS etc) | E56: EPT | F56: 12 | G56: =+'R7 Gestion au siège de la zone'!F28 -> 12 | K56: =+'R7 Gestion au siège de la zone'!J28 -> 0 | L56: =+'R7 Gestion au siège de la zone'!K28 -> 0 | M56: =+'R7 Gestion au siège de la zone'!L28 -> 0 | N56: =+'R7 Gestion au siège de la zone'!M28 -> 0 | O56: =+'R7 Gestion au siège de la zone'!N28 -> 0 | P56: =+'R7 Gestion au siège de la zone'!O28 -> 0 | Q56: =+'R7 Gestion au siège de la zone'!P28 -> 0 | R56: =+'R7 Gestion au siège de la zone'!Q28 -> 0 | S56: =+'R7 Gestion au siège de la zone'!R28 -> 0
C57: Personnel intermédiaire | D57: TOTAL | E57: EPT | F57: 0.2740384615 | G57: =+G62/'D5 Salaires'!$I$20 -> 0.2740384615 | K57: =+K62/'D5 Salaires'!$I$20 -> 0 | L57: =+L62/'D5 Salaires'!$I$20 -> 0 | M57: =+M62/'D5 Salaires'!$I$20 -> 0 | N57: =+N62/'D5 Salaires'!$I$20 -> 0 | O57: =+O62/'D5 Salaires'!$I$20 -> 0 | P57: =+P62/'D5 Salaires'!$I$20 -> 0 | Q57: =+Q62/'D5 Salaires'!$I$20 -> 0 | R57: =+R62/'D5 Salaires'!$I$20 -> 0 | S57: =+S62/'D5 Salaires'!$I$20 -> 0
D58: general management (planning, budgeting, MIS etc) | E58: EPT | F58: 42 | G58: =+'R7 Gestion au siège de la zone'!F29 -> 42 | K58: =+'R7 Gestion au siège de la zone'!J29 -> 0 | L58: =+'R7 Gestion au siège de la zone'!K29 -> 0 | M58: =+'R7 Gestion au siège de la zone'!L29 -> 0 | N58: =+'R7 Gestion au siège de la zone'!M29 -> 0 | O58: =+'R7 Gestion au siège de la zone'!N29 -> 0 | P58: =+'R7 Gestion au siège de la zone'!O29 -> 0 | Q58: =+'R7 Gestion au siège de la zone'!P29 -> 0 | R58: =+'R7 Gestion au siège de la zone'!Q29 -> 0 | S58: =+'R7 Gestion au siège de la zone'!R29 -> 0
D59: training OC and IC staff | E59: EPT | F59: 16 | G59: =+'R12 Formation'!F59+'R12 Formation'!F60 -> 16 | K59: =+'R12 Formation'!J59+'R12 Formation'!J60 -> 0 | L59: =+'R12 Formation'!K59+'R12 Formation'!K60 -> 0 | M59: =+'R12 Formation'!L59+'R12 Formation'!L60 -> 0 | N59: =+'R12 Formation'!M59+'R12 Formation'!M60 -> 0 | O59: =+'R12 Formation'!N59+'R12 Formation'!N60 -> 0 | P59: =+'R12 Formation'!O59+'R12 Formation'!O60 -> 0 | Q59: =+'R12 Formation'!P59+'R12 Formation'!P60 -> 0 | R59: =+'R12 Formation'!Q59+'R12 Formation'!Q60 -> 0 | S59: =+'R12 Formation'!R59+'R12 Formation'!R60 -> 0
D60: supervising OC and iC staff | E60: EPT | F60: 11.25 | G60: =+'R13 Supervision'!F36 -> 11.25 | K60: =+'R13 Supervision'!J36 -> 0 | L60: =+'R13 Supervision'!K36 -> 0 | M60: =+'R13 Supervision'!L36 -> 0 | N60: =+'R13 Supervision'!M36 -> 0 | O60: =+'R13 Supervision'!N36 -> 0 | P60: =+'R13 Supervision'!O36 -> 0 | Q60: =+'R13 Supervision'!P36 -> 0 | R60: =+'R13 Supervision'!Q36 -> 0 | S60: =+'R13 Supervision'!R36 -> 0
D61: being trained | E61: EPT | F61: 2 | G61: =+'R12 Formation'!F66 -> 2 | K61: =+'R12 Formation'!J66 -> 0 | L61: =+'R12 Formation'!K66 -> 0 | M61: =+'R12 Formation'!L66 -> 0 | N61: =+'R12 Formation'!M66 -> 0 | O61: =+'R12 Formation'!N66 -> 0 | P61: =+'R12 Formation'!O66 -> 0 | Q61: =+'R12 Formation'!P66 -> 0 | R61: =+'R12 Formation'!Q66 -> 0 | S61: =+'R12 Formation'!R66 -> 0
D62: Total | E62: EPT | F62: 71.25 | G62: =+SUM(G58:G61) -> 71.25 | K62: =+SUM(K58:K61) -> 0 | L62: 0 | M62: 0 | N62: 0 | O62: 0 | P62: 0 | Q62: 0 | R62: 0 | S62: 0
C63: Personnel junior | D63: TOTAL | E63: EPT | F63: 0.3 | G63: =+G64/'D5 Salaires'!$I$20 -> 0.3 | K63: =+K64/'D5 Salaires'!$I$20 -> 0 | L63: =+L64/'D5 Salaires'!$I$20 -> 0 | M63: =+M64/'D5 Salaires'!$I$20 -> 0 | N63: =+N64/'D5 Salaires'!$I$20 -> 0 | O63: =+O64/'D5 Salaires'!$I$20 -> 0 | P63: =+P64/'D5 Salaires'!$I$20 -> 0 | Q63: =+Q64/'D5 Salaires'!$I$20 -> 0 | R63: =+R64/'D5 Salaires'!$I$20 -> 0 | S63: =+S64/'D5 Salaires'!$I$20 -> 0
D64: support for general management (planning, budgeting MIS etc) | E64: EPT | F64: =+SUM(K64:S64)+G64 -> 78 | G64: =+'R7 Gestion au siège de la zone'!F30 -> 78 | K64: =+'R7 Gestion au siège de la zone'!J30 -> 0 | L64: =+'R7 Gestion au siège de la zone'!K30 -> 0 | M64: =+'R7 Gestion au siège de la zone'!L30 -> 0 | N64: =+'R7 Gestion au siège de la zone'!M30 -> 0 | O64: =+'R7 Gestion au siège de la zone'!N30 -> 0 | P64: =+'R7 Gestion au siège de la zone'!O30 -> 0 | Q64: =+'R7 Gestion au siège de la zone'!P30 -> 0 | R64: =+'R7 Gestion au siège de la zone'!Q30 -> 0 | S64: =+'R7 Gestion au siège de la zone'!R30 -> 0
C65: Gardiens | D65: TOTAL | E65: EPT | F65: =+SUM(F66:F67) -> 4
D66: For Area HQ | E66: EPT | F66: =+SUM(K66:S66)+G66 -> 1 | G66: =+'R11 Logistique approvisionnemen'!F35 -> 1 | K66: =+'R11 Logistique approvisionnemen'!J35 -> 0 | L66: =+'R11 Logistique approvisionnemen'!K35 -> 0 | M66: =+'R11 Logistique approvisionnemen'!L35 -> 0 | N66: =+'R11 Logistique approvisionnemen'!M35 -> 0 | O66: =+'R11 Logistique approvisionnemen'!N35 -> 0 | P66: =+'R11 Logistique approvisionnemen'!O35 -> 0 | Q66: =+'R11 Logistique approvisionnemen'!P35 -> 0 | R66: =+'R11 Logistique approvisionnemen'!Q35 -> 0 | S66: =+'R11 Logistique approvisionnemen'!R35 -> 0
D67: For OC and IC stores | E67: EPT | F67: =+SUM(K67:S67)+G67 -> 3 | G67: =+'R11 Logistique approvisionnemen'!F33+'R11 Logistique approvisionnemen'!F34 -> 3 | K67: =+'R11 Logistique approvisionnemen'!J33+'R11 Logistique approvisionnemen'!J34 -> 0 | L67: =+'R11 Logistique approvisionnemen'!K33+'R11 Logistique approvisionnemen'!K34 -> 0 | M67: =+'R11 Logistique approvisionnemen'!L33+'R11 Logistique approvisionnemen'!L34 -> 0 | N67: =+'R11 Logistique approvisionnemen'!M33+'R11 Logistique approvisionnemen'!M34 -> 0 | O67: =+'R11 Logistique approvisionnemen'!N33+'R11 Logistique approvisionnemen'!N34 -> 0 | P67: =+'R11 Logistique approvisionnemen'!O33+'R11 Logistique approvisionnemen'!O34 -> 0 | Q67: =+'R11 Logistique approvisionnemen'!P33+'R11 Logistique approvisionnemen'!P34 -> 0 | R67: =+'R11 Logistique approvisionnemen'!Q33+'R11 Logistique approvisionnemen'!Q34 -> 0 | S67: =+'R11 Logistique approvisionnemen'!R33+'R11 Logistique approvisionnemen'!R34 -> 0
C68: Chauffeurs | D68: TOTAL | E68: EPT | F68: =+F69/'D5 Salaires'!I20 -> 0.02163461538 | G68: =+G69/'D5 Salaires'!$I$20 -> 0.02163461538 | K68: =+K69/'D5 Salaires'!$I$20 -> 0 | L68: =+L69/'D5 Salaires'!$I$20 -> 0 | M68: =+M69/'D5 Salaires'!$I$20 -> 0 | N68: =+N69/'D5 Salaires'!$I$20 -> 0 | O68: =+O69/'D5 Salaires'!$I$20 -> 0 | P68: =+P69/'D5 Salaires'!$I$20 -> 0 | Q68: =+Q69/'D5 Salaires'!$I$20 -> 0 | R68: =+R69/'D5 Salaires'!$I$20 -> 0 | S68: =+S69/'D5 Salaires'!$I$20 -> 0
D69: delivering therapeutic food from Area HQ to Outpatient and Inpatient Care sites | E69: days | F69: =+(G69*$G$9+K69*$K$9+L69*$L$9+M69*$M$9+N69*$N$9+O69*$O$9+P69*$P$9+Q69*$Q$9+R69*$R$9+S69*$S$9) -> 5.625 | G69: =+'R11 Logistique approvisionnemen'!F38+'R11 Logistique approvisionnemen'!F39 -> 5.625 | K69: =+'R11 Logistique approvisionnemen'!J38+'R11 Logistique approvisionnemen'!J39 -> 0 | L69: =+'R11 Logistique approvisionnemen'!K38+'R11 Logistique approvisionnemen'!K39 -> 0 | M69: =+'R11 Logistique approvisionnemen'!L38+'R11 Logistique approvisionnemen'!L39 -> 0 | N69: =+'R11 Logistique approvisionnemen'!M38+'R11 Logistique approvisionnemen'!M39 -> 0 | O69: =+'R11 Logistique approvisionnemen'!N38+'R11 Logistique approvisionnemen'!N39 -> 0 | P69: =+'R11 Logistique approvisionnemen'!O38+'R11 Logistique approvisionnemen'!O39 -> 0 | Q69: =+'R11 Logistique approvisionnemen'!P38+'R11 Logistique approvisionnemen'!P39 -> 0 | R69: =+'R11 Logistique approvisionnemen'!Q38+'R11 Logistique approvisionnemen'!Q39 -> 0 | S69: =+'R11 Logistique approvisionnemen'!R38+'R11 Logistique approvisionnemen'!R39 -> 0
B71: Siège groupe-zones
C72: Personnel senior | D72: TOTAL | E72: EPT | F72: =+F73*5/'D5 Salaires'!I20 -> 0
D73: general management (planning, budgeting, MIS etc) | E73: EPT | F73: =+'R6 Niveau group-zones et centre'!Q42 -> 0
C74: Personnel intermédiaire | D74: TOTAL | E74: EPT | F74: =+(F75*5+F76+F77+F78)/'D5 Salaires'!I20 -> 0.004230769231
D75: general management (planning, budgeting, MIS etc) | E75: EPT | F75: =+'R6 Niveau group-zones et centre'!Q43+'R6 Niveau group-zones et centre'!Q44 -> 0
D76: training Area HQ staff | E76: EPT | F76: =+'R6 Niveau group-zones et centre'!Q17 -> 0
D77: supervising Area HQ staff | E77: EPT | F77: =+SUM('R13 Supervision'!F47:R47) -> 1.1
D78: being trained | E78: EPT | F78: =+'R6 Niveau group-zones et centre'!Q23 -> 0
C79: Gardiens | D79: TOTAL | E79: EPT | F79: =+'R6 Niveau group-zones et centre'!O37 -> 0
C80: Chauffeurs | D80: TOTAL | E80: EPT | F80: =+F81/'D5 Salaires'!I20 -> 0.006346153846
D81: Delivering therapeutic food from Group -Area to Area HQ | E81: days | F81: =+SUM(K81:S81)+G81 -> 1.65 | G81: =+'R11 Logistique approvisionnemen'!F40 -> 1.65 | K81: =+'R11 Logistique approvisionnemen'!J40 -> 0 | L81: =+'R11 Logistique approvisionnemen'!K40 -> 0 | M81: =+'R11 Logistique approvisionnemen'!L40 -> 0 | N81: =+'R11 Logistique approvisionnemen'!M40 -> 0 | O81: =+'R11 Logistique approvisionnemen'!N40 -> 0 | P81: =+'R11 Logistique approvisionnemen'!O40 -> 0 | Q81: =+'R11 Logistique approvisionnemen'!P40 -> 0 | R81: =+'R11 Logistique approvisionnemen'!Q40 -> 0 | S81: =+'R11 Logistique approvisionnemen'!R40 -> 0
B83: Niveau national
C84: Personnel senior | D84: TOTAL | E84: EPT | F84: =+'R6 Niveau group-zones et centre'!Q50 -> 0
D85: establishing CMAM in the country | E85: EPT | F85: =+'R6 Niveau group-zones et centre'!Q50 -> 0
C86: Personnel intermédiaire | D86: TOTAL | E86: EPT | F86: =+F87+F89+F88/'D5 Salaires'!I20 -> 0.5
D87: general management (planning, budgeting, MIS etc) | E87: EPT | F87: =+'R6 Niveau group-zones et centre'!Q47 -> 0.5
D88: training GroupArea HQ staff | E88: EPT | F88: =+'R6 Niveau group-zones et centre'!Q24 -> 0
D89: assisting in the establishment of CMAM | E89: EPT | F89: =+'R6 Niveau group-zones et centre'!Q51 -> 0
C90: Gardiens | D90: TOTAL | E90: EPT | F90: =+'R6 Niveau group-zones et centre'!P37 -> 1
C91: Chauffeurs | D91: TOTAL | E91: EPT | F91: =+F92/'D5 Salaires'!I20 -> 0
D92: Delivering therapeutic food to Group-Areas from national HQ | E92: days | F92: =+'R6 Niveau group-zones et centre'!Q35 -> 0
B96: *

Sheet R2 Transport
A2: Retour au sommaire | C2: R2: Besoins annuels en transports pour la PCMA
C4: Number of Areas included | D4: =+'D1 Données générales'!G31 -> 1 | F4: (taken from Worksheet 2)
C5: Cette Feuille de calcul montre (pour l'année choisie) les distances parcourues pour le transport des fournitures et des personnes pour la mise en oeuvre de la PCMA.
C7: =+IF('D1 Données générales'!$H$11="","",'D1 Données générales'!$H$11) -> Ghana
C8: =+'D9 Variables temps'!$I$6 -> 2011
F9: =+IF('D1 Données générales'!$G$31<1,0,1) -> 1 | J9: =+IF('D1 Données générales'!$G$31<2,0,1) -> 0 | K9: =+IF('D1 Données générales'!$G$31<3,0,1) -> 0 | L9: =+IF('D1 Données générales'!$G$31<4,0,1) -> 0 | M9: =+IF('D1 Données générales'!$G$31<5,0,1) -> 0 | N9: =+IF('D1 Données générales'!$G$31<6,0,1) -> 0 | O9: =+IF('D1 Données générales'!$G$31<7,0,1) -> 0 | P9: =+IF('D1 Données générales'!$G$31<8,0,1) -> 0 | Q9: =+IF('D1 Données générales'!$G$31<9,0,1) -> 0 | R9: =+IF('D1 Données générales'!$G$31<10,0,1) -> 0
E10: Toutes zones | F10: Zone 1 | J10: Zone 2 | K10: Zone3 | L10: Zone 4 | M10: Zone 5 | N10: Zone 6 | O10: Zone 7 | P10: Zone 8 | Q10: Zone 9 | R10: Zone 10
D11: ='D2 Echelle'!$C$30 -> district | E11: TOTAL toutes zones | F11: =+IF('D2 Echelle'!$C$31="","",'D2 Echelle'!$C$31) -> Ashiedu Keteke | J11: =+IF('D2 Echelle'!$C$36="","",'D2 Echelle'!$C$36) ->  | K11: =+IF('D2 Echelle'!$C$41="","",'D2 Echelle'!$C$41) ->  | L11: =+IF('D2 Echelle'!$C$46="","",'D2 Echelle'!$C$46) ->  | M11: =+IF('D2 Echelle'!$C$51="","",'D2 Echelle'!$C$51) ->  | N11: =+IF('D2 Echelle'!$C$56="","",'D2 Echelle'!$C$56) ->  | O11: =+IF('D2 Echelle'!$C$61="","",'D2 Echelle'!$C$61) ->  | P11: =+IF('D2 Echelle'!$C$66="","",'D2 Echelle'!$C$66) ->  | Q11: =+IF('D2 Echelle'!$C$71="","",'D2 Echelle'!$C$71) ->  | R11: =+IF('D2 Echelle'!$C$76="","",'D2 Echelle'!$C$76) -> 
D12: =+'D2 Echelle'!$D$30 -> région | F12: =+IF('D2 Echelle'!$D$31="","",'D2 Echelle'!$D$31) -> Greater Accra | J12: =+IF('D2 Echelle'!$D$36="","",'D2 Echelle'!$D$36) ->  | K12: =+IF('D2 Echelle'!$D$41="","",'D2 Echelle'!$D$41) ->  | L12: =+IF('D2 Echelle'!$D$46="","",'D2 Echelle'!$D$46) ->  | M12: =+IF('D2 Echelle'!$D$51="","",'D2 Echelle'!$D$51) ->  | N12: =+IF('D2 Echelle'!$D$56="","",'D2 Echelle'!$D$56) ->  | O12: =+IF('D2 Echelle'!$D$61="","",'D2 Echelle'!$D$61) ->  | P12: =+IF('D2 Echelle'!$D$66="","",'D2 Echelle'!$D$66) ->  | Q12: =+IF('D2 Echelle'!$D$71="","",'D2 Echelle'!$D$71) ->  | R12: =+IF('D2 Echelle'!$D$76="","",'D2 Echelle'!$D$76) -> 
B13: Lieu | C13: Activité | D13: Unités
B14: Entre la communauté et les sites PEC MAS ambulatoire
C15: Formation (AEC aux sites PEC MAS ambulatoire) | D15: km-pers. | E15: =+F15*$F$9+J15*$J$9+K15*$K$9+$L$9*L15+M15*$M$9+$N$9*N15+O15*$O$9+$P$9*P15+Q15*$Q$9+$R$9*R15 -> 1200 | F15: =+'R12 Formation'!F78 -> 1200 | J15: =+'R12 Formation'!J78 -> 0 | K15: =+'R12 Formation'!K78 -> 0 | L15: =+'R12 Formation'!L78 -> 0 | M15: =+'R12 Formation'!M78 -> 0 | N15: =+'R12 Formation'!N78 -> 0 | O15: =+'R12 Formation'!O78 -> 0 | P15: =+'R12 Formation'!P78 -> 0 | Q15: =+'R12 Formation'!Q78 -> 0 | R15: =+'R12 Formation'!R78 -> 0
C16: Supervision (Personnel PEC MAS ambulatoire à communauté) | D16: km-pers. | E16: =+F16*$F$9+J16*$J$9+K16*$K$9+$L$9*L16+M16*$M$9+$N$9*N16+O16*$O$9+$P$9*P16+Q16*$Q$9+$R$9*R16 -> 7200 | F16: =+'R13 Supervision'!F44 -> 7200 | J16: =+'R13 Supervision'!J44 -> 0 | K16: =+'R13 Supervision'!K44 -> 0 | L16: =+'R13 Supervision'!L44 -> 0 | M16: =+'R13 Supervision'!M44 -> 0 | N16: =+'R13 Supervision'!N44 -> 0 | O16: =+'R13 Supervision'!O44 -> 0 | P16: =+'R13 Supervision'!P44 -> 0 | Q16: =+'R13 Supervision'!Q44 -> 0 | R16: =+'R13 Supervision'!R44 -> 0
B18: Entre sites PEC MAS ambulatoire et sites PEC MAS hospitalière
C19: Transport des enfants avec complications médicales du site PEC MAS ambulatoire au site PEC MAS hospitalière et retour une fois que les complications sont résolues | D19: km-pers. | E19: =+F19*$F$9+J19*$J$9+K19*$K$9+$L$9*L19+M19*$M$9+$N$9*N19+O19*$O$9+$P$9*P19+Q19*$Q$9+$R$9*R19 -> 105.75 | F19: =+'R10 Traitement (fournitures)'!G37 -> 105.75 | J19: =+'R10 Traitement (fournitures)'!I37 -> 0 | K19: =+'R10 Traitement (fournitures)'!K37 -> 0 | L19: =+'R10 Traitement (fournitures)'!M37 -> 0 | M19: =+'R10 Traitement (fournitures)'!O37 -> 0 | N19: =+'R10 Traitement (fournitures)'!Q37 -> 0 | O19: =+'R10 Traitement (fournitures)'!S37 -> 0 | P19: =+'R10 Traitement (fournitures)'!U37 -> 0 | Q19: =+'R10 Traitement (fournitures)'!W37 -> 0 | R19: =+'R10 Traitement (fournitures)'!Y37 -> 0
B20: Entre les sites PEC MAS ambulatoire ou les sites PEC MAS hospitalière et le siège de la zone
C21: Livraison de l'aliment thérapeutique aux sites | D21: km | E21: =+F21*$F$9+J21*$J$9+K21*$K$9+$L$9*L21+M21*$M$9+$N$9*N21+O21*$O$9+$P$9*P21+Q21*$Q$9+$R$9*R21 -> 180 | F21: =+'R11 Logistique approvisionnemen'!F31 -> 180 | J21: =+'R11 Logistique approvisionnemen'!J31 -> 0 | K21: =+'R11 Logistique approvisionnemen'!K31 -> 0 | L21: =+'R11 Logistique approvisionnemen'!L31 -> 0 | M21: =+'R11 Logistique approvisionnemen'!M31 -> 0 | N21: =+'R11 Logistique approvisionnemen'!N31 -> 0 | O21: =+'R11 Logistique approvisionnemen'!O31 -> 0 | P21: =+'R11 Logistique approvisionnemen'!P31 -> 0 | Q21: =+'R11 Logistique approvisionnemen'!Q31 -> 0 | R21: =+'R11 Logistique approvisionnemen'!R31 -> 0
C22: Formation (personnel PEC MAS ambulatoire ou hospitalière au siège de la zone) | D22: km-pers. | E22: =+F22*$F$9+J22*$J$9+K22*$K$9+$L$9*L22+M22*$M$9+$N$9*N22+O22*$O$9+$P$9*P22+Q22*$Q$9+$R$9*R22 -> 80 | F22: =+('R12 Formation'!F79+'R12 Formation'!F80) -> 80 | J22: =+('R12 Formation'!J79+'R12 Formation'!J80) -> 0 | K22: =+('R12 Formation'!K79+'R12 Formation'!K80) -> 0 | L22: =+('R12 Formation'!L79+'R12 Formation'!L80) -> 0 | M22: =+('R12 Formation'!M79+'R12 Formation'!M80) -> 0 | N22: =+('R12 Formation'!N79+'R12 Formation'!N80) -> 0 | O22: =+('R12 Formation'!O79+'R12 Formation'!O80) -> 0 | P22: =+('R12 Formation'!P79+'R12 Formation'!P80) -> 0 | Q22: =+('R12 Formation'!Q79+'R12 Formation'!Q80) -> 0 | R22: =+('R12 Formation'!R79+'R12 Formation'!R80) -> 0
C23: Supervision (Personnel siège de la zone au site de soins PEC MAS ambulatoire/hospitalière) | D23: km-pers. | E23: =+F23*$F$9+J23*$J$9+K23*$K$9+$L$9*L23+M23*$M$9+$N$9*N23+O23*$O$9+$P$9*P23+Q23*$Q$9+$R$9*R23 -> 96 | F23: =+'R13 Supervision'!F38 -> 96 | J23: =+'R13 Supervision'!J38 -> 0 | K23: =+'R13 Supervision'!K38 -> 0 | L23: =+'R13 Supervision'!L38 -> 0 | M23: =+'R13 Supervision'!M38 -> 0 | N23: =+'R13 Supervision'!N38 -> 0 | O23: =+'R13 Supervision'!O38 -> 0 | P23: =+'R13 Supervision'!P38 -> 0 | Q23: =+'R13 Supervision'!Q38 -> 0 | R23: =+'R13 Supervision'!R38 -> 0
B25: Entre le siège de la zone et le siège du groupe-zones
C26: Livraison de l'aliment thérapeutique (du groupe-zones au siège de la zone) | D26: km | E26: =+F26*$F$9+J26*$J$9+K26*$K$9+$L$9*L26+M26*$M$9+$N$9*N26+O26*$O$9+$P$9*P26+Q26*$Q$9+$R$9*R26 -> 12 | F26: =+'R11 Logistique approvisionnemen'!F30 -> 12 | J26: =+'R11 Logistique approvisionnemen'!J30 -> 0 | K26: =+'R11 Logistique approvisionnemen'!K30 -> 0 | L26: =+'R11 Logistique approvisionnemen'!L30 -> 0 | M26: =+'R11 Logistique approvisionnemen'!M30 -> 0 | N26: =+'R11 Logistique approvisionnemen'!N30 -> 0 | O26: =+'R11 Logistique approvisionnemen'!O30 -> 0 | P26: =+'R11 Logistique approvisionnemen'!P30 -> 0 | Q26: =+'R11 Logistique approvisionnemen'!Q30 -> 0 | R26: =+'R11 Logistique approvisionnemen'!R30 -> 0
C27: Formation (personnel siège de la zone au siège du groupe-zones) | D27: km-pers. | E27: =+F27*$F$9+J27*$J$9+K27*$K$9+$L$9*L27+M27*$M$9+$N$9*N27+O27*$O$9+$P$9*P27+Q27*$Q$9+$R$9*R27 -> 4 | F27: =+'R12 Formation'!F81 -> 4 | J27: =+'R12 Formation'!J81 -> 0 | K27: =+'R12 Formation'!K81 -> 0 | L27: =+'R12 Formation'!L81 -> 0 | M27: =+'R12 Formation'!M81 -> 0 | N27: =+'R12 Formation'!N81 -> 0 | O27: =+'R12 Formation'!O81 -> 0 | P27: =+'R12 Formation'!P81 -> 0 | Q27: =+'R12 Formation'!Q81 -> 0 | R27: =+'R12 Formation'!R81 -> 0
C28: Supervision (personnel du siège du groupe-zones au siège de zone) | D28: km-pers. | E28: =+F28*$F$9+J28*$J$9+K28*$K$9+$L$9*L28+M28*$M$9+$N$9*N28+O28*$O$9+$P$9*P28+Q28*$Q$9+$R$9*R28 -> 8 | F28: =+'R13 Supervision'!F48 -> 8 | J28: =+'R13 Supervision'!J48 -> 0 | K28: =+'R13 Supervision'!K48 -> 0 | L28: =+'R13 Supervision'!L48 -> 0 | M28: =+'R13 Supervision'!M48 -> 0 | N28: =+'R13 Supervision'!N48 -> 0 | O28: =+'R13 Supervision'!O48 -> 0 | P28: =+'R13 Supervision'!P48 -> 0 | Q28: =+'R13 Supervision'!Q48 -> 0 | R28: =+'R13 Supervision'!R48 -> 0
B30: Entre le siège du groupe-zones et le siège national
C31: Livraison de l'aliment thérapeutique (du siège national au siège du groupe-zones) | D31: km | E31: =+'R6 Niveau group-zones et centre'!Q34 -> 0
C32: Formation (personnel du siège du groupe-zones au siège national) | D32: km-pers. | E32: =+'R6 Niveau group-zones et centre'!Q26 -> 0
C33: Gestion (Personnel nationau au siège du groupe-zones) | D33: km-pers. | E33: =+'R6 Niveau group-zones et centre'!Q48 -> 0

Sheet R3 Fournitures
A2: Retour au sommaire | C2: R3: Besoins annuels en fournitures pour la PCMA
C5: Number of Areas included | D5: =+'D1 Données générales'!G31 -> 1 | E5: (taken from Worksheet 2)
C6: Cette Feuille de calcul montre (pour l'année choisie) les quantités de fournitures nécessaires pour mettre en oeuvre la PCMA.
G8: =+IF('D1 Données générales'!$G$31<1,0,1) -> 1 | K8: =+IF('D1 Données générales'!$G$31<2,0,1) -> 0 | L8: =+IF('D1 Données générales'!$G$31<3,0,1) -> 0 | M8: =+IF('D1 Données générales'!$G$31<4,0,1) -> 0 | N8: =+IF('D1 Données générales'!$G$31<5,0,1) -> 0 | O8: =+IF('D1 Données générales'!$G$31<6,0,1) -> 0 | P8: =+IF('D1 Données générales'!$G$31<7,0,1) -> 0 | Q8: =+IF('D1 Données générales'!$G$31<8,0,1) -> 0 | R8: =+IF('D1 Données générales'!$G$31<9,0,1) -> 0 | S8: =+IF('D1 Données générales'!$G$31<10,0,1) -> 0
C10: =+IF('D1 Données générales'!$H$11="","",'D1 Données générales'!$H$11) -> Ghana
C11: =+'D9 Variables temps'!$I$6 -> 2011
F12: Toutes zones | G12: Zone 1 | K12: Zone 2 | L12: Zone 3 | M12: Zone 4 | N12: Zone 5 | O12: Zone 6 | P12: Zone 7 | Q12: Zone 8 | R12: Zone 9 | S12: Zone 10
E13: ='D2 Echelle'!$C$30 -> district | F13: TOTAL toutes zones | G13: =+IF('D2 Echelle'!$C$31="","",'D2 Echelle'!$C$31) -> Ashiedu Keteke | K13: =+IF('D2 Echelle'!$C$36="","",'D2 Echelle'!$C$36) ->  | L13: =+IF('D2 Echelle'!$C$41="","",'D2 Echelle'!$C$41) ->  | M13: =+IF('D2 Echelle'!$C$46="","",'D2 Echelle'!$C$46) ->  | N13: =+IF('D2 Echelle'!$C$51="","",'D2 Echelle'!$C$51) ->  | O13: =+IF('D2 Echelle'!$C$56="","",'D2 Echelle'!$C$56) ->  | P13: =+IF('D2 Echelle'!$C$61="","",'D2 Echelle'!$C$61) ->  | Q13: =+IF('D2 Echelle'!$C$66="","",'D2 Echelle'!$C$66) ->  | R13: =+IF('D2 Echelle'!$C$71="","",'D2 Echelle'!$C$71) ->  | S13: =+IF('D2 Echelle'!$C$76="","",'D2 Echelle'!$C$76) -> 
E14: =+'D2 Echelle'!$D$30 -> région | G14: =+IF('D2 Echelle'!$D$31="","",'D2 Echelle'!$D$31) -> Greater Accra | K14: =+IF('D2 Echelle'!$D$36="","",'D2 Echelle'!$D$36) ->  | L14: =+IF('D2 Echelle'!$D$41="","",'D2 Echelle'!$D$41) ->  | M14: =+IF('D2 Echelle'!$D$46="","",'D2 Echelle'!$D$46) ->  | N14: =+IF('D2 Echelle'!$D$51="","",'D2 Echelle'!$D$51) ->  | O14: =+IF('D2 Echelle'!$D$56="","",'D2 Echelle'!$D$56) ->  | P14: =+IF('D2 Echelle'!$D$61="","",'D2 Echelle'!$D$61) ->  | Q14: =+IF('D2 Echelle'!$D$66="","",'D2 Echelle'!$D$66) ->  | R14: =+IF('D2 Echelle'!$D$71="","",'D2 Echelle'!$D$71) ->  | S14: =+IF('D2 Echelle'!$D$76="","",'D2 Echelle'!$D$76) -> 
B15: Fournitures | D15: Activité | E15: Unités
B16: Aliment thérapeutique | D16: Traitement
C17: ATPE (sites PEC MAS ambulatoire et PEC MAS hospitalière) | E17: kg | F17: =+SUM(K17:S17)+G17 -> 1993.57125 | G17: =+'R10 Traitement (fournitures)'!G26 -> 1993.57125 | K17: =+'R10 Traitement (fournitures)'!I26 -> 0 | L17: =+'R10 Traitement (fournitures)'!K26 -> 0 | M17: =+'R10 Traitement (fournitures)'!M26 -> 0 | N17: =+'R10 Traitement (fournitures)'!O26 -> 0 | O17: =+'R10 Traitement (fournitures)'!Q26 -> 0 | P17: =+'R10 Traitement (fournitures)'!S26 -> 0 | Q17: =+'R10 Traitement (fournitures)'!U26 -> 0 | R17: =+'R10 Traitement (fournitures)'!W26 -> 0 | S17: =+'R10 Traitement (fournitures)'!Y26 -> 0
C18: F-75 (Sites PEC MAS hospitalière) | E18: kg | F18: =+SUM(K18:S18)+G18 -> 77.55 | G18: =+'R10 Traitement (fournitures)'!G27 -> 77.55 | K18: =+'R10 Traitement (fournitures)'!I27 -> 0 | L18: =+'R10 Traitement (fournitures)'!K27 -> 0 | M18: =+'R10 Traitement (fournitures)'!M27 -> 0 | N18: =+'R10 Traitement (fournitures)'!O27 -> 0 | O18: =+'R10 Traitement (fournitures)'!Q27 -> 0 | P18: =+'R10 Traitement (fournitures)'!S27 -> 0 | Q18: =+'R10 Traitement (fournitures)'!U27 -> 0 | R18: =+'R10 Traitement (fournitures)'!W27 -> 0 | S18: =+'R10 Traitement (fournitures)'!Y27 -> 0
C21: F-100 (sites PEC MAS ambulatoire) | E21: kg | F21: =+SUM(K21:S21)+G21 -> 23.265 | G21: =+'R10 Traitement (fournitures)'!G28 -> 23.265 | K21: =+'R10 Traitement (fournitures)'!I28 -> 0 | L21: =+'R10 Traitement (fournitures)'!K28 -> 0 | M21: =+'R10 Traitement (fournitures)'!M28 -> 0 | N21: =+'R10 Traitement (fournitures)'!O28 -> 0 | O21: =+'R10 Traitement (fournitures)'!Q28 -> 0 | P21: =+'R10 Traitement (fournitures)'!S28 -> 0 | Q21: =+'R10 Traitement (fournitures)'!U28 -> 0 | R21: =+'R10 Traitement (fournitures)'!W28 -> 0 | S21: =+'R10 Traitement (fournitures)'!Y28 -> 0
B25: Médicaments | D25: Traitement
C26: Vitamine A | E26: Gélules 100 000 UI | F26: =+SUM(K26:S26)+G26 -> 250.5 | G26: =+'R9 Traitement (médicaments)'!I29 -> 250.5 | K26: =+'R9 Traitement (médicaments)'!N29 -> 0 | L26: =+'R9 Traitement (médicaments)'!P29 -> 0 | M26: =+'R9 Traitement (médicaments)'!R29 -> 0 | N26: =+'R9 Traitement (médicaments)'!T29 -> 0 | O26: =+'R9 Traitement (médicaments)'!V29 -> 0 | P26: =+'R9 Traitement (médicaments)'!X29 -> 0 | Q26: =+'R9 Traitement (médicaments)'!Z29 -> 0 | R26: =+'R9 Traitement (médicaments)'!AB29 -> 0 | S26: =+'R9 Traitement (médicaments)'!AD29 -> 0
C27: Eau sucrée | E27: litres | F27: 108 | G27: =+'R9 Traitement (médicaments)'!I30 -> 108 | K27: =+'R9 Traitement (médicaments)'!N30 -> 0 | L27: =+'R9 Traitement (médicaments)'!P30 -> 0 | M27: =+'R9 Traitement (médicaments)'!R30 -> 0 | N27: =+'R9 Traitement (médicaments)'!T30 -> 0 | O27: =+'R9 Traitement (médicaments)'!V30 -> 0 | P27: =+'R9 Traitement (médicaments)'!X30 -> 0 | Q27: =+'R9 Traitement (médicaments)'!Z30 -> 0 | R27: =+'R9 Traitement (médicaments)'!AB30 -> 0 | S27: =+'R9 Traitement (médicaments)'!AD30 -> 0
C28: Amoxicilline | E28: g | F28: 450 | G28: =+'R9 Traitement (médicaments)'!I28 -> 450 | K28: =+'R9 Traitement (médicaments)'!N28 -> 0 | L28: =+'R9 Traitement (médicaments)'!P28 -> 0 | M28: =+'R9 Traitement (médicaments)'!R28 -> 0 | N28: =+'R9 Traitement (médicaments)'!T28 -> 0 | O28: =+'R9 Traitement (médicaments)'!V28 -> 0 | P28: =+'R9 Traitement (médicaments)'!X28 -> 0 | Q28: =+'R9 Traitement (médicaments)'!Z28 -> 0 | R28: =+'R9 Traitement (médicaments)'!AB28 -> 0 | S28: =+'R9 Traitement (médicaments)'!AD28 -> 0
C29: Antipaludiques | E29: protocole entier | F29: 150 | G29: =+'R9 Traitement (médicaments)'!I32 -> 150 | K29: =+'R9 Traitement (médicaments)'!N32 -> 0 | L29: =+'R9 Traitement (médicaments)'!P32 -> 0 | M29: =+'R9 Traitement (médicaments)'!R32 -> 0 | N29: =+'R9 Traitement (médicaments)'!T32 -> 0 | O29: =+'R9 Traitement (médicaments)'!V32 -> 0 | P29: =+'R9 Traitement (médicaments)'!X32 -> 0 | Q29: =+'R9 Traitement (médicaments)'!Z32 -> 0 | R29: =+'R9 Traitement (médicaments)'!AB32 -> 0 | S29: =+'R9 Traitement (médicaments)'!AD32 -> 0
C30: Tests diagnostiques du paludisme | E30: tests | F30: 0 | G30: =+'R9 Traitement (médicaments)'!I33 -> 0 | K30: =+'R9 Traitement (médicaments)'!N33 -> 0 | L30: =+'R9 Traitement (médicaments)'!P33 -> 0 | M30: =+'R9 Traitement (médicaments)'!R33 -> 0 | N30: =+'R9 Traitement (médicaments)'!T33 -> 0 | O30: =+'R9 Traitement (médicaments)'!V33 -> 0 | P30: =+'R9 Traitement (médicaments)'!X33 -> 0 | Q30: =+'R9 Traitement (médicaments)'!Z33 -> 0 | R30: =+'R9 Traitement (médicaments)'!AB33 -> 0 | S30: =+'R9 Traitement (médicaments)'!AD33 -> 0
C31: Albendazole | E31: 100 mg | F31: 387 | G31: =+'R9 Traitement (médicaments)'!I37 -> 387 | K31: =+'R9 Traitement (médicaments)'!N37 -> 0 | L31: =+'R9 Traitement (médicaments)'!P37 -> 0 | M31: =+'R9 Traitement (médicaments)'!R37 -> 0 | N31: =+'R9 Traitement (médicaments)'!T37 -> 0 | O31: =+'R9 Traitement (médicaments)'!V37 -> 0 | P31: =+'R9 Traitement (médicaments)'!X37 -> 0 | Q31: =+'R9 Traitement (médicaments)'!Z37 -> 0 | R31: =+'R9 Traitement (médicaments)'!AB37 -> 0 | S31: =+'R9 Traitement (médicaments)'!AD37 -> 0
C32: Vaccins contre la rougeole | E32: doses | F32: 155.25 | G32: =+'R9 Traitement (médicaments)'!I38 -> 155.25 | K32: =+'R9 Traitement (médicaments)'!N38 -> 0 | L32: =+'R9 Traitement (médicaments)'!P38 -> 0 | M32: =+'R9 Traitement (médicaments)'!R38 -> 0 | N32: =+'R9 Traitement (médicaments)'!T38 -> 0 | O32: =+'R9 Traitement (médicaments)'!V38 -> 0 | P32: =+'R9 Traitement (médicaments)'!X38 -> 0 | Q32: =+'R9 Traitement (médicaments)'!Z38 -> 0 | R32: =+'R9 Traitement (médicaments)'!AB38 -> 0 | S32: =+'R9 Traitement (médicaments)'!AD38 -> 0
C33: Seringue autodestructibles contre la rougeole | E33: seringues | F33: 155.25 | G33: =+'R9 Traitement (médicaments)'!I39 -> 155.25 | K33: =+'R9 Traitement (médicaments)'!N39 -> 0 | L33: =+'R9 Traitement (médicaments)'!P39 -> 0 | M33: =+'R9 Traitement (médicaments)'!R39 -> 0 | N33: =+'R9 Traitement (médicaments)'!T39 -> 0 | O33: =+'R9 Traitement (médicaments)'!V39 -> 0 | P33: =+'R9 Traitement (médicaments)'!X39 -> 0 | Q33: =+'R9 Traitement (médicaments)'!Z39 -> 0 | R33: =+'R9 Traitement (médicaments)'!AB39 -> 0 | S33: =+'R9 Traitement (médicaments)'!AD39 -> 0
C34: Seringues mélange rougeole | E34: seringues | F34: 15.525 | G34: =+'R9 Traitement (médicaments)'!I40 -> 15.525 | K34: =+'R9 Traitement (médicaments)'!N40 -> 0 | L34: =+'R9 Traitement (médicaments)'!P40 -> 0 | M34: =+'R9 Traitement (médicaments)'!R40 -> 0 | N34: =+'R9 Traitement (médicaments)'!T40 -> 0 | O34: =+'R9 Traitement (médicaments)'!V40 -> 0 | P34: =+'R9 Traitement (médicaments)'!X40 -> 0 | Q34: =+'R9 Traitement (médicaments)'!Z40 -> 0 | R34: =+'R9 Traitement (médicaments)'!AB40 -> 0 | S34: =+'R9 Traitement (médicaments)'!AD40 -> 0
B36: Equipement | D36: Traitement
C37: Ensemble équipement PEC MAS ambulatoire | E37: nouveaux ensembles | F37: =+SUM(K37:S37)+G37 -> 0 | G37: =+'R10 Traitement (fournitures)'!G29 -> 0 | K37: =+'R10 Traitement (fournitures)'!I29 -> 0 | L37: =+'R10 Traitement (fournitures)'!K29 -> 0 | M37: =+'R10 Traitement (fournitures)'!M29 -> 0 | N37: =+'R10 Traitement (fournitures)'!O29 -> 0 | O37: =+'R10 Traitement (fournitures)'!Q29 -> 0 | P37: =+'R10 Traitement (fournitures)'!S29 -> 0 | Q37: =+'R10 Traitement (fournitures)'!U29 -> 0 | R37: =+'R10 Traitement (fournitures)'!W29 -> 0 | S37: =+'R10 Traitement (fournitures)'!Y29 -> 0
C38: Ensembles équipement PEC MAS ambulatoire | E38: remplacement | F38: 2 | G38: =+'R10 Traitement (fournitures)'!G30 -> 2 | K38: =+'R10 Traitement (fournitures)'!I30 -> 0 | L38: =+'R10 Traitement (fournitures)'!K30 -> 0 | M38: =+'R10 Traitement (fournitures)'!M30 -> 0 | N38: =+'R10 Traitement (fournitures)'!O30 -> 0 | O38: =+'R10 Traitement (fournitures)'!Q30 -> 0 | P38: =+'R10 Traitement (fournitures)'!S30 -> 0 | Q38: =+'R10 Traitement (fournitures)'!U30 -> 0 | R38: =+'R10 Traitement (fournitures)'!W30 -> 0 | S38: =+'R10 Traitement (fournitures)'!Y30 -> 0
C39: Ensemble équipement PEC MAS hospitalière | E39: nouveaux ensembles | F39: 0 | G39: =+'R10 Traitement (fournitures)'!G40 -> 0 | K39: =+'R10 Traitement (fournitures)'!I40 -> 0 | L39: =+'R10 Traitement (fournitures)'!K40 -> 0 | M39: =+'R10 Traitement (fournitures)'!M40 -> 0 | N39: =+'R10 Traitement (fournitures)'!O40 -> 0 | O39: =+'R10 Traitement (fournitures)'!Q40 -> 0 | P39: =+'R10 Traitement (fournitures)'!S40 -> 0 | Q39: =+'R10 Traitement (fournitures)'!U40 -> 0 | R39: =+'R10 Traitement (fournitures)'!W40 -> 0 | S39: =+'R10 Traitement (fournitures)'!Y40 -> 0
C40: Ensembles équipement PEC MAS hospitalière | E40: remplacement | F40: 1 | G40: =+'R10 Traitement (fournitures)'!G41 -> 1 | K40: =+'R10 Traitement (fournitures)'!I41 -> 0 | L40: =+'R10 Traitement (fournitures)'!K41 -> 0 | M40: =+'R10 Traitement (fournitures)'!M41 -> 0 | N40: =+'R10 Traitement (fournitures)'!O41 -> 0 | O40: =+'R10 Traitement (fournitures)'!Q41 -> 0 | P40: =+'R10 Traitement (fournitures)'!S41 -> 0 | Q40: =+'R10 Traitement (fournitures)'!U41 -> 0 | R40: =+'R10 Traitement (fournitures)'!W41 -> 0 | S40: =+'R10 Traitement (fournitures)'!Y41 -> 0
C41: Lits adultes (sites PEC MAS hospitalière) | E41: lits | F41: 2 | G41: =+'R10 Traitement (fournitures)'!G84 -> 2 | K41: =+'R10 Traitement (fournitures)'!I84 -> 0 | L41: =+'R10 Traitement (fournitures)'!K84 -> 0 | M41: =+'R10 Traitement (fournitures)'!M84 -> 0 | N41: =+'R10 Traitement (fournitures)'!O84 -> 0 | O41: =+'R10 Traitement (fournitures)'!Q84 -> 0 | P41: =+'R10 Traitement (fournitures)'!S84 -> 0 | Q41: =+'R10 Traitement (fournitures)'!U84 -> 0 | R41: =+'R10 Traitement (fournitures)'!W84 -> 0 | S41: =+'R10 Traitement (fournitures)'!Y84 -> 0
C42: Lits (sites PEC MAS hospitalière) | E42: jours-lit | F42: 2 | G42: =+'R10 Traitement (fournitures)'!G84 -> 2 | K42: =+'R10 Traitement (fournitures)'!I84 -> 0 | L42: =+'R10 Traitement (fournitures)'!K84 -> 0 | M42: =+'R10 Traitement (fournitures)'!M84 -> 0 | N42: =+'R10 Traitement (fournitures)'!O84 -> 0 | O42: =+'R10 Traitement (fournitures)'!Q84 -> 0 | P42: =+'R10 Traitement (fournitures)'!S84 -> 0 | Q42: =+'R10 Traitement (fournitures)'!U84 -> 0 | R42: =+'R10 Traitement (fournitures)'!W84 -> 0 | S42: =+'R10 Traitement (fournitures)'!Y84 -> 0
C43: Nourriture pour l'accompagnant (sites PEC MAS hospitalière) | E43: repas-jours | F43: 652.5 | G43: =+'R10 Traitement (fournitures)'!G79 -> 652.5 | K43: =+'R10 Traitement (fournitures)'!I79 -> 0 | L43: =+'R10 Traitement (fournitures)'!K79 -> 0 | M43: =+'R10 Traitement (fournitures)'!M79 -> 0 | N43: =+'R10 Traitement (fournitures)'!O79 -> 0 | O43: =+'R10 Traitement (fournitures)'!Q79 -> 0 | P43: =+'R10 Traitement (fournitures)'!S79 -> 0 | Q43: =+'R10 Traitement (fournitures)'!U79 -> 0 | R43: =+'R10 Traitement (fournitures)'!W79 -> 0 | S43: =+'R10 Traitement (fournitures)'!Y79 -> 0
C44: Jours-lit /site PEC MAS hospitalière | E44: jours-lit | F44: 652.5 | G44: =+'R10 Traitement (fournitures)'!G42 -> 652.5 | K44: =+'R10 Traitement (fournitures)'!I42 -> 0 | L44: =+'R10 Traitement (fournitures)'!K42 -> 0 | M44: =+'R10 Traitement (fournitures)'!M42 -> 0 | N44: =+'R10 Traitement (fournitures)'!O42 -> 0 | O44: =+'R10 Traitement (fournitures)'!Q42 -> 0 | P44: =+'R10 Traitement (fournitures)'!S42 -> 0 | Q44: =+'R10 Traitement (fournitures)'!U3046 -> 0 | R44: =+'R10 Traitement (fournitures)'!W42 -> 0 | S44: =+'R10 Traitement (fournitures)'!Y42 -> 0
B45: Autres fournitures se rapportant au traitement | D45: Traitement
C46: Bracelets PB | E46: bracelets | F46: =+SUM(K46:S46)+G46 -> 150 | G46: =+'R10 Traitement (fournitures)'!G33 -> 150 | K46: =+'R10 Traitement (fournitures)'!I33 -> 0 | L46: =+'R10 Traitement (fournitures)'!K33 -> 0 | M46: =+'R10 Traitement (fournitures)'!M33 -> 0 | N46: =+'R10 Traitement (fournitures)'!O33 -> 0 | O46: =+'R10 Traitement (fournitures)'!Q33 -> 0 | P46: =+'R10 Traitement (fournitures)'!S33 -> 0 | Q46: =+'R10 Traitement (fournitures)'!U33 -> 0 | R46: =+'R10 Traitement (fournitures)'!W33 -> 0 | S46: =+'R10 Traitement (fournitures)'!Y33 -> 0
C47: Essuie-mains | E47: rouleaux | F47: =+SUM(K47:S47)+G47 -> 208 | G47: =+'R10 Traitement (fournitures)'!G34 -> 208 | K47: =+'R10 Traitement (fournitures)'!I34 -> 0 | L47: =+'R10 Traitement (fournitures)'!K34 -> 0 | M47: =+'R10 Traitement (fournitures)'!M34 -> 0 | N47: =+'R10 Traitement (fournitures)'!O34 -> 0 | O47: =+'R10 Traitement (fournitures)'!Q34 -> 0 | P47: =+'R10 Traitement (fournitures)'!S34 -> 0 | Q47: =+'R10 Traitement (fournitures)'!U34 -> 0 | R47: =+'R10 Traitement (fournitures)'!W34 -> 0 | S47: =+'R10 Traitement (fournitures)'!Y34 -> 0
C48: Savon | E48: pièce | F48: =+SUM(K48:S48)+G48 -> 104 | G48: =+'R10 Traitement (fournitures)'!G35 -> 104 | K48: =+'R10 Traitement (fournitures)'!I35 -> 0 | L48: =+'R10 Traitement (fournitures)'!K35 -> 0 | M48: =+'R10 Traitement (fournitures)'!M35 -> 0 | N48: =+'R10 Traitement (fournitures)'!O35 -> 0 | O48: =+'R10 Traitement (fournitures)'!Q35 -> 0 | P48: =+'R10 Traitement (fournitures)'!S35 -> 0 | Q48: =+'R10 Traitement (fournitures)'!U35 -> 0 | R48: =+'R10 Traitement (fournitures)'!W35 -> 0 | S48: =+'R10 Traitement (fournitures)'!Y35 -> 0
C49: Eau de boisson | E49: litre | F49: =+SUM(K49:S49)+G49 -> 104 | G49: =+'R10 Traitement (fournitures)'!G36 -> 104 | K49: =+'R10 Traitement (fournitures)'!I36 -> 0 | L49: =+'R10 Traitement (fournitures)'!K36 -> 0 | M49: =+'R10 Traitement (fournitures)'!M36 -> 0 | N49: =+'R10 Traitement (fournitures)'!O36 -> 0 | O49: =+'R10 Traitement (fournitures)'!Q36 -> 0 | P49: =+'R10 Traitement (fournitures)'!S36 -> 0 | Q49: =+'R10 Traitement (fournitures)'!U36 -> 0 | R49: =+'R10 Traitement (fournitures)'!W36 -> 0 | S49: =+'R10 Traitement (fournitures)'!Y36 -> 0
B51: Indemnités et rafraîchissements
B52: Indemnités journalières | D52: Formation
C53: AEC | E53: indemnités journalières | F53: =+SUM(K53:S53)+G53 -> 200 | G53: =+'R12 Formation'!F83 -> 200 | K53: =+'R12 Formation'!J83 -> 0 | L53: =+'R12 Formation'!K83 -> 0 | M53: =+'R12 Formation'!L83 -> 0 | N53: =+'R12 Formation'!M83 -> 0 | O53: =+'R12 Formation'!N83 -> 0 | P53: =+'R12 Formation'!O83 -> 0 | Q53: =+'R12 Formation'!P83 -> 0 | R53: =+'R12 Formation'!Q83 -> 0 | S53: =+'R12 Formation'!R83 -> 0
C54: Personnel PEC MAS ambulatoire | F54: =+SUM(K54:S54)+G54 -> 12 | G54: =+'R12 Formation'!F84 -> 12 | K54: =+'R12 Formation'!J84 -> 0 | L54: =+'R12 Formation'!K84 -> 0 | M54: =+'R12 Formation'!L84 -> 0 | N54: =+'R12 Formation'!M84 -> 0 | O54: =+'R12 Formation'!N84 -> 0 | P54: =+'R12 Formation'!O84 -> 0 | Q54: =+'R12 Formation'!P84 -> 0 | R54: =+'R12 Formation'!Q84 -> 0 | S54: =+'R12 Formation'!R84 -> 0
C55: Personnel PEC MAS hospitalière | F55: =+SUM(K55:S55)+G55 -> 12 | G55: =+'R12 Formation'!F85 -> 12 | K55: =+'R12 Formation'!J85 -> 0 | L55: =+'R12 Formation'!K85 -> 0 | M55: =+'R12 Formation'!L85 -> 0 | N55: =+'R12 Formation'!M85 -> 0 | O55: =+'R12 Formation'!N85 -> 0 | P55: =+'R12 Formation'!O85 -> 0 | Q55: =+'R12 Formation'!P85 -> 0 | R55: =+'R12 Formation'!Q85 -> 0 | S55: =+'R12 Formation'!R85 -> 0
C56: Personnel siège de la zone | F56: =+SUM(K56:S56)+G56 -> 2 | G56: =+'R12 Formation'!F86 -> 2 | K56: =+'R12 Formation'!J86 -> 0 | L56: =+'R12 Formation'!K86 -> 0 | M56: =+'R12 Formation'!L86 -> 0 | N56: =+'R12 Formation'!M86 -> 0 | O56: =+'R12 Formation'!N86 -> 0 | P56: =+'R12 Formation'!O86 -> 0 | Q56: =+'R12 Formation'!P86 -> 0 | R56: =+'R12 Formation'!Q86 -> 0 | S56: =+'R12 Formation'!R86 -> 0
C57: Personnel du groupe-zones | F57: =+'R6 Niveau group-zones et centre'!Q31 -> 0
B58: Rafraîchissements | D58: Formation
C59: AEC | E59: jours-pers. de raffraîchissements | F59: =+SUM(K59:S59)+G59 -> 200 | G59: =+'R12 Formation'!F88 -> 200 | K59: =+'R12 Formation'!J88 -> 0 | L59: =+'R12 Formation'!K88 -> 0 | M59: =+'R12 Formation'!L88 -> 0 | N59: =+'R12 Formation'!M88 -> 0 | O59: =+'R12 Formation'!N88 -> 0 | P59: =+'R12 Formation'!O88 -> 0 | Q59: =+'R12 Formation'!P88 -> 0 | R59: =+'R12 Formation'!Q88 -> 0 | S59: =+'R12 Formation'!R88 -> 0
C60: Personnel PEC MAS ambulatoire | F60: =+SUM(K60:S60)+G60 -> 12 | G60: =+'R12 Formation'!F89 -> 12 | K60: =+'R12 Formation'!J89 -> 0 | L60: =+'R12 Formation'!K89 -> 0 | M60: =+'R12 Formation'!L89 -> 0 | N60: =+'R12 Formation'!M89 -> 0 | O60: =+'R12 Formation'!N89 -> 0 | P60: =+'R12 Formation'!O89 -> 0 | Q60: =+'R12 Formation'!P89 -> 0 | R60: =+'R12 Formation'!Q89 -> 0 | S60: =+'R12 Formation'!R89 -> 0
C61: Personnel PEC MAS hospitalière | F61: =+SUM(K61:S61)+G61 -> 12 | G61: =+'R12 Formation'!F90 -> 12 | K61: =+'R12 Formation'!J90 -> 0 | L61: =+'R12 Formation'!K90 -> 0 | M61: =+'R12 Formation'!L90 -> 0 | N61: =+'R12 Formation'!M90 -> 0 | O61: =+'R12 Formation'!N90 -> 0 | P61: =+'R12 Formation'!O90 -> 0 | Q61: =+'R12 Formation'!P90 -> 0 | R61: =+'R12 Formation'!Q90 -> 0 | S61: =+'R12 Formation'!R90 -> 0
C62: Personnel siège de la zone | F62: =+SUM(K62:S62)+G62 -> 2 | G62: =+'R12 Formation'!F91 -> 2 | K62: =+'R12 Formation'!J91 -> 0 | L62: =+'R12 Formation'!K91 -> 0 | M62: =+'R12 Formation'!L91 -> 0 | N62: =+'R12 Formation'!M91 -> 0 | O62: =+'R12 Formation'!N91 -> 0 | P62: =+'R12 Formation'!O91 -> 0 | Q62: =+'R12 Formation'!P91 -> 0 | R62: =+'R12 Formation'!Q91 -> 0 | S62: =+'R12 Formation'!R91 -> 0
C63: Personnel du groupe-zones | F63: =+'R6 Niveau group-zones et centre'!Q30 -> 0
B65: Matériel écrit (certains déjà compris dans les jeux d'équipement PEC MAS ambulatoire/hospitalière)
B66: Listes de pointage pour la supervision | D66: Supervision
C67: Supervision des AEC | E67: listes de pointage | F67: =+SUM(K67:S67)+G67 -> 1200 | G67: =+'R13 Supervision'!F45 -> 1200 | K67: =+'R13 Supervision'!J45 -> 0 | L67: =+'R13 Supervision'!K45 -> 0 | M67: =+'R13 Supervision'!L45 -> 0 | N67: =+'R13 Supervision'!M45 -> 0 | O67: =+'R13 Supervision'!N45 -> 0 | P67: =+'R13 Supervision'!O45 -> 0 | Q67: =+'R13 Supervision'!P45 -> 0 | R67: =+'R13 Supervision'!Q45 -> 0 | S67: =+'R13 Supervision'!R45 -> 0
C68: Supervision des sites PEC MAS ambulatoire et hospitalière | E68: listes de pointage | F68: =+SUM(K68:S68)+G68 -> 36 | G68: =+'R13 Supervision'!F39 -> 36 | K68: =+'R13 Supervision'!J39 -> 0 | L68: =+'R13 Supervision'!K39 -> 0 | M68: =+'R13 Supervision'!L39 -> 0 | N68: =+'R13 Supervision'!M39 -> 0 | O68: =+'R13 Supervision'!N39 -> 0 | P68: =+'R13 Supervision'!O39 -> 0 | Q68: =+'R13 Supervision'!P39 -> 0 | R68: =+'R13 Supervision'!Q39 -> 0 | S68: =+'R13 Supervision'!R39 -> 0
C69: Supervision du siège de la zone | E69: listes de pointage | F69: =+SUM(K69:S69)+G69 -> 4 | G69: =+'R13 Supervision'!F50 -> 4 | K69: =+'R13 Supervision'!J50 -> 0 | L69: =+'R13 Supervision'!K50 -> 0 | M69: =+'R13 Supervision'!L50 -> 0 | N69: =+'R13 Supervision'!M50 -> 0 | O69: =+'R13 Supervision'!N50 -> 0 | P69: =+'R13 Supervision'!O50 -> 0 | Q69: =+'R13 Supervision'!P50 -> 0 | R69: =+'R13 Supervision'!Q50 -> 0 | S69: =+'R13 Supervision'!R50 -> 0
B70: Fiches de stock | D70: Logistique de l'approvisionnement
C71: Dans les dépôts des zones, des sites PEC MAS ambulatoire et hospitalière | F71: =+SUM(G71:S71) -> 48 | G71: =+'R11 Logistique approvisionnemen'!F42+'R11 Logistique approvisionnemen'!F43+'R11 Logistique approvisionnemen'!F44 -> 48 | K71: =+'R11 Logistique approvisionnemen'!J42+'R11 Logistique approvisionnemen'!J43+'R11 Logistique approvisionnemen'!J44 -> 0 | L71: =+'R11 Logistique approvisionnemen'!K42+'R11 Logistique approvisionnemen'!K43+'R11 Logistique approvisionnemen'!K44 -> 0 | M71: =+'R11 Logistique approvisionnemen'!L42+'R11 Logistique approvisionnemen'!L43+'R11 Logistique approvisionnemen'!L44 -> 0 | N71: =+'R11 Logistique approvisionnemen'!M42+'R11 Logistique approvisionnemen'!M43+'R11 Logistique approvisionnemen'!M44 -> 0 | O71: =+'R11 Logistique approvisionnemen'!N42+'R11 Logistique approvisionnemen'!N43+'R11 Logistique approvisionnemen'!N44 -> 0 | P71: =+'R11 Logistique approvisionnemen'!O42+'R11 Logistique approvisionnemen'!O43+'R11 Logistique approvisionnemen'!O44 -> 0 | Q71: =+'R11 Logistique approvisionnemen'!P42+'R11 Logistique approvisionnemen'!P43+'R11 Logistique approvisionnemen'!P44 -> 0 | R71: =+'R11 Logistique approvisionnemen'!Q42+'R11 Logistique approvisionnemen'!Q43+'R11 Logistique approvisionnemen'!Q44 -> 0 | S71: =+'R11 Logistique approvisionnemen'!R42+'R11 Logistique approvisionnemen'!R43+'R11 Logistique approvisionnemen'!R44 -> 0
C72: Dans les groupes-zones et au niveau national | F72: =+'R6 Niveau group-zones et centre'!Q38 -> 12
B73: Matériel de formation et aides professionnelles | C73: riel de formation | D73: Formation
C74: Formation des AEC | E74: ensemble de matériel | F74: =+SUM(K74:S74)+G74 -> 100 | G74: =+'R12 Formation'!F73 -> 100 | K74: =+'R12 Formation'!J73 -> 0 | L74: =+'R12 Formation'!K73 -> 0 | M74: =+'R12 Formation'!L73 -> 0 | N74: =+'R12 Formation'!M73 -> 0 | O74: =+'R12 Formation'!N73 -> 0 | P74: =+'R12 Formation'!O73 -> 0 | Q74: =+'R12 Formation'!P73 -> 0 | R74: =+'R12 Formation'!Q73 -> 0 | S74: =+'R12 Formation'!R73 -> 0
C75: Formation agents PEC MAS ambulatoire | E75: ensemble de matériel | F75: =+SUM(K75:S75)+G75 -> 6 | G75: =+'R12 Formation'!F74 -> 6 | K75: =+'R12 Formation'!J74 -> 0 | L75: =+'R12 Formation'!K74 -> 0 | M75: =+'R12 Formation'!L74 -> 0 | N75: =+'R12 Formation'!M74 -> 0 | O75: =+'R12 Formation'!N74 -> 0 | P75: =+'R12 Formation'!O74 -> 0 | Q75: =+'R12 Formation'!P74 -> 0 | R75: =+'R12 Formation'!Q74 -> 0 | S75: =+'R12 Formation'!R74 -> 0
C76: Formation agents PEC MAS hospitalière | E76: ensemble de matériel | F76: =+SUM(K76:S76)+G76 -> 2 | G76: =+'R12 Formation'!F75 -> 2 | K76: =+'R12 Formation'!J75 -> 0 | L76: =+'R12 Formation'!K75 -> 0 | M76: =+'R12 Formation'!L75 -> 0 | N76: =+'R12 Formation'!M75 -> 0 | O76: =+'R12 Formation'!N75 -> 0 | P76: =+'R12 Formation'!O75 -> 0 | Q76: =+'R12 Formation'!P75 -> 0 | R76: =+'R12 Formation'!Q75 -> 0 | S76: =+'R12 Formation'!R75 -> 0
C77: Area HQ training | E77: ensemble de matériel | F77: =+SUM(K77:S77)+G77 -> 2 | G77: =+'R12 Formation'!F76 -> 2 | K77: =+'R12 Formation'!J76 -> 0 | L77: =+'R12 Formation'!K76 -> 0 | M77: =+'R12 Formation'!L76 -> 0 | N77: =+'R12 Formation'!M76 -> 0 | O77: =+'R12 Formation'!N76 -> 0 | P77: =+'R12 Formation'!O76 -> 0 | Q77: =+'R12 Formation'!P76 -> 0 | R77: =+'R12 Formation'!Q76 -> 0 | S77: =+'R12 Formation'!R76 -> 0
C78: Formation siège de la zone | E78: ensemble de matériel | F78: =+'R6 Niveau group-zones et centre'!Q28+'R6 Niveau group-zones et centre'!Q29 -> 0
B79: Fiches de compte rendu
C80: Fiches de suivi (PEC MAS ambulatoire et PEC MAS hospitalière) | E80: fiches | F80: =+SUM(K80:S80)+G80 -> 150 | G80: =+'R10 Traitement (fournitures)'!G31 -> 150 | K80: =+'R10 Traitement (fournitures)'!I31 -> 0 | L80: =+'R10 Traitement (fournitures)'!K31 -> 0 | M80: =+'R10 Traitement (fournitures)'!M31 -> 0 | N80: =+'R10 Traitement (fournitures)'!O31 -> 0 | O80: =+'R10 Traitement (fournitures)'!Q31 -> 0 | P80: =+'R10 Traitement (fournitures)'!S31 -> 0 | Q80: =+'R10 Traitement (fournitures)'!U31 -> 0 | R80: =+'R10 Traitement (fournitures)'!W31 -> 0 | S80: =+'R10 Traitement (fournitures)'!Y31 -> 0
C81: Fiches de ration de l'ATPE | E81: fiches | F81: =+SUM(K81:S81)+G81 -> 150 | G81: =+'R10 Traitement (fournitures)'!G32 -> 150 | K81: =+'R10 Traitement (fournitures)'!I32 -> 0 | L81: =+'R10 Traitement (fournitures)'!K32 -> 0 | M81: =+'R10 Traitement (fournitures)'!M32 -> 0 | N81: =+'R10 Traitement (fournitures)'!O32 -> 0 | O81: =+'R10 Traitement (fournitures)'!Q32 -> 0 | P81: =+'R10 Traitement (fournitures)'!S32 -> 0 | Q81: =+'R10 Traitement (fournitures)'!U32 -> 0 | R81: =+'R10 Traitement (fournitures)'!W32 -> 0 | S81: =+'R10 Traitement (fournitures)'!Y32 -> 0
C82: Fiches du rapport mensuel | E82: fiches | F82: =+'R6 Niveau group-zones et centre'!$Q$45 -> 0

Sheet R4 Espace
A2: Retour au sommaire | C2: R4: Besoins annuels en espace pour la PCMA
C4: Number of Areas included | D4: =+'D1 Données générales'!G31 -> 1 | E4: (taken from Worksheet 2)
C5: Cette Feuille de calcul montre (pour l'année choisie) le volume de l'espace nécessaire pour mettre en oeuvre la PCMA.
F7: =+IF('D1 Données générales'!$G$31<1,0,1) -> 1 | J7: =+IF('D1 Données générales'!$G$31<2,0,1) -> 0 | K7: =+IF('D1 Données générales'!$G$31<3,0,1) -> 0 | L7: =+IF('D1 Données générales'!$G$31<4,0,1) -> 0 | M7: =+IF('D1 Données générales'!$G$31<5,0,1) -> 0 | N7: =+IF('D1 Données générales'!$G$31<6,0,1) -> 0 | O7: =+IF('D1 Données générales'!$G$31<7,0,1) -> 0 | P7: =+IF('D1 Données générales'!$G$31<8,0,1) -> 0 | Q7: =+IF('D1 Données générales'!$G$31<9,0,1) -> 0 | R7: =+IF('D1 Données générales'!$G$31<10,0,1) -> 0
C8: =+IF('D1 Données générales'!$H$11="","",'D1 Données générales'!$H$11) -> Ghana
C9: =+'D9 Variables temps'!$I$6 -> 2011
F11: Zone 1 | J11: Zone 2 | K11: Zone 3 | L11: Zone 4 | M11: Zone 5 | N11: Zone 6 | O11: Zone 7 | P11: Zone 8 | Q11: Zone 9 | R11: Zone 10
D12: ='D2 Echelle'!$C$30 -> district | E12: TOTAL (Zones, Groupe-zones & Central) | F12: =+IF('D2 Echelle'!$C$31="","",'D2 Echelle'!$C$31) -> Ashiedu Keteke | J12: =+IF('D2 Echelle'!$C$36="","",'D2 Echelle'!$C$36) ->  | K12: =+IF('D2 Echelle'!$C$41="","",'D2 Echelle'!$C$41) ->  | L12: =+IF('D2 Echelle'!$C$46="","",'D2 Echelle'!$C$46) ->  | M12: =+IF('D2 Echelle'!$C$51="","",'D2 Echelle'!$C$51) ->  | N12: =+IF('D2 Echelle'!$C$56="","",'D2 Echelle'!$C$56) ->  | O12: =+IF('D2 Echelle'!$C$61="","",'D2 Echelle'!$C$61) ->  | P12: =+IF('D2 Echelle'!$C$66="","",'D2 Echelle'!$C$66) ->  | Q12: =+IF('D2 Echelle'!$C$71="","",'D2 Echelle'!$C$71) ->  | R12: =+IF('D2 Echelle'!$C$76="","",'D2 Echelle'!$C$76) -> 
D13: =+'D2 Echelle'!$D$30 -> région | F13: =+IF('D2 Echelle'!$D$31="","",'D2 Echelle'!$D$31) -> Greater Accra | J13: =+IF('D2 Echelle'!$D$36="","",'D2 Echelle'!$D$36) ->  | K13: =+IF('D2 Echelle'!$D$41="","",'D2 Echelle'!$D$41) ->  | L13: =+IF('D2 Echelle'!$D$46="","",'D2 Echelle'!$D$46) ->  | M13: =+IF('D2 Echelle'!$D$51="","",'D2 Echelle'!$D$51) ->  | N13: =+IF('D2 Echelle'!$D$56="","",'D2 Echelle'!$D$56) ->  | O13: =+IF('D2 Echelle'!$D$61="","",'D2 Echelle'!$D$61) ->  | P13: =+IF('D2 Echelle'!$D$66="","",'D2 Echelle'!$D$66) ->  | Q13: =+IF('D2 Echelle'!$D$71="","",'D2 Echelle'!$D$71) ->  | R13: =+IF('D2 Echelle'!$D$76="","",'D2 Echelle'!$D$76) -> 
B15: Activité | C15: Emplacement | D15: Unités
B16: Stockage de l'aliment thérapeutique
C17: Siège national | D17: m3 | E17: =+'R6 Niveau group-zones et centre'!Q39 -> 0
C18: Siège groupe-zones (minimum) | D18: m3 | E18: =+'R6 Niveau group-zones et centre'!Q36 -> 0
C19: Sièges zones (minimum) | D19: m3 | E19: =+F19*$F$7+$J$7*J19+K19*$K$7+$L$7*L19+M19*$M$7+$N$7*N19+O19*$O$7+$P$7*P19 -> 0.6090235443 | F19: =+'R11 Logistique approvisionnemen'!F26 -> 0.6090235443 | J19: =+'R11 Logistique approvisionnemen'!J26 -> 0 | K19: =+'R11 Logistique approvisionnemen'!K26 -> 0 | L19: =+'R11 Logistique approvisionnemen'!L26 -> 0 | M19: =+'R11 Logistique approvisionnemen'!M26 -> 0 | N19: =+'R11 Logistique approvisionnemen'!N26 -> 0 | O19: =+'R11 Logistique approvisionnemen'!O26 -> 0 | P19: =+'R11 Logistique approvisionnemen'!P26 -> 0 | Q19: =+'R11 Logistique approvisionnemen'!Q26 -> 0 | R19: =+'R11 Logistique approvisionnemen'!R26 -> 0
C20: Total des sites PEC MAS ambulatoire (minimum) | D20: m3 | E20: =+F20*$F$7+$J$7*J20+K20*$K$7+$L$7*L20+M20*$M$7+$N$7*N20+O20*$O$7+$P$7*P20 -> 0.5439713125 | F20: =+'R11 Logistique approvisionnemen'!F27 -> 0.5439713125 | J20: =+'R11 Logistique approvisionnemen'!J27 -> 0 | K20: =+'R11 Logistique approvisionnemen'!K27 -> 0 | L20: =+'R11 Logistique approvisionnemen'!L27 -> 0 | M20: =+'R11 Logistique approvisionnemen'!M27 -> 0 | N20: =+'R11 Logistique approvisionnemen'!N27 -> 0 | O20: =+'R11 Logistique approvisionnemen'!O27 -> 0 | P20: =+'R11 Logistique approvisionnemen'!P27 -> 0 | Q20: =+'R11 Logistique approvisionnemen'!Q27 -> 0 | R20: =+'R11 Logistique approvisionnemen'!R27 -> 0
C21: Total des sites PEC MAS hospitalière (minimum) | D21: m3 | E21: =+F21*$F$7+$J$7*J21+K21*$K$7+$L$7*L21+M21*$M$7+$N$7*N21+O21*$O$7+$P$7*P21 -> 0.06505223184 | F21: =+'R11 Logistique approvisionnemen'!F28 -> 0.06505223184 | J21: =+'R11 Logistique approvisionnemen'!J28 -> 0 | K21: =+'R11 Logistique approvisionnemen'!K28 -> 0 | L21: =+'R11 Logistique approvisionnemen'!L28 -> 0 | M21: =+'R11 Logistique approvisionnemen'!M28 -> 0 | N21: =+'R11 Logistique approvisionnemen'!N28 -> 0 | O21: =+'R11 Logistique approvisionnemen'!O28 -> 0 | P21: =+'R11 Logistique approvisionnemen'!P28 -> 0 | Q21: =+'R11 Logistique approvisionnemen'!Q28 -> 0 | R21: =+'R11 Logistique approvisionnemen'!R28 -> 0
C22: Site moyen PEC MAS ambulatoire | D22: m3 | F22: =+'R11 Logistique approvisionnemen'!F103 -> 0.2719856562 | J22: =+'R11 Logistique approvisionnemen'!J103 -> 0 | K22: =+'R11 Logistique approvisionnemen'!K103 -> 0 | L22: =+'R11 Logistique approvisionnemen'!L103 -> 0 | M22: =+'R11 Logistique approvisionnemen'!M103 -> 0 | N22: =+'R11 Logistique approvisionnemen'!N103 -> 0 | O22: =+'R11 Logistique approvisionnemen'!O103 -> 0 | P22: =+'R11 Logistique approvisionnemen'!P103 -> 0 | Q22: =+'R11 Logistique approvisionnemen'!Q103 -> 0 | R22: =+'R11 Logistique approvisionnemen'!R103 -> 0
C23: Site moyen PEC MAS hospitalière | D23: m3 | F23: =+'R11 Logistique approvisionnemen'!F104 -> 0.06505223184 | J23: =+'R11 Logistique approvisionnemen'!J104 -> 0 | K23: =+'R11 Logistique approvisionnemen'!K104 -> 0 | L23: =+'R11 Logistique approvisionnemen'!L104 -> 0 | M23: =+'R11 Logistique approvisionnemen'!M104 -> 0 | N23: =+'R11 Logistique approvisionnemen'!N104 -> 0 | O23: =+'R11 Logistique approvisionnemen'!O104 -> 0 | P23: =+'R11 Logistique approvisionnemen'!P104 -> 0 | Q23: =+'R11 Logistique approvisionnemen'!Q104 -> 0 | R23: =+'R11 Logistique approvisionnemen'!R104 -> 0
B25: Formation
C26: Au niveau national pour la formation du personnel du siège du groupe-zones | D26: jours-salle | E26: =+'R6 Niveau group-zones et centre'!Q27 -> 0
C27: Au siège du groupe-zones pour la formation du personnel du siège de la zone | D27: jours-salle | E27: =+'R6 Niveau group-zones et centre'!Q19 -> 0
C28: Au siège de la zone pour la formation des agents de santé des sites PEC MAS ambulatoire et hospitalière | D28: jours-salle | E28: =+F28*$F$7+$J$7*J28+K28*$K$7+$L$7*L28+M28*$M$7+$N$7*N28+O28*$O$7+$P$7*P28 -> 8 | F28: =+'R12 Formation'!F69+'R12 Formation'!F70 -> 8 | J28: =+'R12 Formation'!J69+'R12 Formation'!J70 -> 0 | K28: =+'R12 Formation'!K69+'R12 Formation'!K70 -> 0 | L28: =+'R12 Formation'!L69+'R12 Formation'!L70 -> 0 | M28: =+'R12 Formation'!M69+'R12 Formation'!M70 -> 0 | N28: =+'R12 Formation'!N69+'R12 Formation'!N70 -> 0 | O28: =+'R12 Formation'!O69+'R12 Formation'!O70 -> 0 | P28: =+'R12 Formation'!P69+'R12 Formation'!P70 -> 0 | Q28: =+'R12 Formation'!Q69+'R12 Formation'!Q70 -> 0 | R28: =+'R12 Formation'!R69+'R12 Formation'!R70 -> 0
C29: Au site PEC MAS ambulatoire pour la formation des AEC | D29: jours-salle | E29: =+F29*$F$7+$J$7*J29+K29*$K$7+$L$7*L29+M29*$M$7+$N$7*N29+O29*$O$7+$P$7*P29 -> 12 | F29: =+'R12 Formation'!F68 -> 12 | J29: =+'R12 Formation'!J68 -> 0 | K29: =+'R12 Formation'!K68 -> 0 | L29: =+'R12 Formation'!L68 -> 0 | M29: =+'R12 Formation'!M68 -> 0 | N29: =+'R12 Formation'!N68 -> 0 | O29: =+'R12 Formation'!O68 -> 0 | P29: =+'R12 Formation'!P68 -> 0 | Q29: =+'R12 Formation'!Q68 -> 0 | R29: =+'R12 Formation'!R68 -> 0
B32: Séance PEC MAS ambulatoire
C33: A tous les sites PEC MAS ambulatoire | D33: jours-salle | E33: =+F33*$F$7+$J$7*J33+K33*$K$7+$L$7*L33+M33*$M$7+$N$7*N33+O33*$O$7+$P$7*P33 -> 52 | F33: =+'R8 Traitement (main-d''oeuvres)'!F93 -> 52 | J33: =+'R8 Traitement (main-d''oeuvres)'!J92 -> 0 | K33: =+'R8 Traitement (main-d''oeuvres)'!K92 -> 0 | L33: =+'R8 Traitement (main-d''oeuvres)'!L92 -> 0 | M33: =+'R8 Traitement (main-d''oeuvres)'!M92 -> 0 | N33: =+'R8 Traitement (main-d''oeuvres)'!N92 -> 0 | O33: =+'R8 Traitement (main-d''oeuvres)'!O92 -> 0 | P33: =+'R8 Traitement (main-d''oeuvres)'!P92 -> 0 | Q33: =+'R8 Traitement (main-d''oeuvres)'!Q92 -> 0 | R33: =+'R8 Traitement (main-d''oeuvres)'!R92 -> 0
D34: m2/an | E34: =+SUM(F34:R34) -> 4.313461538 | F34: =+'R8 Traitement (main-d''oeuvres)'!F36 -> 4.313461538 | J34: =+'R8 Traitement (main-d''oeuvres)'!J36 -> 0 | K34: =+'R8 Traitement (main-d''oeuvres)'!K36 -> 0 | L34: =+'R8 Traitement (main-d''oeuvres)'!L36 -> 0 | M34: =+'R8 Traitement (main-d''oeuvres)'!M36 -> 0 | N34: =+'R8 Traitement (main-d''oeuvres)'!N36 -> 0 | O34: =+'R8 Traitement (main-d''oeuvres)'!O36 -> 0 | P34: =+'R8 Traitement (main-d''oeuvres)'!P36 -> 0 | Q34: =+'R8 Traitement (main-d''oeuvres)'!Q36 -> 0 | R34: =+'R8 Traitement (main-d''oeuvres)'!R36 -> 0
C35: (Au site moyen PEC MAS ambulatoire) | F35: =+IF('R8 Traitement (main-d''oeuvres)'!F78=0,0,F33/'R8 Traitement (main-d''oeuvres)'!F78) -> 26 | J35: =+IF('R8 Traitement (main-d''oeuvres)'!J78=0,0,J33/'R8 Traitement (main-d''oeuvres)'!J78) -> 0 | K35: =+IF('R8 Traitement (main-d''oeuvres)'!K78=0,0,K33/'R8 Traitement (main-d''oeuvres)'!K78) -> 0 | L35: =+IF('R8 Traitement (main-d''oeuvres)'!L78=0,0,L33/'R8 Traitement (main-d''oeuvres)'!L78) -> 0 | M35: =+IF('R8 Traitement (main-d''oeuvres)'!M78=0,0,M33/'R8 Traitement (main-d''oeuvres)'!M78) -> 0 | N35: =+IF('R8 Traitement (main-d''oeuvres)'!N78=0,0,N33/'R8 Traitement (main-d''oeuvres)'!N78) -> 0 | O35: =+IF('R8 Traitement (main-d''oeuvres)'!O78=0,0,O33/'R8 Traitement (main-d''oeuvres)'!O78) -> 0 | P35: =+IF('R8 Traitement (main-d''oeuvres)'!P78=0,0,P33/'R8 Traitement (main-d''oeuvres)'!P78) -> 0 | Q35: =+IF('R8 Traitement (main-d''oeuvres)'!Q78=0,0,Q33/'R8 Traitement (main-d''oeuvres)'!Q78) -> 0 | R35: =+IF('R8 Traitement (main-d''oeuvres)'!R78=0,0,R33/'R8 Traitement (main-d''oeuvres)'!R78) -> 0
B37: PEC MAS hospitalière
C38: A tous les sites PEC MAS hospitalière | D38: jours-lit | E38: =+F38*$F$7+$J$7*J38+K38*$K$7+$L$7*L38+M38*$M$7+$N$7*N38+O38*$O$7+$P$7*P38 -> 652.5 | F38: =+'R10 Traitement (fournitures)'!G42 -> 652.5 | J38: =+'R10 Traitement (fournitures)'!K42 -> 0 | K38: =+'R10 Traitement (fournitures)'!L42 -> 0 | L38: =+'R10 Traitement (fournitures)'!M42 -> 0 | M38: =+'R10 Traitement (fournitures)'!N42 -> 0 | N38: =+'R10 Traitement (fournitures)'!O42 -> 0 | O38: =+'R10 Traitement (fournitures)'!P42 -> 0 | P38: =+'R10 Traitement (fournitures)'!Q42 -> 0 | Q38: =+'R10 Traitement (fournitures)'!R42 -> 0 | R38: =+'R10 Traitement (fournitures)'!S42 -> 0
D39: m2/an | E39: =+SUM(F39:R39) -> 19 | F39: =+'R8 Traitement (main-d''oeuvres)'!F37 -> 19 | J39: =+'R8 Traitement (main-d''oeuvres)'!J37 -> 0 | K39: =+'R8 Traitement (main-d''oeuvres)'!K37 -> 0 | L39: =+'R8 Traitement (main-d''oeuvres)'!L37 -> 0 | M39: =+'R8 Traitement (main-d''oeuvres)'!M37 -> 0 | N39: =+'R8 Traitement (main-d''oeuvres)'!N37 -> 0 | O39: =+'R8 Traitement (main-d''oeuvres)'!O37 -> 0 | P39: =+'R8 Traitement (main-d''oeuvres)'!P37 -> 0 | Q39: =+'R8 Traitement (main-d''oeuvres)'!Q37 -> 0 | R39: =+'R8 Traitement (main-d''oeuvres)'!R37 -> 0

Sheet R5 Récapitulatif financier
A2: Retour au sommaire | C2: R5: Récapitulatif financier
C4: Cette Feuille de calcul vous montre (pour l'année choisie) le coût financier de la mise en oeuvre de la PCMA. Il est réparti par zone et par types d'activités. Un lien direct est fourni pour se rendre aux feuilles qui sont la source des données.
D7: Hidden factors to prevent inclusion of non-Areas | F7: =+IF('D1 Données générales'!$G$31<1,0,1) -> 1 | G7: =+IF('D1 Données générales'!$G$31<2,0,1) -> 0 | H7: =+IF('D1 Données générales'!$G$31<3,0,1) -> 0 | I7: =+IF('D1 Données générales'!$G$31<4,0,1) -> 0 | J7: =+IF('D1 Données générales'!$G$31<5,0,1) -> 0 | K7: =+IF('D1 Données générales'!$G$31<6,0,1) -> 0 | L7: =+IF('D1 Données générales'!$G$31<7,0,1) -> 0 | M7: =+IF('D1 Données générales'!$G$31<8,0,1) -> 0 | N7: =+IF('D1 Données générales'!$G$31<9,0,1) -> 0 | O7: =+IF('D1 Données générales'!$G$31<10,0,1) -> 0
C8: =+IF('D1 Données générales'!$H$11="","",'D1 Données générales'!$H$11) -> Ghana
C9: =+'D9 Variables temps'!$I$6 -> 2011 | F9: Total coûts annuels du programme/service de la PCMA
F10: Année de base pour les prix et le taux d'échange | M10: =+'D1 Données générales'!H14 -> 2010 | N10: =+'D1 Données générales'!H13 -> Cedi
F11: Zone 1 | G11: Zone 2 | H11: Zone 3 | I11: Zone 4 | J11: Zone 5 | K11: Zone 6 | L11: Zone 7 | M11: Zone 8 | N11: Zone 9 | O11: Zone 10 | P11: Total Zones | Q11: Groupe-zones & Niveau central | R11: Zones, Groupe-Zones & Niveau central
C12: Activités | E12: =+'R7 Gestion au siège de la zone'!E13 -> district | F12: =+IF('D2 Echelle'!$C$31="","",'D2 Echelle'!$C$31) -> Ashiedu Keteke | G12: =+IF('D2 Echelle'!$C$36="","",'D2 Echelle'!$C$36) ->  | H12: =+IF('D2 Echelle'!$C$41="","",'D2 Echelle'!$C$41) ->  | I12: =+IF('D2 Echelle'!$C$46="","",'D2 Echelle'!$C$46) ->  | J12: =+IF('D2 Echelle'!$C$51="","",'D2 Echelle'!$C$51) ->  | K12: =+IF('D2 Echelle'!$C$56="","",'D2 Echelle'!$C$56) ->  | L12: =+IF('D2 Echelle'!$C$61="","",'D2 Echelle'!$C$61) ->  | M12: =+IF('D2 Echelle'!$C$66="","",'D2 Echelle'!$C$66) ->  | N12: =+IF('D2 Echelle'!$C$71="","",'D2 Echelle'!$C$71) ->  | O12: =+IF('D2 Echelle'!C76="","",'D2 Echelle'!$C$76) -> 
E13: =+'R7 Gestion au siège de la zone'!E14 -> région | F13: =+IF('D2 Echelle'!$D$31="","",'D2 Echelle'!$D$31) -> Greater Accra | G13: =+IF('D2 Echelle'!$D$36="","",'D2 Echelle'!$D$36) ->  | H13: =+IF('D2 Echelle'!$D$41="","",'D2 Echelle'!$D$41) ->  | I13: =+IF('D2 Echelle'!$D$46="","",'D2 Echelle'!$D$46) ->  | J13: =+IF('D2 Echelle'!$D$51="","",'D2 Echelle'!$D$51) ->  | K13: =+IF('D2 Echelle'!$D$56="","",'D2 Echelle'!$D$56) ->  | L13: =+IF('D2 Echelle'!$D$61="","",'D2 Echelle'!$D$61) ->  | M13: =+IF('D2 Echelle'!$D$66="","",'D2 Echelle'!$D$66) ->  | N13: =+IF('D2 Echelle'!$D$71="","",'D2 Echelle'!$D$71) ->  | O13: =+IF('D2 Echelle'!$D76="","",'D2 Echelle'!$D$76) -> 
D14: Source (Feuille de calcul)
C15: Activités niveau central et groupe-zones (sous-total) | D15: R6 | Q15: =+Q16+Q17+Q18 -> 8401.2 | R15: =+Q15+P15 -> 8401.2
C16: Gestion | Q16: =+'R6 Niveau group-zones et centre'!S52 -> 7200 | R16: =+Q16+P16 -> 7200
C17: Formation | Q17: =+'R6 Niveau group-zones et centre'!S32 -> 0 | R17: 0
C18: Logistique de l'approvisionnement | Q18: =+'R6 Niveau group-zones et centre'!S40 -> 1201.2 | R18: 1201.2
C20: Gestion siège de la zone | D20: R7 | F20: =+'R7 Gestion au siège de la zone'!F23 -> 2658.461538 | G20: =+'R7 Gestion au siège de la zone'!J23 -> 0 | H20: =+'R7 Gestion au siège de la zone'!K23 -> 0 | I20: =+'R7 Gestion au siège de la zone'!L23 -> 0 | J20: =+'R7 Gestion au siège de la zone'!M23 -> 0 | K20: =+'R7 Gestion au siège de la zone'!N23 -> 0 | L20: =+'R7 Gestion au siège de la zone'!O23 -> 0 | M20: =+'R7 Gestion au siège de la zone'!P23 -> 0 | N20: =+'R7 Gestion au siège de la zone'!Q23 -> 0 | O20: =+'R7 Gestion au siège de la zone'!R23 -> 0 | P20: =+F20*$F$7+$G$7*G20+H20*$H$7+$I$7*I20+J20*$J$7+$K$7*K20+L20*$L$7+$M$7*M20+N20*$N$7+$O$7*O20 -> 2658.461538 | R20: 2658.461538
C22: Traitement (sous-total) | F22: =+SUM(F23:F27) -> 40711.01365 | G22: =+SUM(G23:G27) -> 0 | H22: 0 | I22: 0 | J22: 0 | K22: 0 | L22: 0 | M22: 0 | N22: 0 | O22: 0 | P22: =+F22*$F$7+$G$7*G22+H22*$H$7+$I$7*I22+J22*$J$7+$K$7*K22+L22*$L$7+$M$7*M22+N22*$N$7+$O$7*O22 -> 40711.01365 | R22: 40711.01365
C23: Main-d'oeuvre | D23: R8 | F23: =+'R8 Traitement (main-d''oeuvres)'!F22 -> 25611.34615 | G23: =+'R8 Traitement (main-d''oeuvres)'!J22 -> 0 | H23: =+'R8 Traitement (main-d''oeuvres)'!K22 -> 0 | I23: =+'R8 Traitement (main-d''oeuvres)'!L22 -> 0 | J23: =+'R8 Traitement (main-d''oeuvres)'!M22 -> 0 | K23: =+'R8 Traitement (main-d''oeuvres)'!N22 -> 0 | L23: =+'R8 Traitement (main-d''oeuvres)'!O22 -> 0 | M23: =+'R8 Traitement (main-d''oeuvres)'!P22 -> 0 | N23: =+'R8 Traitement (main-d''oeuvres)'!Q22 -> 0 | O23: =+'R8 Traitement (main-d''oeuvres)'!R22 -> 0 | P23: 25611.34615 | R23: 25611.34615
C24: Fournitures médicales | D24: R9 | F24: =+'R9 Traitement (médicaments)'!I24 -> 1312.35 | G24: =+'R9 Traitement (médicaments)'!N24 -> 0 | H24: =+'R9 Traitement (médicaments)'!P24 -> 0 | I24: =+'R9 Traitement (médicaments)'!R24 -> 0 | J24: =+'R9 Traitement (médicaments)'!T24 -> 0 | K24: =+'R9 Traitement (médicaments)'!V24 -> 0 | L24: =+'R9 Traitement (médicaments)'!X24 -> 0 | M24: =+'R9 Traitement (médicaments)'!Z24 -> 0 | N24: =+'R9 Traitement (médicaments)'!AB24 -> 0 | O24: =+'R9 Traitement (médicaments)'!AD24 -> 0 | P24: 1312.35 | R24: 1312.35
C25: Aliments thérapeutiques | D25: R10 | F25: =+'R10 Traitement (fournitures)'!G18+'R10 Traitement (fournitures)'!G19 -> 12426.7275 | G25: =+'R10 Traitement (fournitures)'!I18+'R10 Traitement (fournitures)'!I19 -> 0 | H25: =+'R10 Traitement (fournitures)'!K18+'R10 Traitement (fournitures)'!K19 -> 0 | I25: =+'R10 Traitement (fournitures)'!M18+'R10 Traitement (fournitures)'!M19 -> 0 | J25: =+'R10 Traitement (fournitures)'!O18+'R10 Traitement (fournitures)'!O19 -> 0 | K25: =+'R10 Traitement (fournitures)'!Q18+'R10 Traitement (fournitures)'!Q19 -> 0 | L25: =+'R10 Traitement (fournitures)'!S18+'R10 Traitement (fournitures)'!S19 -> 0 | M25: =+'R10 Traitement (fournitures)'!U18+'R10 Traitement (fournitures)'!U19 -> 0 | N25: =+'R10 Traitement (fournitures)'!W18+'R10 Traitement (fournitures)'!W19 -> 0 | O25: =+'R10 Traitement (fournitures)'!W18+'R10 Traitement (fournitures)'!W19 -> 0 | P25: 12426.7275 | R25: 12426.7275
C26: Autres fournitures | D26: R10 | F26: =+'R10 Traitement (fournitures)'!G20+'R10 Traitement (fournitures)'!G21 -> 1360.59 | G26: =+'R10 Traitement (fournitures)'!I20+'R10 Traitement (fournitures)'!I21 -> 0 | H26: =+'R10 Traitement (fournitures)'!K20+'R10 Traitement (fournitures)'!K21 -> 0 | I26: =+'R10 Traitement (fournitures)'!M20+'R10 Traitement (fournitures)'!M21 -> 0 | J26: =+'R10 Traitement (fournitures)'!O20+'R10 Traitement (fournitures)'!O21 -> 0 | K26: =+'R10 Traitement (fournitures)'!Q20+'R10 Traitement (fournitures)'!Q21 -> 0 | L26: =+'R10 Traitement (fournitures)'!S20+'R10 Traitement (fournitures)'!S21 -> 0 | M26: =+'R10 Traitement (fournitures)'!U20+'R10 Traitement (fournitures)'!U21 -> 0 | N26: =+'R10 Traitement (fournitures)'!W20+'R10 Traitement (fournitures)'!W21 -> 0 | O26: =+'R10 Traitement (fournitures)'!W20+'R10 Traitement (fournitures)'!W21 -> 0 | P26: 1360.59 | R26: 1360.59
C27: Espace | D27: R8 | F27: =+'R8 Traitement (main-d''oeuvres)'!F26 -> 0 | G27: =+'R8 Traitement (main-d''oeuvres)'!J26 -> 0 | H27: =+'R8 Traitement (main-d''oeuvres)'!K26 -> 0 | I27: =+'R8 Traitement (main-d''oeuvres)'!L26 -> 0 | J27: =+'R8 Traitement (main-d''oeuvres)'!M26 -> 0 | K27: =+'R8 Traitement (main-d''oeuvres)'!N26 -> 0 | L27: =+'R8 Traitement (main-d''oeuvres)'!O26 -> 0 | M27: =+'R8 Traitement (main-d''oeuvres)'!P26 -> 0 | N27: =+'R8 Traitement (main-d''oeuvres)'!Q26 -> 0 | O27: =+'R8 Traitement (main-d''oeuvres)'!R26 -> 0 | P27: =+F27*F7+G7*G27+H27*H7+I7*I27+J27*J7+K7*K27+L27*L7+M7*M27+N27*N7+O7*O27 -> 0 | R27: 0
C29: Logistique de l'approvisionnement | D29: R11 | F29: =+'R11 Logistique approvisionnemen'!F21 -> 5239.165385 | G29: =+'R11 Logistique approvisionnemen'!J21 -> 0 | H29: =+'R11 Logistique approvisionnemen'!K21 -> 0 | I29: =+'R11 Logistique approvisionnemen'!L21 -> 0 | J29: =+'R11 Logistique approvisionnemen'!M21 -> 0 | K29: =+'R11 Logistique approvisionnemen'!N21 -> 0 | L29: =+'R11 Logistique approvisionnemen'!O21 -> 0 | M29: =+'R11 Logistique approvisionnemen'!P21 -> 0 | N29: =+'R11 Logistique approvisionnemen'!Q21 -> 0 | O29: =+'R11 Logistique approvisionnemen'!R21 -> 0 | P29: 5239.165385 | R29: 5239.165385
C31: Formation | D31: R12 | F31: =+'R12 Formation'!F53 -> 15345.23077 | G31: =+'R12 Formation'!J53 -> 0 | H31: =+'R12 Formation'!K53 -> 0 | I31: =+'R12 Formation'!L53 -> 0 | J31: =+'R12 Formation'!M53 -> 0 | K31: =+'R12 Formation'!N53 -> 0 | L31: =+'R12 Formation'!O53 -> 0 | M31: =+'R12 Formation'!P53 -> 0 | N31: =+'R12 Formation'!Q53 -> 0 | O31: =+'R12 Formation'!R53 -> 0 | P31: 15345.23077 | R31: 15345.23077
C33: Supervision | D33: R13 | F33: =+'R13 Supervision'!F31 -> 30592.84615 | G33: =+'R13 Supervision'!J31 -> 0 | H33: =+'R13 Supervision'!K31 -> 0 | I33: =+'R13 Supervision'!L31 -> 0 | J33: =+'R13 Supervision'!M31 -> 0 | K33: =+'R13 Supervision'!N31 -> 0 | L33: =+'R13 Supervision'!O31 -> 0 | M33: =+'R13 Supervision'!P31 -> 0 | N33: =+'R13 Supervision'!Q31 -> 0 | O33: =+'R13 Supervision'!R31 -> 0 | P33: 30592.84615 | R33: 30592.84615
C35: Extension communautaire | D35: R14 | F35: =+'R14 Extension communautaire'!F25 -> 30738.46154 | G35: =+'R14 Extension communautaire'!J25 -> 0 | H35: =+'R14 Extension communautaire'!K25 -> 0 | I35: =+'R14 Extension communautaire'!L25 -> 0 | J35: =+'R14 Extension communautaire'!M25 -> 0 | K35: =+'R14 Extension communautaire'!N25 -> 0 | L35: =+'R14 Extension communautaire'!O25 -> 0 | M35: =+'R14 Extension communautaire'!P25 -> 0 | N35: =+'R14 Extension communautaire'!Q25 -> 0 | O35: =+'R14 Extension communautaire'!R25 -> 0 | P35: 30738.46154 | R35: 30738.46154
C37: TOTAL | F37: =+F20+F22+F29+F31+F33+F35 -> 125285.179 | G37: =+G20+G22+G29+G31+G33+G35 -> 0 | H37: 0 | I37: 0 | J37: 0 | K37: 0 | L37: 0 | M37: 0 | N37: 0 | O37: 0 | P37: 125285.179 | Q37: =+Q15 -> 8401.2 | R37: 133686.379

Sheet R6 Niveau group-zones et centre
A2: Retour au sommaire | C2: R6: Activités au niveau central et du groupe-zones
V3: Important hidden columns DO NOT DELETE
C4: Cette Feuille de calcul montre (pour l'année choisie) les quantités d'intrants nécessaires au niveau de la zone, du groupe-zone et au niveau central (pour la gestion, la formation, les transpors et le stockage de l'aliment thérapeutique) pour mettre en oeuvre la PCMA et les coûts connexes.
C6: Voir ci-dessous pour la manière dont les chiffres sont calculés
D8: EPT = Equivalent à plein temps
D11: =+IF('D1 Données générales'!$H$11="","",'D1 Données générales'!$H$11) -> Ghana
D12: =+'D9 Variables temps'!$I$6 -> 2011 | G12: =+IF('D1 Données générales'!$G$33<1,0,1) -> 1 | H12: =+IF('D1 Données générales'!$G$33<2,0,1) -> 0 | I12: =+IF('D1 Données générales'!$G$33<3,0,1) -> 0 | J12: =+IF('D1 Données générales'!$G$33<4,0,1) -> 0 | K12: =+IF('D1 Données générales'!$G$33<5,0,1) -> 0 | L12: =+IF('D1 Données générales'!$G$33<6,0,1) -> 0 | M12: =+IF('D1 Données générales'!$G$33<7,0,1) -> 0 | N12: =+IF('D1 Données générales'!$G$33<8,0,1) -> 0 | R12: Coûts dans
G13: ------------------------------------------- Unités spécifiées dans la colonne E ----------------------------------------- | R13: =+IF('D1 Données générales'!H13="","",'D1 Données générales'!H13) -> Cedi
G14: Groupe-Zones | O14: Total groupe-zones | P14: Niveau central | Q14: Total du niveau central & groupe-zones | R14: Prix (par unité de variable) | S14: Total Coût
D15: Variables | E15: Unités | F15: Commentaires | G15: =+IF('D1 Données générales'!$G$36="","",'D1 Données générales'!$G$36) -> Greater Accra | H15: =+IF('D1 Données générales'!$G$37="","",'D1 Données générales'!$G$37) ->  | I15: =+IF('D1 Données générales'!$G$38="","",'D1 Données générales'!$G$38) ->  | J15: =+IF('D1 Données générales'!$G$39="","",'D1 Données générales'!$G$39) ->  | K15: =+IF('D1 Données générales'!$G$40="","",'D1 Données générales'!$G$40) ->  | L15: =+IF('D1 Données générales'!$G$41="","",'D1 Données générales'!$G$41) ->  | M15: =+IF('D1 Données générales'!$G$42="","",'D1 Données générales'!$G$42) ->  | N15: =+IF('D1 Données générales'!$G$43="","",'D1 Données générales'!$G$43) -> 
D16: Formation du personnel du siège de la zone
D17: Total jours du formateur du groupe-zone (niveau intermédiaire) pour le personnel du siège de la zone | E17: jours | F17: Salaires | G17: =+G109+G108 -> 0 | H17: 0 | I17: 0 | J17: 0 | K17: 0 | L17: 0 | M17: 0 | N17: 0 | O17: =+G17*$G$12+H17*$H$12+I17*$I$12+J17*$J$12+K17*$K$12+L17*$L$12+M17*$M$12+$N$12*N17 -> 0 | Q17: =+P17+O17 -> 0 | R17: =+'D5 Salaires'!J25 -> 36.92307692 | S17: =+R17*Q17 -> 0
F18: Honoraires | R18: =+'D5 Salaires'!K25 -> 50 | S18: =+R18*Q17 -> 0
D19: Jours-salle pour la formation au siège du groupe-zone | E19: jours-salle | G19: =+G105*G101+G106*G102 -> 0 | H19: 0 | I19: 0 | J19: 0 | K19: 0 | L19: 0 | M19: 0 | N19: 0 | O19: =+G19*$G$12+H19*$H$12+I19*$I$12+J19*$J$12+K19*$K$12+L19*$L$12+M19*$M$12+$N$12*N19 -> 0 | Q19: =+P19+O19 -> 0 | R19: =+'D4 Prix'!F23 -> 120 | S19: =+R19*Q19 -> 0
D20: Formation des formateurs (pour le site PEC MAS hospitalière)
D21: Temps passé par du personnel choisi de la PEC MAS hospitalière pour être formé en tant que formateur | E21: jours | G21: =+IF(G96="non",0,G111*G112) -> 0 | H21: =+IF(H96="non",0,H111*H112) -> 0 | I21: 0 | J21: 0 | K21: 0 | L21: 0 | M21: 0 | N21: 0 | O21: =+G21*$G$12+H21*$H$12+I21*$I$12+J21*$J$12+K21*$K$12+L21*$L$12+M21*$M$12+$N$12*N21 -> 0 | Q21: =+O21+P21 -> 0 | R21: =+'D5 Salaires'!J36 -> 83.07692308 | S21: =+R21*Q21 -> 0
D22: Formation du personnel du siège du groupe-zone
D23: Temps des participants du groupe-zone | E23: jours | F23: Personnel niveau intermédiaire | G23: =+G119*G116+G120*G117 -> 0 | H23: 0 | I23: 0 | J23: 0 | K23: 0 | L23: 0 | M23: 0 | N23: 0 | O23: =+G23*$G$12+H23*$H$12+I23*$I$12+J23*$J$12+K23*$K$12+L23*$L$12+M23*$M$12+$N$12*N23 -> 0 | Q23: =+P23+O23 -> 0 | R23: =+'D5 Salaires'!J25 -> 36.92307692 | S23: =+R23*Q23 -> 0
D24: Temps du formateur de niveau intermédiaire au centre pour le personnel du groupe-zones (en supposant une journée de préparation pour chaque jour de classes) | E24: jours | F24: Salaires | P24: =2*($P$122*$G$116+$P$123*$G$117) -> 0 | Q24: =+P24+O24 -> 0 | R24: =+'D5 Salaires'!J22 -> 55.38461538 | S24: =+R24*Q24 -> 0
F25: Honoraires | R25: =+'D5 Salaires'!K22 -> 50 | S25: =+R25*Q24 -> 0
D26: Distance parcourue par le personnel du groupe-zone au niveau central | E26: km | G26: =2*G128*G118 -> 0 | H26: =2*H128*H118 -> 0 | I26: 0 | J26: 0 | K26: 0 | L26: 0 | M26: 0 | N26: 0 | O26: =+G26*$G$12+H26*$H$12+I26*$I$12+J26*$J$12+K26*$K$12+L26*$L$12+M26*$M$12+$N$12*N26 -> 0 | Q26: =+P26+O26 -> 0 | R26: =+'D4 Prix'!F72 -> 2 | S26: =+R26*Q26 -> 0
D27: Jours-salle pour la formation au siège central | E27: jours-salle | P27: =+$P$24/2 -> 0 | Q27: 0 | R27: =+'D4 Prix'!F23 -> 120 | S27: 0
D28: Ensembles de matériel pour formation complète | E28: sets | P28: =+SUM($G$119:$N$119) -> 0 | Q28: 0 | R28: =+'D4 Prix'!F69 -> 25 | S28: 0
D29: Ensemble de matériel pour le recyclage | E29: sets | P29: =+SUM($G$120:$N$120) -> 0 | Q29: 0 | R29: =+'D4 Prix'!F70 -> 5 | S29: 0
D30: Rafraîchissements pour les participants | E30: personne-jours | P30: =+SUM($G$23:$N$23) -> 0 | Q30: 0 | R30: =+'D4 Prix'!F26 -> 12 | S30: 0
D31: Indemnités journalières pour les participants | E31: indemnités journalières | P31: =+SUM($G$23:$N$23) -> 0 | Q31: 0 | R31: =+'D4 Prix'!F29 -> 0 | S31: 0
D32: Sous-total pour la formation | S32: =+SUM(S17:S31) -> 0
D33: Logistique de l'approvisionnement
D34: Distance parcourue par an pour distribuer l'aliment thérapeutique du siège central au siège du groupe-zone | E34: km | G34: =+IF(G95="oui",2*G128*G126,0) -> 0 | H34: =+IF(H95="oui",2*H128*H126,0) -> 0 | I34: 0 | J34: 0 | K34: 0 | L34: 0 | M34: 0 | N34: 0 | O34: =+G34*$G$12+H34*$H$12+I34*$I$12+J34*$J$12+K34*$K$12+L34*$L$12+M34*$M$12+$N$12*N34 -> 0 | Q34: =+P34+O34 -> 0 | R34: =+'D4 Prix'!F77 -> 2 | S34: =+R34*Q34 -> 0
D35: Temps du chauffeur pour livrer du dépôt du siège central aux magasins du groupe-zones par an | E35: jours | F35: Chauffeur | G35: =+IF(G95="oui",2*G129*G126/'D3 Données épi. démo'!$F$35,0) -> 0 | H35: =+IF(H95="oui",2*H129*H126/'D3 Données épi. démo'!$F$35,0) -> 0 | I35: =+IF(I95="oui",2*I129*I126/'D3 Données épi. démo'!$F$35,0) -> 0 | J35: =+IF(J95="oui",2*J129*J126/'D3 Données épi. démo'!$F$35,0) -> 0 | K35: =+IF(K95="oui",2*K129*K126/'D3 Données épi. démo'!$F$35,0) -> 0 | L35: =+IF(L95="oui",2*L129*L126/'D3 Données épi. démo'!$F$35,0) -> 0 | M35: =+IF(M95="oui",2*M129*M126/'D3 Données épi. démo'!$F$35,0) -> 0 | N35: =+IF(N95="oui",2*N129*N126/'D3 Données épi. démo'!$F$35,0) -> 0 | O35: =+G35*$G$12+H35*$H$12+I35*$I$12+J35*$J$12+K35*$K$12+L35*$L$12+M35*$M$12+$N$12*N35 -> 0 | Q35: 0 | R35: =+'D5 Salaires'!J40 -> 6.923076923 | S35: 0
D36: Volume d'espace nécessaire pour le stockage de l'aliment thérapeutique pour le siège du groupe-zones | E36: m3 | G36: =+G127 -> 0 | H36: =+H127 -> 0 | I36: 0 | J36: 0 | K36: 0 | L36: 0 | M36: 0 | N36: 0 | O36: =+G36*$G$12+H36*$H$12+I36*$I$12+J36*$J$12+K36*$K$12+L36*$L$12+M36*$M$12+$N$12*N36 -> 0 | Q36: 0 | R36: =+'D4 Prix'!F27 -> 0 | S36: 0
D37: Nombre de gardiens des magasins du groupe-zones | E37: gardiens | F37: Un gardien par siège du groupe-zones actif plus un au niveau central | G37: =+IF(G95="oui",1,0) -> 0 | H37: =+IF(H95="oui",1,0) -> 0 | I37: 0 | J37: 0 | K37: 0 | L37: 0 | M37: 0 | N37: 0 | O37: =+G37*$G$12+H37*$H$12+I37*$I$12+J37*$J$12+K37*$K$12+L37*$L$12+M37*$M$12+$N$12*N37 -> 0 | P37: =+'D3 Données épi. démo'!F161 -> 1 | Q37: 1 | R37: =+'D5 Salaires'!H41 -> 1200 | S37: 1200
D38: Nombre de fiches de stock | E38: fiches | G38: =+G37*'D3 Données épi. démo'!$F$162 -> 0 | H38: =+H37*'D3 Données épi. démo'!$F$162 -> 0 | I38: =+I37*'D3 Données épi. démo'!$F$162 -> 0 | J38: =+J37*'D3 Données épi. démo'!$F$162 -> 0 | K38: =+K37*'D3 Données épi. démo'!$F$162 -> 0 | L38: =+L37*'D3 Données épi. démo'!$F$162 -> 0 | M38: =+M37*'D3 Données épi. démo'!$F$162 -> 0 | N38: =+N37*'D3 Données épi. démo'!$F$162 -> 0 | O38: =+G38*$G$12+H38*$H$12+I38*$I$12+J38*$J$12+K38*$K$12+L38*$L$12+M38*$M$12+$N$12*N38 -> 0 | P38: =+'D3 Données épi. démo'!F162 -> 12 | Q38: 12 | R38: =+'D4 Prix'!F60 -> 0.1 | S38: 1.2
D39: Volume d'espace nécessaire pour le stockage des magasins de l'aliment thérapeutique au niveau central (en supposant que le tout vient en une seule livraison annuelle). | E39: m3 | P39: =+SUM(G125:N125) -> 0 | Q39: 0 | R39: =+'D4 Prix'!F27 -> 0 | S39: 0
D40: Sous-total de la logistique de l'approvisionnement | S40: =+SUM(S34:S39) -> 1201.2
D41: Gestion des zones par les groupe-zones
D42: Temps du personnel senior à mettre en place la PCMA dans le groupe-zones | E42: jours | F42: Personnel senior | G42: =+IF(G96="oui",G133,0) -> 0 | H42: =+IF(H96="oui",H133,0) -> 0 | I42: 0 | J42: 0 | K42: 0 | L42: 0 | M42: 0 | N42: 0 | O42: =+G42*$G$12+H42*$H$12+I42*$I$12+J42*$J$12+K42*$K$12+L42*$L$12+M42*$M$12+$N$12*N42 -> 0 | Q42: =+P42+O42 -> 0 | R42: =+'D5 Salaires'!J24 -> 46.15384615 | S42: =+R42*Q42 -> 0
D43: Personnel niveau intermédiaireà mettre en place la PCMA dans le groupe-zones | E43: jours | F43: Personnel niveau intermédiaire | G43: =+IF(G96="oui",G134,0) -> 0 | H43: =+IF(H96="oui",H134,0) -> 0 | I43: 0 | J43: 0 | K43: 0 | L43: 0 | M43: 0 | N43: 0 | O43: =+G43*$G$12+H43*$H$12+I43*$I$12+J43*$J$12+K43*$K$12+L43*$L$12+M43*$M$12+$N$12*N43 -> 0 | Q43: =+P43+O43 -> 0 | R43: =+'D5 Salaires'!J25 -> 36.92307692 | S43: =+R43*Q43 -> 0
D44: Personnel niveau intermédiaire à mettre en plqce la PCMA dans les zones nouvelles et établies | E44: jours | F44: Personnel niveau intermédiaire | G44: =+G93*G136+G137*G94 -> 0 | H44: =+H93*H136+H137*H94 -> 0 | I44: 0 | J44: 0 | K44: 0 | L44: 0 | M44: 0 | N44: 0 | O44: =+G44*$G$12+H44*$H$12+I44*$I$12+J44*$J$12+K44*$K$12+L44*$L$12+M44*$M$12+$N$12*N44 -> 0 | Q44: =+P44+O44 -> 0 | R44: =+'D5 Salaires'!J25 -> 36.92307692 | S44: =+R44*Q44 -> 0
D45: Fiches de rapport mensuel | E45: fiches | G45: =+IF(G93+G94=0,0,12*(G93+G94+1)) -> 0 | H45: =+IF(H93+H94=0,0,12*(H93+H94+1)) -> 0 | I45: 0 | J45: 0 | K45: 0 | L45: 0 | M45: 0 | N45: 0 | O45: =+G45*$G$12+H45*$H$12+I45*$I$12+J45*$J$12+K45*$K$12+L45*$L$12+M45*$M$12+$N$12*N45 -> 0 | Q45: =+O45 -> 0 | R45: =+'D4 Prix'!F33 -> 0.3 | S45: =+R45*Q45 -> 0
D46: Gestion au niveau central - de routine
D47: Total temps nécessaire pour la gestion de routine | E47: EPT | F47: Personnel niveau intermédiaire | P47: =+P146*5/'D5 Salaires'!I20+P139 -> 0.5 | Q47: =+P47+O47 -> 0.5 | R47: =+'D5 Salaires'!H22 -> 14400 | S47: =+R47*Q47 -> 7200
D48: Distance parcourue pour la gestion du groupe-zones | E48: personne-km | G48: =+IF(G96="oui",2*$P$145*G128,(IF(G95="oui",2*$P$144*G128,0))) -> 0 | H48: =+IF(H96="oui",2*$P$145*H128,(IF(H95="oui",2*$P$144*H128,0))) -> 0 | I48: 0 | J48: 0 | K48: 0 | L48: 0 | M48: 0 | N48: 0 | O48: =+G48*$G$12+H48*$H$12+I48*$I$12+J48*$J$12+K48*$K$12+L48*$L$12+M48*$M$12+$N$12*N48 -> 0 | Q48: =+P48+O48 -> 0 | R48: =+'D4 Prix'!F72 -> 2 | S48: =+R48*Q48 -> 0
D49: Gestion au niveau central - Mise en place de la PCMA
D50: Temps siège central pour mettre en place la PCMA - mettre au point des directives, aides de travail, matériels et plans de formation, outils de gestion, le système logistique, le système de suivi et de rapport, et les contacts avec les politiques et les bailleurs de fonds. | E50: EPT | F50: Personnel senior | P50: =+IF(P97="yes",P148,0) -> 0 | Q50: =+P50+O50 -> 0 | R50: =+'D5 Salaires'!H21 -> 18000 | S50: =+R50*Q50 -> 0
E51: EPT | F51: Personnel niveau intermédiaire | P51: =+IF(P97="yes",P149,0) -> 0 | Q51: =+P51+O51 -> 0 | R51: =+'D5 Salaires'!H22 -> 14400 | S51: =+R51*Q51 -> 0
D52: Sous-total pour la gestion | S52: =+SUM(S42:S51) -> 7200
D53: Total des coûts au niveau du groupe-zones et niveau central | S53: =+S32+S40+S52 -> 8401.2
G77: Groupe-Zones | P77: Niveau central
A78: Haut de page | D78: Calculs | G78: =+IF('D1 Données générales'!$G$36="","",'D1 Données générales'!$G$36) -> Greater Accra | H78: =+IF('D1 Données générales'!$G$37="","",'D1 Données générales'!$G$37) ->  | I78: =+IF('D1 Données générales'!$G$38="","",'D1 Données générales'!$G$38) ->  | J78: =+IF('D1 Données générales'!$G$39="","",'D1 Données générales'!$G$39) ->  | K78: =+IF('D1 Données générales'!$G$40="","",'D1 Données générales'!$G$40) ->  | L78: =+IF('D1 Données générales'!$G$41="","",'D1 Données générales'!$G$41) ->  | M78: =+IF('D1 Données générales'!$G$42="","",'D1 Données générales'!$G$42) ->  | N78: =+IF('D1 Données générales'!$G$43="","",'D1 Données générales'!$G$43) -> 
D79: Variables | E79: Unités | F79: Commentaires | U79: active areas | V79: new areas | W79: Distance from Area to Group-Area | X79: Areas
E80: zones | F80: =+'D2 Echelle'!C31 -> Ashiedu Keteke | G80: =+IF('D2 Echelle'!$D$31=G79,1,0) -> 0 | H80: =+IF('D2 Echelle'!$D$31=H79,1,0) -> 0 | I80: =+IF('D2 Echelle'!$D$31=I79,1,0) -> 0 | J80: =+IF('D2 Echelle'!$D$31=J79,1,0) -> 0 | K80: =+IF('D2 Echelle'!$D$31=K79,1,0) -> 0 | L80: =+IF('D2 Echelle'!$D$31=L79,1,0) -> 0 | M80: =+IF('D2 Echelle'!$D$31=M79,1,0) -> 0 | N80: =+IF('D2 Echelle'!$D$31=N79,1,0) -> 0 | U80: =+'D9 Variables temps'!$F$45 -> 1 | V80: =+'D9 Variables temps'!$F$47 -> 0 | W80: =+'D3 Données épi. démo'!$F$127 -> 1 | X80: 1
F81: =+'D2 Echelle'!C36 -> 0 | G81: =+IF('D2 Echelle'!$D$36=G79,1,0) -> 1 | H81: =+IF('D2 Echelle'!$D$36=H79,1,0) -> 1 | I81: =+IF('D2 Echelle'!$D$36=I79,1,0) -> 1 | J81: =+IF('D2 Echelle'!$D$36=J79,1,0) -> 1 | K81: =+IF('D2 Echelle'!$D$36=K79,1,0) -> 1 | L81: =+IF('D2 Echelle'!$D$36=L79,1,0) -> 1 | M81: =+IF('D2 Echelle'!$D$36=M79,1,0) -> 1 | N81: =+IF('D2 Echelle'!$D$36=N79,1,0) -> 1 | U81: =+'D9 Variables temps'!$J$45 -> 0 | V81: =+'D9 Variables temps'!$J$47 -> 0 | W81: =+'D3 Données épi. démo'!$J$127 -> 0 | X81: 2
F82: =+'D2 Echelle'!C41 -> 0 | G82: =+IF('D2 Echelle'!$D$41=G79,1,0) -> 1 | H82: =+IF('D2 Echelle'!$D$41=H79,1,0) -> 1 | I82: =+IF('D2 Echelle'!$D$41=I79,1,0) -> 1 | J82: =+IF('D2 Echelle'!$D$41=J79,1,0) -> 1 | K82: =+IF('D2 Echelle'!$D$41=K79,1,0) -> 1 | L82: =+IF('D2 Echelle'!$D$41=L79,1,0) -> 1 | M82: =+IF('D2 Echelle'!$D$41=M79,1,0) -> 1 | N82: =+IF('D2 Echelle'!$D$41=N79,1,0) -> 1 | U82: =+'D9 Variables temps'!$K$45 -> 0 | V82: =+'D9 Variables temps'!$K$47 -> 0 | W82: =+'D3 Données épi. démo'!$K$127 -> 0 | X82: 3
F83: =+'D2 Echelle'!C46 -> 0 | G83: =+IF('D2 Echelle'!$D$46=G79,1,0) -> 1 | H83: =+IF('D2 Echelle'!$D$46=H79,1,0) -> 1 | I83: =+IF('D2 Echelle'!$D$46=I79,1,0) -> 1 | J83: =+IF('D2 Echelle'!$D$46=J79,1,0) -> 1 | K83: =+IF('D2 Echelle'!$D$46=K79,1,0) -> 1 | L83: =+IF('D2 Echelle'!$D$46=L79,1,0) -> 1 | M83: =+IF('D2 Echelle'!$D$46=M79,1,0) -> 1 | N83: =+IF('D2 Echelle'!$D$46=N79,1,0) -> 1 | U83: =+'D9 Variables temps'!$L$45 -> 0 | V83: =+'D9 Variables temps'!$L$47 -> 0 | W83: =+'D3 Données épi. démo'!$L$127 -> 0 | X83: 4
F84: =+'D2 Echelle'!C51 -> 0 | G84: =+IF('D2 Echelle'!$D$51=G79,1,0) -> 1 | H84: =+IF('D2 Echelle'!$D$51=H79,1,0) -> 1 | I84: =+IF('D2 Echelle'!$D$51=I79,1,0) -> 1 | J84: =+IF('D2 Echelle'!$D$51=J79,1,0) -> 1 | K84: =+IF('D2 Echelle'!$D$51=K79,1,0) -> 1 | L84: =+IF('D2 Echelle'!$D$51=L79,1,0) -> 1 | M84: =+IF('D2 Echelle'!$D$51=M79,1,0) -> 1 | N84: =+IF('D2 Echelle'!$D$51=N79,1,0) -> 1 | U84: =+'D9 Variables temps'!$M$45 -> 0 | V84: =+'D9 Variables temps'!$M$47 -> 0 | W84: =+'D3 Données épi. démo'!$M$127 -> 0 | X84: 5
F85: =+'D2 Echelle'!C56 -> 0 | G85: =+IF('D2 Echelle'!$D$56=G79,1,0) -> 1 | H85: =+IF('D2 Echelle'!$D$56=H79,1,0) -> 1 | I85: =+IF('D2 Echelle'!$D$56=I79,1,0) -> 1 | J85: =+IF('D2 Echelle'!$D$56=J79,1,0) -> 1 | K85: =+IF('D2 Echelle'!$D$56=K79,1,0) -> 1 | L85: =+IF('D2 Echelle'!$D$56=L79,1,0) -> 1 | M85: =+IF('D2 Echelle'!$D$56=M79,1,0) -> 1 | N85: =+IF('D2 Echelle'!$D$56=N79,1,0) -> 1 | U85: =+'D9 Variables temps'!$N$45 -> 0 | V85: =+'D9 Variables temps'!$N$47 -> 0 | W85: =+'D3 Données épi. démo'!$N$127 -> 0 | X85: 6
F86: =+'D2 Echelle'!C61 -> 0 | G86: =+IF('D2 Echelle'!$D$61=G79,1,0) -> 1 | H86: =+IF('D2 Echelle'!$D$61=H79,1,0) -> 1 | I86: =+IF('D2 Echelle'!$D$61=I79,1,0) -> 1 | J86: =+IF('D2 Echelle'!$D$61=J79,1,0) -> 1 | K86: =+IF('D2 Echelle'!$D$61=K79,1,0) -> 1 | L86: =+IF('D2 Echelle'!$D$61=L79,1,0) -> 1 | M86: =+IF('D2 Echelle'!$D$61=M79,1,0) -> 1 | N86: =+IF('D2 Echelle'!$D$61=N79,1,0) -> 1 | U86: =+'D9 Variables temps'!$O$45 -> 0 | V86: =+'D9 Variables temps'!$O$47 -> 0 | W86: =+'D3 Données épi. démo'!$O$127 -> 0 | X86: 7
F87: =+'D2 Echelle'!C66 -> 0 | G87: =+IF('D2 Echelle'!$D$66=G79,1,0) -> 1 | H87: =+IF('D2 Echelle'!$D$66=H79,1,0) -> 1 | I87: =+IF('D2 Echelle'!$D$66=I79,1,0) -> 1 | J87: =+IF('D2 Echelle'!$D$66=J79,1,0) -> 1 | K87: =+IF('D2 Echelle'!$D$66=K79,1,0) -> 1 | L87: =+IF('D2 Echelle'!$D$66=L79,1,0) -> 1 | M87: =+IF('D2 Echelle'!$D$66=M79,1,0) -> 1 | N87: =+IF('D2 Echelle'!$D$66=N79,1,0) -> 1 | U87: =+'D9 Variables temps'!$P$45 -> 0 | V87: =+'D9 Variables temps'!$P$47 -> 0 | W87: =+'D3 Données épi. démo'!$P$127 -> 0 | X87: 8
F88: =+'D2 Echelle'!C71 -> 0 | G88: =+IF('D2 Echelle'!$D$71=G79,1,0) -> 1 | H88: =+IF('D2 Echelle'!$D$71=H79,1,0) -> 1 | I88: =+IF('D2 Echelle'!$D$71=I79,1,0) -> 1 | J88: =+IF('D2 Echelle'!$D$71=J79,1,0) -> 1 | K88: =+IF('D2 Echelle'!$D$71=K79,1,0) -> 1 | L88: =+IF('D2 Echelle'!$D$71=L79,1,0) -> 1 | M88: =+IF('D2 Echelle'!$D$71=M79,1,0) -> 1 | N88: =+IF('D2 Echelle'!$D$71=N79,1,0) -> 1 | U88: =+'D9 Variables temps'!$Q$45 -> 0 | V88: =+'D9 Variables temps'!$Q$47 -> 0 | W88: =+'D3 Données épi. démo'!$Q$127 -> 0 | X88: 9
F89: =+'D2 Echelle'!C76 -> 0 | G89: =+IF('D2 Echelle'!$D$76=G79,1,0) -> 1 | H89: =+IF('D2 Echelle'!$D$76=H79,1,0) -> 1 | I89: =+IF('D2 Echelle'!$D$76=I79,1,0) -> 1 | J89: =+IF('D2 Echelle'!$D$76=J79,1,0) -> 1 | K89: =+IF('D2 Echelle'!$D$76=K79,1,0) -> 1 | L89: =+IF('D2 Echelle'!$D$76=L79,1,0) -> 1 | M89: =+IF('D2 Echelle'!$D$76=M79,1,0) -> 1 | N89: =+IF('D2 Echelle'!$D$76=N79,1,0) -> 1 | U89: =+'D9 Variables temps'!$R$45 -> 0 | V89: =+'D9 Variables temps'!$R$47 -> 0 | W89: =+'D3 Données épi. démo'!$R$127 -> 0 | X89: 10
D90: Distance du siège aux zones actives du groupe-zones | E90: km | G90: =+G80*$U$80*$W$80+G81*$U$81*$W$81+G82*$U$82*$W$82+G83*$U$83*$W$83+G84*$U$84*$W$84+G85*$U$85*$W$85+G86*$U$86*$W$86+G87*$U$87*$W$87+G88*$U$88*$W$88*+$W$89*$U$89*G89 -> 0 | H90: =+H80*$U$80*$W$80+H81*$U$81*$W$81+H82*$U$82*$W$82+H83*$U$83*$W$83+H84*$U$84*$W$84+H85*$U$85*$W$85+H86*$U$86*$W$86+H87*$U$87*$W$87+H88*$U$88*$W$88*+$W$89*$U$89*H89 -> 0 | I90: 0 | J90: 0 | K90: 0 | L90: 0 | M90: 0 | N90: 0
D91: Distance du siège aux nouvelles zones du groupe-zones | E91: km | G91: =+G80*$V$80*$W$80+G81*$V$81*$W$81+G82*$V$82*$W$82+G83*$V$83*$W$83+G84*$V$84*$W$84+G85*$V$85*$W$85+G86*$V$86*$W$86+G87*$V$87*$W$87+G88*$V$88*$W$88+G89*$V$89*$W$89 -> 0 | H91: =+H80*$V$80*$W$80+H81*$V$81*$W$81+H82*$V$82*$W$82+H83*$V$83*$W$83+H84*$V$84*$W$84+H85*$V$85*$W$85+H86*$V$86*$W$86+H87*$V$87*$W$87+H88*$V$88*$W$88+H89*$V$89*$W$89 -> 0 | I91: 0 | J91: 0 | K91: 0 | L91: 0 | M91: 0 | N91: 0
D92: Distance aux zones établies dans le groupe-zones | E92: km | G92: =+G90-G91 -> 0 | H92: =+H90-H91 -> 0 | I92: 0 | J92: 0 | K92: 0 | L92: 0 | M92: 0 | N92: 0
D93: Nombre de nouvelles zones dans le groupe-zones | E93: zones | G93: =+$G$80*$V$80+$G$81*$V$81+$G$82*$V$82+$G$83*$V$83+$G$84*$V$84+$G$85*$V$85+$G$86*$V$86+$G$87*$V$87+$G$88*$V$88+$G$89*$V$89 -> 0 | H93: =+H80*$V$80+H81*$V$81+H82*$V$82+H83*$V$83+H84*$V$84+H85*$V$85+H86*$V$86+H87*$V$87+H88*$V$88+H89*$V$89 -> 0 | I93: 0 | J93: 0 | K93: 0 | L93: 0 | M93: 0 | N93: 0
D94: Nombre de zones établies dans le groupe-zones | E94: zones | G94: =+G80*($U$80-$V$80)+G81*($U$81-$V$81)+G$82*($U$82-$V$82)+G$83*($U$83-$V$83)+G$84*($U$84-$V$84)+G$85*($U$85-$V$85)+G$86*($U$86-$V$86)+G$87*($U$87-$V$87)+G$88*($U$88-$V$88)+G$89*($U$89-$V$89) -> 0 | H94: =+H80*($U$80-$V$80)+H81*($U$81-$V$81)+H$82*($U$82-$V$82)+H$83*($U$83-$V$83)+H$84*($U$84-$V$84)+H$85*($U$85-$V$85)+H$86*($U$86-$V$86)+H$87*($U$87-$V$87)+H$88*($U$88-$V$88)+H$89*($U$89-$V$89) -> 0 | I94: =+I80*($U$80-$V$80)+I81*($U$81-$V$81)+I$82*($U$82-$V$82)+I$83*($U$83-$V$83)+I$84*($U$84-$V$84)+I$85*($U$85-$V$85)+I$86*($U$86-$V$86)+I$87*($U$87-$V$87)+I$88*($U$88-$V$88)+I$89*($U$89-$V$89) -> 0 | J94: 0 | K94: 0 | L94: 0 | M94: 0 | N94: 0
D95: Le groupe-zones est-il actif dans la PCMA ? | G95: =+IF(G93+G94>0,"oui","non") -> non | H95: =+IF(H93+H94>0,"oui","non") -> non | I95: non | J95: non | K95: non | L95: non | M95: non | N95: non | O95: non
D96: La PCMA est-elle nouvelle dans le groupe-zones ? | G96: =IF(AND(G93>0,G94=0),"oui","non") -> non | H96: =+IF(AND(H93>0,H94=0),"oui","non") -> non | I96: =+IF(AND(I93>0,I94=0),"oui","non") -> non | J96: non | K96: non | L96: non | M96: non | N96: non | O96: non
D97: Est-ce la première année de la PCMA ? | G97: =+'D1 Données générales'!G45 -> oui | P97: =+IF(AND('D1 Données générales'!$G$45="no",'D9 Variables temps'!$I$10=1),"yes","no") -> no
D98: Taille maximum du groupe en formation au siège de la zone | E98: participants | G98: =+'D3 Données épi. démo'!$F$168 -> 20 | H98: =+'D3 Données épi. démo'!$F$168 -> 20 | I98: =+'D3 Données épi. démo'!$F$168 -> 20 | J98: =+'D3 Données épi. démo'!$F$168 -> 20 | K98: =+'D3 Données épi. démo'!$F$168 -> 20 | L98: =+'D3 Données épi. démo'!$F$168 -> 20 | M98: =+'D3 Données épi. démo'!$F$168 -> 20 | N98: =+'D3 Données épi. démo'!$F$168 -> 20
D99: Nombre de personnel à former des nouvelles zones par nouvelle zone | E99: personnel | G99: =+'D3 Données épi. démo'!$F$164 -> 4 | H99: =+'D3 Données épi. démo'!$F$164 -> 4 | I99: =+'D3 Données épi. démo'!$F$164 -> 4 | J99: =+'D3 Données épi. démo'!$F$164 -> 4 | K99: =+'D3 Données épi. démo'!$F$164 -> 4 | L99: =+'D3 Données épi. démo'!$F$164 -> 4 | M99: =+'D3 Données épi. démo'!$F$164 -> 4 | N99: =+'D3 Données épi. démo'!$F$164 -> 4
D100: Nombre de personnel à former dans les zones établies par zone établie | E100: personnel | G100: =+'D3 Données épi. démo'!$F$165 -> 2 | H100: =+'D3 Données épi. démo'!$F$165 -> 2 | I100: =+'D3 Données épi. démo'!$F$165 -> 2 | J100: =+'D3 Données épi. démo'!$F$165 -> 2 | K100: =+'D3 Données épi. démo'!$F$165 -> 2 | L100: =+'D3 Données épi. démo'!$F$165 -> 2 | M100: =+'D3 Données épi. démo'!$F$165 -> 2 | N100: =+'D3 Données épi. démo'!$F$165 -> 2
D101: Durée de la formation du personnel du siège des nouvelles zones | E101: jours | G101: =+'D3 Données épi. démo'!$F$166 -> 5 | H101: =+'D3 Données épi. démo'!$F$166 -> 5 | I101: =+'D3 Données épi. démo'!$F$166 -> 5 | J101: =+'D3 Données épi. démo'!$F$166 -> 5 | K101: =+'D3 Données épi. démo'!$F$166 -> 5 | L101: =+'D3 Données épi. démo'!$F$166 -> 5 | M101: =+'D3 Données épi. démo'!$F$166 -> 5 | N101: =+'D3 Données épi. démo'!$F$166 -> 5
D102: Durée de la formation du personnel du siège des zones établies | E102: jours | G102: =+'D3 Données épi. démo'!$F$167 -> 1 | H102: =+'D3 Données épi. démo'!$F$167 -> 1 | I102: =+'D3 Données épi. démo'!$F$167 -> 1 | J102: =+'D3 Données épi. démo'!$F$167 -> 1 | K102: =+'D3 Données épi. démo'!$F$167 -> 1 | L102: =+'D3 Données épi. démo'!$F$167 -> 1 | M102: =+'D3 Données épi. démo'!$F$167 -> 1 | N102: =+'D3 Données épi. démo'!$F$167 -> 1
D103: Nombre du personnel du siège de la zone dans ce groupe-zones qui a besoin d'une formation complète (à savoir, personnel des nouvelles zones). | E103: personnel | G103: =+G93*G99 -> 0 | H103: 0 | I103: 0 | J103: 0 | K103: 0 | L103: 0 | M103: 0 | N103: 0
D104: Nombre de personnel du siège de la zone dans ce groupe-zones qui a besoin d'un recyclage (à savoir, personnel des zones établies). | E104: personnel | G104: 0 | H104: 0 | I104: 0 | J104: 0 | K104: 0 | L104: 0 | M104: 0 | N104: 0
D105: Nombre de groupes du siège de la zone ayant besoin d' une formation complète | E105: groupes | G105: =+ROUNDUP(G103/G98,0) -> 0 | H105: 0 | I105: 0 | J105: 0 | K105: 0 | L105: 0 | M105: 0 | N105: 0
D106: Nombre de groupes du siège de la zone ayant besoin d' un recyclage | E106: groupes | G106: =+ROUNDUP(G104/G98,0) -> 0 | H106: 0 | I106: 0 | J106: 0 | K106: 0 | L106: 0 | M106: 0 | N106: 0
D107: Formation du personnel du siège de la zone (voir R12 pour les autres coûts)
D108: Jours du formateur du groupe-zones pour le personnel du siège de la zone, pour une formation complète | E108: jours | F108: Deux fois la durée de la formation pour laisser le temps à la préparation. | G108: =2*(G101*G105) -> 0 | H108: 0 | I108: 0 | J108: 0 | K108: 0 | L108: 0 | M108: 0 | N108: 0
D109: Jours du formateur du groupe-zones pour le personnel du siège de la zone, pour une formation de recyclage | E109: jours | F109: Deux fois la durée de la formation pour laisser le temps à la préparation. | G109: =2*G106*G102 -> 0 | H109: 0 | I109: 0 | J109: 0 | K109: 0 | L109: 0 | M109: 0 | N109: 0
D110: Formation des formateurs
D111: Nombre du personnel de la PCMA formé dans chaque nouveau groupe-zones pour être des formateurs (à savoir, des formateurs d'autres membres du personnel de la PCMA) | E111: personnel | G111: =+'D8 Statistiques'!G31 -> 8 | H111: =+'D8 Statistiques'!H31 -> 0 | I111: =+'D8 Statistiques'!I31 -> 0 | J111: =+'D8 Statistiques'!J31 -> 0 | K111: =+'D8 Statistiques'!K31 -> 0 | L111: =+'D8 Statistiques'!L31 -> 0 | M111: =+'D8 Statistiques'!M31 -> 0 | N111: =+'D8 Statistiques'!N31 -> 0
D112: Nombre de jours de la formation des formateurs | E112: jours | G112: =+'D8 Statistiques'!G32 -> 4 | H112: =+'D8 Statistiques'!H32 -> 0 | I112: =+'D8 Statistiques'!I32 -> 0 | J112: =+'D8 Statistiques'!J32 -> 0 | K112: =+'D8 Statistiques'!K32 -> 0 | L112: =+'D8 Statistiques'!L32 -> 0 | M112: =+'D8 Statistiques'!M32 -> 0 | N112: =+'D8 Statistiques'!N32 -> 0
D113: Formation du personnel du siège du groupe-zones
D114: Nombre de personnel à former de chaque nouveau groupe-zones | E114: personnel | F114: Personnel niveau intermédiaire | G114: =+'D8 Statistiques'!G24 -> 2 | H114: =+'D8 Statistiques'!H24 -> 0 | I114: =+'D8 Statistiques'!I24 -> 0 | J114: =+'D8 Statistiques'!J24 -> 0 | K114: =+'D8 Statistiques'!K24 -> 0 | L114: =+'D8 Statistiques'!L24 -> 0 | M114: =+'D8 Statistiques'!M24 -> 0 | N114: =+'D8 Statistiques'!N24 -> 0
D115: Nombre de personnel à recycler de chaque groupe-zones établi | E115: personnel | F115: Personnel niveau intermédiaire | G115: =+'D8 Statistiques'!G25 -> 2 | H115: =+'D8 Statistiques'!H25 -> 0 | I115: =+'D8 Statistiques'!I25 -> 0 | J115: =+'D8 Statistiques'!J25 -> 0 | K115: =+'D8 Statistiques'!K25 -> 0 | L115: =+'D8 Statistiques'!L25 -> 0 | M115: =+'D8 Statistiques'!M25 -> 0 | N115: =+'D8 Statistiques'!N25 -> 0
D116: Durée de la formation du personnel du nouveau groupe-zones (formation des formateurs) | E116: jours | G116: =+'D8 Statistiques'!G26 -> 10 | H116: =+'D8 Statistiques'!H26 -> 0 | I116: =+'D8 Statistiques'!I26 -> 0 | J116: =+'D8 Statistiques'!J26 -> 0 | K116: =+'D8 Statistiques'!K26 -> 0 | L116: =+'D8 Statistiques'!L26 -> 0 | M116: =+'D8 Statistiques'!M26 -> 0 | N116: =+'D8 Statistiques'!N26 -> 0
D117: Durée de la formation du personnel du groupe-zones établi | E117: jours | G117: =+'D8 Statistiques'!G27 -> 2 | H117: =+'D8 Statistiques'!H27 -> 0 | I117: =+'D8 Statistiques'!I27 -> 0 | J117: =+'D8 Statistiques'!J27 -> 0 | K117: =+'D8 Statistiques'!K27 -> 0 | L117: =+'D8 Statistiques'!L27 -> 0 | M117: =+'D8 Statistiques'!M27 -> 0 | N117: =+'D8 Statistiques'!N27 -> 0
D118: Nombre de voyages retour par les participants à la formation au siège central et retour au siège du groupe-zones | E118: km | F118: Si les participants restent pendant la nuit, nombre de voyages de retour =nombre de participants ; Si non = participants complets * jours complets + participants recyclage *jours de recyclage. | G118: =+IF('D8 Statistiques'!F29="restent la nuit",G119+G120,G119*G116+G120*G117) -> 0 | H118: =+IF('D8 Statistiques'!G29="restent la nuit",H119+H120,H119*H116+H120*H117) -> 0 | I118: =+IF('D8 Statistiques'!H29="restent la nuit",I119+I120,I119*I116+I120*I117) -> 0 | J118: =+IF('D8 Statistiques'!I29="restent la nuit",J119+J120,J119*J116+J120*J117) -> 0 | K118: =+IF('D8 Statistiques'!J29="restent la nuit",K119+K120,K119*K116+K120*K117) -> 0 | L118: =+IF('D8 Statistiques'!K29="restent la nuit",L119+L120,L119*L116+L120*L117) -> 0 | M118: =+IF('D8 Statistiques'!L29="restent la nuit",M119+M120,M119*M116+M120*M117) -> 0 | N118: =+IF('D8 Statistiques'!M29="restent la nuit",N119+N120,N119*N116+N120*N117) -> 0 | O118: =+IF('D8 Statistiques'!N29="restent la nuit",O119+O120,O119*O116+O120*O117) -> 0
D119: Nombre de participants pour la formation complète du groupe-zones | E119: participants | G119: =+IF(G96="oui",G114,0) -> 0 | H119: =+IF(H96="oui",H114,0) -> 0 | I119: 0 | J119: 0 | K119: 0 | L119: 0 | M119: 0 | N119: 0 | O119: 0
D120: Nombre de participants pour le recyclage du groupe-zones | E120: participants | G120: =+IF(AND(G95="oui",G96="non"),G115,0) -> 0 | H120: =+IF(AND(H95="oui",H96="non"),H115,0) -> 0 | I120: 0 | J120: 0 | K120: 0 | L120: 0 | M120: 0 | N120: 0 | O120: 0
D121: Taille maximum des classes de participants pour le personnel du groupe-zones | E121: participants | G121: =+'D8 Statistiques'!G28 -> 20 | H121: =+'D8 Statistiques'!H28 -> 0 | I121: =+'D8 Statistiques'!I28 -> 0 | J121: =+'D8 Statistiques'!J28 -> 0 | K121: =+'D8 Statistiques'!K28 -> 0 | L121: =+'D8 Statistiques'!L28 -> 0 | M121: =+'D8 Statistiques'!M28 -> 0 | N121: =+'D8 Statistiques'!N28 -> 0
D122: Nombre de classes du personnel du groupe-zones nécessitant une formation complète | E122: classes | P122: =+ROUNDUP(($G$119+$H$119+$I$119+$J$119+$K$119+$L$119+$M$119+$N$119)/$G$121,0) -> 0
D123: Nombre de classes du personnel du groupe-zones nécessitant un recyclage | E123: classes | P123: =+ROUNDUP(($G$120+$H$120+$I$120+$J$120+$K$120+$L$120+$M$120+$N$120)/$G$121,0) -> 0
D124: Logistique de l'approvisionnement
D125: Espace occupé par les besoins annuels en aliment thérapeutique du groupe-zones | E125: m3 | F125: La somme des zones occupées par l'aliment thérapeutique dans les zones actives. | G125: =+G80*'R11 Logistique approvisionnemen'!$F$99+G81*'R11 Logistique approvisionnemen'!$J$99+G82*'R11 Logistique approvisionnemen'!$K$99+G83*'R11 Logistique approvisionnemen'!$L$99+G84*'R11 Logistique approvisionnemen'!$M$99+G85*'R11 Logistique approvisionnemen'!$N$99+G86*'R11 Logistique approvisionnemen'!$O$99+G87*'R11 Logistique approvisionnemen'!$P$99+G88*'R11 Logistique approvisionnemen'!$Q$99+G89*'R11 Logistique approvisionnemen'!$R$99 -> 0 | H125: =+H80*'R11 Logistique approvisionnemen'!$F$99+H81*'R11 Logistique approvisionnemen'!$J$99+H82*'R11 Logistique approvisionnemen'!$K$99+H83*'R11 Logistique approvisionnemen'!$L$99+H84*'R11 Logistique approvisionnemen'!$M$99+H85*'R11 Logistique approvisionnemen'!$N$99+H86*'R11 Logistique approvisionnemen'!$O$99+H87*'R11 Logistique approvisionnemen'!$P$99+H88*'R11 Logistique approvisionnemen'!$Q$99+H89*'R11 Logistique approvisionnemen'!$R$99 -> 0 | I125: =+I80*'R11 Logistique approvisionnemen'!$F$99+I81*'R11 Logistique approvisionnemen'!$J$99+I82*'R11 Logistique approvisionnemen'!$K$99+I83*'R11 Logistique approvisionnemen'!$L$99+I84*'R11 Logistique approvisionnemen'!$M$99+I85*'R11 Logistique approvisionnemen'!$N$99+I86*'R11 Logistique approvisionnemen'!$O$99+I87*'R11 Logistique approvisionnemen'!$P$99+I88*'R11 Logistique approvisionnemen'!$Q$99+I89*'R11 Logistique approvisionnemen'!$R$99 -> 0 | J125: =+J80*'R11 Logistique approvisionnemen'!$F$99+J81*'R11 Logistique approvisionnemen'!$J$99+J82*'R11 Logistique approvisionnemen'!$K$99+J83*'R11 Logistique approvisionnemen'!$L$99+J84*'R11 Logistique approvisionnemen'!$M$99+J85*'R11 Logistique approvisionnemen'!$N$99+J86*'R11 Logistique approvisionnemen'!$O$99+J87*'R11 Logistique approvisionnemen'!$P$99+J88*'R11 Logistique approvisionnemen'!$Q$99+J89*'R11 Logistique approvisionnemen'!$R$99 -> 0 | K125: =+K80*'R11 Logistique approvisionnemen'!$F$99+K81*'R11 Logistique approvisionnemen'!$J$99+K82*'R11 Logistique approvisionnemen'!$K$99+K83*'R11 Logistique approvisionnemen'!$L$99+K84*'R11 Logistique approvisionnemen'!$M$99+K85*'R11 Logistique approvisionnemen'!$N$99+K86*'R11 Logistique approvisionnemen'!$O$99+K87*'R11 Logistique approvisionnemen'!$P$99+K88*'R11 Logistique approvisionnemen'!$Q$99+K89*'R11 Logistique approvisionnemen'!$R$99 -> 0 | L125: =+L80*'R11 Logistique approvisionnemen'!$F$99+L81*'R11 Logistique approvisionnemen'!$J$99+L82*'R11 Logistique approvisionnemen'!$K$99+L83*'R11 Logistique approvisionnemen'!$L$99+L84*'R11 Logistique approvisionnemen'!$M$99+L85*'R11 Logistique approvisionnemen'!$N$99+L86*'R11 Logistique approvisionnemen'!$O$99+L87*'R11 Logistique approvisionnemen'!$P$99+L88*'R11 Logistique approvisionnemen'!$Q$99+L89*'R11 Logistique approvisionnemen'!$R$99 -> 0 | M125: =+M80*'R11 Logistique approvisionnemen'!$F$99+M81*'R11 Logistique approvisionnemen'!$J$99+M82*'R11 Logistique approvisionnemen'!$K$99+M83*'R11 Logistique approvisionnemen'!$L$99+M84*'R11 Logistique approvisionnemen'!$M$99+M85*'R11 Logistique approvisionnemen'!$N$99+M86*'R11 Logistique approvisionnemen'!$O$99+M87*'R11 Logistique approvisionnemen'!$P$99+M88*'R11 Logistique approvisionnemen'!$Q$99+M89*'R11 Logistique approvisionnemen'!$R$99 -> 0 | N125: =+N80*'R11 Logistique approvisionnemen'!$F$99+N81*'R11 Logistique approvisionnemen'!$J$99+N82*'R11 Logistique approvisionnemen'!$K$99+N83*'R11 Logistique approvisionnemen'!$L$99+N84*'R11 Logistique approvisionnemen'!$M$99+N85*'R11 Logistique approvisionnemen'!$N$99+N86*'R11 Logistique approvisionnemen'!$O$99+N87*'R11 Logistique approvisionnemen'!$P$99+N88*'R11 Logistique approvisionnemen'!$Q$99+N89*'R11 Logistique approvisionnemen'!$R$99 -> 0
D126: Nombre de livraisons par an au groupe-zones | E126: deliveries | G126: =+'D9 Variables temps'!F50 -> 4 | H126: =+'D9 Variables temps'!F51 -> 0 | I126: =+'D9 Variables temps'!F52 -> 0 | J126: =+'D9 Variables temps'!F53 -> 0 | K126: =+'D9 Variables temps'!F54 -> 0 | L126: =+'D9 Variables temps'!F55 -> 0 | M126: =+'D9 Variables temps'!F56 -> 0 | N126: =+'D9 Variables temps'!F57 -> 0
D127: Espace occupé par la livraison moyenne de l'aliment thérapeutique au groupe-zones. | E127: m3 | G127: =+IF(G126=0,0,G125/G126) -> 0 | H127: =+IF(H126=0,0,H125/H126) -> 0 | I127: 0 | J127: 0 | K127: 0 | L127: 0 | M127: 0 | N127: 0
D128: Distance du siège du groupe-zones au siège central | E128: km | G128: =+'D8 Statistiques'!G34 -> 5 | H128: =+'D8 Statistiques'!H34 -> 0 | I128: =+'D8 Statistiques'!I34 -> 0 | J128: =+'D8 Statistiques'!J34 -> 0 | K128: =+'D8 Statistiques'!K34 -> 0 | L128: =+'D8 Statistiques'!L34 -> 0 | M128: =+'D8 Statistiques'!M34 -> 0 | N128: =+'D8 Statistiques'!N34 -> 0
D129: Temps pour conduire du siège central au siège du groupe-zones | E129: hours | G129: =+'D8 Statistiques'!G35 -> 0.25 | H129: =+'D8 Statistiques'!H35 -> 0 | I129: =+'D8 Statistiques'!I35 -> 0 | J129: =+'D8 Statistiques'!J35 -> 0 | K129: =+'D8 Statistiques'!K35 -> 0 | L129: =+'D8 Statistiques'!L35 -> 0 | M129: =+'D8 Statistiques'!M35 -> 0 | N129: =+'D8 Statistiques'!N35 -> 0
D130: Taille du véhicule transportant l'aliment thérapeutique du siège central aux magasins du groupe-zones | E130: m3 | G130: =+'D8 Statistiques'!G36 -> 15 | H130: =+'D8 Statistiques'!H36 -> 0 | I130: =+'D8 Statistiques'!I36 -> 0 | J130: =+'D8 Statistiques'!J36 -> 0 | K130: =+'D8 Statistiques'!K36 -> 0 | L130: =+'D8 Statistiques'!L36 -> 0 | M130: =+'D8 Statistiques'!M36 -> 0 | N130: =+'D8 Statistiques'!N36 -> 0
D131: Taille de l'espace pour stocker l'aliment thérapeutique dans le magasin du groupe-zones. | E131: m3 | G131: =+'D8 Statistiques'!G37 -> 50 | H131: =+'D8 Statistiques'!H37 -> 0 | I131: =+'D8 Statistiques'!I37 -> 0 | J131: =+'D8 Statistiques'!J37 -> 0 | K131: =+'D8 Statistiques'!K37 -> 0 | L131: =+'D8 Statistiques'!L37 -> 0 | M131: =+'D8 Statistiques'!M37 -> 0 | N131: =+'D8 Statistiques'!N37 -> 0
D132: Gestion des zones par le groupe-zones
D133: Temps nécessaire au siège du groupe-zones pour mettre en place la PCMA dans un groupe-zones où la PCMA est nouvelle (plaidoyer, planification, mise au point de systèmes, budgétisation) par an. | E133: jours | F133: Personnel senior | G133: =+'D8 Statistiques'!G39 -> 20 | H133: =+'D8 Statistiques'!H39 -> 0 | I133: =+'D8 Statistiques'!I39 -> 0 | J133: =+'D8 Statistiques'!J39 -> 0 | K133: =+'D8 Statistiques'!K39 -> 0 | L133: =+'D8 Statistiques'!L39 -> 0 | M133: =+'D8 Statistiques'!M39 -> 0 | N133: =+'D8 Statistiques'!N39 -> 0
D134: Temps nécessaire au siège du groupe-zones pour mettre en place la PCMA dans un groupe-zones où la PCMA est nouvelle (plaidoyer, planification, mise au point de systèmes, budgétisation) par an. | E134: jours | F134: Personnel niveau intermédiaire | G134: =+'D8 Statistiques'!G40 -> 20 | H134: =+'D8 Statistiques'!H40 -> 0 | I134: =+'D8 Statistiques'!I40 -> 0 | J134: =+'D8 Statistiques'!J40 -> 0 | K134: =+'D8 Statistiques'!K40 -> 0 | L134: =+'D8 Statistiques'!L40 -> 0 | M134: =+'D8 Statistiques'!M40 -> 0 | N134: =+'D8 Statistiques'!N40 -> 0
D135: Temps nécessaire au siège du groupe-zones pour la gestion de routine (des zones nouvelles ou établies) (logistique, résolution de problèmes, suivi et de rapport).
D136: Pour chaque nouvelle zone (par an) | E136: jours | F136: Personnel niveau intermédiaire | G136: =+'D8 Statistiques'!G42 -> 20 | H136: =+'D8 Statistiques'!H42 -> 0 | I136: =+'D8 Statistiques'!I42 -> 0 | J136: =+'D8 Statistiques'!J42 -> 0 | K136: =+'D8 Statistiques'!K42 -> 0 | L136: =+'D8 Statistiques'!L42 -> 0 | M136: =+'D8 Statistiques'!M42 -> 0 | N136: =+'D8 Statistiques'!N42 -> 0
D137: Pour chaque zone établie (par an) | E137: jours | F137: Personnel niveau intermédiaire | G137: =+'D8 Statistiques'!G43 -> 5 | H137: =+'D8 Statistiques'!H43 -> 0 | I137: =+'D8 Statistiques'!I43 -> 0 | J137: =+'D8 Statistiques'!J43 -> 0 | K137: =+'D8 Statistiques'!K43 -> 0 | L137: =+'D8 Statistiques'!L43 -> 0 | M137: =+'D8 Statistiques'!M43 -> 0 | N137: =+'D8 Statistiques'!N43 -> 0
D138: Niveau central - Gestion de routine
